Workbook

Sheet Input
B2: Project # | R2: North Dakota Department of Transportation | S2: =CONCATENATE("This document was originally issued and sealed by ",S4,", Registration Number PE-",U6,", on ",TEXT(U8,"m/d/yy")," and the original document is stored at the ", R2, ".") -> This document was originally issued and sealed by , Registration Number PE-, on 1/0/00 and the original document is stored at the North Dakota Department of Transportation.
B4: Page # | Q4: PE Name:
Q6: PE Registration No.:
Q8: Date Signed:
B11: TRAFFIC CONTROL SIGNS | L11: TRAFFIC CONTROL DEVICES | AC11: SUM QUANTITY
B12: SIGN NUMBER | C12: SIGN SIZE | D12: DESCRIPTION | E12: UNITS | F12: AMOUNT REQUIRED | L12: SPEC & CODE | M12: DESCRIPTION | V12: UNIT | W12: QUANTITY
F13: PHASE | W13: PHASE
W14: =F14 -> 0 | X14: =G14 -> 0 | Y14: =H14 -> 0 | Z14: =I14 -> 0 | AA14: =J14 -> 0
B15: ='D-704 Standards'!B7 -> E5-1-48 | C15: ='D-704 Standards'!C7 -> 48"x48" | D15: ='D-704 Standards'!D7 -> EXIT GORE | E15: ='D-704 Standards'!F7 -> 35 | F15: ='Sheet Summary'!AC7 -> 0 | G15: =IF($G$14=0,0,'Sheet Summary'!AD7) -> 0 | H15: =IF($H$14=0,0,'Sheet Summary'!AE7) -> 0 | I15: =IF($I$14=0,0,'Sheet Summary'!AF7) -> 0 | J15: =IF($J$14=0,0,'Sheet Summary'!AG7) -> 0 | L15: =VALUE(CONCATENATE('D-704 Standards'!B137,IF('D-704 Standards'!C137<1000,CONCATENATE("0",'D-704 Standards'!C137),CONCATENATE('D-704 Standards'!C137)))) -> 7040100 | M15: ='D-704 Standards'!D137 -> FLAGGING | V15: ='D-704 Standards'!E137 -> MHR | W15: ='Sheet Summary'!AC137 -> 0 | X15: =IF($G$14=0,0,'Sheet Summary'!AD137) -> 0 | Y15: =IF($H$14=0,0,'Sheet Summary'!AE137) -> 0 | Z15: =IF($I$14=0,0,'Sheet Summary'!AF137) -> 0 | AA15: =IF($J$14=0,0,'Sheet Summary'!AG137) -> 0 | AC15: ='D-704 Standards'!F137 -> X
B16: ='D-704 Standards'!B8 -> G20-1-60 | C16: ='D-704 Standards'!C8 -> 60"x24" | D16: ='D-704 Standards'!D8 -> ROAD WORK NEXT __ MILES | E16: ='D-704 Standards'!F8 -> 28 | F16: ='Sheet Summary'!AC8 -> 0 | G16: =IF($G$14=0,0,'Sheet Summary'!AD8) -> 0 | H16: =IF($H$14=0,0,'Sheet Summary'!AE8) -> 0 | I16: =IF($I$14=0,0,'Sheet Summary'!AF8) -> 0 | J16: =IF($J$14=0,0,'Sheet Summary'!AG8) -> 0 | L16: =VALUE(CONCATENATE('D-704 Standards'!B138,IF('D-704 Standards'!C138<1000,CONCATENATE("0",'D-704 Standards'!C138),CONCATENATE('D-704 Standards'!C138)))) -> 7041048 | M16: ='D-704 Standards'!D138 -> PORTABLE RUMBLE STRIPS | V16: ='D-704 Standards'!E138 -> EACH | W16: ='Sheet Summary'!AC138 -> 0 | X16: =IF($G$14=0,0,'Sheet Summary'!AD138) -> 0 | Y16: =IF($H$14=0,0,'Sheet Summary'!AE138) -> 0 | Z16: =IF($I$14=0,0,'Sheet Summary'!AF138) -> 0 | AA16: =IF($J$14=0,0,'Sheet Summary'!AG138) -> 0 | AC16: ='D-704 Standards'!F138 -> 0
B17: ='D-704 Standards'!B9 -> G20-1b-60 | C17: ='D-704 Standards'!C9 -> 60"x24" | D17: ='D-704 Standards'!D9 -> NO WORK IN PROGRESS (Sign and installation only) | E17: ='D-704 Standards'!F9 -> 18 | F17: ='Sheet Summary'!AC9 -> 0 | G17: =IF($G$14=0,0,'Sheet Summary'!AD9) -> 0 | H17: =IF($H$14=0,0,'Sheet Summary'!AE9) -> 0 | I17: =IF($I$14=0,0,'Sheet Summary'!AF9) -> 0 | J17: =IF($J$14=0,0,'Sheet Summary'!AG9) -> 0 | L17: =VALUE(CONCATENATE('D-704 Standards'!B139,IF('D-704 Standards'!C139<1000,CONCATENATE("0",'D-704 Standards'!C139),CONCATENATE('D-704 Standards'!C139)))) -> 7041050 | M17: ='D-704 Standards'!D139 -> TYPE I BARRICADES | V17: ='D-704 Standards'!E139 -> EACH | W17: ='Sheet Summary'!AC139 -> 0 | X17: =IF($G$14=0,0,'Sheet Summary'!AD139) -> 0 | Y17: =IF($H$14=0,0,'Sheet Summary'!AE139) -> 0 | Z17: =IF($I$14=0,0,'Sheet Summary'!AF139) -> 0 | AA17: =IF($J$14=0,0,'Sheet Summary'!AG139) -> 0 | AC17: ='D-704 Standards'!F139 -> 0
B18: ='D-704 Standards'!B10 -> G20-2-48 | C18: ='D-704 Standards'!C10 -> 48"x24" | D18: ='D-704 Standards'!D10 -> END ROAD WORK | E18: ='D-704 Standards'!F10 -> 26 | F18: ='Sheet Summary'!AC10 -> 0 | G18: =IF($G$14=0,0,'Sheet Summary'!AD10) -> 0 | H18: =IF($H$14=0,0,'Sheet Summary'!AE10) -> 0 | I18: =IF($I$14=0,0,'Sheet Summary'!AF10) -> 0 | J18: =IF($J$14=0,0,'Sheet Summary'!AG10) -> 0 | L18: =VALUE(CONCATENATE('D-704 Standards'!B140,IF('D-704 Standards'!C140<1000,CONCATENATE("0",'D-704 Standards'!C140),CONCATENATE('D-704 Standards'!C140)))) -> 7041052 | M18: ='D-704 Standards'!D140 -> TYPE III BARRICADES | V18: ='D-704 Standards'!E140 -> EACH | W18: ='Sheet Summary'!AC140 -> 0 | X18: =IF($G$14=0,0,'Sheet Summary'!AD140) -> 0 | Y18: =IF($H$14=0,0,'Sheet Summary'!AE140) -> 0 | Z18: =IF($I$14=0,0,'Sheet Summary'!AF140) -> 0 | AA18: =IF($J$14=0,0,'Sheet Summary'!AG140) -> 0 | AC18: ='D-704 Standards'!F140 -> 0
B19: ='D-704 Standards'!B11 -> G20-4-36 | C19: ='D-704 Standards'!C11 -> 36"x18" | D19: ='D-704 Standards'!D11 -> PILOT CAR FOLLOW ME (Mounted to back of pilot car) | E19: ='D-704 Standards'!F11 -> 18 | F19: ='Sheet Summary'!AC11 -> 0 | G19: =IF($G$14=0,0,'Sheet Summary'!AD11) -> 0 | H19: =IF($H$14=0,0,'Sheet Summary'!AE11) -> 0 | I19: =IF($I$14=0,0,'Sheet Summary'!AF11) -> 0 | J19: =IF($J$14=0,0,'Sheet Summary'!AG11) -> 0 | L19: =VALUE(CONCATENATE('D-704 Standards'!B141,IF('D-704 Standards'!C141<1000,CONCATENATE("0",'D-704 Standards'!C141),CONCATENATE('D-704 Standards'!C141)))) -> 7041060 | M19: ='D-704 Standards'!D141 -> DELINEATOR DRUMS | V19: ='D-704 Standards'!E141 -> EACH | W19: ='Sheet Summary'!AC141 -> 0 | X19: =IF($G$14=0,0,'Sheet Summary'!AD141) -> 0 | Y19: =IF($H$14=0,0,'Sheet Summary'!AE141) -> 0 | Z19: =IF($I$14=0,0,'Sheet Summary'!AF141) -> 0 | AA19: =IF($J$14=0,0,'Sheet Summary'!AG141) -> 0 | AC19: ='D-704 Standards'!F141 -> 0
B20: ='D-704 Standards'!B12 -> G20-4b-36 | C20: ='D-704 Standards'!C12 -> 36"x30" | D20: ='D-704 Standards'!D12 -> WAIT FOR PILOT CAR | E20: ='D-704 Standards'!F12 -> 18 | F20: ='Sheet Summary'!AC12 -> 0 | G20: =IF($G$14=0,0,'Sheet Summary'!AD12) -> 0 | H20: =IF($H$14=0,0,'Sheet Summary'!AE12) -> 0 | I20: =IF($I$14=0,0,'Sheet Summary'!AF12) -> 0 | J20: =IF($J$14=0,0,'Sheet Summary'!AG12) -> 0 | K20: =IF(OR(F20>2,G20>2,H20>2,I20>2,J20>2),"2 or less","") ->  | L20: =VALUE(CONCATENATE('D-704 Standards'!B142,IF('D-704 Standards'!C142<1000,CONCATENATE("0",'D-704 Standards'!C142),CONCATENATE('D-704 Standards'!C142)))) -> 7041065 | M20: ='D-704 Standards'!D142 -> TRAFFIC CONES | V20: ='D-704 Standards'!E142 -> EACH | W20: ='Sheet Summary'!AC142 -> 0 | X20: =IF($G$14=0,0,'Sheet Summary'!AD142) -> 0 | Y20: =IF($H$14=0,0,'Sheet Summary'!AE142) -> 0 | Z20: =IF($I$14=0,0,'Sheet Summary'!AF142) -> 0 | AA20: =IF($J$14=0,0,'Sheet Summary'!AG142) -> 0 | AC20: ='D-704 Standards'!F142 -> 0
B21: ='D-704 Standards'!B13 -> G20-50a-72 | C21: ='D-704 Standards'!C13 -> 72"x36" | D21: ='D-704 Standards'!D13 -> ROAD WORK NEXT __ MILES RT & LT ARROWS | E21: ='D-704 Standards'!F13 -> 43 | F21: ='Sheet Summary'!AC13 -> 0 | G21: =IF($G$14=0,0,'Sheet Summary'!AD13) -> 0 | H21: =IF($H$14=0,0,'Sheet Summary'!AE13) -> 0 | I21: =IF($I$14=0,0,'Sheet Summary'!AF13) -> 0 | J21: =IF($J$14=0,0,'Sheet Summary'!AG13) -> 0 | L21: =VALUE(CONCATENATE('D-704 Standards'!B143,IF('D-704 Standards'!C143<1000,CONCATENATE("0",'D-704 Standards'!C143),CONCATENATE('D-704 Standards'!C143)))) -> 7041067 | M21: ='D-704 Standards'!D143 -> TUBULAR MARKERS | V21: ='D-704 Standards'!E143 -> EACH | W21: ='Sheet Summary'!AC143 -> 0 | X21: =IF($G$14=0,0,'Sheet Summary'!AD143) -> 0 | Y21: =IF($H$14=0,0,'Sheet Summary'!AE143) -> 0 | Z21: =IF($I$14=0,0,'Sheet Summary'!AF143) -> 0 | AA21: =IF($J$14=0,0,'Sheet Summary'!AG143) -> 0 | AC21: ='D-704 Standards'!F143 -> 0
B22: ='D-704 Standards'!B14 -> G20-52a-72 | C22: ='D-704 Standards'!C14 -> 72"x24" | D22: ='D-704 Standards'!D14 -> ROAD WORK NEXT __ MILES RT or LT ARROW | E22: ='D-704 Standards'!F14 -> 36 | F22: ='Sheet Summary'!AC14 -> 0 | G22: =IF($G$14=0,0,'Sheet Summary'!AD14) -> 0 | H22: =IF($H$14=0,0,'Sheet Summary'!AE14) -> 0 | I22: =IF($I$14=0,0,'Sheet Summary'!AF14) -> 0 | J22: =IF($J$14=0,0,'Sheet Summary'!AG14) -> 0 | L22: =VALUE(CONCATENATE('D-704 Standards'!B144,IF('D-704 Standards'!C144<1000,CONCATENATE("0",'D-704 Standards'!C144),CONCATENATE('D-704 Standards'!C144)))) -> 7041070 | M22: ='D-704 Standards'!D144 -> DELINEATOR | V22: ='D-704 Standards'!E144 -> EACH | W22: ='Sheet Summary'!AC144 -> 0 | X22: =IF($G$14=0,0,'Sheet Summary'!AD144) -> 0 | Y22: =IF($H$14=0,0,'Sheet Summary'!AE144) -> 0 | Z22: =IF($I$14=0,0,'Sheet Summary'!AF144) -> 0 | AA22: =IF($J$14=0,0,'Sheet Summary'!AG144) -> 0 | AC22: ='D-704 Standards'!F144 -> 0
B23: ='D-704 Standards'!B15 -> G20-55-96 | C23: ='D-704 Standards'!C15 -> 96"x48" | D23: ='D-704 Standards'!D15 -> SPEED LIMIT ENFORCED - MINIMUM FEE $150 WHEN WORKERS PRESENT | E23: ='D-704 Standards'!F15 -> 59 | F23: ='Sheet Summary'!AC15 -> 0 | G23: =IF($G$14=0,0,'Sheet Summary'!AD15) -> 0 | H23: =IF($H$14=0,0,'Sheet Summary'!AE15) -> 0 | I23: =IF($I$14=0,0,'Sheet Summary'!AF15) -> 0 | J23: =IF($J$14=0,0,'Sheet Summary'!AG15) -> 0 | L23: =VALUE(CONCATENATE('D-704 Standards'!B145,IF('D-704 Standards'!C145<1000,CONCATENATE("0",'D-704 Standards'!C145),CONCATENATE('D-704 Standards'!C145)))) -> 7041072 | M23: ='D-704 Standards'!D145 -> FLEXIBLE DELINEATORS | V23: ='D-704 Standards'!E145 -> EACH | W23: ='Sheet Summary'!AC145 -> 0 | X23: =IF($G$14=0,0,'Sheet Summary'!AD145) -> 0 | Y23: =IF($H$14=0,0,'Sheet Summary'!AE145) -> 0 | Z23: =IF($I$14=0,0,'Sheet Summary'!AF145) -> 0 | AA23: =IF($J$14=0,0,'Sheet Summary'!AG145) -> 0 | AC23: ='D-704 Standards'!F145 -> 0
B24: ='D-704 Standards'!B16 -> M1-1-36 | C24: ='D-704 Standards'!C16 -> 36"x36" | D24: ='D-704 Standards'!D16 -> INTERSTATE ROUTE MARKER (Post and installation only) | E24: ='D-704 Standards'!F16 -> 11 | F24: ='Sheet Summary'!AC16 -> 0 | G24: =IF($G$14=0,0,'Sheet Summary'!AD16) -> 0 | H24: =IF($H$14=0,0,'Sheet Summary'!AE16) -> 0 | I24: =IF($I$14=0,0,'Sheet Summary'!AF16) -> 0 | J24: =IF($J$14=0,0,'Sheet Summary'!AG16) -> 0 | L24: =VALUE(CONCATENATE('D-704 Standards'!B146,IF('D-704 Standards'!C146<1000,CONCATENATE("0",'D-704 Standards'!C146),CONCATENATE('D-704 Standards'!C146)))) -> 7041080 | M24: ='D-704 Standards'!D146 -> STACKABLE VERTICAL PANELS | V24: ='D-704 Standards'!E146 -> EACH | W24: ='Sheet Summary'!AC146 -> 0 | X24: =IF($G$14=0,0,'Sheet Summary'!AD146) -> 0 | Y24: =IF($H$14=0,0,'Sheet Summary'!AE146) -> 0 | Z24: =IF($I$14=0,0,'Sheet Summary'!AF146) -> 0 | AA24: =IF($J$14=0,0,'Sheet Summary'!AG146) -> 0 | AC24: ='D-704 Standards'!F146 -> 0
B25: ='D-704 Standards'!B17 -> M1-4-24 | C25: ='D-704 Standards'!C17 -> 24"x24" | D25: ='D-704 Standards'!D17 -> U.S. ROUTE MARKER (Post and installation only) | E25: ='D-704 Standards'!F17 -> 10 | F25: ='Sheet Summary'!AC17 -> 0 | G25: =IF($G$14=0,0,'Sheet Summary'!AD17) -> 0 | H25: =IF($H$14=0,0,'Sheet Summary'!AE17) -> 0 | I25: =IF($I$14=0,0,'Sheet Summary'!AF17) -> 0 | J25: =IF($J$14=0,0,'Sheet Summary'!AG17) -> 0 | L25: =VALUE(CONCATENATE('D-704 Standards'!B147,IF('D-704 Standards'!C147<1000,CONCATENATE("0",'D-704 Standards'!C147),CONCATENATE('D-704 Standards'!C147)))) -> 7041081 | M25: ='D-704 Standards'!D147 -> VERTICAL PANELS - BACK TO BACK | V25: ='D-704 Standards'!E147 -> EACH | W25: ='Sheet Summary'!AC147 -> 0 | X25: =IF($G$14=0,0,'Sheet Summary'!AD147) -> 0 | Y25: =IF($H$14=0,0,'Sheet Summary'!AE147) -> 0 | Z25: =IF($I$14=0,0,'Sheet Summary'!AF147) -> 0 | AA25: =IF($J$14=0,0,'Sheet Summary'!AG147) -> 0 | AC25: ='D-704 Standards'!F147 -> 0
B26: ='D-704 Standards'!B18 -> M1-5-24 | C26: ='D-704 Standards'!C18 -> 24"x24" | D26: ='D-704 Standards'!D18 -> STATE ROUTE MARKER (Post and installation only) | E26: ='D-704 Standards'!F18 -> 10 | F26: ='Sheet Summary'!AC18 -> 0 | G26: =IF($G$14=0,0,'Sheet Summary'!AD18) -> 0 | H26: =IF($H$14=0,0,'Sheet Summary'!AE18) -> 0 | I26: =IF($I$14=0,0,'Sheet Summary'!AF18) -> 0 | J26: =IF($J$14=0,0,'Sheet Summary'!AG18) -> 0 | L26: =VALUE(CONCATENATE('D-704 Standards'!B148,IF('D-704 Standards'!C148<1000,CONCATENATE("0",'D-704 Standards'!C148),CONCATENATE('D-704 Standards'!C148)))) -> 7041085 | M26: ='D-704 Standards'!D148 -> SEQUENCING ARROW PANEL - TYPE A | V26: ='D-704 Standards'!E148 -> EACH | W26: ='Sheet Summary'!AC148 -> 0 | X26: =IF($G$14=0,0,'Sheet Summary'!AD148) -> 0 | Y26: =IF($H$14=0,0,'Sheet Summary'!AE148) -> 0 | Z26: =IF($I$14=0,0,'Sheet Summary'!AF148) -> 0 | AA26: =IF($J$14=0,0,'Sheet Summary'!AG148) -> 0 | AC26: ='D-704 Standards'!F148 -> 0
B27: ='D-704 Standards'!B19 -> M3-1-24 | C27: ='D-704 Standards'!C19 -> 24"x12" | D27: ='D-704 Standards'!D19 -> NORTH (Mounted on route marker post) | E27: ='D-704 Standards'!F19 -> 7 | F27: ='Sheet Summary'!AC19 -> 0 | G27: =IF($G$14=0,0,'Sheet Summary'!AD19) -> 0 | H27: =IF($H$14=0,0,'Sheet Summary'!AE19) -> 0 | I27: =IF($I$14=0,0,'Sheet Summary'!AF19) -> 0 | J27: =IF($J$14=0,0,'Sheet Summary'!AG19) -> 0 | L27: =VALUE(CONCATENATE('D-704 Standards'!B149,IF('D-704 Standards'!C149<1000,CONCATENATE("0",'D-704 Standards'!C149),CONCATENATE('D-704 Standards'!C149)))) -> 7041086 | M27: ='D-704 Standards'!D149 -> SEQUENCING ARROW PANEL - TYPE B | V27: ='D-704 Standards'!E149 -> EACH | W27: ='Sheet Summary'!AC149 -> 0 | X27: =IF($G$14=0,0,'Sheet Summary'!AD149) -> 0 | Y27: =IF($H$14=0,0,'Sheet Summary'!AE149) -> 0 | Z27: =IF($I$14=0,0,'Sheet Summary'!AF149) -> 0 | AA27: =IF($J$14=0,0,'Sheet Summary'!AG149) -> 0 | AC27: ='D-704 Standards'!F149 -> 0
B28: ='D-704 Standards'!B20 -> M3-2-24 | C28: ='D-704 Standards'!C20 -> 24"x12" | D28: ='D-704 Standards'!D20 -> EAST (Mounted on route marker post) | E28: ='D-704 Standards'!F20 -> 7 | F28: ='Sheet Summary'!AC20 -> 0 | G28: =IF($G$14=0,0,'Sheet Summary'!AD20) -> 0 | H28: =IF($H$14=0,0,'Sheet Summary'!AE20) -> 0 | I28: =IF($I$14=0,0,'Sheet Summary'!AF20) -> 0 | J28: =IF($J$14=0,0,'Sheet Summary'!AG20) -> 0 | L28: =VALUE(CONCATENATE('D-704 Standards'!B150,IF('D-704 Standards'!C150<1000,CONCATENATE("0",'D-704 Standards'!C150),CONCATENATE('D-704 Standards'!C150)))) -> 7041087 | M28: ='D-704 Standards'!D150 -> SEQUENCING ARROW PANEL - TYPE C | V28: ='D-704 Standards'!E150 -> EACH | W28: ='Sheet Summary'!AC150 -> 0 | X28: =IF($G$14=0,0,'Sheet Summary'!AD150) -> 0 | Y28: =IF($H$14=0,0,'Sheet Summary'!AE150) -> 0 | Z28: =IF($I$14=0,0,'Sheet Summary'!AF150) -> 0 | AA28: =IF($J$14=0,0,'Sheet Summary'!AG150) -> 0 | AC28: ='D-704 Standards'!F150 -> 0
B29: ='D-704 Standards'!B21 -> M3-3-24 | C29: ='D-704 Standards'!C21 -> 24"x12" | D29: ='D-704 Standards'!D21 -> SOUTH (Mounted on route marker post) | E29: ='D-704 Standards'!F21 -> 7 | F29: ='Sheet Summary'!AC21 -> 0 | G29: =IF($G$14=0,0,'Sheet Summary'!AD21) -> 0 | H29: =IF($H$14=0,0,'Sheet Summary'!AE21) -> 0 | I29: =IF($I$14=0,0,'Sheet Summary'!AF21) -> 0 | J29: =IF($J$14=0,0,'Sheet Summary'!AG21) -> 0 | L29: =VALUE(CONCATENATE('D-704 Standards'!B151,IF('D-704 Standards'!C151<1000,CONCATENATE("0",'D-704 Standards'!C151),CONCATENATE('D-704 Standards'!C151)))) -> 7043501 | M29: ='D-704 Standards'!D151 -> PORTABLE PRECAST CONCRETE MED BARRIER | V29: ='D-704 Standards'!E151 -> LF | W29: ='Sheet Summary'!AC151 -> 0 | X29: =IF($G$14=0,0,'Sheet Summary'!AD151) -> 0 | Y29: =IF($H$14=0,0,'Sheet Summary'!AE151) -> 0 | Z29: =IF($I$14=0,0,'Sheet Summary'!AF151) -> 0 | AA29: =IF($J$14=0,0,'Sheet Summary'!AG151) -> 0 | AC29: ='D-704 Standards'!F151 -> 0
B30: ='D-704 Standards'!B22 -> M3-4-24 | C30: ='D-704 Standards'!C22 -> 24"x12" | D30: ='D-704 Standards'!D22 -> WEST (Mounted on route marker post) | E30: ='D-704 Standards'!F22 -> 7 | F30: ='Sheet Summary'!AC22 -> 0 | G30: =IF($G$14=0,0,'Sheet Summary'!AD22) -> 0 | H30: =IF($H$14=0,0,'Sheet Summary'!AE22) -> 0 | I30: =IF($I$14=0,0,'Sheet Summary'!AF22) -> 0 | J30: =IF($J$14=0,0,'Sheet Summary'!AG22) -> 0 | L30: =VALUE(CONCATENATE('D-704 Standards'!B152,IF('D-704 Standards'!C152<1000,CONCATENATE("0",'D-704 Standards'!C152),CONCATENATE('D-704 Standards'!C152)))) -> 7043510 | M30: ='D-704 Standards'!D152 -> PRECAST CONCRETE MED BARRIER - STATE FURNISHED | V30: ='D-704 Standards'!E152 -> EACH | W30: ='Sheet Summary'!AC152 -> 0 | X30: =IF($G$14=0,0,'Sheet Summary'!AD152) -> 0 | Y30: =IF($H$14=0,0,'Sheet Summary'!AE152) -> 0 | Z30: =IF($I$14=0,0,'Sheet Summary'!AF152) -> 0 | AA30: =IF($J$14=0,0,'Sheet Summary'!AG152) -> 0 | AC30: ='D-704 Standards'!F152 -> 0
B31: ='D-704 Standards'!B23 -> M4-8-24 | C31: ='D-704 Standards'!C23 -> 24"x12" | D31: ='D-704 Standards'!D23 -> DETOUR (Mounted on route marker post) | E31: ='D-704 Standards'!F23 -> 7 | F31: ='Sheet Summary'!AC23 -> 0 | G31: =IF($G$14=0,0,'Sheet Summary'!AD23) -> 0 | H31: =IF($H$14=0,0,'Sheet Summary'!AE23) -> 0 | I31: =IF($I$14=0,0,'Sheet Summary'!AF23) -> 0 | J31: =IF($J$14=0,0,'Sheet Summary'!AG23) -> 0 | L31: =VALUE(CONCATENATE('D-704 Standards'!B153,IF('D-704 Standards'!C153<1000,CONCATENATE("0",'D-704 Standards'!C153),CONCATENATE('D-704 Standards'!C153)))) -> 7620200 | M31: ='D-704 Standards'!D153 -> RAISED PAVEMENT MARKERS | V31: ='D-704 Standards'!E153 -> EACH | W31: ='Sheet Summary'!AC153 -> 0 | X31: =IF($G$14=0,0,'Sheet Summary'!AD153) -> 0 | Y31: =IF($H$14=0,0,'Sheet Summary'!AE153) -> 0 | Z31: =IF($I$14=0,0,'Sheet Summary'!AF153) -> 0 | AA31: =IF($J$14=0,0,'Sheet Summary'!AG153) -> 0 | AC31: ='D-704 Standards'!F153 -> X
B32: ='D-704 Standards'!B24 -> M4-9-30 | C32: ='D-704 Standards'!C24 -> 30"x24" | D32: ='D-704 Standards'!D24 -> DETOUR ARROW RIGHT or LEFT/AHD AND RT or LT | E32: ='D-704 Standards'!F24 -> 15 | F32: ='Sheet Summary'!AC24 -> 0 | G32: =IF($G$14=0,0,'Sheet Summary'!AD24) -> 0 | H32: =IF($H$14=0,0,'Sheet Summary'!AE24) -> 0 | I32: =IF($I$14=0,0,'Sheet Summary'!AF24) -> 0 | J32: =IF($J$14=0,0,'Sheet Summary'!AG24) -> 0 | L32: =VALUE(CONCATENATE('D-704 Standards'!B154,IF('D-704 Standards'!C154<1000,CONCATENATE("0",'D-704 Standards'!C154),CONCATENATE('D-704 Standards'!C154)))) -> 7620420 | M32: ='D-704 Standards'!D154 -> SHORT TERM 4IN LINE - TYPE R | V32: ='D-704 Standards'!E154 -> LF | W32: ='Sheet Summary'!AC154 -> 0 | X32: =IF($G$14=0,0,'Sheet Summary'!AD154) -> 0 | Y32: =IF($H$14=0,0,'Sheet Summary'!AE154) -> 0 | Z32: =IF($I$14=0,0,'Sheet Summary'!AF154) -> 0 | AA32: =IF($J$14=0,0,'Sheet Summary'!AG154) -> 0 | AC32: ='D-704 Standards'!F154 -> X
B33: ='D-704 Standards'!B25 -> M4-10-48 | C33: ='D-704 Standards'!C25 -> 48"x18" | D33: ='D-704 Standards'!D25 -> DETOUR (INSIDE ARROW) RIGHT or LEFT (Mounted on barricade) | E33: ='D-704 Standards'!F25 -> 7 | F33: ='Sheet Summary'!AC25 -> 0 | G33: =IF($G$14=0,0,'Sheet Summary'!AD25) -> 0 | H33: =IF($H$14=0,0,'Sheet Summary'!AE25) -> 0 | I33: =IF($I$14=0,0,'Sheet Summary'!AF25) -> 0 | J33: =IF($J$14=0,0,'Sheet Summary'!AG25) -> 0 | L33: =VALUE(CONCATENATE('D-704 Standards'!B155,IF('D-704 Standards'!C155<1000,CONCATENATE("0",'D-704 Standards'!C155),CONCATENATE('D-704 Standards'!C155)))) -> 7620430 | M33: ='D-704 Standards'!D155 -> SHORT TERM 4IN LINE - TYPE NR | V33: ='D-704 Standards'!E155 -> LF | W33: ='Sheet Summary'!AC155 -> 0 | X33: =IF($G$14=0,0,'Sheet Summary'!AD155) -> 0 | Y33: =IF($H$14=0,0,'Sheet Summary'!AE155) -> 0 | Z33: =IF($I$14=0,0,'Sheet Summary'!AF155) -> 0 | AA33: =IF($J$14=0,0,'Sheet Summary'!AG155) -> 0 | AC33: ='D-704 Standards'!F155 -> X
B34: ='D-704 Standards'!B26 -> M5-1-21 | C34: ='D-704 Standards'!C26 -> 21"x15" | D34: ='D-704 Standards'!D26 -> ADVANCE TURN ARROW RT or LT(Mounted on route marker post) | E34: ='D-704 Standards'!F26 -> 7 | F34: ='Sheet Summary'!AC26 -> 0 | G34: =IF($G$14=0,0,'Sheet Summary'!AD26) -> 0 | H34: =IF($H$14=0,0,'Sheet Summary'!AE26) -> 0 | I34: =IF($I$14=0,0,'Sheet Summary'!AF26) -> 0 | J34: =IF($J$14=0,0,'Sheet Summary'!AG26) -> 0 | L34: =VALUE(CONCATENATE('D-704 Standards'!B156,IF('D-704 Standards'!C156<1000,CONCATENATE("0",'D-704 Standards'!C156),CONCATENATE('D-704 Standards'!C156)))) -> 7041500 | M34: ='D-704 Standards'!D156 -> OBLITERATION OF PVMT MK | V34: ='D-704 Standards'!E156 -> SF | W34: ='Sheet Summary'!AC156 -> 0 | X34: =IF($G$14=0,0,'Sheet Summary'!AD156) -> 0 | Y34: =IF($H$14=0,0,'Sheet Summary'!AE156) -> 0 | Z34: =IF($I$14=0,0,'Sheet Summary'!AF156) -> 0 | AA34: =IF($J$14=0,0,'Sheet Summary'!AG156) -> 0 | AC34: ='D-704 Standards'!F156 -> X
B35: ='D-704 Standards'!B27 -> M5-1-30 | C35: ='D-704 Standards'!C27 -> 30"x21" | D35: ='D-704 Standards'!D27 -> ADVANCE TURN ARROW RT or LT(Mounted on route marker post) | E35: ='D-704 Standards'!F27 -> 9 | F35: ='Sheet Summary'!AC27 -> 0 | G35: =IF($G$14=0,0,'Sheet Summary'!AD27) -> 0 | H35: =IF($H$14=0,0,'Sheet Summary'!AE27) -> 0 | I35: =IF($I$14=0,0,'Sheet Summary'!AF27) -> 0 | J35: =IF($J$14=0,0,'Sheet Summary'!AG27) -> 0 | W35: ='Sheet Summary'!AC157 -> 0 | X35: =IF($G$14=0,0,'Sheet Summary'!AD157) -> 0 | Y35: =IF($H$14=0,0,'Sheet Summary'!AE157) -> 0 | Z35: =IF($I$14=0,0,'Sheet Summary'!AF157) -> 0 | AA35: =IF($J$14=0,0,'Sheet Summary'!AG157) -> 0
B36: ='D-704 Standards'!B28 -> M6-1-21 | C36: ='D-704 Standards'!C28 -> 21"x15" | D36: ='D-704 Standards'!D28 -> DIRECTIONAL ARROW RT or LT (Mounted on route marker post) | E36: ='D-704 Standards'!F28 -> 7 | F36: ='Sheet Summary'!AC28 -> 0 | G36: =IF($G$14=0,0,'Sheet Summary'!AD28) -> 0 | H36: =IF($H$14=0,0,'Sheet Summary'!AE28) -> 0 | I36: =IF($I$14=0,0,'Sheet Summary'!AF28) -> 0 | J36: =IF($J$14=0,0,'Sheet Summary'!AG28) -> 0 | W36: ='Sheet Summary'!AC158 -> 0 | X36: =IF($G$14=0,0,'Sheet Summary'!AD158) -> 0 | Y36: =IF($H$14=0,0,'Sheet Summary'!AE158) -> 0 | Z36: =IF($I$14=0,0,'Sheet Summary'!AF158) -> 0 | AA36: =IF($J$14=0,0,'Sheet Summary'!AG158) -> 0
B37: ='D-704 Standards'!B29 -> M6-1-30 | C37: ='D-704 Standards'!C29 -> 30"x21" | D37: ='D-704 Standards'!D29 -> DIRECTIONAL ARROW RT or LT (Mounted on route marker post) | E37: ='D-704 Standards'!F29 -> 9 | F37: ='Sheet Summary'!AC29 -> 0 | G37: =IF($G$14=0,0,'Sheet Summary'!AD29) -> 0 | H37: =IF($H$14=0,0,'Sheet Summary'!AE29) -> 0 | I37: =IF($I$14=0,0,'Sheet Summary'!AF29) -> 0 | J37: =IF($J$14=0,0,'Sheet Summary'!AG29) -> 0 | W37: ='Sheet Summary'!AC159 -> 0 | X37: =IF($G$14=0,0,'Sheet Summary'!AD159) -> 0 | Y37: =IF($H$14=0,0,'Sheet Summary'!AE159) -> 0 | Z37: =IF($I$14=0,0,'Sheet Summary'!AF159) -> 0 | AA37: =IF($J$14=0,0,'Sheet Summary'!AG159) -> 0
B38: ='D-704 Standards'!B30 -> M6-3-21 | C38: ='D-704 Standards'!C30 -> 21"x15" | D38: ='D-704 Standards'!D30 -> DIRECTIONAL ARROW UP (Mounted on route marker post) | E38: ='D-704 Standards'!F30 -> 7 | F38: ='Sheet Summary'!AC30 -> 0 | G38: =IF($G$14=0,0,'Sheet Summary'!AD30) -> 0 | H38: =IF($H$14=0,0,'Sheet Summary'!AE30) -> 0 | I38: =IF($I$14=0,0,'Sheet Summary'!AF30) -> 0 | J38: =IF($J$14=0,0,'Sheet Summary'!AG30) -> 0 | W38: ='Sheet Summary'!AC160 -> 0 | X38: =IF($G$14=0,0,'Sheet Summary'!AD160) -> 0 | Y38: =IF($H$14=0,0,'Sheet Summary'!AE160) -> 0 | Z38: =IF($I$14=0,0,'Sheet Summary'!AF160) -> 0 | AA38: =IF($J$14=0,0,'Sheet Summary'!AG160) -> 0
B39: ='D-704 Standards'!B31 -> R1-1-48 | C39: ='D-704 Standards'!C31 -> 48"x48" | D39: ='D-704 Standards'!D31 -> STOP | E39: ='D-704 Standards'!F31 -> 32 | F39: ='Sheet Summary'!AC31 -> 0 | G39: =IF($G$14=0,0,'Sheet Summary'!AD31) -> 0 | H39: =IF($H$14=0,0,'Sheet Summary'!AE31) -> 0 | I39: =IF($I$14=0,0,'Sheet Summary'!AF31) -> 0 | J39: =IF($J$14=0,0,'Sheet Summary'!AG31) -> 0 | W39: ='Sheet Summary'!AC161 -> 0 | X39: =IF($G$14=0,0,'Sheet Summary'!AD161) -> 0 | Y39: =IF($H$14=0,0,'Sheet Summary'!AE161) -> 0 | Z39: =IF($I$14=0,0,'Sheet Summary'!AF161) -> 0 | AA39: =IF($J$14=0,0,'Sheet Summary'!AG161) -> 0
B40: ='D-704 Standards'!B32 -> R1-2-60 | C40: ='D-704 Standards'!C32 -> 60"x60" | D40: ='D-704 Standards'!D32 -> YIELD | E40: ='D-704 Standards'!F32 -> 29 | F40: ='Sheet Summary'!AC32 -> 0 | G40: =IF($G$14=0,0,'Sheet Summary'!AD32) -> 0 | H40: =IF($H$14=0,0,'Sheet Summary'!AE32) -> 0 | I40: =IF($I$14=0,0,'Sheet Summary'!AF32) -> 0 | J40: =IF($J$14=0,0,'Sheet Summary'!AG32) -> 0 | W40: ='Sheet Summary'!AC162 -> 0 | X40: =IF($G$14=0,0,'Sheet Summary'!AD162) -> 0 | Y40: =IF($H$14=0,0,'Sheet Summary'!AE162) -> 0 | Z40: =IF($I$14=0,0,'Sheet Summary'!AF162) -> 0 | AA40: =IF($J$14=0,0,'Sheet Summary'!AG162) -> 0
B41: ='D-704 Standards'!B33 -> R2-1-36 | C41: ='D-704 Standards'!C33 -> 36"x48" | D41: ='D-704 Standards'!D33 -> SPEED LIMIT __ (Portable only) | E41: ='D-704 Standards'!F33 -> 30 | F41: ='Sheet Summary'!AC33 -> 0 | G41: =IF($G$14=0,0,'Sheet Summary'!AD33) -> 0 | H41: =IF($H$14=0,0,'Sheet Summary'!AE33) -> 0 | I41: =IF($I$14=0,0,'Sheet Summary'!AF33) -> 0 | J41: =IF($J$14=0,0,'Sheet Summary'!AG33) -> 0 | W41: ='Sheet Summary'!AC163 -> 0 | X41: =IF($G$14=0,0,'Sheet Summary'!AD163) -> 0 | Y41: =IF($H$14=0,0,'Sheet Summary'!AE163) -> 0 | Z41: =IF($I$14=0,0,'Sheet Summary'!AF163) -> 0 | AA41: =IF($J$14=0,0,'Sheet Summary'!AG163) -> 0
B42: ='D-704 Standards'!B34 -> R2-1-48 | C42: ='D-704 Standards'!C34 -> 48"x60" | D42: ='D-704 Standards'!D34 -> SPEED LIMIT __ | E42: ='D-704 Standards'!F34 -> 39 | F42: ='Sheet Summary'!AC34 -> 0 | G42: =IF($G$14=0,0,'Sheet Summary'!AD34) -> 0 | H42: =IF($H$14=0,0,'Sheet Summary'!AE34) -> 0 | I42: =IF($I$14=0,0,'Sheet Summary'!AF34) -> 0 | J42: =IF($J$14=0,0,'Sheet Summary'!AG34) -> 0 | W42: ='Sheet Summary'!AC164 -> 0 | X42: =IF($G$14=0,0,'Sheet Summary'!AD164) -> 0 | Y42: =IF($H$14=0,0,'Sheet Summary'!AE164) -> 0 | Z42: =IF($I$14=0,0,'Sheet Summary'!AF164) -> 0 | AA42: =IF($J$14=0,0,'Sheet Summary'!AG164) -> 0
B43: ='D-704 Standards'!B35 -> R2-1aP-24 | C43: ='D-704 Standards'!C35 -> 24"x18" | D43: ='D-704 Standards'!D35 -> MINIMUM FEE $150 (Mounted on Speed Limit post) | E43: ='D-704 Standards'!F35 -> 10 | F43: ='Sheet Summary'!AC35 -> 0 | G43: =IF($G$14=0,0,'Sheet Summary'!AD35) -> 0 | H43: =IF($H$14=0,0,'Sheet Summary'!AE35) -> 0 | I43: =IF($I$14=0,0,'Sheet Summary'!AF35) -> 0 | J43: =IF($J$14=0,0,'Sheet Summary'!AG35) -> 0 | W43: ='Sheet Summary'!AC165 -> 0 | X43: =IF($G$14=0,0,'Sheet Summary'!AD165) -> 0 | Y43: =IF($H$14=0,0,'Sheet Summary'!AE165) -> 0 | Z43: =IF($I$14=0,0,'Sheet Summary'!AF165) -> 0 | AA43: =IF($J$14=0,0,'Sheet Summary'!AG165) -> 0
B44: ='D-704 Standards'!B36 -> R3-2-48 | C44: ='D-704 Standards'!C36 -> 48"x48" | D44: ='D-704 Standards'!D36 -> NO LEFT TURN | E44: ='D-704 Standards'!F36 -> 35 | F44: ='Sheet Summary'!AC36 -> 0 | G44: =IF($G$14=0,0,'Sheet Summary'!AD36) -> 0 | H44: =IF($H$14=0,0,'Sheet Summary'!AE36) -> 0 | I44: =IF($I$14=0,0,'Sheet Summary'!AF36) -> 0 | J44: =IF($J$14=0,0,'Sheet Summary'!AG36) -> 0 | W44: ='Sheet Summary'!AC166 -> 0 | X44: =IF($G$14=0,0,'Sheet Summary'!AD166) -> 0 | Y44: =IF($H$14=0,0,'Sheet Summary'!AE166) -> 0 | Z44: =IF($I$14=0,0,'Sheet Summary'!AF166) -> 0 | AA44: =IF($J$14=0,0,'Sheet Summary'!AG166) -> 0
B45: ='D-704 Standards'!B37 -> R4-1-48 | C45: ='D-704 Standards'!C37 -> 48"x60" | D45: ='D-704 Standards'!D37 -> DO NOT PASS | E45: ='D-704 Standards'!F37 -> 39 | F45: ='Sheet Summary'!AC37 -> 0 | G45: =IF($G$14=0,0,'Sheet Summary'!AD37) -> 0 | H45: =IF($H$14=0,0,'Sheet Summary'!AE37) -> 0 | I45: =IF($I$14=0,0,'Sheet Summary'!AF37) -> 0 | J45: =IF($J$14=0,0,'Sheet Summary'!AG37) -> 0
B46: ='D-704 Standards'!B38 -> R4-7-48 | C46: ='D-704 Standards'!C38 -> 48"x60" | D46: ='D-704 Standards'!D38 -> KEEP RIGHT | E46: ='D-704 Standards'!F38 -> 39 | F46: ='Sheet Summary'!AC38 -> 0 | G46: =IF($G$14=0,0,'Sheet Summary'!AD38) -> 0 | H46: =IF($H$14=0,0,'Sheet Summary'!AE38) -> 0 | I46: =IF($I$14=0,0,'Sheet Summary'!AF38) -> 0 | J46: =IF($J$14=0,0,'Sheet Summary'!AG38) -> 0
B47: ='D-704 Standards'!B39 -> R5-1-48 | C47: ='D-704 Standards'!C39 -> 48"x48" | D47: ='D-704 Standards'!D39 -> DO NOT ENTER | E47: ='D-704 Standards'!F39 -> 35 | F47: ='Sheet Summary'!AC39 -> 0 | G47: =IF($G$14=0,0,'Sheet Summary'!AD39) -> 0 | H47: =IF($H$14=0,0,'Sheet Summary'!AE39) -> 0 | I47: =IF($I$14=0,0,'Sheet Summary'!AF39) -> 0 | J47: =IF($J$14=0,0,'Sheet Summary'!AG39) -> 0 | L47: NOTE: Macros must be enabled for the buttons to work. To enable macros, click on the Options button next to the Security Warning under the menu bar to open the Microsoft Security Options. Choose Enable this content and click OK. DO NOT SAVE THIS FILE IN ANY FORMAT EXCEPT .xlsm (MACRO-ENABLED.) DOING SO WILL CAUSE THE MACROS TO BE REMOVED OR PERMANENTLY DISABLED.
B48: ='D-704 Standards'!B40 -> R6-1-54 | C48: ='D-704 Standards'!C40 -> 54"x18" | D48: ='D-704 Standards'!D40 -> ONE WAY RIGHT or LEFT (Mounted on STOP or DO NOT ENTER post) | E48: ='D-704 Standards'!F40 -> 14 | F48: ='Sheet Summary'!AC40 -> 0 | G48: =IF($G$14=0,0,'Sheet Summary'!AD40) -> 0 | H48: =IF($H$14=0,0,'Sheet Summary'!AE40) -> 0 | I48: =IF($I$14=0,0,'Sheet Summary'!AF40) -> 0 | J48: =IF($J$14=0,0,'Sheet Summary'!AG40) -> 0
B49: ='D-704 Standards'!B41 -> R7-1-12 | C49: ='D-704 Standards'!C41 -> 12"x18" | D49: ='D-704 Standards'!D41 -> NO PARKING ANY TIME | E49: ='D-704 Standards'!F41 -> 11 | F49: ='Sheet Summary'!AC41 -> 0 | G49: =IF($G$14=0,0,'Sheet Summary'!AD41) -> 0 | H49: =IF($H$14=0,0,'Sheet Summary'!AE41) -> 0 | I49: =IF($I$14=0,0,'Sheet Summary'!AF41) -> 0 | J49: =IF($J$14=0,0,'Sheet Summary'!AG41) -> 0
B50: ='D-704 Standards'!B42 -> R10-6-24 | C50: ='D-704 Standards'!C42 -> 24"x36" | D50: ='D-704 Standards'!D42 -> STOP HERE ON RED | E50: ='D-704 Standards'!F42 -> 16 | F50: ='Sheet Summary'!AC42 -> 0 | G50: =IF($G$14=0,0,'Sheet Summary'!AD42) -> 0 | H50: =IF($H$14=0,0,'Sheet Summary'!AE42) -> 0 | I50: =IF($I$14=0,0,'Sheet Summary'!AF42) -> 0 | J50: =IF($J$14=0,0,'Sheet Summary'!AG42) -> 0
B51: ='D-704 Standards'!B43 -> R11-2-48 | C51: ='D-704 Standards'!C43 -> 48"x30" | D51: ='D-704 Standards'!D43 -> ROAD CLOSED (Mounted on barricade) | E51: ='D-704 Standards'!F43 -> 12 | F51: ='Sheet Summary'!AC43 -> 0 | G51: =IF($G$14=0,0,'Sheet Summary'!AD43) -> 0 | H51: =IF($H$14=0,0,'Sheet Summary'!AE43) -> 0 | I51: =IF($I$14=0,0,'Sheet Summary'!AF43) -> 0 | J51: =IF($J$14=0,0,'Sheet Summary'!AG43) -> 0
B52: ='D-704 Standards'!B44 -> R11-2a-48 | C52: ='D-704 Standards'!C44 -> 48"x30" | D52: ='D-704 Standards'!D44 -> STREET CLOSED (Mounted on barricade) | E52: ='D-704 Standards'!F44 -> 12 | F52: ='Sheet Summary'!AC44 -> 0 | G52: =IF($G$14=0,0,'Sheet Summary'!AD44) -> 0 | H52: =IF($H$14=0,0,'Sheet Summary'!AE44) -> 0 | I52: =IF($I$14=0,0,'Sheet Summary'!AF44) -> 0 | J52: =IF($J$14=0,0,'Sheet Summary'!AG44) -> 0
B53: ='D-704 Standards'!B45 -> R11-3a-60 | C53: ='D-704 Standards'!C45 -> 60"x30" | D53: ='D-704 Standards'!D45 -> ROAD CLOSED __ MILES AHEAD LOCAL TRAFFIC ONLY (Mtd on barricade) | E53: ='D-704 Standards'!F45 -> 15 | F53: ='Sheet Summary'!AC45 -> 0 | G53: =IF($G$14=0,0,'Sheet Summary'!AD45) -> 0 | H53: =IF($H$14=0,0,'Sheet Summary'!AE45) -> 0 | I53: =IF($I$14=0,0,'Sheet Summary'!AF45) -> 0 | J53: =IF($J$14=0,0,'Sheet Summary'!AG45) -> 0
B54: ='D-704 Standards'!B46 -> R11-3c-60 | C54: ='D-704 Standards'!C46 -> 60"x30" | D54: ='D-704 Standards'!D46 -> STREET CLOSED __ MILES AHEAD LOCAL TRAFFIC ONLY (Mtd on barricade) | E54: ='D-704 Standards'!F46 -> 15 | F54: ='Sheet Summary'!AC46 -> 0 | G54: =IF($G$14=0,0,'Sheet Summary'!AD46) -> 0 | H54: =IF($H$14=0,0,'Sheet Summary'!AE46) -> 0 | I54: =IF($I$14=0,0,'Sheet Summary'!AF46) -> 0 | J54: =IF($J$14=0,0,'Sheet Summary'!AG46) -> 0
B55: ='D-704 Standards'!B47 -> R11-4a-60 | C55: ='D-704 Standards'!C47 -> 60"x30" | D55: ='D-704 Standards'!D47 -> STREET CLOSED TO THRU TRAFFIC (Mounted on barricade) | E55: ='D-704 Standards'!F47 -> 15 | F55: ='Sheet Summary'!AC47 -> 0 | G55: =IF($G$14=0,0,'Sheet Summary'!AD47) -> 0 | H55: =IF($H$14=0,0,'Sheet Summary'!AE47) -> 0 | I55: =IF($I$14=0,0,'Sheet Summary'!AF47) -> 0 | J55: =IF($J$14=0,0,'Sheet Summary'!AG47) -> 0 | L55: DIRECTIONS
B56: ='D-704 Standards'!B48 -> W1-3-48 | C56: ='D-704 Standards'!C48 -> 48"x48" | D56: ='D-704 Standards'!D48 -> REVERSE TURN RIGHT or LEFT | E56: ='D-704 Standards'!F48 -> 35 | F56: ='Sheet Summary'!AC48 -> 0 | G56: =IF($G$14=0,0,'Sheet Summary'!AD48) -> 0 | H56: =IF($H$14=0,0,'Sheet Summary'!AE48) -> 0 | I56: =IF($I$14=0,0,'Sheet Summary'!AF48) -> 0 | J56: =IF($J$14=0,0,'Sheet Summary'!AG48) -> 0
B57: ='D-704 Standards'!B49 -> W1-4-48 | C57: ='D-704 Standards'!C49 -> 48"x48" | D57: ='D-704 Standards'!D49 -> REVERSE CURVE RIGHT or LEFT | E57: ='D-704 Standards'!F49 -> 35 | F57: ='Sheet Summary'!AC49 -> 0 | G57: =IF($G$14=0,0,'Sheet Summary'!AD49) -> 0 | H57: =IF($H$14=0,0,'Sheet Summary'!AE49) -> 0 | I57: =IF($I$14=0,0,'Sheet Summary'!AF49) -> 0 | J57: =IF($J$14=0,0,'Sheet Summary'!AG49) -> 0 | L57: To keep track of traffic control devices and signs by individual plan sheets, enter the number on the Sheet Summary. DO NOT ENTER THE QUANTITIES DIRECTLY INTO THE INPUT SHEET. There are formulas to pull the quantities directly from the Sheet Summary. If you accidentally delete a formula in the Amount Required & Quantity columns on the Input sheet, press the Replace Formulas button below to put the formulas back.
B58: ='D-704 Standards'!B50 -> W1-4b-48 | C58: ='D-704 Standards'!C50 -> 48"x48" | D58: ='D-704 Standards'!D50 -> TWO LANE REVERSE CURVE RIGHT or LEFT | E58: ='D-704 Standards'!F50 -> 35 | F58: ='Sheet Summary'!AC50 -> 0 | G58: =IF($G$14=0,0,'Sheet Summary'!AD50) -> 0 | H58: =IF($H$14=0,0,'Sheet Summary'!AE50) -> 0 | I58: =IF($I$14=0,0,'Sheet Summary'!AF50) -> 0 | J58: =IF($J$14=0,0,'Sheet Summary'!AG50) -> 0
B59: ='D-704 Standards'!B51 -> W1-6-48 | C59: ='D-704 Standards'!C51 -> 48"x24" | D59: ='D-704 Standards'!D51 -> ONE DIRECTION LARGE ARROW | E59: ='D-704 Standards'!F51 -> 26 | F59: ='Sheet Summary'!AC51 -> 0 | G59: =IF($G$14=0,0,'Sheet Summary'!AD51) -> 0 | H59: =IF($H$14=0,0,'Sheet Summary'!AE51) -> 0 | I59: =IF($I$14=0,0,'Sheet Summary'!AF51) -> 0 | J59: =IF($J$14=0,0,'Sheet Summary'!AG51) -> 0
B60: ='D-704 Standards'!B52 -> W3-1-48 | C60: ='D-704 Standards'!C52 -> 48"x48" | D60: ='D-704 Standards'!D52 -> STOP AHEAD | E60: ='D-704 Standards'!F52 -> 35 | F60: ='Sheet Summary'!AC52 -> 0 | G60: =IF($G$14=0,0,'Sheet Summary'!AD52) -> 0 | H60: =IF($H$14=0,0,'Sheet Summary'!AE52) -> 0 | I60: =IF($I$14=0,0,'Sheet Summary'!AF52) -> 0 | J60: =IF($J$14=0,0,'Sheet Summary'!AG52) -> 0
B61: ='D-704 Standards'!B53 -> W3-3-48 | C61: ='D-704 Standards'!C53 -> 48"x48" | D61: ='D-704 Standards'!D53 -> SIGNAL AHEAD | E61: ='D-704 Standards'!F53 -> 35 | F61: ='Sheet Summary'!AC53 -> 0 | G61: =IF($G$14=0,0,'Sheet Summary'!AD53) -> 0 | H61: =IF($H$14=0,0,'Sheet Summary'!AE53) -> 0 | I61: =IF($I$14=0,0,'Sheet Summary'!AF53) -> 0 | J61: =IF($J$14=0,0,'Sheet Summary'!AG53) -> 0
B62: ='D-704 Standards'!B54 -> W3-4-48 | C62: ='D-704 Standards'!C54 -> 48"x48" | D62: ='D-704 Standards'!D54 -> BE PREPARED TO STOP | E62: ='D-704 Standards'!F54 -> 35 | F62: ='Sheet Summary'!AC54 -> 0 | G62: =IF($G$14=0,0,'Sheet Summary'!AD54) -> 0 | H62: =IF($H$14=0,0,'Sheet Summary'!AE54) -> 0 | I62: =IF($I$14=0,0,'Sheet Summary'!AF54) -> 0 | J62: =IF($J$14=0,0,'Sheet Summary'!AG54) -> 0
B63: ='D-704 Standards'!B55 -> W3-5-48 | C63: ='D-704 Standards'!C55 -> 48"x48" | D63: ='D-704 Standards'!D55 -> SPEED REDUCTION AHEAD | E63: ='D-704 Standards'!F55 -> 35 | F63: ='Sheet Summary'!AC55 -> 0 | G63: =IF($G$14=0,0,'Sheet Summary'!AD55) -> 0 | H63: =IF($H$14=0,0,'Sheet Summary'!AE55) -> 0 | I63: =IF($I$14=0,0,'Sheet Summary'!AF55) -> 0 | J63: =IF($J$14=0,0,'Sheet Summary'!AG55) -> 0
B64: ='D-704 Standards'!B56 -> W4-2-48 | C64: ='D-704 Standards'!C56 -> 48"x48" | D64: ='D-704 Standards'!D56 -> LANE ENDS RIGHT or LEFT | E64: ='D-704 Standards'!F56 -> 35 | F64: ='Sheet Summary'!AC56 -> 0 | G64: =IF($G$14=0,0,'Sheet Summary'!AD56) -> 0 | H64: =IF($H$14=0,0,'Sheet Summary'!AE56) -> 0 | I64: =IF($I$14=0,0,'Sheet Summary'!AF56) -> 0 | J64: =IF($J$14=0,0,'Sheet Summary'!AG56) -> 0
B65: ='D-704 Standards'!B57 -> W5-1-48 | C65: ='D-704 Standards'!C57 -> 48"x48" | D65: ='D-704 Standards'!D57 -> ROAD NARROWS | E65: ='D-704 Standards'!F57 -> 35 | F65: ='Sheet Summary'!AC57 -> 0 | G65: =IF($G$14=0,0,'Sheet Summary'!AD57) -> 0 | H65: =IF($H$14=0,0,'Sheet Summary'!AE57) -> 0 | I65: =IF($I$14=0,0,'Sheet Summary'!AF57) -> 0 | J65: =IF($J$14=0,0,'Sheet Summary'!AG57) -> 0
B66: ='D-704 Standards'!B58 -> W5-8-48 | C66: ='D-704 Standards'!C58 -> 48"x48" | D66: ='D-704 Standards'!D58 -> THRU TRAFFIC RIGHT LANE | E66: ='D-704 Standards'!F58 -> 35 | F66: ='Sheet Summary'!AC58 -> 0 | G66: =IF($G$14=0,0,'Sheet Summary'!AD58) -> 0 | H66: =IF($H$14=0,0,'Sheet Summary'!AE58) -> 0 | I66: =IF($I$14=0,0,'Sheet Summary'!AF58) -> 0 | J66: =IF($J$14=0,0,'Sheet Summary'!AG58) -> 0
B67: ='D-704 Standards'!B59 -> W5-9-48 | C67: ='D-704 Standards'!C59 -> 48"x48" | D67: ='D-704 Standards'!D59 -> ROAD WORK TRAFFIC ONLY DOWN & LT or RT ARROW | E67: ='D-704 Standards'!F59 -> 35 | F67: ='Sheet Summary'!AC59 -> 0 | G67: =IF($G$14=0,0,'Sheet Summary'!AD59) -> 0 | H67: =IF($H$14=0,0,'Sheet Summary'!AE59) -> 0 | I67: =IF($I$14=0,0,'Sheet Summary'!AF59) -> 0 | J67: =IF($J$14=0,0,'Sheet Summary'!AG59) -> 0
B68: ='D-704 Standards'!B60 -> W6-3-48 | C68: ='D-704 Standards'!C60 -> 48"x48" | D68: ='D-704 Standards'!D60 -> TWO WAY TRAFFIC | E68: ='D-704 Standards'!F60 -> 35 | F68: ='Sheet Summary'!AC60 -> 0 | G68: =IF($G$14=0,0,'Sheet Summary'!AD60) -> 0 | H68: =IF($H$14=0,0,'Sheet Summary'!AE60) -> 0 | I68: =IF($I$14=0,0,'Sheet Summary'!AF60) -> 0 | J68: =IF($J$14=0,0,'Sheet Summary'!AG60) -> 0
B69: ='D-704 Standards'!B61 -> W8-1-48 | C69: ='D-704 Standards'!C61 -> 48"x48" | D69: ='D-704 Standards'!D61 -> BUMP | E69: ='D-704 Standards'!F61 -> 35 | F69: ='Sheet Summary'!AC61 -> 0 | G69: =IF($G$14=0,0,'Sheet Summary'!AD61) -> 0 | H69: =IF($H$14=0,0,'Sheet Summary'!AE61) -> 0 | I69: =IF($I$14=0,0,'Sheet Summary'!AF61) -> 0 | J69: =IF($J$14=0,0,'Sheet Summary'!AG61) -> 0 | L69: If you do not wat to keep track of traffic control devices and signs by individual plan sheets, enter the quantity on this sheet (Input sheet.)
B70: ='D-704 Standards'!B62 -> W8-3-48 | C70: ='D-704 Standards'!C62 -> 48"x48" | D70: ='D-704 Standards'!D62 -> PAVEMENT ENDS | E70: ='D-704 Standards'!F62 -> 35 | F70: ='Sheet Summary'!AC62 -> 0 | G70: =IF($G$14=0,0,'Sheet Summary'!AD62) -> 0 | H70: =IF($H$14=0,0,'Sheet Summary'!AE62) -> 0 | I70: =IF($I$14=0,0,'Sheet Summary'!AF62) -> 0 | J70: =IF($J$14=0,0,'Sheet Summary'!AG62) -> 0
B71: ='D-704 Standards'!B63 -> W8-7-48 | C71: ='D-704 Standards'!C63 -> 48"x48" | D71: ='D-704 Standards'!D63 -> LOOSE GRAVEL | E71: ='D-704 Standards'!F63 -> 35 | F71: ='Sheet Summary'!AC63 -> 0 | G71: =IF($G$14=0,0,'Sheet Summary'!AD63) -> 0 | H71: =IF($H$14=0,0,'Sheet Summary'!AE63) -> 0 | I71: =IF($I$14=0,0,'Sheet Summary'!AF63) -> 0 | J71: =IF($J$14=0,0,'Sheet Summary'!AG63) -> 0
B72: ='D-704 Standards'!B64 -> W8-17-48 | C72: ='D-704 Standards'!C64 -> 48"x48" | D72: ='D-704 Standards'!D64 -> SHOULDER DROP-OFF SYMBOL | E72: ='D-704 Standards'!F64 -> 35 | F72: ='Sheet Summary'!AC64 -> 0 | G72: =IF($G$14=0,0,'Sheet Summary'!AD64) -> 0 | H72: =IF($H$14=0,0,'Sheet Summary'!AE64) -> 0 | I72: =IF($I$14=0,0,'Sheet Summary'!AF64) -> 0 | J72: =IF($J$14=0,0,'Sheet Summary'!AG64) -> 0
B73: ='D-704 Standards'!B65 -> W8-11-48 | C73: ='D-704 Standards'!C65 -> 48"x48" | D73: ='D-704 Standards'!D65 -> UNEVEN LANES | E73: ='D-704 Standards'!F65 -> 35 | F73: ='Sheet Summary'!AC65 -> 0 | G73: =IF($G$14=0,0,'Sheet Summary'!AD65) -> 0 | H73: =IF($H$14=0,0,'Sheet Summary'!AE65) -> 0 | I73: =IF($I$14=0,0,'Sheet Summary'!AF65) -> 0 | J73: =IF($J$14=0,0,'Sheet Summary'!AG65) -> 0 | L73: Enter any additional signs or traffic control devices on the Input sheet and they will be added to the rest of the sheets.
B74: ='D-704 Standards'!B66 -> W8-12-48 | C74: ='D-704 Standards'!C66 -> 48"x48" | D74: ='D-704 Standards'!D66 -> NO CENTER LINE | E74: ='D-704 Standards'!F66 -> 35 | F74: ='Sheet Summary'!AC66 -> 0 | G74: =IF($G$14=0,0,'Sheet Summary'!AD66) -> 0 | H74: =IF($H$14=0,0,'Sheet Summary'!AE66) -> 0 | I74: =IF($I$14=0,0,'Sheet Summary'!AF66) -> 0 | J74: =IF($J$14=0,0,'Sheet Summary'!AG66) -> 0
B75: ='D-704 Standards'!B67 -> W8-53-48 | C75: ='D-704 Standards'!C67 -> 48"x48" | D75: ='D-704 Standards'!D67 -> TRUCKS ENTERING HIGHWAY | E75: ='D-704 Standards'!F67 -> 35 | F75: ='Sheet Summary'!AC67 -> 0 | G75: =IF($G$14=0,0,'Sheet Summary'!AD67) -> 0 | H75: =IF($H$14=0,0,'Sheet Summary'!AE67) -> 0 | I75: =IF($I$14=0,0,'Sheet Summary'!AF67) -> 0 | J75: =IF($J$14=0,0,'Sheet Summary'!AG67) -> 0
B76: ='D-704 Standards'!B68 -> W8-54-48 | C76: ='D-704 Standards'!C68 -> 48"x48" | D76: ='D-704 Standards'!D68 -> TRUCKS ENTERING AHEAD or __ FT or _ MILE | E76: ='D-704 Standards'!F68 -> 35 | F76: ='Sheet Summary'!AC68 -> 0 | G76: =IF($G$14=0,0,'Sheet Summary'!AD68) -> 0 | H76: =IF($H$14=0,0,'Sheet Summary'!AE68) -> 0 | I76: =IF($I$14=0,0,'Sheet Summary'!AF68) -> 0 | J76: =IF($J$14=0,0,'Sheet Summary'!AG68) -> 0
B77: ='D-704 Standards'!B69 -> W8-55-48 | C77: ='D-704 Standards'!C69 -> 48"x48" | D77: ='D-704 Standards'!D69 -> TRUCKS CROSSING AHEAD or __ FT or _ MILE | E77: ='D-704 Standards'!F69 -> 35 | F77: ='Sheet Summary'!AC69 -> 0 | G77: =IF($G$14=0,0,'Sheet Summary'!AD69) -> 0 | H77: =IF($H$14=0,0,'Sheet Summary'!AE69) -> 0 | I77: =IF($I$14=0,0,'Sheet Summary'!AF69) -> 0 | J77: =IF($J$14=0,0,'Sheet Summary'!AG69) -> 0 | L77: The SUM QUANTITY box is used to tell the spreadsheet how you want to calculate the Spec & Code items. Place an "X" in this box if you want the item to be added up for all the phases. Leave the box blank if you want the largest value from all the phases to be used as the total for that item.
B78: ='D-704 Standards'!B70 -> W8-56-48 | C78: ='D-704 Standards'!C70 -> 48"x48" | D78: ='D-704 Standards'!D70 -> TRUCKS EXITING HIGHWAY | E78: ='D-704 Standards'!F70 -> 35 | F78: ='Sheet Summary'!AC70 -> 0 | G78: =IF($G$14=0,0,'Sheet Summary'!AD70) -> 0 | H78: =IF($H$14=0,0,'Sheet Summary'!AE70) -> 0 | I78: =IF($I$14=0,0,'Sheet Summary'!AF70) -> 0 | J78: =IF($J$14=0,0,'Sheet Summary'!AG70) -> 0
B79: ='D-704 Standards'!B71 -> W9-3a-48 | C79: ='D-704 Standards'!C71 -> 48"x48" | D79: ='D-704 Standards'!D71 -> CENTER LANE CLOSED SYMBOL | E79: ='D-704 Standards'!F71 -> 35 | F79: ='Sheet Summary'!AC71 -> 0 | G79: =IF($G$14=0,0,'Sheet Summary'!AD71) -> 0 | H79: =IF($H$14=0,0,'Sheet Summary'!AE71) -> 0 | I79: =IF($I$14=0,0,'Sheet Summary'!AF71) -> 0 | J79: =IF($J$14=0,0,'Sheet Summary'!AG71) -> 0
B80: ='D-704 Standards'!B72 -> W13-1P-30 | C80: ='D-704 Standards'!C72 -> 30"x30" | D80: ='D-704 Standards'!D72 -> __ MPH ADVISORY SPEED PLAQUE (Mounted on warning sign post) | E80: ='D-704 Standards'!F72 -> 14 | F80: ='Sheet Summary'!AC72 -> 0 | G80: =IF($G$14=0,0,'Sheet Summary'!AD72) -> 0 | H80: =IF($H$14=0,0,'Sheet Summary'!AE72) -> 0 | I80: =IF($I$14=0,0,'Sheet Summary'!AF72) -> 0 | J80: =IF($J$14=0,0,'Sheet Summary'!AG72) -> 0
B81: ='D-704 Standards'!B73 -> W14-3-64 | C81: ='D-704 Standards'!C73 -> 64"x48" | D81: ='D-704 Standards'!D73 -> NO PASSING ZONE | E81: ='D-704 Standards'!F73 -> 28 | F81: ='Sheet Summary'!AC73 -> 0 | G81: =IF($G$14=0,0,'Sheet Summary'!AD73) -> 0 | H81: =IF($H$14=0,0,'Sheet Summary'!AE73) -> 0 | I81: =IF($I$14=0,0,'Sheet Summary'!AF73) -> 0 | J81: =IF($J$14=0,0,'Sheet Summary'!AG73) -> 0
B82: ='D-704 Standards'!B74 -> W16-2P-30 | C82: ='D-704 Standards'!C74 -> 30"x24" | D82: ='D-704 Standards'!D74 -> __ FEET PLAQUE (Mounted on warning sign post) | E82: ='D-704 Standards'!F74 -> 10 | F82: ='Sheet Summary'!AC74 -> 0 | G82: =IF($G$14=0,0,'Sheet Summary'!AD74) -> 0 | H82: =IF($H$14=0,0,'Sheet Summary'!AE74) -> 0 | I82: =IF($I$14=0,0,'Sheet Summary'!AF74) -> 0 | J82: =IF($J$14=0,0,'Sheet Summary'!AG74) -> 0
B83: ='D-704 Standards'!B75 -> W20-1-48 | C83: ='D-704 Standards'!C75 -> 48"x48" | D83: ='D-704 Standards'!D75 -> ROAD WORK AHEAD or _FT or _ MILE | E83: ='D-704 Standards'!F75 -> 35 | F83: ='Sheet Summary'!AC75 -> 0 | G83: =IF($G$14=0,0,'Sheet Summary'!AD75) -> 0 | H83: =IF($H$14=0,0,'Sheet Summary'!AE75) -> 0 | I83: =IF($I$14=0,0,'Sheet Summary'!AF75) -> 0 | J83: =IF($J$14=0,0,'Sheet Summary'!AG75) -> 0 | L83: If your project has more than one phase, enter the phase numbers in the Phase heading cells directly below Amount Required in the Traffic Control Signs table. The phase numbers will be automatically placed in the other tables.
B84: ='D-704 Standards'!B76 -> W20-2-48 | C84: ='D-704 Standards'!C76 -> 48"x48" | D84: ='D-704 Standards'!D76 -> DETOUR AHEAD or __ FT or _ MILE | E84: ='D-704 Standards'!F76 -> 35 | F84: ='Sheet Summary'!AC76 -> 0 | G84: =IF($G$14=0,0,'Sheet Summary'!AD76) -> 0 | H84: =IF($H$14=0,0,'Sheet Summary'!AE76) -> 0 | I84: =IF($I$14=0,0,'Sheet Summary'!AF76) -> 0 | J84: =IF($J$14=0,0,'Sheet Summary'!AG76) -> 0
B85: ='D-704 Standards'!B77 -> W20-3-48 | C85: ='D-704 Standards'!C77 -> 48"x48" | D85: ='D-704 Standards'!D77 -> ROAD or STREET CLOSED AHEAD or __ FT or _ MILE | E85: ='D-704 Standards'!F77 -> 35 | F85: ='Sheet Summary'!AC77 -> 0 | G85: =IF($G$14=0,0,'Sheet Summary'!AD77) -> 0 | H85: =IF($H$14=0,0,'Sheet Summary'!AE77) -> 0 | I85: =IF($I$14=0,0,'Sheet Summary'!AF77) -> 0 | J85: =IF($J$14=0,0,'Sheet Summary'!AG77) -> 0
B86: ='D-704 Standards'!B78 -> W20-4-48 | C86: ='D-704 Standards'!C78 -> 48"x48" | D86: ='D-704 Standards'!D78 -> ONE LANE ROAD AHEAD or __ FT or _ MILE | E86: ='D-704 Standards'!F78 -> 35 | F86: ='Sheet Summary'!AC78 -> 0 | G86: =IF($G$14=0,0,'Sheet Summary'!AD78) -> 0 | H86: =IF($H$14=0,0,'Sheet Summary'!AE78) -> 0 | I86: =IF($I$14=0,0,'Sheet Summary'!AF78) -> 0 | J86: =IF($J$14=0,0,'Sheet Summary'!AG78) -> 0
B87: ='D-704 Standards'!B79 -> W20-5-48 | C87: ='D-704 Standards'!C79 -> 48"x48" | D87: ='D-704 Standards'!D79 -> RIGHT or CENTER or LEFT LANE CLOSED AHEAD or __ FT or _ MILE | E87: ='D-704 Standards'!F79 -> 35 | F87: ='Sheet Summary'!AC79 -> 0 | G87: =IF($G$14=0,0,'Sheet Summary'!AD79) -> 0 | H87: =IF($H$14=0,0,'Sheet Summary'!AE79) -> 0 | I87: =IF($I$14=0,0,'Sheet Summary'!AF79) -> 0 | J87: =IF($J$14=0,0,'Sheet Summary'!AG79) -> 0
B88: ='D-704 Standards'!B80 -> W20-7-48 | C88: ='D-704 Standards'!C80 -> 48"x48" | D88: ='D-704 Standards'!D80 -> FLAGGER | E88: ='D-704 Standards'!F80 -> 35 | F88: ='Sheet Summary'!AC80 -> 0 | G88: =IF($G$14=0,0,'Sheet Summary'!AD80) -> 0 | H88: =IF($H$14=0,0,'Sheet Summary'!AE80) -> 0 | I88: =IF($I$14=0,0,'Sheet Summary'!AF80) -> 0 | J88: =IF($J$14=0,0,'Sheet Summary'!AG80) -> 0
B89: ='D-704 Standards'!B81 -> W20-8-18 | C89: ='D-704 Standards'!C81 -> 18"x18" | D89: ='D-704 Standards'!D81 -> STOP - SLOW PADDLE Back to Back | E89: ='D-704 Standards'!F81 -> 5 | F89: ='Sheet Summary'!AC81 -> 0 | G89: =IF($G$14=0,0,'Sheet Summary'!AD81) -> 0 | H89: =IF($H$14=0,0,'Sheet Summary'!AE81) -> 0 | I89: =IF($I$14=0,0,'Sheet Summary'!AF81) -> 0 | J89: =IF($J$14=0,0,'Sheet Summary'!AG81) -> 0 | L89: If your project does not have any phases, leave the Phase heading cells blank and enter the Amount Required & Quantity in the yellow columns.
B90: ='D-704 Standards'!B82 -> W20-52P-54 | C90: ='D-704 Standards'!C82 -> 54"x12" | D90: ='D-704 Standards'!D82 -> NEXT __ MILES (Mounted on warning sign post) | E90: ='D-704 Standards'!F82 -> 12 | F90: ='Sheet Summary'!AC82 -> 0 | G90: =IF($G$14=0,0,'Sheet Summary'!AD82) -> 0 | H90: =IF($H$14=0,0,'Sheet Summary'!AE82) -> 0 | I90: =IF($I$14=0,0,'Sheet Summary'!AF82) -> 0 | J90: =IF($J$14=0,0,'Sheet Summary'!AG82) -> 0
B91: ='D-704 Standards'!B83 -> W21-1-48 | C91: ='D-704 Standards'!C83 -> 48"x48" | D91: ='D-704 Standards'!D83 -> WORKERS | E91: ='D-704 Standards'!F83 -> 35 | F91: ='Sheet Summary'!AC83 -> 0 | G91: =IF($G$14=0,0,'Sheet Summary'!AD83) -> 0 | H91: =IF($H$14=0,0,'Sheet Summary'!AE83) -> 0 | I91: =IF($I$14=0,0,'Sheet Summary'!AF83) -> 0 | J91: =IF($J$14=0,0,'Sheet Summary'!AG83) -> 0
B92: ='D-704 Standards'!B84 -> W21-2-48 | C92: ='D-704 Standards'!C84 -> 48"x48" | D92: ='D-704 Standards'!D84 -> FRESH OIL | E92: ='D-704 Standards'!F84 -> 35 | F92: ='Sheet Summary'!AC84 -> 0 | G92: =IF($G$14=0,0,'Sheet Summary'!AD84) -> 0 | H92: =IF($H$14=0,0,'Sheet Summary'!AE84) -> 0 | I92: =IF($I$14=0,0,'Sheet Summary'!AF84) -> 0 | J92: =IF($J$14=0,0,'Sheet Summary'!AG84) -> 0
B93: ='D-704 Standards'!B85 -> W21-3-48 | C93: ='D-704 Standards'!C85 -> 48"x48" | D93: ='D-704 Standards'!D85 -> ROAD MACHINERY AHEAD or __ FT or _ MILE | E93: ='D-704 Standards'!F85 -> 35 | F93: ='Sheet Summary'!AC85 -> 0 | G93: =IF($G$14=0,0,'Sheet Summary'!AD85) -> 0 | H93: =IF($H$14=0,0,'Sheet Summary'!AE85) -> 0 | I93: =IF($I$14=0,0,'Sheet Summary'!AF85) -> 0 | J93: =IF($J$14=0,0,'Sheet Summary'!AG85) -> 0 | L93: The first Phase table on the Sheet Summary can be used even if you don't have any phases. The total quantities will still be automatically filled in on the Input sheet. You can use this to break down traffic control devices per sheet or per Standard Drawing.
B94: ='D-704 Standards'!B86 -> W21-5-48 | C94: ='D-704 Standards'!C86 -> 48"x48" | D94: ='D-704 Standards'!D86 -> SHOULDER WORK | E94: ='D-704 Standards'!F86 -> 35 | F94: ='Sheet Summary'!AC86 -> 0 | G94: =IF($G$14=0,0,'Sheet Summary'!AD86) -> 0 | H94: =IF($H$14=0,0,'Sheet Summary'!AE86) -> 0 | I94: =IF($I$14=0,0,'Sheet Summary'!AF86) -> 0 | J94: =IF($J$14=0,0,'Sheet Summary'!AG86) -> 0
B95: ='D-704 Standards'!B87 -> W21-5a-48 | C95: ='D-704 Standards'!C87 -> 48"x48" | D95: ='D-704 Standards'!D87 -> RIGHT or LEFT SHOULDER CLOSED | E95: ='D-704 Standards'!F87 -> 35 | F95: ='Sheet Summary'!AC87 -> 0 | G95: =IF($G$14=0,0,'Sheet Summary'!AD87) -> 0 | H95: =IF($H$14=0,0,'Sheet Summary'!AE87) -> 0 | I95: =IF($I$14=0,0,'Sheet Summary'!AF87) -> 0 | J95: =IF($J$14=0,0,'Sheet Summary'!AG87) -> 0
B96: ='D-704 Standards'!B88 -> W21-5b-48 | C96: ='D-704 Standards'!C88 -> 48"x48" | D96: ='D-704 Standards'!D88 -> RIGHT or LEFT SHOULDER CLOSED AHEAD or __ FT or _ MILE | E96: ='D-704 Standards'!F88 -> 35 | F96: ='Sheet Summary'!AC88 -> 0 | G96: =IF($G$14=0,0,'Sheet Summary'!AD88) -> 0 | H96: =IF($H$14=0,0,'Sheet Summary'!AE88) -> 0 | I96: =IF($I$14=0,0,'Sheet Summary'!AF88) -> 0 | J96: =IF($J$14=0,0,'Sheet Summary'!AG88) -> 0
B97: ='D-704 Standards'!B89 -> W21-6-48 | C97: ='D-704 Standards'!C89 -> 48"x48" | D97: ='D-704 Standards'!D89 -> SURVEY CREW | E97: ='D-704 Standards'!F89 -> 35 | F97: ='Sheet Summary'!AC89 -> 0 | G97: =IF($G$14=0,0,'Sheet Summary'!AD89) -> 0 | H97: =IF($H$14=0,0,'Sheet Summary'!AE89) -> 0 | I97: =IF($I$14=0,0,'Sheet Summary'!AF89) -> 0 | J97: =IF($J$14=0,0,'Sheet Summary'!AG89) -> 0
B98: ='D-704 Standards'!B90 -> W21-50-48 | C98: ='D-704 Standards'!C90 -> 48"x48" | D98: ='D-704 Standards'!D90 -> BRIDGE PAINTING AHEAD or __ FT | E98: ='D-704 Standards'!F90 -> 35 | F98: ='Sheet Summary'!AC90 -> 0 | G98: =IF($G$14=0,0,'Sheet Summary'!AD90) -> 0 | H98: =IF($H$14=0,0,'Sheet Summary'!AE90) -> 0 | I98: =IF($I$14=0,0,'Sheet Summary'!AF90) -> 0 | J98: =IF($J$14=0,0,'Sheet Summary'!AG90) -> 0
B99: ='D-704 Standards'!B91 -> W21-51-48 | C99: ='D-704 Standards'!C91 -> 48"x48" | D99: ='D-704 Standards'!D91 -> MATERIAL ON ROADWAY | E99: ='D-704 Standards'!F91 -> 35 | F99: ='Sheet Summary'!AC91 -> 0 | G99: =IF($G$14=0,0,'Sheet Summary'!AD91) -> 0 | H99: =IF($H$14=0,0,'Sheet Summary'!AE91) -> 0 | I99: =IF($I$14=0,0,'Sheet Summary'!AF91) -> 0 | J99: =IF($J$14=0,0,'Sheet Summary'!AG91) -> 0 | L99: Cells that have a red ear in the upper right hand corner contain helpful comments. Just hold the cursor over the cell and the comment will appear.
B100: ='D-704 Standards'!B92 -> W21-52-48 | C100: ='D-704 Standards'!C92 -> 48"x48" | D100: ='D-704 Standards'!D92 -> PAVEMENT BREAKS | E100: ='D-704 Standards'!F92 -> 35 | F100: ='Sheet Summary'!AC92 -> 0 | G100: =IF($G$14=0,0,'Sheet Summary'!AD92) -> 0 | H100: =IF($H$14=0,0,'Sheet Summary'!AE92) -> 0 | I100: =IF($I$14=0,0,'Sheet Summary'!AF92) -> 0 | J100: =IF($J$14=0,0,'Sheet Summary'!AG92) -> 0
B101: ='D-704 Standards'!B93 -> W21-53-48 | C101: ='D-704 Standards'!C93 -> 48"x48" | D101: ='D-704 Standards'!D93 -> RUMBLE STRIPS AHEAD | E101: ='D-704 Standards'!F93 -> 35 | F101: ='Sheet Summary'!AC93 -> 0 | G101: =IF($G$14=0,0,'Sheet Summary'!AD93) -> 0 | H101: =IF($H$14=0,0,'Sheet Summary'!AE93) -> 0 | I101: =IF($I$14=0,0,'Sheet Summary'!AF93) -> 0 | J101: =IF($J$14=0,0,'Sheet Summary'!AG93) -> 0
B102: ='D-704 Standards'!B94 -> W22-8-48 | C102: ='D-704 Standards'!C94 -> 48"x48" | D102: ='D-704 Standards'!D94 -> FRESH OIL LOOSE ROCK | E102: ='D-704 Standards'!F94 -> 35 | F102: ='Sheet Summary'!AC94 -> 0 | G102: =IF($G$14=0,0,'Sheet Summary'!AD94) -> 0 | H102: =IF($H$14=0,0,'Sheet Summary'!AE94) -> 0 | I102: =IF($I$14=0,0,'Sheet Summary'!AF94) -> 0 | J102: =IF($J$14=0,0,'Sheet Summary'!AG94) -> 0
B103: ='D-704 Standards'!B95 -> W24-1-48 | C103: ='D-704 Standards'!C95 -> 48"x48" | D103: ='D-704 Standards'!D95 -> DOUBLE REVERSE CURVE | E103: ='D-704 Standards'!F95 -> 35 | F103: ='Sheet Summary'!AC95 -> 0 | G103: =IF($G$14=0,0,'Sheet Summary'!AD95) -> 0 | H103: =IF($H$14=0,0,'Sheet Summary'!AE95) -> 0 | I103: =IF($I$14=0,0,'Sheet Summary'!AF95) -> 0 | J103: =IF($J$14=0,0,'Sheet Summary'!AG95) -> 0
F104: ='Sheet Summary'!AC96 -> 0 | G104: =IF($G$14=0,0,'Sheet Summary'!AD96) -> 0 | H104: =IF($H$14=0,0,'Sheet Summary'!AE96) -> 0 | I104: =IF($I$14=0,0,'Sheet Summary'!AF96) -> 0 | J104: =IF($J$14=0,0,'Sheet Summary'!AG96) -> 0
F105: ='Sheet Summary'!AC97 -> 0 | G105: =IF($G$14=0,0,'Sheet Summary'!AD97) -> 0 | H105: =IF($H$14=0,0,'Sheet Summary'!AE97) -> 0 | I105: =IF($I$14=0,0,'Sheet Summary'!AF97) -> 0 | J105: =IF($J$14=0,0,'Sheet Summary'!AG97) -> 0
F106: ='Sheet Summary'!AC98 -> 0 | G106: =IF($G$14=0,0,'Sheet Summary'!AD98) -> 0 | H106: =IF($H$14=0,0,'Sheet Summary'!AE98) -> 0 | I106: =IF($I$14=0,0,'Sheet Summary'!AF98) -> 0 | J106: =IF($J$14=0,0,'Sheet Summary'!AG98) -> 0
F107: ='Sheet Summary'!AC99 -> 0 | G107: =IF($G$14=0,0,'Sheet Summary'!AD99) -> 0 | H107: =IF($H$14=0,0,'Sheet Summary'!AE99) -> 0 | I107: =IF($I$14=0,0,'Sheet Summary'!AF99) -> 0 | J107: =IF($J$14=0,0,'Sheet Summary'!AG99) -> 0
F108: ='Sheet Summary'!AC100 -> 0 | G108: =IF($G$14=0,0,'Sheet Summary'!AD100) -> 0 | H108: =IF($H$14=0,0,'Sheet Summary'!AE100) -> 0 | I108: =IF($I$14=0,0,'Sheet Summary'!AF100) -> 0 | J108: =IF($J$14=0,0,'Sheet Summary'!AG100) -> 0
F109: ='Sheet Summary'!AC101 -> 0 | G109: =IF($G$14=0,0,'Sheet Summary'!AD101) -> 0 | H109: =IF($H$14=0,0,'Sheet Summary'!AE101) -> 0 | I109: =IF($I$14=0,0,'Sheet Summary'!AF101) -> 0 | J109: =IF($J$14=0,0,'Sheet Summary'!AG101) -> 0
F110: ='Sheet Summary'!AC102 -> 0 | G110: =IF($G$14=0,0,'Sheet Summary'!AD102) -> 0 | H110: =IF($H$14=0,0,'Sheet Summary'!AE102) -> 0 | I110: =IF($I$14=0,0,'Sheet Summary'!AF102) -> 0 | J110: =IF($J$14=0,0,'Sheet Summary'!AG102) -> 0
F111: ='Sheet Summary'!AC103 -> 0 | G111: =IF($G$14=0,0,'Sheet Summary'!AD103) -> 0 | H111: =IF($H$14=0,0,'Sheet Summary'!AE103) -> 0 | I111: =IF($I$14=0,0,'Sheet Summary'!AF103) -> 0 | J111: =IF($J$14=0,0,'Sheet Summary'!AG103) -> 0
F112: ='Sheet Summary'!AC104 -> 0 | G112: =IF($G$14=0,0,'Sheet Summary'!AD104) -> 0 | H112: =IF($H$14=0,0,'Sheet Summary'!AE104) -> 0 | I112: =IF($I$14=0,0,'Sheet Summary'!AF104) -> 0 | J112: =IF($J$14=0,0,'Sheet Summary'!AG104) -> 0
F113: ='Sheet Summary'!AC105 -> 0 | G113: =IF($G$14=0,0,'Sheet Summary'!AD105) -> 0 | H113: =IF($H$14=0,0,'Sheet Summary'!AE105) -> 0 | I113: =IF($I$14=0,0,'Sheet Summary'!AF105) -> 0 | J113: =IF($J$14=0,0,'Sheet Summary'!AG105) -> 0
F114: ='Sheet Summary'!AC106 -> 0 | G114: =IF($G$14=0,0,'Sheet Summary'!AD106) -> 0 | H114: =IF($H$14=0,0,'Sheet Summary'!AE106) -> 0 | I114: =IF($I$14=0,0,'Sheet Summary'!AF106) -> 0 | J114: =IF($J$14=0,0,'Sheet Summary'!AG106) -> 0
F115: ='Sheet Summary'!AC107 -> 0 | G115: =IF($G$14=0,0,'Sheet Summary'!AD107) -> 0 | H115: =IF($H$14=0,0,'Sheet Summary'!AE107) -> 0 | I115: =IF($I$14=0,0,'Sheet Summary'!AF107) -> 0 | J115: =IF($J$14=0,0,'Sheet Summary'!AG107) -> 0
F116: ='Sheet Summary'!AC108 -> 0 | G116: =IF($G$14=0,0,'Sheet Summary'!AD108) -> 0 | H116: =IF($H$14=0,0,'Sheet Summary'!AE108) -> 0 | I116: =IF($I$14=0,0,'Sheet Summary'!AF108) -> 0 | J116: =IF($J$14=0,0,'Sheet Summary'!AG108) -> 0
F117: ='Sheet Summary'!AC109 -> 0 | G117: =IF($G$14=0,0,'Sheet Summary'!AD109) -> 0 | H117: =IF($H$14=0,0,'Sheet Summary'!AE109) -> 0 | I117: =IF($I$14=0,0,'Sheet Summary'!AF109) -> 0 | J117: =IF($J$14=0,0,'Sheet Summary'!AG109) -> 0
F118: ='Sheet Summary'!AC110 -> 0 | G118: =IF($G$14=0,0,'Sheet Summary'!AD110) -> 0 | H118: =IF($H$14=0,0,'Sheet Summary'!AE110) -> 0 | I118: =IF($I$14=0,0,'Sheet Summary'!AF110) -> 0 | J118: =IF($J$14=0,0,'Sheet Summary'!AG110) -> 0
F119: ='Sheet Summary'!AC111 -> 0 | G119: =IF($G$14=0,0,'Sheet Summary'!AD111) -> 0 | H119: =IF($H$14=0,0,'Sheet Summary'!AE111) -> 0 | I119: =IF($I$14=0,0,'Sheet Summary'!AF111) -> 0 | J119: =IF($J$14=0,0,'Sheet Summary'!AG111) -> 0
F120: ='Sheet Summary'!AC112 -> 0 | G120: =IF($G$14=0,0,'Sheet Summary'!AD112) -> 0 | H120: =IF($H$14=0,0,'Sheet Summary'!AE112) -> 0 | I120: =IF($I$14=0,0,'Sheet Summary'!AF112) -> 0 | J120: =IF($J$14=0,0,'Sheet Summary'!AG112) -> 0
F121: ='Sheet Summary'!AC113 -> 0 | G121: =IF($G$14=0,0,'Sheet Summary'!AD113) -> 0 | H121: =IF($H$14=0,0,'Sheet Summary'!AE113) -> 0 | I121: =IF($I$14=0,0,'Sheet Summary'!AF113) -> 0 | J121: =IF($J$14=0,0,'Sheet Summary'!AG113) -> 0
F122: ='Sheet Summary'!AC114 -> 0 | G122: =IF($G$14=0,0,'Sheet Summary'!AD114) -> 0 | H122: =IF($H$14=0,0,'Sheet Summary'!AE114) -> 0 | I122: =IF($I$14=0,0,'Sheet Summary'!AF114) -> 0 | J122: =IF($J$14=0,0,'Sheet Summary'!AG114) -> 0
F123: ='Sheet Summary'!AC115 -> 0 | G123: =IF($G$14=0,0,'Sheet Summary'!AD115) -> 0 | H123: =IF($H$14=0,0,'Sheet Summary'!AE115) -> 0 | I123: =IF($I$14=0,0,'Sheet Summary'!AF115) -> 0 | J123: =IF($J$14=0,0,'Sheet Summary'!AG115) -> 0
F124: ='Sheet Summary'!AC$116 -> 0 | G124: =IF($G$14=0,0,'Sheet Summary'!AD$116) -> 0 | H124: =IF($H$14=0,0,'Sheet Summary'!AE$116) -> 0 | I124: =IF($I$14=0,0,'Sheet Summary'!AF$116) -> 0 | J124: =IF($J$14=0,0,'Sheet Summary'!AG$116) -> 0
B125: SPECIAL SIGNS
B126: SIGN NUMBER | C126: SIGN SIZE | D126: DESCRIPTION | E126: UNITS | F126: AMOUNT REQUIRED
F127: PHASE
F128: =F14 -> 0 | G128: =G14 -> 0 | H128: =H14 -> 0 | I128: =I14 -> 0 | J128: =J14 -> 0
F129: ='Sheet Summary'!AC119 -> 0 | G129: =IF($G$14=0,0,'Sheet Summary'!AD119) -> 0 | H129: =IF($H$14=0,0,'Sheet Summary'!AE119) -> 0 | I129: =IF($I$14=0,0,'Sheet Summary'!AF119) -> 0 | J129: =IF($J$14=0,0,'Sheet Summary'!AG119) -> 0
F130: ='Sheet Summary'!AC120 -> 0 | G130: =IF($G$14=0,0,'Sheet Summary'!AD120) -> 0 | H130: =IF($H$14=0,0,'Sheet Summary'!AE120) -> 0 | I130: =IF($I$14=0,0,'Sheet Summary'!AF120) -> 0 | J130: =IF($J$14=0,0,'Sheet Summary'!AG120) -> 0
F131: ='Sheet Summary'!AC121 -> 0 | G131: =IF($G$14=0,0,'Sheet Summary'!AD121) -> 0 | H131: =IF($H$14=0,0,'Sheet Summary'!AE121) -> 0 | I131: =IF($I$14=0,0,'Sheet Summary'!AF121) -> 0 | J131: =IF($J$14=0,0,'Sheet Summary'!AG121) -> 0
F132: ='Sheet Summary'!AC122 -> 0 | G132: =IF($G$14=0,0,'Sheet Summary'!AD122) -> 0 | H132: =IF($H$14=0,0,'Sheet Summary'!AE122) -> 0 | I132: =IF($I$14=0,0,'Sheet Summary'!AF122) -> 0 | J132: =IF($J$14=0,0,'Sheet Summary'!AG122) -> 0
F133: ='Sheet Summary'!AC123 -> 0 | G133: =IF($G$14=0,0,'Sheet Summary'!AD123) -> 0 | H133: =IF($H$14=0,0,'Sheet Summary'!AE123) -> 0 | I133: =IF($I$14=0,0,'Sheet Summary'!AF123) -> 0 | J133: =IF($J$14=0,0,'Sheet Summary'!AG123) -> 0
F134: ='Sheet Summary'!AC124 -> 0 | G134: =IF($G$14=0,0,'Sheet Summary'!AD124) -> 0 | H134: =IF($H$14=0,0,'Sheet Summary'!AE124) -> 0 | I134: =IF($I$14=0,0,'Sheet Summary'!AF124) -> 0 | J134: =IF($J$14=0,0,'Sheet Summary'!AG124) -> 0
F135: ='Sheet Summary'!AC125 -> 0 | G135: =IF($G$14=0,0,'Sheet Summary'!AD125) -> 0 | H135: =IF($H$14=0,0,'Sheet Summary'!AE125) -> 0 | I135: =IF($I$14=0,0,'Sheet Summary'!AF125) -> 0 | J135: =IF($J$14=0,0,'Sheet Summary'!AG125) -> 0
F136: ='Sheet Summary'!AC126 -> 0 | G136: =IF($G$14=0,0,'Sheet Summary'!AD126) -> 0 | H136: =IF($H$14=0,0,'Sheet Summary'!AE126) -> 0 | I136: =IF($I$14=0,0,'Sheet Summary'!AF126) -> 0 | J136: =IF($J$14=0,0,'Sheet Summary'!AG126) -> 0
F137: ='Sheet Summary'!AC127 -> 0 | G137: =IF($G$14=0,0,'Sheet Summary'!AD127) -> 0 | H137: =IF($H$14=0,0,'Sheet Summary'!AE127) -> 0 | I137: =IF($I$14=0,0,'Sheet Summary'!AF127) -> 0 | J137: =IF($J$14=0,0,'Sheet Summary'!AG127) -> 0
F138: ='Sheet Summary'!AC128 -> 0 | G138: =IF($G$14=0,0,'Sheet Summary'!AD128) -> 0 | H138: =IF($H$14=0,0,'Sheet Summary'!AE128) -> 0 | I138: =IF($I$14=0,0,'Sheet Summary'!AF128) -> 0 | J138: =IF($J$14=0,0,'Sheet Summary'!AG128) -> 0
F139: ='Sheet Summary'!AC129 -> 0 | G139: =IF($G$14=0,0,'Sheet Summary'!AD129) -> 0 | H139: =IF($H$14=0,0,'Sheet Summary'!AE129) -> 0 | I139: =IF($I$14=0,0,'Sheet Summary'!AF129) -> 0 | J139: =IF($J$14=0,0,'Sheet Summary'!AG129) -> 0
F140: ='Sheet Summary'!AC130 -> 0 | G140: =IF($G$14=0,0,'Sheet Summary'!AD130) -> 0 | H140: =IF($H$14=0,0,'Sheet Summary'!AE130) -> 0 | I140: =IF($I$14=0,0,'Sheet Summary'!AF130) -> 0 | J140: =IF($J$14=0,0,'Sheet Summary'!AG130) -> 0
F141: ='Sheet Summary'!AC131 -> 0 | G141: =IF($G$14=0,0,'Sheet Summary'!AD131) -> 0 | H141: =IF($H$14=0,0,'Sheet Summary'!AE131) -> 0 | I141: =IF($I$14=0,0,'Sheet Summary'!AF131) -> 0 | J141: =IF($J$14=0,0,'Sheet Summary'!AG131) -> 0
F142: ='Sheet Summary'!AC132 -> 0 | G142: =IF($G$14=0,0,'Sheet Summary'!AD132) -> 0 | H142: =IF($H$14=0,0,'Sheet Summary'!AE132) -> 0 | I142: =IF($I$14=0,0,'Sheet Summary'!AF132) -> 0 | J142: =IF($J$14=0,0,'Sheet Summary'!AG132) -> 0
F143: ='Sheet Summary'!AC133 -> 0 | G143: =IF($G$14=0,0,'Sheet Summary'!AD133) -> 0 | H143: =IF($H$14=0,0,'Sheet Summary'!AE133) -> 0 | I143: =IF($I$14=0,0,'Sheet Summary'!AF133) -> 0 | J143: =IF($J$14=0,0,'Sheet Summary'!AG133) -> 0

Sheet Sheet Summary
A1: =Input!F14 -> 0 | B1: 0 | C1: 0 | D1: 0 | E1: 0
J2: =A1 -> 0 | K2: =B1 -> 0
N3: 2 | O3: 2 | R3: 3 | S3: 3 | V3: 4 | W3: 4 | Z3: 5 | AA3: 5 | AC3: X | AD3: 2X | AE3: 3X | AF3: 4X | AG3: 5X
B4: TRAFFIC CONTROL SIGNS | J4: =IF(COUNTBLANK(Input!F14:J14)=5,"",CONCATENATE("Phase ",Input!$F$14)) ->  | N4: =CONCATENATE("Phase ",Input!$G$14) -> Phase | R4: =CONCATENATE("Phase ",Input!$H$14) -> Phase | V4: =CONCATENATE("Phase ",Input!$I$14) -> Phase | Z4: =CONCATENATE("Phase ",Input!$J$14) -> Phase | AC4: =IF(COUNTBLANK(Input!F14:J14)=5,"",IF(COUNTBLANK(Input!G14:J14)=4,"Total","Total Amount Required")) -> 
B5: SIGN NUMBER | C5: SIGN SIZE | D5: DESCRIPTION | J5: Amount Required Per Sheet | N5: Amount Required Per Sheet | R5: Amount Required Per Sheet | V5: Amount Required Per Sheet | Z5: Amount Required Per Sheet | AC5: =IF(COUNTBLANK(Input!F14:J14)=5,"Total",CONCATENATE("Phase ",Input!$F$14)) -> Total | AD5: =CONCATENATE("Phase ",Input!$G$14) -> Phase | AE5: =CONCATENATE("Phase ",Input!$H$14) -> Phase | AF5: =CONCATENATE("Phase ",Input!$I$14) -> Phase | AG5: =CONCATENATE("Phase ",Input!$J$14) -> Phase
A6: 0 | J6: Sheet1 | K6: Sheet2 | N6: Sheet 3 | O6: Sheet 4 | R6: Sheet 5 | S6: Sheet 6 | V6: Sheet 7 | W6: Sheet 8 | Z6: Sheet 9 | AA6: Sheet 10
B7: ='D-704 Standards'!B7 -> E5-1-48 | C7: ='D-704 Standards'!C7 -> 48"x48" | D7: ='D-704 Standards'!D7 -> EXIT GORE | AC7: =SUM(I7:L7) -> 0 | AD7: =IF(Input!$G$14=0,0,SUM(M7:P7)) -> 0 | AE7: =IF(Input!$H$14=0,0,SUM(Q7:T7)) -> 0 | AF7: =IF(Input!$I$14=0,0,SUM(U7:X7)) -> 0 | AG7: =IF(Input!$J$14=0,0,SUM(Y7:AB7)) -> 0
B8: ='D-704 Standards'!B8 -> G20-1-60 | C8: ='D-704 Standards'!C8 -> 60"x24" | D8: ='D-704 Standards'!D8 -> ROAD WORK NEXT __ MILES | AC8: =SUM(I8:L8) -> 0 | AD8: =IF(Input!$G$14=0,0,SUM(M8:P8)) -> 0 | AE8: =IF(Input!$H$14=0,0,SUM(Q8:T8)) -> 0 | AF8: =IF(Input!$I$14=0,0,SUM(U8:X8)) -> 0 | AG8: =IF(Input!$J$14=0,0,SUM(Y8:AB8)) -> 0
B9: ='D-704 Standards'!B9 -> G20-1b-60 | C9: ='D-704 Standards'!C9 -> 60"x24" | D9: ='D-704 Standards'!D9 -> NO WORK IN PROGRESS (Sign and installation only) | AC9: 0 | AD9: =IF(Input!$G$14=0,0,SUM(M9:P9)) -> 0 | AE9: =IF(Input!$H$14=0,0,SUM(Q9:T9)) -> 0 | AF9: =IF(Input!$I$14=0,0,SUM(U9:X9)) -> 0 | AG9: =IF(Input!$J$14=0,0,SUM(Y9:AB9)) -> 0
B10: ='D-704 Standards'!B10 -> G20-2-48 | C10: ='D-704 Standards'!C10 -> 48"x24" | D10: ='D-704 Standards'!D10 -> END ROAD WORK | AC10: 0 | AD10: =IF(Input!$G$14=0,0,SUM(M10:P10)) -> 0 | AE10: =IF(Input!$H$14=0,0,SUM(Q10:T10)) -> 0 | AF10: =IF(Input!$I$14=0,0,SUM(U10:X10)) -> 0 | AG10: =IF(Input!$J$14=0,0,SUM(Y10:AB10)) -> 0
B11: ='D-704 Standards'!B11 -> G20-4-36 | C11: ='D-704 Standards'!C11 -> 36"x18" | D11: ='D-704 Standards'!D11 -> PILOT CAR FOLLOW ME (Mounted to back of pilot car) | AC11: 0 | AD11: =IF(Input!$G$14=0,0,SUM(M11:P11)) -> 0 | AE11: =IF(Input!$H$14=0,0,SUM(Q11:T11)) -> 0 | AF11: =IF(Input!$I$14=0,0,SUM(U11:X11)) -> 0 | AG11: =IF(Input!$J$14=0,0,SUM(Y11:AB11)) -> 0
B12: ='D-704 Standards'!B12 -> G20-4b-36 | C12: ='D-704 Standards'!C12 -> 36"x30" | D12: ='D-704 Standards'!D12 -> WAIT FOR PILOT CAR | AC12: 0 | AD12: =IF(Input!$G$14=0,0,SUM(M12:P12)) -> 0 | AE12: =IF(Input!$H$14=0,0,SUM(Q12:T12)) -> 0 | AF12: =IF(Input!$I$14=0,0,SUM(U12:X12)) -> 0 | AG12: =IF(Input!$J$14=0,0,SUM(Y12:AB12)) -> 0
B13: ='D-704 Standards'!B13 -> G20-50a-72 | C13: ='D-704 Standards'!C13 -> 72"x36" | D13: ='D-704 Standards'!D13 -> ROAD WORK NEXT __ MILES RT & LT ARROWS | AC13: 0 | AD13: =IF(Input!$G$14=0,0,SUM(M13:P13)) -> 0 | AE13: =IF(Input!$H$14=0,0,SUM(Q13:T13)) -> 0 | AF13: =IF(Input!$I$14=0,0,SUM(U13:X13)) -> 0 | AG13: =IF(Input!$J$14=0,0,SUM(Y13:AB13)) -> 0
B14: ='D-704 Standards'!B14 -> G20-52a-72 | C14: ='D-704 Standards'!C14 -> 72"x24" | D14: ='D-704 Standards'!D14 -> ROAD WORK NEXT __ MILES RT or LT ARROW | AC14: 0 | AD14: =IF(Input!$G$14=0,0,SUM(M14:P14)) -> 0 | AE14: =IF(Input!$H$14=0,0,SUM(Q14:T14)) -> 0 | AF14: =IF(Input!$I$14=0,0,SUM(U14:X14)) -> 0 | AG14: =IF(Input!$J$14=0,0,SUM(Y14:AB14)) -> 0
B15: ='D-704 Standards'!B15 -> G20-55-96 | C15: ='D-704 Standards'!C15 -> 96"x48" | D15: ='D-704 Standards'!D15 -> SPEED LIMIT ENFORCED - MINIMUM FEE $150 WHEN WORKERS PRESENT | AC15: 0 | AD15: =IF(Input!$G$14=0,0,SUM(M15:P15)) -> 0 | AE15: =IF(Input!$H$14=0,0,SUM(Q15:T15)) -> 0 | AF15: =IF(Input!$I$14=0,0,SUM(U15:X15)) -> 0 | AG15: =IF(Input!$J$14=0,0,SUM(Y15:AB15)) -> 0
B16: ='D-704 Standards'!B16 -> M1-1-36 | C16: ='D-704 Standards'!C16 -> 36"x36" | D16: ='D-704 Standards'!D16 -> INTERSTATE ROUTE MARKER (Post and installation only) | AC16: 0 | AD16: =IF(Input!$G$14=0,0,SUM(M16:P16)) -> 0 | AE16: =IF(Input!$H$14=0,0,SUM(Q16:T16)) -> 0 | AF16: =IF(Input!$I$14=0,0,SUM(U16:X16)) -> 0 | AG16: =IF(Input!$J$14=0,0,SUM(Y16:AB16)) -> 0
B17: ='D-704 Standards'!B17 -> M1-4-24 | C17: ='D-704 Standards'!C17 -> 24"x24" | D17: ='D-704 Standards'!D17 -> U.S. ROUTE MARKER (Post and installation only) | AC17: 0 | AD17: =IF(Input!$G$14=0,0,SUM(M17:P17)) -> 0 | AE17: =IF(Input!$H$14=0,0,SUM(Q17:T17)) -> 0 | AF17: =IF(Input!$I$14=0,0,SUM(U17:X17)) -> 0 | AG17: =IF(Input!$J$14=0,0,SUM(Y17:AB17)) -> 0
B18: ='D-704 Standards'!B18 -> M1-5-24 | C18: ='D-704 Standards'!C18 -> 24"x24" | D18: ='D-704 Standards'!D18 -> STATE ROUTE MARKER (Post and installation only) | AC18: 0 | AD18: =IF(Input!$G$14=0,0,SUM(M18:P18)) -> 0 | AE18: =IF(Input!$H$14=0,0,SUM(Q18:T18)) -> 0 | AF18: =IF(Input!$I$14=0,0,SUM(U18:X18)) -> 0 | AG18: =IF(Input!$J$14=0,0,SUM(Y18:AB18)) -> 0
B19: ='D-704 Standards'!B19 -> M3-1-24 | C19: ='D-704 Standards'!C19 -> 24"x12" | D19: ='D-704 Standards'!D19 -> NORTH (Mounted on route marker post) | AC19: 0 | AD19: =IF(Input!$G$14=0,0,SUM(M19:P19)) -> 0 | AE19: =IF(Input!$H$14=0,0,SUM(Q19:T19)) -> 0 | AF19: =IF(Input!$I$14=0,0,SUM(U19:X19)) -> 0 | AG19: =IF(Input!$J$14=0,0,SUM(Y19:AB19)) -> 0
B20: ='D-704 Standards'!B20 -> M3-2-24 | C20: ='D-704 Standards'!C20 -> 24"x12" | D20: ='D-704 Standards'!D20 -> EAST (Mounted on route marker post) | AC20: 0 | AD20: =IF(Input!$G$14=0,0,SUM(M20:P20)) -> 0 | AE20: =IF(Input!$H$14=0,0,SUM(Q20:T20)) -> 0 | AF20: =IF(Input!$I$14=0,0,SUM(U20:X20)) -> 0 | AG20: =IF(Input!$J$14=0,0,SUM(Y20:AB20)) -> 0
B21: ='D-704 Standards'!B21 -> M3-3-24 | C21: ='D-704 Standards'!C21 -> 24"x12" | D21: ='D-704 Standards'!D21 -> SOUTH (Mounted on route marker post) | AC21: 0 | AD21: =IF(Input!$G$14=0,0,SUM(M21:P21)) -> 0 | AE21: =IF(Input!$H$14=0,0,SUM(Q21:T21)) -> 0 | AF21: =IF(Input!$I$14=0,0,SUM(U21:X21)) -> 0 | AG21: =IF(Input!$J$14=0,0,SUM(Y21:AB21)) -> 0
B22: ='D-704 Standards'!B22 -> M3-4-24 | C22: ='D-704 Standards'!C22 -> 24"x12" | D22: ='D-704 Standards'!D22 -> WEST (Mounted on route marker post) | AC22: 0 | AD22: =IF(Input!$G$14=0,0,SUM(M22:P22)) -> 0 | AE22: =IF(Input!$H$14=0,0,SUM(Q22:T22)) -> 0 | AF22: =IF(Input!$I$14=0,0,SUM(U22:X22)) -> 0 | AG22: =IF(Input!$J$14=0,0,SUM(Y22:AB22)) -> 0
B23: ='D-704 Standards'!B23 -> M4-8-24 | C23: ='D-704 Standards'!C23 -> 24"x12" | D23: ='D-704 Standards'!D23 -> DETOUR (Mounted on route marker post) | AC23: 0 | AD23: =IF(Input!$G$14=0,0,SUM(M23:P23)) -> 0 | AE23: =IF(Input!$H$14=0,0,SUM(Q23:T23)) -> 0 | AF23: =IF(Input!$I$14=0,0,SUM(U23:X23)) -> 0 | AG23: =IF(Input!$J$14=0,0,SUM(Y23:AB23)) -> 0
B24: ='D-704 Standards'!B24 -> M4-9-30 | C24: ='D-704 Standards'!C24 -> 30"x24" | D24: ='D-704 Standards'!D24 -> DETOUR ARROW RIGHT or LEFT/AHD AND RT or LT | AC24: 0 | AD24: =IF(Input!$G$14=0,0,SUM(M24:P24)) -> 0 | AE24: =IF(Input!$H$14=0,0,SUM(Q24:T24)) -> 0 | AF24: =IF(Input!$I$14=0,0,SUM(U24:X24)) -> 0 | AG24: =IF(Input!$J$14=0,0,SUM(Y24:AB24)) -> 0
B25: ='D-704 Standards'!B25 -> M4-10-48 | C25: ='D-704 Standards'!C25 -> 48"x18" | D25: ='D-704 Standards'!D25 -> DETOUR (INSIDE ARROW) RIGHT or LEFT (Mounted on barricade) | AC25: 0 | AD25: =IF(Input!$G$14=0,0,SUM(M25:P25)) -> 0 | AE25: =IF(Input!$H$14=0,0,SUM(Q25:T25)) -> 0 | AF25: =IF(Input!$I$14=0,0,SUM(U25:X25)) -> 0 | AG25: =IF(Input!$J$14=0,0,SUM(Y25:AB25)) -> 0
B26: ='D-704 Standards'!B26 -> M5-1-21 | C26: ='D-704 Standards'!C26 -> 21"x15" | D26: ='D-704 Standards'!D26 -> ADVANCE TURN ARROW RT or LT(Mounted on route marker post) | AC26: 0 | AD26: =IF(Input!$G$14=0,0,SUM(M26:P26)) -> 0 | AE26: =IF(Input!$H$14=0,0,SUM(Q26:T26)) -> 0 | AF26: =IF(Input!$I$14=0,0,SUM(U26:X26)) -> 0 | AG26: =IF(Input!$J$14=0,0,SUM(Y26:AB26)) -> 0
B27: ='D-704 Standards'!B27 -> M5-1-30 | C27: ='D-704 Standards'!C27 -> 30"x21" | D27: ='D-704 Standards'!D27 -> ADVANCE TURN ARROW RT or LT(Mounted on route marker post) | AC27: 0 | AD27: =IF(Input!$G$14=0,0,SUM(M27:P27)) -> 0 | AE27: =IF(Input!$H$14=0,0,SUM(Q27:T27)) -> 0 | AF27: =IF(Input!$I$14=0,0,SUM(U27:X27)) -> 0 | AG27: =IF(Input!$J$14=0,0,SUM(Y27:AB27)) -> 0
B28: ='D-704 Standards'!B28 -> M6-1-21 | C28: ='D-704 Standards'!C28 -> 21"x15" | D28: ='D-704 Standards'!D28 -> DIRECTIONAL ARROW RT or LT (Mounted on route marker post) | AC28: 0 | AD28: =IF(Input!$G$14=0,0,SUM(M28:P28)) -> 0 | AE28: =IF(Input!$H$14=0,0,SUM(Q28:T28)) -> 0 | AF28: =IF(Input!$I$14=0,0,SUM(U28:X28)) -> 0 | AG28: =IF(Input!$J$14=0,0,SUM(Y28:AB28)) -> 0
B29: ='D-704 Standards'!B29 -> M6-1-30 | C29: ='D-704 Standards'!C29 -> 30"x21" | D29: ='D-704 Standards'!D29 -> DIRECTIONAL ARROW RT or LT (Mounted on route marker post) | AC29: 0 | AD29: =IF(Input!$G$14=0,0,SUM(M29:P29)) -> 0 | AE29: =IF(Input!$H$14=0,0,SUM(Q29:T29)) -> 0 | AF29: =IF(Input!$I$14=0,0,SUM(U29:X29)) -> 0 | AG29: =IF(Input!$J$14=0,0,SUM(Y29:AB29)) -> 0
B30: ='D-704 Standards'!B30 -> M6-3-21 | C30: ='D-704 Standards'!C30 -> 21"x15" | D30: ='D-704 Standards'!D30 -> DIRECTIONAL ARROW UP (Mounted on route marker post) | AC30: 0 | AD30: =IF(Input!$G$14=0,0,SUM(M30:P30)) -> 0 | AE30: =IF(Input!$H$14=0,0,SUM(Q30:T30)) -> 0 | AF30: =IF(Input!$I$14=0,0,SUM(U30:X30)) -> 0 | AG30: =IF(Input!$J$14=0,0,SUM(Y30:AB30)) -> 0
B31: ='D-704 Standards'!B31 -> R1-1-48 | C31: ='D-704 Standards'!C31 -> 48"x48" | D31: ='D-704 Standards'!D31 -> STOP | AC31: 0 | AD31: =IF(Input!$G$14=0,0,SUM(M31:P31)) -> 0 | AE31: =IF(Input!$H$14=0,0,SUM(Q31:T31)) -> 0 | AF31: =IF(Input!$I$14=0,0,SUM(U31:X31)) -> 0 | AG31: =IF(Input!$J$14=0,0,SUM(Y31:AB31)) -> 0
B32: ='D-704 Standards'!B32 -> R1-2-60 | C32: ='D-704 Standards'!C32 -> 60"x60" | D32: ='D-704 Standards'!D32 -> YIELD | AC32: 0 | AD32: =IF(Input!$G$14=0,0,SUM(M32:P32)) -> 0 | AE32: =IF(Input!$H$14=0,0,SUM(Q32:T32)) -> 0 | AF32: =IF(Input!$I$14=0,0,SUM(U32:X32)) -> 0 | AG32: =IF(Input!$J$14=0,0,SUM(Y32:AB32)) -> 0
B33: ='D-704 Standards'!B33 -> R2-1-36 | C33: ='D-704 Standards'!C33 -> 36"x48" | D33: ='D-704 Standards'!D33 -> SPEED LIMIT __ (Portable only) | AC33: 0 | AD33: =IF(Input!$G$14=0,0,SUM(M33:P33)) -> 0 | AE33: =IF(Input!$H$14=0,0,SUM(Q33:T33)) -> 0 | AF33: =IF(Input!$I$14=0,0,SUM(U33:X33)) -> 0 | AG33: =IF(Input!$J$14=0,0,SUM(Y33:AB33)) -> 0
B34: ='D-704 Standards'!B34 -> R2-1-48 | C34: ='D-704 Standards'!C34 -> 48"x60" | D34: ='D-704 Standards'!D34 -> SPEED LIMIT __ | AC34: 0 | AD34: =IF(Input!$G$14=0,0,SUM(M34:P34)) -> 0 | AE34: =IF(Input!$H$14=0,0,SUM(Q34:T34)) -> 0 | AF34: =IF(Input!$I$14=0,0,SUM(U34:X34)) -> 0 | AG34: =IF(Input!$J$14=0,0,SUM(Y34:AB34)) -> 0
B35: ='D-704 Standards'!B35 -> R2-1aP-24 | C35: ='D-704 Standards'!C35 -> 24"x18" | D35: ='D-704 Standards'!D35 -> MINIMUM FEE $150 (Mounted on Speed Limit post) | AC35: 0 | AD35: =IF(Input!$G$14=0,0,SUM(M35:P35)) -> 0 | AE35: =IF(Input!$H$14=0,0,SUM(Q35:T35)) -> 0 | AF35: =IF(Input!$I$14=0,0,SUM(U35:X35)) -> 0 | AG35: =IF(Input!$J$14=0,0,SUM(Y35:AB35)) -> 0
B36: ='D-704 Standards'!B36 -> R3-2-48 | C36: ='D-704 Standards'!C36 -> 48"x48" | D36: ='D-704 Standards'!D36 -> NO LEFT TURN | AC36: 0 | AD36: =IF(Input!$G$14=0,0,SUM(M36:P36)) -> 0 | AE36: =IF(Input!$H$14=0,0,SUM(Q36:T36)) -> 0 | AF36: =IF(Input!$I$14=0,0,SUM(U36:X36)) -> 0 | AG36: =IF(Input!$J$14=0,0,SUM(Y36:AB36)) -> 0
B37: ='D-704 Standards'!B37 -> R4-1-48 | C37: ='D-704 Standards'!C37 -> 48"x60" | D37: ='D-704 Standards'!D37 -> DO NOT PASS | AC37: 0 | AD37: =IF(Input!$G$14=0,0,SUM(M37:P37)) -> 0 | AE37: =IF(Input!$H$14=0,0,SUM(Q37:T37)) -> 0 | AF37: =IF(Input!$I$14=0,0,SUM(U37:X37)) -> 0 | AG37: =IF(Input!$J$14=0,0,SUM(Y37:AB37)) -> 0
B38: ='D-704 Standards'!B38 -> R4-7-48 | C38: ='D-704 Standards'!C38 -> 48"x60" | D38: ='D-704 Standards'!D38 -> KEEP RIGHT | AC38: 0 | AD38: =IF(Input!$G$14=0,0,SUM(M38:P38)) -> 0 | AE38: =IF(Input!$H$14=0,0,SUM(Q38:T38)) -> 0 | AF38: =IF(Input!$I$14=0,0,SUM(U38:X38)) -> 0 | AG38: =IF(Input!$J$14=0,0,SUM(Y38:AB38)) -> 0
B39: ='D-704 Standards'!B39 -> R5-1-48 | C39: ='D-704 Standards'!C39 -> 48"x48" | D39: ='D-704 Standards'!D39 -> DO NOT ENTER | AC39: 0 | AD39: =IF(Input!$G$14=0,0,SUM(M39:P39)) -> 0 | AE39: =IF(Input!$H$14=0,0,SUM(Q39:T39)) -> 0 | AF39: =IF(Input!$I$14=0,0,SUM(U39:X39)) -> 0 | AG39: =IF(Input!$J$14=0,0,SUM(Y39:AB39)) -> 0
B40: ='D-704 Standards'!B40 -> R6-1-54 | C40: ='D-704 Standards'!C40 -> 54"x18" | D40: ='D-704 Standards'!D40 -> ONE WAY RIGHT or LEFT (Mounted on STOP or DO NOT ENTER post) | AC40: 0 | AD40: =IF(Input!$G$14=0,0,SUM(M40:P40)) -> 0 | AE40: =IF(Input!$H$14=0,0,SUM(Q40:T40)) -> 0 | AF40: =IF(Input!$I$14=0,0,SUM(U40:X40)) -> 0 | AG40: =IF(Input!$J$14=0,0,SUM(Y40:AB40)) -> 0
B41: ='D-704 Standards'!B41 -> R7-1-12 | C41: ='D-704 Standards'!C41 -> 12"x18" | D41: ='D-704 Standards'!D41 -> NO PARKING ANY TIME | AC41: 0 | AD41: =IF(Input!$G$14=0,0,SUM(M41:P41)) -> 0 | AE41: =IF(Input!$H$14=0,0,SUM(Q41:T41)) -> 0 | AF41: =IF(Input!$I$14=0,0,SUM(U41:X41)) -> 0 | AG41: =IF(Input!$J$14=0,0,SUM(Y41:AB41)) -> 0
B42: ='D-704 Standards'!B42 -> R10-6-24 | C42: ='D-704 Standards'!C42 -> 24"x36" | D42: ='D-704 Standards'!D42 -> STOP HERE ON RED | AC42: 0 | AD42: =IF(Input!$G$14=0,0,SUM(M42:P42)) -> 0 | AE42: =IF(Input!$H$14=0,0,SUM(Q42:T42)) -> 0 | AF42: =IF(Input!$I$14=0,0,SUM(U42:X42)) -> 0 | AG42: =IF(Input!$J$14=0,0,SUM(Y42:AB42)) -> 0
B43: ='D-704 Standards'!B43 -> R11-2-48 | C43: ='D-704 Standards'!C43 -> 48"x30" | D43: ='D-704 Standards'!D43 -> ROAD CLOSED (Mounted on barricade) | AC43: 0 | AD43: =IF(Input!$G$14=0,0,SUM(M43:P43)) -> 0 | AE43: =IF(Input!$H$14=0,0,SUM(Q43:T43)) -> 0 | AF43: =IF(Input!$I$14=0,0,SUM(U43:X43)) -> 0 | AG43: =IF(Input!$J$14=0,0,SUM(Y43:AB43)) -> 0
B44: ='D-704 Standards'!B44 -> R11-2a-48 | C44: ='D-704 Standards'!C44 -> 48"x30" | D44: ='D-704 Standards'!D44 -> STREET CLOSED (Mounted on barricade) | AC44: 0 | AD44: =IF(Input!$G$14=0,0,SUM(M44:P44)) -> 0 | AE44: =IF(Input!$H$14=0,0,SUM(Q44:T44)) -> 0 | AF44: =IF(Input!$I$14=0,0,SUM(U44:X44)) -> 0 | AG44: =IF(Input!$J$14=0,0,SUM(Y44:AB44)) -> 0
B45: ='D-704 Standards'!B45 -> R11-3a-60 | C45: ='D-704 Standards'!C45 -> 60"x30" | D45: ='D-704 Standards'!D45 -> ROAD CLOSED __ MILES AHEAD LOCAL TRAFFIC ONLY (Mtd on barricade) | AC45: 0 | AD45: =IF(Input!$G$14=0,0,SUM(M45:P45)) -> 0 | AE45: =IF(Input!$H$14=0,0,SUM(Q45:T45)) -> 0 | AF45: =IF(Input!$I$14=0,0,SUM(U45:X45)) -> 0 | AG45: =IF(Input!$J$14=0,0,SUM(Y45:AB45)) -> 0
B46: ='D-704 Standards'!B46 -> R11-3c-60 | C46: ='D-704 Standards'!C46 -> 60"x30" | D46: ='D-704 Standards'!D46 -> STREET CLOSED __ MILES AHEAD LOCAL TRAFFIC ONLY (Mtd on barricade) | AC46: 0 | AD46: =IF(Input!$G$14=0,0,SUM(M46:P46)) -> 0 | AE46: =IF(Input!$H$14=0,0,SUM(Q46:T46)) -> 0 | AF46: =IF(Input!$I$14=0,0,SUM(U46:X46)) -> 0 | AG46: =IF(Input!$J$14=0,0,SUM(Y46:AB46)) -> 0
B47: ='D-704 Standards'!B47 -> R11-4a-60 | C47: ='D-704 Standards'!C47 -> 60"x30" | D47: ='D-704 Standards'!D47 -> STREET CLOSED TO THRU TRAFFIC (Mounted on barricade) | AC47: 0 | AD47: =IF(Input!$G$14=0,0,SUM(M47:P47)) -> 0 | AE47: =IF(Input!$H$14=0,0,SUM(Q47:T47)) -> 0 | AF47: =IF(Input!$I$14=0,0,SUM(U47:X47)) -> 0 | AG47: =IF(Input!$J$14=0,0,SUM(Y47:AB47)) -> 0
B48: ='D-704 Standards'!B48 -> W1-3-48 | C48: ='D-704 Standards'!C48 -> 48"x48" | D48: ='D-704 Standards'!D48 -> REVERSE TURN RIGHT or LEFT | AC48: 0 | AD48: =IF(Input!$G$14=0,0,SUM(M48:P48)) -> 0 | AE48: =IF(Input!$H$14=0,0,SUM(Q48:T48)) -> 0 | AF48: =IF(Input!$I$14=0,0,SUM(U48:X48)) -> 0 | AG48: =IF(Input!$J$14=0,0,SUM(Y48:AB48)) -> 0
B49: ='D-704 Standards'!B49 -> W1-4-48 | C49: ='D-704 Standards'!C49 -> 48"x48" | D49: ='D-704 Standards'!D49 -> REVERSE CURVE RIGHT or LEFT | AC49: 0 | AD49: =IF(Input!$G$14=0,0,SUM(M49:P49)) -> 0 | AE49: =IF(Input!$H$14=0,0,SUM(Q49:T49)) -> 0 | AF49: =IF(Input!$I$14=0,0,SUM(U49:X49)) -> 0 | AG49: =IF(Input!$J$14=0,0,SUM(Y49:AB49)) -> 0
B50: ='D-704 Standards'!B50 -> W1-4b-48 | C50: ='D-704 Standards'!C50 -> 48"x48" | D50: ='D-704 Standards'!D50 -> TWO LANE REVERSE CURVE RIGHT or LEFT | AC50: 0 | AD50: =IF(Input!$G$14=0,0,SUM(M50:P50)) -> 0 | AE50: =IF(Input!$H$14=0,0,SUM(Q50:T50)) -> 0 | AF50: =IF(Input!$I$14=0,0,SUM(U50:X50)) -> 0 | AG50: =IF(Input!$J$14=0,0,SUM(Y50:AB50)) -> 0
B51: ='D-704 Standards'!B51 -> W1-6-48 | C51: ='D-704 Standards'!C51 -> 48"x24" | D51: ='D-704 Standards'!D51 -> ONE DIRECTION LARGE ARROW | AC51: 0 | AD51: =IF(Input!$G$14=0,0,SUM(M51:P51)) -> 0 | AE51: =IF(Input!$H$14=0,0,SUM(Q51:T51)) -> 0 | AF51: =IF(Input!$I$14=0,0,SUM(U51:X51)) -> 0 | AG51: =IF(Input!$J$14=0,0,SUM(Y51:AB51)) -> 0
B52: ='D-704 Standards'!B52 -> W3-1-48 | C52: ='D-704 Standards'!C52 -> 48"x48" | D52: ='D-704 Standards'!D52 -> STOP AHEAD | AC52: 0 | AD52: =IF(Input!$G$14=0,0,SUM(M52:P52)) -> 0 | AE52: =IF(Input!$H$14=0,0,SUM(Q52:T52)) -> 0 | AF52: =IF(Input!$I$14=0,0,SUM(U52:X52)) -> 0 | AG52: =IF(Input!$J$14=0,0,SUM(Y52:AB52)) -> 0
B53: ='D-704 Standards'!B53 -> W3-3-48 | C53: ='D-704 Standards'!C53 -> 48"x48" | D53: ='D-704 Standards'!D53 -> SIGNAL AHEAD | AC53: 0 | AD53: =IF(Input!$G$14=0,0,SUM(M53:P53)) -> 0 | AE53: =IF(Input!$H$14=0,0,SUM(Q53:T53)) -> 0 | AF53: =IF(Input!$I$14=0,0,SUM(U53:X53)) -> 0 | AG53: =IF(Input!$J$14=0,0,SUM(Y53:AB53)) -> 0
B54: ='D-704 Standards'!B54 -> W3-4-48 | C54: ='D-704 Standards'!C54 -> 48"x48" | D54: ='D-704 Standards'!D54 -> BE PREPARED TO STOP | AC54: 0 | AD54: =IF(Input!$G$14=0,0,SUM(M54:P54)) -> 0 | AE54: =IF(Input!$H$14=0,0,SUM(Q54:T54)) -> 0 | AF54: =IF(Input!$I$14=0,0,SUM(U54:X54)) -> 0 | AG54: =IF(Input!$J$14=0,0,SUM(Y54:AB54)) -> 0
B55: ='D-704 Standards'!B55 -> W3-5-48 | C55: ='D-704 Standards'!C55 -> 48"x48" | D55: ='D-704 Standards'!D55 -> SPEED REDUCTION AHEAD | AC55: 0 | AD55: =IF(Input!$G$14=0,0,SUM(M55:P55)) -> 0 | AE55: =IF(Input!$H$14=0,0,SUM(Q55:T55)) -> 0 | AF55: =IF(Input!$I$14=0,0,SUM(U55:X55)) -> 0 | AG55: =IF(Input!$J$14=0,0,SUM(Y55:AB55)) -> 0
B56: ='D-704 Standards'!B56 -> W4-2-48 | C56: ='D-704 Standards'!C56 -> 48"x48" | D56: ='D-704 Standards'!D56 -> LANE ENDS RIGHT or LEFT | AC56: 0 | AD56: =IF(Input!$G$14=0,0,SUM(M56:P56)) -> 0 | AE56: =IF(Input!$H$14=0,0,SUM(Q56:T56)) -> 0 | AF56: =IF(Input!$I$14=0,0,SUM(U56:X56)) -> 0 | AG56: =IF(Input!$J$14=0,0,SUM(Y56:AB56)) -> 0
B57: ='D-704 Standards'!B57 -> W5-1-48 | C57: ='D-704 Standards'!C57 -> 48"x48" | D57: ='D-704 Standards'!D57 -> ROAD NARROWS | AC57: 0 | AD57: =IF(Input!$G$14=0,0,SUM(M57:P57)) -> 0 | AE57: =IF(Input!$H$14=0,0,SUM(Q57:T57)) -> 0 | AF57: =IF(Input!$I$14=0,0,SUM(U57:X57)) -> 0 | AG57: =IF(Input!$J$14=0,0,SUM(Y57:AB57)) -> 0
B58: ='D-704 Standards'!B58 -> W5-8-48 | C58: ='D-704 Standards'!C58 -> 48"x48" | D58: ='D-704 Standards'!D58 -> THRU TRAFFIC RIGHT LANE | AC58: 0 | AD58: =IF(Input!$G$14=0,0,SUM(M58:P58)) -> 0 | AE58: =IF(Input!$H$14=0,0,SUM(Q58:T58)) -> 0 | AF58: =IF(Input!$I$14=0,0,SUM(U58:X58)) -> 0 | AG58: =IF(Input!$J$14=0,0,SUM(Y58:AB58)) -> 0
B59: ='D-704 Standards'!B59 -> W5-9-48 | C59: ='D-704 Standards'!C59 -> 48"x48" | D59: ='D-704 Standards'!D59 -> ROAD WORK TRAFFIC ONLY DOWN & LT or RT ARROW | AC59: 0 | AD59: =IF(Input!$G$14=0,0,SUM(M59:P59)) -> 0 | AE59: =IF(Input!$H$14=0,0,SUM(Q59:T59)) -> 0 | AF59: =IF(Input!$I$14=0,0,SUM(U59:X59)) -> 0 | AG59: =IF(Input!$J$14=0,0,SUM(Y59:AB59)) -> 0
B60: ='D-704 Standards'!B60 -> W6-3-48 | C60: ='D-704 Standards'!C60 -> 48"x48" | D60: ='D-704 Standards'!D60 -> TWO WAY TRAFFIC | AC60: 0 | AD60: =IF(Input!$G$14=0,0,SUM(M60:P60)) -> 0 | AE60: =IF(Input!$H$14=0,0,SUM(Q60:T60)) -> 0 | AF60: =IF(Input!$I$14=0,0,SUM(U60:X60)) -> 0 | AG60: =IF(Input!$J$14=0,0,SUM(Y60:AB60)) -> 0
B61: ='D-704 Standards'!B61 -> W8-1-48 | C61: ='D-704 Standards'!C61 -> 48"x48" | D61: ='D-704 Standards'!D61 -> BUMP | AC61: 0 | AD61: =IF(Input!$G$14=0,0,SUM(M61:P61)) -> 0 | AE61: =IF(Input!$H$14=0,0,SUM(Q61:T61)) -> 0 | AF61: =IF(Input!$I$14=0,0,SUM(U61:X61)) -> 0 | AG61: =IF(Input!$J$14=0,0,SUM(Y61:AB61)) -> 0
B62: ='D-704 Standards'!B62 -> W8-3-48 | C62: ='D-704 Standards'!C62 -> 48"x48" | D62: ='D-704 Standards'!D62 -> PAVEMENT ENDS | AC62: 0 | AD62: =IF(Input!$G$14=0,0,SUM(M62:P62)) -> 0 | AE62: =IF(Input!$H$14=0,0,SUM(Q62:T62)) -> 0 | AF62: =IF(Input!$I$14=0,0,SUM(U62:X62)) -> 0 | AG62: =IF(Input!$J$14=0,0,SUM(Y62:AB62)) -> 0
B63: ='D-704 Standards'!B63 -> W8-7-48 | C63: ='D-704 Standards'!C63 -> 48"x48" | D63: ='D-704 Standards'!D63 -> LOOSE GRAVEL | AC63: 0 | AD63: =IF(Input!$G$14=0,0,SUM(M63:P63)) -> 0 | AE63: =IF(Input!$H$14=0,0,SUM(Q63:T63)) -> 0 | AF63: =IF(Input!$I$14=0,0,SUM(U63:X63)) -> 0 | AG63: =IF(Input!$J$14=0,0,SUM(Y63:AB63)) -> 0
B64: ='D-704 Standards'!B64 -> W8-17-48 | C64: ='D-704 Standards'!C64 -> 48"x48" | D64: ='D-704 Standards'!D64 -> SHOULDER DROP-OFF SYMBOL | AC64: 0 | AD64: =IF(Input!$G$14=0,0,SUM(M64:P64)) -> 0 | AE64: =IF(Input!$H$14=0,0,SUM(Q64:T64)) -> 0 | AF64: =IF(Input!$I$14=0,0,SUM(U64:X64)) -> 0 | AG64: =IF(Input!$J$14=0,0,SUM(Y64:AB64)) -> 0
B65: ='D-704 Standards'!B65 -> W8-11-48 | C65: ='D-704 Standards'!C65 -> 48"x48" | D65: ='D-704 Standards'!D65 -> UNEVEN LANES | AC65: 0 | AD65: =IF(Input!$G$14=0,0,SUM(M65:P65)) -> 0 | AE65: =IF(Input!$H$14=0,0,SUM(Q65:T65)) -> 0 | AF65: =IF(Input!$I$14=0,0,SUM(U65:X65)) -> 0 | AG65: =IF(Input!$J$14=0,0,SUM(Y65:AB65)) -> 0
B66: ='D-704 Standards'!B66 -> W8-12-48 | C66: ='D-704 Standards'!C66 -> 48"x48" | D66: ='D-704 Standards'!D66 -> NO CENTER LINE | AC66: 0 | AD66: =IF(Input!$G$14=0,0,SUM(M66:P66)) -> 0 | AE66: =IF(Input!$H$14=0,0,SUM(Q66:T66)) -> 0 | AF66: =IF(Input!$I$14=0,0,SUM(U66:X66)) -> 0 | AG66: =IF(Input!$J$14=0,0,SUM(Y66:AB66)) -> 0
B67: ='D-704 Standards'!B67 -> W8-53-48 | C67: ='D-704 Standards'!C67 -> 48"x48" | D67: ='D-704 Standards'!D67 -> TRUCKS ENTERING HIGHWAY | AC67: 0 | AD67: =IF(Input!$G$14=0,0,SUM(M67:P67)) -> 0 | AE67: =IF(Input!$H$14=0,0,SUM(Q67:T67)) -> 0 | AF67: =IF(Input!$I$14=0,0,SUM(U67:X67)) -> 0 | AG67: =IF(Input!$J$14=0,0,SUM(Y67:AB67)) -> 0
B68: ='D-704 Standards'!B68 -> W8-54-48 | C68: ='D-704 Standards'!C68 -> 48"x48" | D68: ='D-704 Standards'!D68 -> TRUCKS ENTERING AHEAD or __ FT or _ MILE | AC68: 0 | AD68: =IF(Input!$G$14=0,0,SUM(M68:P68)) -> 0 | AE68: =IF(Input!$H$14=0,0,SUM(Q68:T68)) -> 0 | AF68: =IF(Input!$I$14=0,0,SUM(U68:X68)) -> 0 | AG68: =IF(Input!$J$14=0,0,SUM(Y68:AB68)) -> 0
B69: ='D-704 Standards'!B69 -> W8-55-48 | C69: ='D-704 Standards'!C69 -> 48"x48" | D69: ='D-704 Standards'!D69 -> TRUCKS CROSSING AHEAD or __ FT or _ MILE | AC69: 0 | AD69: =IF(Input!$G$14=0,0,SUM(M69:P69)) -> 0 | AE69: =IF(Input!$H$14=0,0,SUM(Q69:T69)) -> 0 | AF69: =IF(Input!$I$14=0,0,SUM(U69:X69)) -> 0 | AG69: =IF(Input!$J$14=0,0,SUM(Y69:AB69)) -> 0
B70: ='D-704 Standards'!B70 -> W8-56-48 | C70: ='D-704 Standards'!C70 -> 48"x48" | D70: ='D-704 Standards'!D70 -> TRUCKS EXITING HIGHWAY | AC70: 0 | AD70: =IF(Input!$G$14=0,0,SUM(M70:P70)) -> 0 | AE70: =IF(Input!$H$14=0,0,SUM(Q70:T70)) -> 0 | AF70: =IF(Input!$I$14=0,0,SUM(U70:X70)) -> 0 | AG70: =IF(Input!$J$14=0,0,SUM(Y70:AB70)) -> 0
B71: ='D-704 Standards'!B71 -> W9-3a-48 | C71: ='D-704 Standards'!C71 -> 48"x48" | D71: ='D-704 Standards'!D71 -> CENTER LANE CLOSED SYMBOL | AC71: 0 | AD71: =IF(Input!$G$14=0,0,SUM(M71:P71)) -> 0 | AE71: =IF(Input!$H$14=0,0,SUM(Q71:T71)) -> 0 | AF71: =IF(Input!$I$14=0,0,SUM(U71:X71)) -> 0 | AG71: =IF(Input!$J$14=0,0,SUM(Y71:AB71)) -> 0
B72: ='D-704 Standards'!B72 -> W13-1P-30 | C72: ='D-704 Standards'!C72 -> 30"x30" | D72: ='D-704 Standards'!D72 -> __ MPH ADVISORY SPEED PLAQUE (Mounted on warning sign post) | AC72: =SUM(I72:L72) -> 0 | AD72: =IF(Input!$G$14=0,0,SUM(M72:P72)) -> 0 | AE72: =IF(Input!$H$14=0,0,SUM(Q72:T72)) -> 0 | AF72: =IF(Input!$I$14=0,0,SUM(U72:X72)) -> 0 | AG72: =IF(Input!$J$14=0,0,SUM(Y72:AB72)) -> 0
B73: ='D-704 Standards'!B73 -> W14-3-64 | C73: ='D-704 Standards'!C73 -> 64"x48" | D73: ='D-704 Standards'!D73 -> NO PASSING ZONE | AC73: 0 | AD73: =IF(Input!$G$14=0,0,SUM(M73:P73)) -> 0 | AE73: =IF(Input!$H$14=0,0,SUM(Q73:T73)) -> 0 | AF73: =IF(Input!$I$14=0,0,SUM(U73:X73)) -> 0 | AG73: =IF(Input!$J$14=0,0,SUM(Y73:AB73)) -> 0
B74: ='D-704 Standards'!B74 -> W16-2P-30 | C74: ='D-704 Standards'!C74 -> 30"x24" | D74: ='D-704 Standards'!D74 -> __ FEET PLAQUE (Mounted on warning sign post) | AC74: 0 | AD74: =IF(Input!$G$14=0,0,SUM(M74:P74)) -> 0 | AE74: =IF(Input!$H$14=0,0,SUM(Q74:T74)) -> 0 | AF74: =IF(Input!$I$14=0,0,SUM(U74:X74)) -> 0 | AG74: =IF(Input!$J$14=0,0,SUM(Y74:AB74)) -> 0
B75: ='D-704 Standards'!B75 -> W20-1-48 | C75: ='D-704 Standards'!C75 -> 48"x48" | D75: ='D-704 Standards'!D75 -> ROAD WORK AHEAD or _FT or _ MILE | AC75: 0 | AD75: =IF(Input!$G$14=0,0,SUM(M75:P75)) -> 0 | AE75: =IF(Input!$H$14=0,0,SUM(Q75:T75)) -> 0 | AF75: =IF(Input!$I$14=0,0,SUM(U75:X75)) -> 0 | AG75: =IF(Input!$J$14=0,0,SUM(Y75:AB75)) -> 0
B76: ='D-704 Standards'!B76 -> W20-2-48 | C76: ='D-704 Standards'!C76 -> 48"x48" | D76: ='D-704 Standards'!D76 -> DETOUR AHEAD or __ FT or _ MILE | AC76: 0 | AD76: =IF(Input!$G$14=0,0,SUM(M76:P76)) -> 0 | AE76: =IF(Input!$H$14=0,0,SUM(Q76:T76)) -> 0 | AF76: =IF(Input!$I$14=0,0,SUM(U76:X76)) -> 0 | AG76: =IF(Input!$J$14=0,0,SUM(Y76:AB76)) -> 0
B77: ='D-704 Standards'!B77 -> W20-3-48 | C77: ='D-704 Standards'!C77 -> 48"x48" | D77: ='D-704 Standards'!D77 -> ROAD or STREET CLOSED AHEAD or __ FT or _ MILE | AC77: 0 | AD77: =IF(Input!$G$14=0,0,SUM(M77:P77)) -> 0 | AE77: =IF(Input!$H$14=0,0,SUM(Q77:T77)) -> 0 | AF77: =IF(Input!$I$14=0,0,SUM(U77:X77)) -> 0 | AG77: =IF(Input!$J$14=0,0,SUM(Y77:AB77)) -> 0
B78: ='D-704 Standards'!B78 -> W20-4-48 | C78: ='D-704 Standards'!C78 -> 48"x48" | D78: ='D-704 Standards'!D78 -> ONE LANE ROAD AHEAD or __ FT or _ MILE | AC78: 0 | AD78: =IF(Input!$G$14=0,0,SUM(M78:P78)) -> 0 | AE78: =IF(Input!$H$14=0,0,SUM(Q78:T78)) -> 0 | AF78: =IF(Input!$I$14=0,0,SUM(U78:X78)) -> 0 | AG78: =IF(Input!$J$14=0,0,SUM(Y78:AB78)) -> 0
B79: ='D-704 Standards'!B79 -> W20-5-48 | C79: ='D-704 Standards'!C79 -> 48"x48" | D79: ='D-704 Standards'!D79 -> RIGHT or CENTER or LEFT LANE CLOSED AHEAD or __ FT or _ MILE | AC79: 0 | AD79: =IF(Input!$G$14=0,0,SUM(M79:P79)) -> 0 | AE79: =IF(Input!$H$14=0,0,SUM(Q79:T79)) -> 0 | AF79: =IF(Input!$I$14=0,0,SUM(U79:X79)) -> 0 | AG79: =IF(Input!$J$14=0,0,SUM(Y79:AB79)) -> 0
B80: ='D-704 Standards'!B80 -> W20-7-48 | C80: ='D-704 Standards'!C80 -> 48"x48" | D80: ='D-704 Standards'!D80 -> FLAGGER | AC80: 0 | AD80: =IF(Input!$G$14=0,0,SUM(M80:P80)) -> 0 | AE80: =IF(Input!$H$14=0,0,SUM(Q80:T80)) -> 0 | AF80: =IF(Input!$I$14=0,0,SUM(U80:X80)) -> 0 | AG80: =IF(Input!$J$14=0,0,SUM(Y80:AB80)) -> 0
B81: ='D-704 Standards'!B81 -> W20-8-18 | C81: ='D-704 Standards'!C81 -> 18"x18" | D81: ='D-704 Standards'!D81 -> STOP - SLOW PADDLE Back to Back | AC81: 0 | AD81: =IF(Input!$G$14=0,0,SUM(M81:P81)) -> 0 | AE81: =IF(Input!$H$14=0,0,SUM(Q81:T81)) -> 0 | AF81: =IF(Input!$I$14=0,0,SUM(U81:X81)) -> 0 | AG81: =IF(Input!$J$14=0,0,SUM(Y81:AB81)) -> 0
B82: ='D-704 Standards'!B82 -> W20-52P-54 | C82: ='D-704 Standards'!C82 -> 54"x12" | D82: ='D-704 Standards'!D82 -> NEXT __ MILES (Mounted on warning sign post) | AC82: 0 | AD82: =IF(Input!$G$14=0,0,SUM(M82:P82)) -> 0 | AE82: =IF(Input!$H$14=0,0,SUM(Q82:T82)) -> 0 | AF82: =IF(Input!$I$14=0,0,SUM(U82:X82)) -> 0 | AG82: =IF(Input!$J$14=0,0,SUM(Y82:AB82)) -> 0
B83: ='D-704 Standards'!B83 -> W21-1-48 | C83: ='D-704 Standards'!C83 -> 48"x48" | D83: ='D-704 Standards'!D83 -> WORKERS | AC83: 0 | AD83: =IF(Input!$G$14=0,0,SUM(M83:P83)) -> 0 | AE83: =IF(Input!$H$14=0,0,SUM(Q83:T83)) -> 0 | AF83: =IF(Input!$I$14=0,0,SUM(U83:X83)) -> 0 | AG83: =IF(Input!$J$14=0,0,SUM(Y83:AB83)) -> 0
B84: ='D-704 Standards'!B84 -> W21-2-48 | C84: ='D-704 Standards'!C84 -> 48"x48" | D84: ='D-704 Standards'!D84 -> FRESH OIL | AC84: 0 | AD84: =IF(Input!$G$14=0,0,SUM(M84:P84)) -> 0 | AE84: =IF(Input!$H$14=0,0,SUM(Q84:T84)) -> 0 | AF84: =IF(Input!$I$14=0,0,SUM(U84:X84)) -> 0 | AG84: =IF(Input!$J$14=0,0,SUM(Y84:AB84)) -> 0
B85: ='D-704 Standards'!B85 -> W21-3-48 | C85: ='D-704 Standards'!C85 -> 48"x48" | D85: ='D-704 Standards'!D85 -> ROAD MACHINERY AHEAD or __ FT or _ MILE | AC85: 0 | AD85: =IF(Input!$G$14=0,0,SUM(M85:P85)) -> 0 | AE85: =IF(Input!$H$14=0,0,SUM(Q85:T85)) -> 0 | AF85: =IF(Input!$I$14=0,0,SUM(U85:X85)) -> 0 | AG85: =IF(Input!$J$14=0,0,SUM(Y85:AB85)) -> 0
B86: ='D-704 Standards'!B86 -> W21-5-48 | C86: ='D-704 Standards'!C86 -> 48"x48" | D86: ='D-704 Standards'!D86 -> SHOULDER WORK | AC86: 0 | AD86: =IF(Input!$G$14=0,0,SUM(M86:P86)) -> 0 | AE86: =IF(Input!$H$14=0,0,SUM(Q86:T86)) -> 0 | AF86: =IF(Input!$I$14=0,0,SUM(U86:X86)) -> 0 | AG86: =IF(Input!$J$14=0,0,SUM(Y86:AB86)) -> 0
B87: ='D-704 Standards'!B87 -> W21-5a-48 | C87: ='D-704 Standards'!C87 -> 48"x48" | D87: ='D-704 Standards'!D87 -> RIGHT or LEFT SHOULDER CLOSED | AC87: 0 | AD87: =IF(Input!$G$14=0,0,SUM(M87:P87)) -> 0 | AE87: =IF(Input!$H$14=0,0,SUM(Q87:T87)) -> 0 | AF87: =IF(Input!$I$14=0,0,SUM(U87:X87)) -> 0 | AG87: =IF(Input!$J$14=0,0,SUM(Y87:AB87)) -> 0
B88: ='D-704 Standards'!B88 -> W21-5b-48 | C88: ='D-704 Standards'!C88 -> 48"x48" | D88: ='D-704 Standards'!D88 -> RIGHT or LEFT SHOULDER CLOSED AHEAD or __ FT or _ MILE | AC88: 0 | AD88: =IF(Input!$G$14=0,0,SUM(M88:P88)) -> 0 | AE88: =IF(Input!$H$14=0,0,SUM(Q88:T88)) -> 0 | AF88: =IF(Input!$I$14=0,0,SUM(U88:X88)) -> 0 | AG88: =IF(Input!$J$14=0,0,SUM(Y88:AB88)) -> 0
B89: ='D-704 Standards'!B89 -> W21-6-48 | C89: ='D-704 Standards'!C89 -> 48"x48" | D89: ='D-704 Standards'!D89 -> SURVEY CREW | AC89: 0 | AD89: =IF(Input!$G$14=0,0,SUM(M89:P89)) -> 0 | AE89: =IF(Input!$H$14=0,0,SUM(Q89:T89)) -> 0 | AF89: =IF(Input!$I$14=0,0,SUM(U89:X89)) -> 0 | AG89: =IF(Input!$J$14=0,0,SUM(Y89:AB89)) -> 0
B90: ='D-704 Standards'!B90 -> W21-50-48 | C90: ='D-704 Standards'!C90 -> 48"x48" | D90: ='D-704 Standards'!D90 -> BRIDGE PAINTING AHEAD or __ FT | AC90: 0 | AD90: =IF(Input!$G$14=0,0,SUM(M90:P90)) -> 0 | AE90: =IF(Input!$H$14=0,0,SUM(Q90:T90)) -> 0 | AF90: =IF(Input!$I$14=0,0,SUM(U90:X90)) -> 0 | AG90: =IF(Input!$J$14=0,0,SUM(Y90:AB90)) -> 0
B91: ='D-704 Standards'!B91 -> W21-51-48 | C91: ='D-704 Standards'!C91 -> 48"x48" | D91: ='D-704 Standards'!D91 -> MATERIAL ON ROADWAY | AC91: 0 | AD91: =IF(Input!$G$14=0,0,SUM(M91:P91)) -> 0 | AE91: =IF(Input!$H$14=0,0,SUM(Q91:T91)) -> 0 | AF91: =IF(Input!$I$14=0,0,SUM(U91:X91)) -> 0 | AG91: =IF(Input!$J$14=0,0,SUM(Y91:AB91)) -> 0
B92: ='D-704 Standards'!B92 -> W21-52-48 | C92: ='D-704 Standards'!C92 -> 48"x48" | D92: ='D-704 Standards'!D92 -> PAVEMENT BREAKS | AC92: 0 | AD92: =IF(Input!$G$14=0,0,SUM(M92:P92)) -> 0 | AE92: =IF(Input!$H$14=0,0,SUM(Q92:T92)) -> 0 | AF92: =IF(Input!$I$14=0,0,SUM(U92:X92)) -> 0 | AG92: =IF(Input!$J$14=0,0,SUM(Y92:AB92)) -> 0
B93: ='D-704 Standards'!B93 -> W21-53-48 | C93: ='D-704 Standards'!C93 -> 48"x48" | D93: ='D-704 Standards'!D93 -> RUMBLE STRIPS AHEAD | AC93: 0 | AD93: =IF(Input!$G$14=0,0,SUM(M93:P93)) -> 0 | AE93: =IF(Input!$H$14=0,0,SUM(Q93:T93)) -> 0 | AF93: =IF(Input!$I$14=0,0,SUM(U93:X93)) -> 0 | AG93: =IF(Input!$J$14=0,0,SUM(Y93:AB93)) -> 0
B94: ='D-704 Standards'!B94 -> W22-8-48 | C94: ='D-704 Standards'!C94 -> 48"x48" | D94: ='D-704 Standards'!D94 -> FRESH OIL LOOSE ROCK | AC94: 0 | AD94: =IF(Input!$G$14=0,0,SUM(M94:P94)) -> 0 | AE94: =IF(Input!$H$14=0,0,SUM(Q94:T94)) -> 0 | AF94: =IF(Input!$I$14=0,0,SUM(U94:X94)) -> 0 | AG94: =IF(Input!$J$14=0,0,SUM(Y94:AB94)) -> 0
B95: ='D-704 Standards'!B95 -> W24-1-48 | C95: ='D-704 Standards'!C95 -> 48"x48" | D95: ='D-704 Standards'!D95 -> DOUBLE REVERSE CURVE | AC95: 0 | AD95: =IF(Input!$G$14=0,0,SUM(M95:P95)) -> 0 | AE95: =IF(Input!$H$14=0,0,SUM(Q95:T95)) -> 0 | AF95: =IF(Input!$I$14=0,0,SUM(U95:X95)) -> 0 | AG95: =IF(Input!$J$14=0,0,SUM(Y95:AB95)) -> 0
B96: =Input!B104 -> 0 | C96: =Input!C104 -> 0 | D96: =Input!D104 -> 0 | AC96: 0 | AD96: =IF(Input!$G$14=0,0,SUM(M96:P96)) -> 0 | AE96: =IF(Input!$H$14=0,0,SUM(Q96:T96)) -> 0 | AF96: =IF(Input!$I$14=0,0,SUM(U96:X96)) -> 0 | AG96: =IF(Input!$J$14=0,0,SUM(Y96:AB96)) -> 0
B97: =Input!B105 -> 0 | C97: =Input!C105 -> 0 | D97: =Input!D105 -> 0 | AC97: 0 | AD97: =IF(Input!$G$14=0,0,SUM(M97:P97)) -> 0 | AE97: =IF(Input!$H$14=0,0,SUM(Q97:T97)) -> 0 | AF97: =IF(Input!$I$14=0,0,SUM(U97:X97)) -> 0 | AG97: =IF(Input!$J$14=0,0,SUM(Y97:AB97)) -> 0
B98: =Input!B106 -> 0 | C98: =Input!C106 -> 0 | D98: =Input!D106 -> 0 | AC98: 0 | AD98: =IF(Input!$G$14=0,0,SUM(M98:P98)) -> 0 | AE98: =IF(Input!$H$14=0,0,SUM(Q98:T98)) -> 0 | AF98: =IF(Input!$I$14=0,0,SUM(U98:X98)) -> 0 | AG98: =IF(Input!$J$14=0,0,SUM(Y98:AB98)) -> 0
B99: =Input!B107 -> 0 | C99: =Input!C107 -> 0 | D99: =Input!D107 -> 0 | AC99: 0 | AD99: =IF(Input!$G$14=0,0,SUM(M99:P99)) -> 0 | AE99: =IF(Input!$H$14=0,0,SUM(Q99:T99)) -> 0 | AF99: =IF(Input!$I$14=0,0,SUM(U99:X99)) -> 0 | AG99: =IF(Input!$J$14=0,0,SUM(Y99:AB99)) -> 0
B100: =Input!B108 -> 0 | C100: =Input!C108 -> 0 | D100: =Input!D108 -> 0 | AC100: 0 | AD100: =IF(Input!$G$14=0,0,SUM(M100:P100)) -> 0 | AE100: =IF(Input!$H$14=0,0,SUM(Q100:T100)) -> 0 | AF100: =IF(Input!$I$14=0,0,SUM(U100:X100)) -> 0 | AG100: =IF(Input!$J$14=0,0,SUM(Y100:AB100)) -> 0
B101: =Input!B109 -> 0 | C101: =Input!C109 -> 0 | D101: =Input!D109 -> 0 | AC101: 0 | AD101: =IF(Input!$G$14=0,0,SUM(M101:P101)) -> 0 | AE101: =IF(Input!$H$14=0,0,SUM(Q101:T101)) -> 0 | AF101: =IF(Input!$I$14=0,0,SUM(U101:X101)) -> 0 | AG101: =IF(Input!$J$14=0,0,SUM(Y101:AB101)) -> 0
B102: =Input!B110 -> 0 | C102: =Input!C110 -> 0 | D102: =Input!D110 -> 0 | AC102: 0 | AD102: =IF(Input!$G$14=0,0,SUM(M102:P102)) -> 0 | AE102: =IF(Input!$H$14=0,0,SUM(Q102:T102)) -> 0 | AF102: =IF(Input!$I$14=0,0,SUM(U102:X102)) -> 0 | AG102: =IF(Input!$J$14=0,0,SUM(Y102:AB102)) -> 0
B103: =Input!B111 -> 0 | C103: =Input!C111 -> 0 | D103: =Input!D111 -> 0 | AC103: 0 | AD103: =IF(Input!$G$14=0,0,SUM(M103:P103)) -> 0 | AE103: =IF(Input!$H$14=0,0,SUM(Q103:T103)) -> 0 | AF103: =IF(Input!$I$14=0,0,SUM(U103:X103)) -> 0 | AG103: =IF(Input!$J$14=0,0,SUM(Y103:AB103)) -> 0
B104: =Input!B112 -> 0 | C104: =Input!C112 -> 0 | D104: =Input!D112 -> 0 | AC104: 0 | AD104: =IF(Input!$G$14=0,0,SUM(M104:P104)) -> 0 | AE104: =IF(Input!$H$14=0,0,SUM(Q104:T104)) -> 0 | AF104: =IF(Input!$I$14=0,0,SUM(U104:X104)) -> 0 | AG104: =IF(Input!$J$14=0,0,SUM(Y104:AB104)) -> 0
B105: =Input!B113 -> 0 | C105: =Input!C113 -> 0 | D105: =Input!D113 -> 0 | AC105: 0 | AD105: =IF(Input!$G$14=0,0,SUM(M105:P105)) -> 0 | AE105: =IF(Input!$H$14=0,0,SUM(Q105:T105)) -> 0 | AF105: =IF(Input!$I$14=0,0,SUM(U105:X105)) -> 0 | AG105: =IF(Input!$J$14=0,0,SUM(Y105:AB105)) -> 0
B106: =Input!B114 -> 0 | C106: =Input!C114 -> 0 | D106: =Input!D114 -> 0 | AC106: 0 | AD106: =IF(Input!$G$14=0,0,SUM(M106:P106)) -> 0 | AE106: =IF(Input!$H$14=0,0,SUM(Q106:T106)) -> 0 | AF106: =IF(Input!$I$14=0,0,SUM(U106:X106)) -> 0 | AG106: =IF(Input!$J$14=0,0,SUM(Y106:AB106)) -> 0
B107: =Input!B115 -> 0 | C107: =Input!C115 -> 0 | D107: =Input!D115 -> 0 | AC107: 0 | AD107: =IF(Input!$G$14=0,0,SUM(M107:P107)) -> 0 | AE107: =IF(Input!$H$14=0,0,SUM(Q107:T107)) -> 0 | AF107: =IF(Input!$I$14=0,0,SUM(U107:X107)) -> 0 | AG107: =IF(Input!$J$14=0,0,SUM(Y107:AB107)) -> 0
B108: =Input!B116 -> 0 | C108: =Input!C116 -> 0 | D108: =Input!D116 -> 0 | AC108: 0 | AD108: =IF(Input!$G$14=0,0,SUM(M108:P108)) -> 0 | AE108: =IF(Input!$H$14=0,0,SUM(Q108:T108)) -> 0 | AF108: =IF(Input!$I$14=0,0,SUM(U108:X108)) -> 0 | AG108: =IF(Input!$J$14=0,0,SUM(Y108:AB108)) -> 0
B109: =Input!B117 -> 0 | C109: =Input!C117 -> 0 | D109: =Input!D117 -> 0 | AC109: 0 | AD109: =IF(Input!$G$14=0,0,SUM(M109:P109)) -> 0 | AE109: =IF(Input!$H$14=0,0,SUM(Q109:T109)) -> 0 | AF109: =IF(Input!$I$14=0,0,SUM(U109:X109)) -> 0 | AG109: =IF(Input!$J$14=0,0,SUM(Y109:AB109)) -> 0
B110: =Input!B118 -> 0 | C110: =Input!C118 -> 0 | D110: =Input!D118 -> 0 | AC110: 0 | AD110: =IF(Input!$G$14=0,0,SUM(M110:P110)) -> 0 | AE110: =IF(Input!$H$14=0,0,SUM(Q110:T110)) -> 0 | AF110: =IF(Input!$I$14=0,0,SUM(U110:X110)) -> 0 | AG110: =IF(Input!$J$14=0,0,SUM(Y110:AB110)) -> 0
B111: =Input!B119 -> 0 | C111: =Input!C119 -> 0 | D111: =Input!D119 -> 0 | AC111: 0 | AD111: =IF(Input!$G$14=0,0,SUM(M111:P111)) -> 0 | AE111: =IF(Input!$H$14=0,0,SUM(Q111:T111)) -> 0 | AF111: =IF(Input!$I$14=0,0,SUM(U111:X111)) -> 0 | AG111: =IF(Input!$J$14=0,0,SUM(Y111:AB111)) -> 0
B112: =Input!B120 -> 0 | C112: =Input!C120 -> 0 | D112: =Input!D120 -> 0 | AC112: 0 | AD112: =IF(Input!$G$14=0,0,SUM(M112:P112)) -> 0 | AE112: =IF(Input!$H$14=0,0,SUM(Q112:T112)) -> 0 | AF112: =IF(Input!$I$14=0,0,SUM(U112:X112)) -> 0 | AG112: =IF(Input!$J$14=0,0,SUM(Y112:AB112)) -> 0
B113: =Input!B121 -> 0 | C113: =Input!C121 -> 0 | D113: =Input!D121 -> 0 | AC113: 0 | AD113: =IF(Input!$G$14=0,0,SUM(M113:P113)) -> 0 | AE113: =IF(Input!$H$14=0,0,SUM(Q113:T113)) -> 0 | AF113: =IF(Input!$I$14=0,0,SUM(U113:X113)) -> 0 | AG113: =IF(Input!$J$14=0,0,SUM(Y113:AB113)) -> 0
B114: =Input!B122 -> 0 | C114: =Input!C122 -> 0 | D114: =Input!D122 -> 0 | AC114: 0 | AD114: =IF(Input!$G$14=0,0,SUM(M114:P114)) -> 0 | AE114: =IF(Input!$H$14=0,0,SUM(Q114:T114)) -> 0 | AF114: =IF(Input!$I$14=0,0,SUM(U114:X114)) -> 0 | AG114: =IF(Input!$J$14=0,0,SUM(Y114:AB114)) -> 0
B115: =Input!B123 -> 0 | C115: =Input!C123 -> 0 | D115: =Input!D123 -> 0 | AC115: 0 | AD115: =IF(Input!$G$14=0,0,SUM(M115:P115)) -> 0 | AE115: =IF(Input!$H$14=0,0,SUM(Q115:T115)) -> 0 | AF115: =IF(Input!$I$14=0,0,SUM(U115:X115)) -> 0 | AG115: =IF(Input!$J$14=0,0,SUM(Y115:AB115)) -> 0
B117: SPECIAL SIGNS | J117: =IF(COUNTBLANK(Input!F14:J14)=5,"",CONCATENATE("Phase ",Input!$F$14)) ->  | N117: =CONCATENATE("Phase ",Input!$G$14) -> Phase | R117: =CONCATENATE("Phase ",Input!$H$14) -> Phase | V117: =CONCATENATE("Phase ",Input!$I$14) -> Phase | Z117: =CONCATENATE("Phase ",Input!$J$14) -> Phase | AC117: =IF(COUNTBLANK(Input!F14:J14)=5,"",IF(COUNTBLANK(Input!G14:J14)=4,"Total","Total Amount Required")) -> 
B118: SIGN NUMBER | C118: SIGN SIZE | D118: DESCRIPTION | J118: =J6 -> Sheet1 | K118: =K6 -> Sheet2 | L118: =L6 -> 0 | N118: =N6 -> Sheet 3 | O118: =O6 -> Sheet 4 | R118: =R6 -> Sheet 5 | S118: =S6 -> Sheet 6 | V118: =V6 -> Sheet 7 | W118: =W6 -> Sheet 8 | Z118: =Z6 -> Sheet 9 | AA118: =AA6 -> Sheet 10 | AC118: =IF(COUNTBLANK(Input!F14:J14)=5,"Total",CONCATENATE("Phase ",Input!$F$14)) -> Total | AD118: =CONCATENATE("Phase ",Input!$G$14) -> Phase | AE118: =CONCATENATE("Phase ",Input!$H$14) -> Phase | AF118: =CONCATENATE("Phase ",Input!$I$14) -> Phase | AG118: =CONCATENATE("Phase ",Input!$J$14) -> Phase
B119: =Input!B129 -> 0 | C119: =Input!C129 -> 0 | D119: =Input!D129 -> 0 | AC119: =SUM(I119:L119) -> 0 | AD119: =IF(Input!$G$14=0,0,SUM(M119:P119)) -> 0 | AE119: =IF(Input!$H$14=0,0,SUM(Q119:T119)) -> 0 | AF119: =IF(Input!$I$14=0,0,SUM(U119:X119)) -> 0 | AG119: =IF(Input!$J$14=0,0,SUM(Y119:AB119)) -> 0
B120: =Input!B130 -> 0 | C120: =Input!C130 -> 0 | D120: =Input!D130 -> 0 | AC120: 0 | AD120: =IF(Input!$G$14=0,0,SUM(M120:P120)) -> 0 | AE120: =IF(Input!$H$14=0,0,SUM(Q120:T120)) -> 0 | AF120: =IF(Input!$I$14=0,0,SUM(U120:X120)) -> 0 | AG120: =IF(Input!$J$14=0,0,SUM(Y120:AB120)) -> 0
B121: =Input!B131 -> 0 | C121: =Input!C131 -> 0 | D121: =Input!D131 -> 0 | AC121: 0 | AD121: =IF(Input!$G$14=0,0,SUM(M121:P121)) -> 0 | AE121: =IF(Input!$H$14=0,0,SUM(Q121:T121)) -> 0 | AF121: =IF(Input!$I$14=0,0,SUM(U121:X121)) -> 0 | AG121: =IF(Input!$J$14=0,0,SUM(Y121:AB121)) -> 0
B122: =Input!B132 -> 0 | C122: =Input!C132 -> 0 | D122: =Input!D132 -> 0 | AC122: 0 | AD122: =IF(Input!$G$14=0,0,SUM(M122:P122)) -> 0 | AE122: =IF(Input!$H$14=0,0,SUM(Q122:T122)) -> 0 | AF122: =IF(Input!$I$14=0,0,SUM(U122:X122)) -> 0 | AG122: =IF(Input!$J$14=0,0,SUM(Y122:AB122)) -> 0
B123: =Input!B133 -> 0 | C123: =Input!C133 -> 0 | D123: =Input!D133 -> 0 | AC123: 0 | AD123: =IF(Input!$G$14=0,0,SUM(M123:P123)) -> 0 | AE123: =IF(Input!$H$14=0,0,SUM(Q123:T123)) -> 0 | AF123: =IF(Input!$I$14=0,0,SUM(U123:X123)) -> 0 | AG123: =IF(Input!$J$14=0,0,SUM(Y123:AB123)) -> 0
B124: =Input!B134 -> 0 | C124: =Input!C134 -> 0 | D124: =Input!D134 -> 0 | AC124: 0 | AD124: =IF(Input!$G$14=0,0,SUM(M124:P124)) -> 0 | AE124: =IF(Input!$H$14=0,0,SUM(Q124:T124)) -> 0 | AF124: =IF(Input!$I$14=0,0,SUM(U124:X124)) -> 0 | AG124: =IF(Input!$J$14=0,0,SUM(Y124:AB124)) -> 0
B125: =Input!B135 -> 0 | C125: =Input!C135 -> 0 | D125: =Input!D135 -> 0 | AC125: 0 | AD125: =IF(Input!$G$14=0,0,SUM(M125:P125)) -> 0 | AE125: =IF(Input!$H$14=0,0,SUM(Q125:T125)) -> 0 | AF125: =IF(Input!$I$14=0,0,SUM(U125:X125)) -> 0 | AG125: =IF(Input!$J$14=0,0,SUM(Y125:AB125)) -> 0
B126: =Input!B136 -> 0 | C126: =Input!C136 -> 0 | D126: =Input!D136 -> 0 | AC126: 0 | AD126: =IF(Input!$G$14=0,0,SUM(M126:P126)) -> 0 | AE126: =IF(Input!$H$14=0,0,SUM(Q126:T126)) -> 0 | AF126: =IF(Input!$I$14=0,0,SUM(U126:X126)) -> 0 | AG126: =IF(Input!$J$14=0,0,SUM(Y126:AB126)) -> 0
B127: =Input!B137 -> 0 | C127: =Input!C137 -> 0 | D127: =Input!D137 -> 0 | AC127: 0 | AD127: =IF(Input!$G$14=0,0,SUM(M127:P127)) -> 0 | AE127: =IF(Input!$H$14=0,0,SUM(Q127:T127)) -> 0 | AF127: =IF(Input!$I$14=0,0,SUM(U127:X127)) -> 0 | AG127: =IF(Input!$J$14=0,0,SUM(Y127:AB127)) -> 0
B128: =Input!B138 -> 0 | C128: =Input!C138 -> 0 | D128: =Input!D138 -> 0 | AC128: 0 | AD128: =IF(Input!$G$14=0,0,SUM(M128:P128)) -> 0 | AE128: =IF(Input!$H$14=0,0,SUM(Q128:T128)) -> 0 | AF128: =IF(Input!$I$14=0,0,SUM(U128:X128)) -> 0 | AG128: =IF(Input!$J$14=0,0,SUM(Y128:AB128)) -> 0
B129: =Input!B139 -> 0 | C129: =Input!C139 -> 0 | D129: =Input!D139 -> 0 | AC129: 0 | AD129: =IF(Input!$G$14=0,0,SUM(M129:P129)) -> 0 | AE129: =IF(Input!$H$14=0,0,SUM(Q129:T129)) -> 0 | AF129: =IF(Input!$I$14=0,0,SUM(U129:X129)) -> 0 | AG129: =IF(Input!$J$14=0,0,SUM(Y129:AB129)) -> 0
B130: =Input!B140 -> 0 | C130: =Input!C140 -> 0 | D130: =Input!D140 -> 0 | AC130: 0 | AD130: =IF(Input!$G$14=0,0,SUM(M130:P130)) -> 0 | AE130: =IF(Input!$H$14=0,0,SUM(Q130:T130)) -> 0 | AF130: =IF(Input!$I$14=0,0,SUM(U130:X130)) -> 0 | AG130: =IF(Input!$J$14=0,0,SUM(Y130:AB130)) -> 0
B131: =Input!B141 -> 0 | C131: =Input!C141 -> 0 | D131: =Input!D141 -> 0 | AC131: 0 | AD131: =IF(Input!$G$14=0,0,SUM(M131:P131)) -> 0 | AE131: =IF(Input!$H$14=0,0,SUM(Q131:T131)) -> 0 | AF131: =IF(Input!$I$14=0,0,SUM(U131:X131)) -> 0 | AG131: =IF(Input!$J$14=0,0,SUM(Y131:AB131)) -> 0
B132: =Input!B142 -> 0 | C132: =Input!C142 -> 0 | D132: =Input!D142 -> 0 | AC132: 0 | AD132: =IF(Input!$G$14=0,0,SUM(M132:P132)) -> 0 | AE132: =IF(Input!$H$14=0,0,SUM(Q132:T132)) -> 0 | AF132: =IF(Input!$I$14=0,0,SUM(U132:X132)) -> 0 | AG132: =IF(Input!$J$14=0,0,SUM(Y132:AB132)) -> 0
B133: =Input!B143 -> 0 | C133: =Input!C143 -> 0 | D133: =Input!D143 -> 0 | AC133: 0 | AD133: =IF(Input!$G$14=0,0,SUM(M133:P133)) -> 0 | AE133: =IF(Input!$H$14=0,0,SUM(Q133:T133)) -> 0 | AF133: =IF(Input!$I$14=0,0,SUM(U133:X133)) -> 0 | AG133: =IF(Input!$J$14=0,0,SUM(Y133:AB133)) -> 0
B135: TRAFFIC CONTROL DEVICES | J135: =IF(COUNTBLANK(Input!F14:J14)=5,"",CONCATENATE("Phase ",Input!$F$14)) ->  | N135: =CONCATENATE("Phase ",Input!$G$14) -> Phase | R135: =CONCATENATE("Phase ",Input!$H$14) -> Phase | V135: =CONCATENATE("Phase ",Input!$I$14) -> Phase | Z135: =CONCATENATE("Phase ",Input!$J$14) -> Phase | AC135: =IF(COUNTBLANK(Input!F14:J14)=5,"",IF(COUNTBLANK(Input!G14:J14)=4,"Total","Total Amount Required")) -> 
B136: SPEC | C136: CODE | D136: DESCRIPTION | J136: =J6 -> Sheet1 | K136: =K6 -> Sheet2 | L136: =L6 -> 0 | N136: =N6 -> Sheet 3 | O136: =O6 -> Sheet 4 | R136: =R6 -> Sheet 5 | S136: =S6 -> Sheet 6 | V136: =V6 -> Sheet 7 | W136: =W6 -> Sheet 8 | Z136: =Z6 -> Sheet 9 | AA136: =AA6 -> Sheet 10 | AC136: =IF(COUNTBLANK(Input!F14:J14)=5,"Total",CONCATENATE("Phase ",Input!$F$14)) -> Total | AD136: =CONCATENATE("Phase ",Input!$G$14) -> Phase | AE136: =CONCATENATE("Phase ",Input!$H$14) -> Phase | AF136: =CONCATENATE("Phase ",Input!$I$14) -> Phase | AG136: =CONCATENATE("Phase ",Input!$J$14) -> Phase
B137: ='D-704 Standards'!B137 -> 704 | C137: ='D-704 Standards'!C137 -> 100 | D137: ='D-704 Standards'!D137 -> FLAGGING | AC137: =SUM(I137:L137) -> 0 | AD137: =IF(Input!$G$14=0,0,SUM(M137:P137)) -> 0 | AE137: =IF(Input!$H$14=0,0,SUM(Q137:T137)) -> 0 | AF137: =IF(Input!$I$14=0,0,SUM(U137:X137)) -> 0 | AG137: =IF(Input!$J$14=0,0,SUM(Y137:AB137)) -> 0
B138: ='D-704 Standards'!B138 -> 704 | C138: ='D-704 Standards'!C138 -> 1048 | D138: ='D-704 Standards'!D138 -> PORTABLE RUMBLE STRIPS | AC138: =SUM(I138:L138) -> 0 | AD138: =IF(Input!$G$14=0,0,SUM(M138:P138)) -> 0 | AE138: =IF(Input!$H$14=0,0,SUM(Q138:T138)) -> 0 | AF138: =IF(Input!$I$14=0,0,SUM(U138:X138)) -> 0 | AG138: =IF(Input!$J$14=0,0,SUM(Y138:AB138)) -> 0
B139: ='D-704 Standards'!B139 -> 704 | C139: ='D-704 Standards'!C139 -> 1050 | D139: ='D-704 Standards'!D139 -> TYPE I BARRICADES | AC139: 0 | AD139: =IF(Input!$G$14=0,0,SUM(M139:P139)) -> 0 | AE139: =IF(Input!$H$14=0,0,SUM(Q139:T139)) -> 0 | AF139: =IF(Input!$I$14=0,0,SUM(U139:X139)) -> 0 | AG139: =IF(Input!$J$14=0,0,SUM(Y139:AB139)) -> 0
B140: ='D-704 Standards'!B140 -> 704 | C140: ='D-704 Standards'!C140 -> 1052 | D140: ='D-704 Standards'!D140 -> TYPE III BARRICADES | AC140: 0 | AD140: =IF(Input!$G$14=0,0,SUM(M140:P140)) -> 0 | AE140: =IF(Input!$H$14=0,0,SUM(Q140:T140)) -> 0 | AF140: =IF(Input!$I$14=0,0,SUM(U140:X140)) -> 0 | AG140: =IF(Input!$J$14=0,0,SUM(Y140:AB140)) -> 0
B141: ='D-704 Standards'!B141 -> 704 | C141: ='D-704 Standards'!C141 -> 1060 | D141: ='D-704 Standards'!D141 -> DELINEATOR DRUMS | AC141: 0 | AD141: =IF(Input!$G$14=0,0,SUM(M141:P141)) -> 0 | AE141: =IF(Input!$H$14=0,0,SUM(Q141:T141)) -> 0 | AF141: =IF(Input!$I$14=0,0,SUM(U141:X141)) -> 0 | AG141: =IF(Input!$J$14=0,0,SUM(Y141:AB141)) -> 0
B142: ='D-704 Standards'!B142 -> 704 | C142: ='D-704 Standards'!C142 -> 1065 | D142: ='D-704 Standards'!D142 -> TRAFFIC CONES | AC142: 0 | AD142: =IF(Input!$G$14=0,0,SUM(M142:P142)) -> 0 | AE142: =IF(Input!$H$14=0,0,SUM(Q142:T142)) -> 0 | AF142: =IF(Input!$I$14=0,0,SUM(U142:X142)) -> 0 | AG142: =IF(Input!$J$14=0,0,SUM(Y142:AB142)) -> 0
A143: =COUNTIF(I3:Y3,"=0") -> 0 | B143: ='D-704 Standards'!B143 -> 704 | C143: ='D-704 Standards'!C143 -> 1067 | D143: ='D-704 Standards'!D143 -> TUBULAR MARKERS | AC143: 0 | AD143: =IF(Input!$G$14=0,0,SUM(M143:P143)) -> 0 | AE143: =IF(Input!$H$14=0,0,SUM(Q143:T143)) -> 0 | AF143: =IF(Input!$I$14=0,0,SUM(U143:X143)) -> 0 | AG143: =IF(Input!$J$14=0,0,SUM(Y143:AB143)) -> 0
B144: ='D-704 Standards'!B144 -> 704 | C144: ='D-704 Standards'!C144 -> 1070 | D144: ='D-704 Standards'!D144 -> DELINEATOR | AC144: 0 | AD144: =IF(Input!$G$14=0,0,SUM(M144:P144)) -> 0 | AE144: =IF(Input!$H$14=0,0,SUM(Q144:T144)) -> 0 | AF144: =IF(Input!$I$14=0,0,SUM(U144:X144)) -> 0 | AG144: =IF(Input!$J$14=0,0,SUM(Y144:AB144)) -> 0
B145: ='D-704 Standards'!B145 -> 704 | C145: ='D-704 Standards'!C145 -> 1072 | D145: ='D-704 Standards'!D145 -> FLEXIBLE DELINEATORS | AC145: 0 | AD145: =IF(Input!$G$14=0,0,SUM(M145:P145)) -> 0 | AE145: =IF(Input!$H$14=0,0,SUM(Q145:T145)) -> 0 | AF145: =IF(Input!$I$14=0,0,SUM(U145:X145)) -> 0 | AG145: =IF(Input!$J$14=0,0,SUM(Y145:AB145)) -> 0
B146: ='D-704 Standards'!B146 -> 704 | C146: ='D-704 Standards'!C146 -> 1080 | D146: ='D-704 Standards'!D146 -> STACKABLE VERTICAL PANELS | AC146: 0 | AD146: =IF(Input!$G$14=0,0,SUM(M146:P146)) -> 0 | AE146: =IF(Input!$H$14=0,0,SUM(Q146:T146)) -> 0 | AF146: =IF(Input!$I$14=0,0,SUM(U146:X146)) -> 0 | AG146: =IF(Input!$J$14=0,0,SUM(Y146:AB146)) -> 0
B147: ='D-704 Standards'!B147 -> 704 | C147: ='D-704 Standards'!C147 -> 1081 | D147: ='D-704 Standards'!D147 -> VERTICAL PANELS - BACK TO BACK | AC147: 0 | AD147: =IF(Input!$G$14=0,0,SUM(M147:P147)) -> 0 | AE147: =IF(Input!$H$14=0,0,SUM(Q147:T147)) -> 0 | AF147: =IF(Input!$I$14=0,0,SUM(U147:X147)) -> 0 | AG147: =IF(Input!$J$14=0,0,SUM(Y147:AB147)) -> 0
B148: ='D-704 Standards'!B148 -> 704 | C148: ='D-704 Standards'!C148 -> 1085 | D148: ='D-704 Standards'!D148 -> SEQUENCING ARROW PANEL - TYPE A | AC148: 0 | AD148: =IF(Input!$G$14=0,0,SUM(M148:P148)) -> 0 | AE148: =IF(Input!$H$14=0,0,SUM(Q148:T148)) -> 0 | AF148: =IF(Input!$I$14=0,0,SUM(U148:X148)) -> 0 | AG148: =IF(Input!$J$14=0,0,SUM(Y148:AB148)) -> 0
B149: ='D-704 Standards'!B149 -> 704 | C149: ='D-704 Standards'!C149 -> 1086 | D149: ='D-704 Standards'!D149 -> SEQUENCING ARROW PANEL - TYPE B | AC149: 0 | AD149: =IF(Input!$G$14=0,0,SUM(M149:P149)) -> 0 | AE149: =IF(Input!$H$14=0,0,SUM(Q149:T149)) -> 0 | AF149: =IF(Input!$I$14=0,0,SUM(U149:X149)) -> 0 | AG149: =IF(Input!$J$14=0,0,SUM(Y149:AB149)) -> 0
B150: ='D-704 Standards'!B150 -> 704 | C150: ='D-704 Standards'!C150 -> 1087 | D150: ='D-704 Standards'!D150 -> SEQUENCING ARROW PANEL - TYPE C | AC150: 0 | AD150: =IF(Input!$G$14=0,0,SUM(M150:P150)) -> 0 | AE150: =IF(Input!$H$14=0,0,SUM(Q150:T150)) -> 0 | AF150: =IF(Input!$I$14=0,0,SUM(U150:X150)) -> 0 | AG150: =IF(Input!$J$14=0,0,SUM(Y150:AB150)) -> 0
B151: ='D-704 Standards'!B151 -> 704 | C151: ='D-704 Standards'!C151 -> 3501 | D151: ='D-704 Standards'!D151 -> PORTABLE PRECAST CONCRETE MED BARRIER | AC151: 0 | AD151: =IF(Input!$G$14=0,0,SUM(M151:P151)) -> 0 | AE151: =IF(Input!$H$14=0,0,SUM(Q151:T151)) -> 0 | AF151: =IF(Input!$I$14=0,0,SUM(U151:X151)) -> 0 | AG151: =IF(Input!$J$14=0,0,SUM(Y151:AB151)) -> 0
B152: ='D-704 Standards'!B152 -> 704 | C152: ='D-704 Standards'!C152 -> 3510 | D152: ='D-704 Standards'!D152 -> PRECAST CONCRETE MED BARRIER - STATE FURNISHED | AC152: 0 | AD152: =IF(Input!$G$14=0,0,SUM(M152:P152)) -> 0 | AE152: =IF(Input!$H$14=0,0,SUM(Q152:T152)) -> 0 | AF152: =IF(Input!$I$14=0,0,SUM(U152:X152)) -> 0 | AG152: =IF(Input!$J$14=0,0,SUM(Y152:AB152)) -> 0
B153: ='D-704 Standards'!B153 -> 762 | C153: ='D-704 Standards'!C153 -> 200 | D153: ='D-704 Standards'!D153 -> RAISED PAVEMENT MARKERS | AC153: 0 | AD153: =IF(Input!$G$14=0,0,SUM(M153:P153)) -> 0 | AE153: =IF(Input!$H$14=0,0,SUM(Q153:T153)) -> 0 | AF153: =IF(Input!$I$14=0,0,SUM(U153:X153)) -> 0 | AG153: =IF(Input!$J$14=0,0,SUM(Y153:AB153)) -> 0
B154: ='D-704 Standards'!B154 -> 762 | C154: ='D-704 Standards'!C154 -> 420 | D154: ='D-704 Standards'!D154 -> SHORT TERM 4IN LINE - TYPE R | AC154: 0 | AD154: =IF(Input!$G$14=0,0,SUM(M154:P154)) -> 0 | AE154: =IF(Input!$H$14=0,0,SUM(Q154:T154)) -> 0 | AF154: =IF(Input!$I$14=0,0,SUM(U154:X154)) -> 0 | AG154: =IF(Input!$J$14=0,0,SUM(Y154:AB154)) -> 0
B155: ='D-704 Standards'!B155 -> 762 | C155: ='D-704 Standards'!C155 -> 430 | D155: ='D-704 Standards'!D155 -> SHORT TERM 4IN LINE - TYPE NR | AC155: 0 | AD155: =IF(Input!$G$14=0,0,SUM(M155:P155)) -> 0 | AE155: =IF(Input!$H$14=0,0,SUM(Q155:T155)) -> 0 | AF155: =IF(Input!$I$14=0,0,SUM(U155:X155)) -> 0 | AG155: =IF(Input!$J$14=0,0,SUM(Y155:AB155)) -> 0
B156: ='D-704 Standards'!B156 -> 704 | C156: ='D-704 Standards'!C156 -> 1500 | D156: ='D-704 Standards'!D156 -> OBLITERATION OF PVMT MK | AC156: 0 | AD156: =IF(Input!$G$14=0,0,SUM(M156:P156)) -> 0 | AE156: =IF(Input!$H$14=0,0,SUM(Q156:T156)) -> 0 | AF156: =IF(Input!$I$14=0,0,SUM(U156:X156)) -> 0 | AG156: =IF(Input!$J$14=0,0,SUM(Y156:AB156)) -> 0
B157: =ROUNDDOWN((Input!L35/10000),0) -> 0 | C157: =((Input!L35/10000)-'Sheet Summary'!B157)*10000 -> 0 | D157: =Input!M35 -> 0 | AC157: 0 | AD157: =IF(Input!$G$14=0,0,SUM(M157:P157)) -> 0 | AE157: =IF(Input!$H$14=0,0,SUM(Q157:T157)) -> 0 | AF157: =IF(Input!$I$14=0,0,SUM(U157:X157)) -> 0 | AG157: =IF(Input!$J$14=0,0,SUM(Y157:AB157)) -> 0
B158: =ROUNDDOWN((Input!L36/10000),0) -> 0 | C158: =((Input!L36/10000)-'Sheet Summary'!B158)*10000 -> 0 | D158: =Input!M36 -> 0 | AC158: 0 | AD158: =IF(Input!$G$14=0,0,SUM(M158:P158)) -> 0 | AE158: =IF(Input!$H$14=0,0,SUM(Q158:T158)) -> 0 | AF158: =IF(Input!$I$14=0,0,SUM(U158:X158)) -> 0 | AG158: =IF(Input!$J$14=0,0,SUM(Y158:AB158)) -> 0
B159: =ROUNDDOWN((Input!L37/10000),0) -> 0 | C159: =((Input!L37/10000)-'Sheet Summary'!B159)*10000 -> 0 | D159: =Input!M37 -> 0 | AC159: 0 | AD159: =IF(Input!$G$14=0,0,SUM(M159:P159)) -> 0 | AE159: =IF(Input!$H$14=0,0,SUM(Q159:T159)) -> 0 | AF159: =IF(Input!$I$14=0,0,SUM(U159:X159)) -> 0 | AG159: =IF(Input!$J$14=0,0,SUM(Y159:AB159)) -> 0
B160: =ROUNDDOWN((Input!L38/10000),0) -> 0 | C160: =((Input!L38/10000)-'Sheet Summary'!B160)*10000 -> 0 | D160: =Input!M38 -> 0 | AC160: 0 | AD160: =IF(Input!$G$14=0,0,SUM(M160:P160)) -> 0 | AE160: =IF(Input!$H$14=0,0,SUM(Q160:T160)) -> 0 | AF160: =IF(Input!$I$14=0,0,SUM(U160:X160)) -> 0 | AG160: =IF(Input!$J$14=0,0,SUM(Y160:AB160)) -> 0
B161: =ROUNDDOWN((Input!L39/10000),0) -> 0 | C161: =((Input!L39/10000)-'Sheet Summary'!B161)*10000 -> 0 | D161: =Input!M39 -> 0 | AC161: 0 | AD161: =IF(Input!$G$14=0,0,SUM(M161:P161)) -> 0 | AE161: =IF(Input!$H$14=0,0,SUM(Q161:T161)) -> 0 | AF161: =IF(Input!$I$14=0,0,SUM(U161:X161)) -> 0 | AG161: =IF(Input!$J$14=0,0,SUM(Y161:AB161)) -> 0
B162: =ROUNDDOWN((Input!L40/10000),0) -> 0 | C162: =((Input!L40/10000)-'Sheet Summary'!B162)*10000 -> 0 | D162: =Input!M40 -> 0 | AC162: 0 | AD162: =IF(Input!$G$14=0,0,SUM(M162:P162)) -> 0 | AE162: =IF(Input!$H$14=0,0,SUM(Q162:T162)) -> 0 | AF162: =IF(Input!$I$14=0,0,SUM(U162:X162)) -> 0 | AG162: =IF(Input!$J$14=0,0,SUM(Y162:AB162)) -> 0
B163: =ROUNDDOWN((Input!L41/10000),0) -> 0 | C163: =((Input!L41/10000)-'Sheet Summary'!B163)*10000 -> 0 | D163: =Input!M41 -> 0 | AC163: 0 | AD163: =IF(Input!$G$14=0,0,SUM(M163:P163)) -> 0 | AE163: =IF(Input!$H$14=0,0,SUM(Q163:T163)) -> 0 | AF163: =IF(Input!$I$14=0,0,SUM(U163:X163)) -> 0 | AG163: =IF(Input!$J$14=0,0,SUM(Y163:AB163)) -> 0
B164: =ROUNDDOWN((Input!L42/10000),0) -> 0 | C164: =((Input!L42/10000)-'Sheet Summary'!B164)*10000 -> 0 | D164: =Input!M42 -> 0 | AC164: 0 | AD164: =IF(Input!$G$14=0,0,SUM(M164:P164)) -> 0 | AE164: =IF(Input!$H$14=0,0,SUM(Q164:T164)) -> 0 | AF164: =IF(Input!$I$14=0,0,SUM(U164:X164)) -> 0 | AG164: =IF(Input!$J$14=0,0,SUM(Y164:AB164)) -> 0
B165: =ROUNDDOWN((Input!L43/10000),0) -> 0 | C165: =((Input!L43/10000)-'Sheet Summary'!B165)*10000 -> 0 | D165: =Input!M43 -> 0 | AC165: 0 | AD165: =IF(Input!$G$14=0,0,SUM(M165:P165)) -> 0 | AE165: =IF(Input!$H$14=0,0,SUM(Q165:T165)) -> 0 | AF165: =IF(Input!$I$14=0,0,SUM(U165:X165)) -> 0 | AG165: =IF(Input!$J$14=0,0,SUM(Y165:AB165)) -> 0
B166: =ROUNDDOWN((Input!L44/10000),0) -> 0 | C166: =((Input!L44/10000)-'Sheet Summary'!B166)*10000 -> 0 | D166: =Input!M44 -> 0 | AC166: 0 | AD166: =IF(Input!$G$14=0,0,SUM(M166:P166)) -> 0 | AE166: =IF(Input!$H$14=0,0,SUM(Q166:T166)) -> 0 | AF166: =IF(Input!$I$14=0,0,SUM(U166:X166)) -> 0 | AG166: =IF(Input!$J$14=0,0,SUM(Y166:AB166)) -> 0

Sheet Plan Sheet
AC2: STATE | AE2: PROJECT NO. | AL2: SECTION | AM2: SHEET
AL3: NO. | AM3: NO.
G4: =E4*F4 -> 0 | AC4: ND | AE4: =Input!C2 -> 0 | AL4: 100 | AM4: =Input!C4 -> 0
C6: SIGN NUMBER | D6: SIGN SIZE | E6: DESCRIPTION | F6: =IF(COUNTBLANK(Input!F14:J14)=5,"","AMOUNT REQUIRED") ->  | K6: =IF(COUNTBLANK(Input!F14:J14)=5,"AMOUNT REQUIRED","TOTAL AMOUNT REQUIRED") -> AMOUNT REQUIRED | L6: UNITS PER AMOUNT | M6: UNITS SUB TOTAL | O6: SIGN NUMBER | Q6: SIGN SIZE | R6: DESCRIPTION | W6: =IF(COUNTBLANK(Input!F14:J14)=5,"","AMOUNT REQUIRED") ->  | AD6: =IF(COUNTBLANK(Input!F14:J14)=5,"AMOUNT REQUIRED","TOTAL AMOUNT REQUIRED") -> AMOUNT REQUIRED | AG6: UNITS PER AMOUNT | AI6: UNITS SUB TOTAL | AJ6: =IF(OR(AJ7>0,AJ9>0,AJ11>0,AJ13>0,AJ15>0),"PROJECT NO.","") -> 
F7: =IF(COUNTBLANK(Input!F14:J14)=5,"","BY PHASE NO.") ->  | W7: =IF(COUNTBLANK(Input!F14:J14)=5,"","BY PHASE NO.") -> 
F8: =Input!F14 -> 0 | G8: =Input!G14 -> 0 | H8: =Input!H14 -> 0 | I8: =Input!I14 -> 0 | J8: =Input!J14 -> 0 | W8: =Input!F14 -> 0 | X8: =Input!G14 -> 0 | Y8: =Input!H14 -> 0 | AA8: =Input!I14 -> 0 | AB8: =Input!J14 -> 0
C9: =Calculations!B4 -> E5-1-48 | D9: =Calculations!I4 -> 48"x48" | E9: =Calculations!J4 -> EXIT GORE | F9: =IF(Input!F$14=0,0,Calculations!L4) -> 0 | G9: =IF(Input!G$14=0,0,Calculations!M4) -> 0 | H9: =IF(Input!H$14=0,0,Calculations!N4) -> 0 | I9: =IF(Input!I$14=0,0,Calculations!O4) -> 0 | J9: =IF(Input!J$14=0,0,Calculations!P4) -> 0 | K9: =MAX(Calculations!L4:P4) -> 0 | L9: =Calculations!K4 -> 35 | M9: =IF(AND(K9>0,K9*L9=0),"NO UNITS",K9*L9) -> 0 | O9: =Calculations!B86 -> W21-6-48 | Q9: =Calculations!I86 -> 48"x48" | R9: =Calculations!J86 -> SURVEY CREW | W9: =IF(Input!F$14=0,0,Calculations!L86) -> 0 | X9: =IF(Input!G$14=0,0,Calculations!M86) -> 0 | Y9: =IF(Input!H$14=0,0,Calculations!N86) -> 0 | AA9: =IF(Input!I$14=0,0,Calculations!O86) -> 0 | AB9: =IF(Input!J$14=0,0,Calculations!P86) -> 0 | AD9: =MAX(Calculations!L86:P86) -> 0 | AG9: =Calculations!K86 -> 35 | AI9: =IF(AND(AD9>0,AD9*AG9=0),"NO UNITS",AD9*AG9) -> 0
C10: =Calculations!B5 -> G20-1-60 | D10: =Calculations!I5 -> 60"x24" | E10: =Calculations!J5 -> ROAD WORK NEXT __ MILES | F10: =IF(Input!F$14=0,0,Calculations!L5) -> 0 | G10: =IF(Input!G$14=0,0,Calculations!M5) -> 0 | H10: =IF(Input!H$14=0,0,Calculations!N5) -> 0 | I10: =IF(Input!I$14=0,0,Calculations!O5) -> 0 | J10: =IF(Input!J$14=0,0,Calculations!P5) -> 0 | K10: =MAX(Calculations!L5:P5) -> 0 | L10: =Calculations!K5 -> 28 | M10: =IF(AND(K10>0,K10*L10=0),"NO UNITS",K10*L10) -> 0 | O10: =Calculations!B87 -> W21-50-48 | Q10: =Calculations!I87 -> 48"x48" | R10: =Calculations!J87 -> BRIDGE PAINTING AHEAD or __ FT | W10: =IF(Input!F$14=0,0,Calculations!L87) -> 0 | X10: =IF(Input!G$14=0,0,Calculations!M87) -> 0 | Y10: =IF(Input!H$14=0,0,Calculations!N87) -> 0 | AA10: =IF(Input!I$14=0,0,Calculations!O87) -> 0 | AB10: =IF(Input!J$14=0,0,Calculations!P87) -> 0 | AD10: =MAX(Calculations!L87:P87) -> 0 | AG10: =Calculations!K87 -> 35 | AI10: =IF(AND(AD10>0,AD10*AG10=0),"NO UNITS",AD10*AG10) -> 0
C11: =Calculations!B6 -> G20-1b-60 | D11: =Calculations!I6 -> 60"x24" | E11: =Calculations!J6 -> NO WORK IN PROGRESS (Sign and installation only) | F11: =IF(Input!F$14=0,0,Calculations!L6) -> 0 | G11: =IF(Input!G$14=0,0,Calculations!M6) -> 0 | H11: =IF(Input!H$14=0,0,Calculations!N6) -> 0 | I11: =IF(Input!I$14=0,0,Calculations!O6) -> 0 | J11: =IF(Input!J$14=0,0,Calculations!P6) -> 0 | K11: =MAX(Calculations!L6:P6) -> 0 | L11: =Calculations!K6 -> 18 | M11: 0 | O11: =Calculations!B88 -> W21-51-48 | Q11: =Calculations!I88 -> 48"x48" | R11: =Calculations!J88 -> MATERIAL ON ROADWAY | W11: =IF(Input!F$14=0,0,Calculations!L88) -> 0 | X11: =IF(Input!G$14=0,0,Calculations!M88) -> 0 | Y11: =IF(Input!H$14=0,0,Calculations!N88) -> 0 | AA11: =IF(Input!I$14=0,0,Calculations!O88) -> 0 | AB11: =IF(Input!J$14=0,0,Calculations!P88) -> 0 | AD11: =MAX(Calculations!L88:P88) -> 0 | AG11: =Calculations!K88 -> 35 | AI11: 0
C12: =Calculations!B7 -> G20-2-48 | D12: =Calculations!I7 -> 48"x24" | E12: =Calculations!J7 -> END ROAD WORK | F12: =IF(Input!F$14=0,0,Calculations!L7) -> 0 | G12: =IF(Input!G$14=0,0,Calculations!M7) -> 0 | H12: =IF(Input!H$14=0,0,Calculations!N7) -> 0 | I12: =IF(Input!I$14=0,0,Calculations!O7) -> 0 | J12: =IF(Input!J$14=0,0,Calculations!P7) -> 0 | K12: =MAX(Calculations!L7:P7) -> 0 | L12: =Calculations!K7 -> 26 | M12: 0 | O12: =Calculations!B89 -> W21-52-48 | Q12: =Calculations!I89 -> 48"x48" | R12: =Calculations!J89 -> PAVEMENT BREAKS | W12: =IF(Input!F$14=0,0,Calculations!L89) -> 0 | X12: =IF(Input!G$14=0,0,Calculations!M89) -> 0 | Y12: =IF(Input!H$14=0,0,Calculations!N89) -> 0 | AA12: =IF(Input!I$14=0,0,Calculations!O89) -> 0 | AB12: =IF(Input!J$14=0,0,Calculations!P89) -> 0 | AD12: =MAX(Calculations!L89:P89) -> 0 | AG12: =Calculations!K89 -> 35 | AI12: 0
C13: =Calculations!B8 -> G20-4-36 | D13: =Calculations!I8 -> 36"x18" | E13: =Calculations!J8 -> PILOT CAR FOLLOW ME (Mounted to back of pilot car) | F13: =IF(Input!F$14=0,0,Calculations!L8) -> 0 | G13: =IF(Input!G$14=0,0,Calculations!M8) -> 0 | H13: =IF(Input!H$14=0,0,Calculations!N8) -> 0 | I13: =IF(Input!I$14=0,0,Calculations!O8) -> 0 | J13: =IF(Input!J$14=0,0,Calculations!P8) -> 0 | K13: =MAX(Calculations!L8:P8) -> 0 | L13: =Calculations!K8 -> 18 | M13: 0 | O13: =Calculations!B90 -> W21-53-48 | Q13: =Calculations!I90 -> 48"x48" | R13: =Calculations!J90 -> RUMBLE STRIPS AHEAD | W13: =IF(Input!F$14=0,0,Calculations!L90) -> 0 | X13: =IF(Input!G$14=0,0,Calculations!M90) -> 0 | Y13: =IF(Input!H$14=0,0,Calculations!N90) -> 0 | AA13: =IF(Input!I$14=0,0,Calculations!O90) -> 0 | AB13: =IF(Input!J$14=0,0,Calculations!P90) -> 0 | AD13: =MAX(Calculations!L90:P90) -> 0 | AG13: =Calculations!K90 -> 35 | AI13: 0
C14: =Calculations!B9 -> G20-4b-36 | D14: =Calculations!I9 -> 36"x30" | E14: =Calculations!J9 -> WAIT FOR PILOT CAR | F14: =IF(Input!F$14=0,0,Calculations!L9) -> 0 | G14: =IF(Input!G$14=0,0,Calculations!M9) -> 0 | H14: =IF(Input!H$14=0,0,Calculations!N9) -> 0 | I14: =IF(Input!I$14=0,0,Calculations!O9) -> 0 | J14: =IF(Input!J$14=0,0,Calculations!P9) -> 0 | K14: =MAX(Calculations!L9:P9) -> 0 | L14: =Calculations!K9 -> 18 | M14: 0 | O14: =Calculations!B91 -> W22-8-48 | Q14: =Calculations!I91 -> 48"x48" | R14: =Calculations!J91 -> FRESH OIL LOOSE ROCK | W14: =IF(Input!F$14=0,0,Calculations!L91) -> 0 | X14: =IF(Input!G$14=0,0,Calculations!M91) -> 0 | Y14: =IF(Input!H$14=0,0,Calculations!N91) -> 0 | AA14: =IF(Input!I$14=0,0,Calculations!O91) -> 0 | AB14: =IF(Input!J$14=0,0,Calculations!P91) -> 0 | AD14: =MAX(Calculations!L91:P91) -> 0 | AG14: =Calculations!K91 -> 35 | AI14: 0
C15: =Calculations!B10 -> G20-50a-72 | D15: =Calculations!I10 -> 72"x36" | E15: =Calculations!J10 -> ROAD WORK NEXT __ MILES RT & LT ARROWS | F15: =IF(Input!F$14=0,0,Calculations!L10) -> 0 | G15: =IF(Input!G$14=0,0,Calculations!M10) -> 0 | H15: =IF(Input!H$14=0,0,Calculations!N10) -> 0 | I15: =IF(Input!I$14=0,0,Calculations!O10) -> 0 | J15: =IF(Input!J$14=0,0,Calculations!P10) -> 0 | K15: =MAX(Calculations!L10:P10) -> 0 | L15: =Calculations!K10 -> 43 | M15: 0 | O15: =Calculations!B92 -> W24-1-48 | Q15: =Calculations!I92 -> 48"x48" | R15: =Calculations!J92 -> DOUBLE REVERSE CURVE | W15: =IF(Input!F$14=0,0,Calculations!L92) -> 0 | X15: =IF(Input!G$14=0,0,Calculations!M92) -> 0 | Y15: =IF(Input!H$14=0,0,Calculations!N92) -> 0 | AA15: =IF(Input!I$14=0,0,Calculations!O92) -> 0 | AB15: =IF(Input!J$14=0,0,Calculations!P92) -> 0 | AD15: =MAX(Calculations!L92:P92) -> 0 | AG15: =Calculations!K92 -> 35 | AI15: 0
C16: =Calculations!B11 -> G20-52a-72 | D16: =Calculations!I11 -> 72"x24" | E16: =Calculations!J11 -> ROAD WORK NEXT __ MILES RT or LT ARROW | F16: =IF(Input!F$14=0,0,Calculations!L11) -> 0 | G16: =IF(Input!G$14=0,0,Calculations!M11) -> 0 | H16: =IF(Input!H$14=0,0,Calculations!N11) -> 0 | I16: =IF(Input!I$14=0,0,Calculations!O11) -> 0 | J16: =IF(Input!J$14=0,0,Calculations!P11) -> 0 | K16: =MAX(Calculations!L11:P11) -> 0 | L16: =Calculations!K11 -> 36 | M16: 0 | O16: =Calculations!B93 -> 0 | Q16: =Calculations!I93 -> 0 | R16: =Calculations!J93 -> 0 | W16: =IF(Input!F$14=0,0,Calculations!L93) -> 0 | X16: =IF(Input!G$14=0,0,Calculations!M93) -> 0 | Y16: =IF(Input!H$14=0,0,Calculations!N93) -> 0 | AA16: =IF(Input!I$14=0,0,Calculations!O93) -> 0 | AB16: =IF(Input!J$14=0,0,Calculations!P93) -> 0 | AD16: =MAX(Calculations!L93:P93) -> 0 | AG16: =Calculations!K93 -> 0 | AI16: 0
C17: =Calculations!B12 -> G20-55-96 | D17: =Calculations!I12 -> 96"x48" | E17: =Calculations!J12 -> SPEED LIMIT ENFORCED - MINIMUM FEE $150 WHEN WORKERS PRESENT | F17: =IF(Input!F$14=0,0,Calculations!L12) -> 0 | G17: =IF(Input!G$14=0,0,Calculations!M12) -> 0 | H17: =IF(Input!H$14=0,0,Calculations!N12) -> 0 | I17: =IF(Input!I$14=0,0,Calculations!O12) -> 0 | J17: =IF(Input!J$14=0,0,Calculations!P12) -> 0 | K17: =MAX(Calculations!L12:P12) -> 0 | L17: =Calculations!K12 -> 59 | M17: 0 | O17: =Calculations!B94 -> 0 | Q17: =Calculations!I94 -> 0 | R17: =Calculations!J94 -> 0 | W17: =IF(Input!F$14=0,0,Calculations!L94) -> 0 | X17: =IF(Input!G$14=0,0,Calculations!M94) -> 0 | Y17: =IF(Input!H$14=0,0,Calculations!N94) -> 0 | AA17: =IF(Input!I$14=0,0,Calculations!O94) -> 0 | AB17: =IF(Input!J$14=0,0,Calculations!P94) -> 0 | AD17: =MAX(Calculations!L94:P94) -> 0 | AG17: =Calculations!K94 -> 0 | AI17: 0
C18: =Calculations!B13 -> M1-1-36 | D18: =Calculations!I13 -> 36"x36" | E18: =Calculations!J13 -> INTERSTATE ROUTE MARKER (Post and installation only) | F18: =IF(Input!F$14=0,0,Calculations!L13) -> 0 | G18: =IF(Input!G$14=0,0,Calculations!M13) -> 0 | H18: =IF(Input!H$14=0,0,Calculations!N13) -> 0 | I18: =IF(Input!I$14=0,0,Calculations!O13) -> 0 | J18: =IF(Input!J$14=0,0,Calculations!P13) -> 0 | K18: =MAX(Calculations!L13:P13) -> 0 | L18: =Calculations!K13 -> 11 | M18: 0 | O18: =Calculations!B95 -> 0 | Q18: =Calculations!I95 -> 0 | R18: =Calculations!J95 -> 0 | W18: =IF(Input!F$14=0,0,Calculations!L95) -> 0 | X18: =IF(Input!G$14=0,0,Calculations!M95) -> 0 | Y18: =IF(Input!H$14=0,0,Calculations!N95) -> 0 | AA18: =IF(Input!I$14=0,0,Calculations!O95) -> 0 | AB18: =IF(Input!J$14=0,0,Calculations!P95) -> 0 | AD18: =MAX(Calculations!L95:P95) -> 0 | AG18: =Calculations!K95 -> 0 | AI18: 0
C19: =Calculations!B14 -> M1-4-24 | D19: =Calculations!I14 -> 24"x24" | E19: =Calculations!J14 -> U.S. ROUTE MARKER (Post and installation only) | F19: =IF(Input!F$14=0,0,Calculations!L14) -> 0 | G19: =IF(Input!G$14=0,0,Calculations!M14) -> 0 | H19: =IF(Input!H$14=0,0,Calculations!N14) -> 0 | I19: =IF(Input!I$14=0,0,Calculations!O14) -> 0 | J19: =IF(Input!J$14=0,0,Calculations!P14) -> 0 | K19: =MAX(Calculations!L14:P14) -> 0 | L19: =Calculations!K14 -> 10 | M19: 0 | O19: =Calculations!B96 -> 0 | Q19: =Calculations!I96 -> 0 | R19: =Calculations!J96 -> 0 | W19: =IF(Input!F$14=0,0,Calculations!L96) -> 0 | X19: =IF(Input!G$14=0,0,Calculations!M96) -> 0 | Y19: =IF(Input!H$14=0,0,Calculations!N96) -> 0 | AA19: =IF(Input!I$14=0,0,Calculations!O96) -> 0 | AB19: =IF(Input!J$14=0,0,Calculations!P96) -> 0 | AD19: =MAX(Calculations!L96:P96) -> 0 | AG19: =Calculations!K96 -> 0 | AI19: 0
C20: =Calculations!B15 -> M1-5-24 | D20: =Calculations!I15 -> 24"x24" | E20: =Calculations!J15 -> STATE ROUTE MARKER (Post and installation only) | F20: =IF(Input!F$14=0,0,Calculations!L15) -> 0 | G20: =IF(Input!G$14=0,0,Calculations!M15) -> 0 | H20: =IF(Input!H$14=0,0,Calculations!N15) -> 0 | I20: =IF(Input!I$14=0,0,Calculations!O15) -> 0 | J20: =IF(Input!J$14=0,0,Calculations!P15) -> 0 | K20: =MAX(Calculations!L15:P15) -> 0 | L20: =Calculations!K15 -> 10 | M20: 0 | O20: =Calculations!B97 -> 0 | Q20: =Calculations!I97 -> 0 | R20: =Calculations!J97 -> 0 | W20: =IF(Input!F$14=0,0,Calculations!L97) -> 0 | X20: =IF(Input!G$14=0,0,Calculations!M97) -> 0 | Y20: =IF(Input!H$14=0,0,Calculations!N97) -> 0 | AA20: =IF(Input!I$14=0,0,Calculations!O97) -> 0 | AB20: =IF(Input!J$14=0,0,Calculations!P97) -> 0 | AD20: =MAX(Calculations!L97:P97) -> 0 | AG20: =Calculations!K97 -> 0 | AI20: 0
C21: =Calculations!B16 -> M3-1-24 | D21: =Calculations!I16 -> 24"x12" | E21: =Calculations!J16 -> NORTH (Mounted on route marker post) | F21: =IF(Input!F$14=0,0,Calculations!L16) -> 0 | G21: =IF(Input!G$14=0,0,Calculations!M16) -> 0 | H21: =IF(Input!H$14=0,0,Calculations!N16) -> 0 | I21: =IF(Input!I$14=0,0,Calculations!O16) -> 0 | J21: =IF(Input!J$14=0,0,Calculations!P16) -> 0 | K21: =MAX(Calculations!L16:P16) -> 0 | L21: =Calculations!K16 -> 7 | M21: 0 | O21: =Calculations!B98 -> 0 | Q21: =Calculations!I98 -> 0 | R21: =Calculations!J98 -> 0 | W21: =IF(Input!F$14=0,0,Calculations!L98) -> 0 | X21: =IF(Input!G$14=0,0,Calculations!M98) -> 0 | Y21: =IF(Input!H$14=0,0,Calculations!N98) -> 0 | AA21: =IF(Input!I$14=0,0,Calculations!O98) -> 0 | AB21: =IF(Input!J$14=0,0,Calculations!P98) -> 0 | AD21: =MAX(Calculations!L98:P98) -> 0 | AG21: =Calculations!K98 -> 0 | AI21: 0
C22: =Calculations!B17 -> M3-2-24 | D22: =Calculations!I17 -> 24"x12" | E22: =Calculations!J17 -> EAST (Mounted on route marker post) | F22: =IF(Input!F$14=0,0,Calculations!L17) -> 0 | G22: =IF(Input!G$14=0,0,Calculations!M17) -> 0 | H22: =IF(Input!H$14=0,0,Calculations!N17) -> 0 | I22: =IF(Input!I$14=0,0,Calculations!O17) -> 0 | J22: =IF(Input!J$14=0,0,Calculations!P17) -> 0 | K22: =MAX(Calculations!L17:P17) -> 0 | L22: =Calculations!K17 -> 7 | M22: 0 | O22: =Calculations!B99 -> 0 | Q22: =Calculations!I99 -> 0 | R22: =Calculations!J99 -> 0 | W22: =IF(Input!F$14=0,0,Calculations!L99) -> 0 | X22: =IF(Input!G$14=0,0,Calculations!M99) -> 0 | Y22: =IF(Input!H$14=0,0,Calculations!N99) -> 0 | AA22: =IF(Input!I$14=0,0,Calculations!O99) -> 0 | AB22: =IF(Input!J$14=0,0,Calculations!P99) -> 0 | AD22: =MAX(Calculations!L99:P99) -> 0 | AG22: =Calculations!K99 -> 0 | AI22: 0
C23: =Calculations!B18 -> M3-3-24 | D23: =Calculations!I18 -> 24"x12" | E23: =Calculations!J18 -> SOUTH (Mounted on route marker post) | F23: =IF(Input!F$14=0,0,Calculations!L18) -> 0 | G23: =IF(Input!G$14=0,0,Calculations!M18) -> 0 | H23: =IF(Input!H$14=0,0,Calculations!N18) -> 0 | I23: =IF(Input!I$14=0,0,Calculations!O18) -> 0 | J23: =IF(Input!J$14=0,0,Calculations!P18) -> 0 | K23: =MAX(Calculations!L18:P18) -> 0 | L23: =Calculations!K18 -> 7 | M23: 0 | O23: =Calculations!B100 -> 0 | Q23: =Calculations!I100 -> 0 | R23: =Calculations!J100 -> 0 | W23: =IF(Input!F$14=0,0,Calculations!L100) -> 0 | X23: =IF(Input!G$14=0,0,Calculations!M100) -> 0 | Y23: =IF(Input!H$14=0,0,Calculations!N100) -> 0 | AA23: =IF(Input!I$14=0,0,Calculations!O100) -> 0 | AB23: =IF(Input!J$14=0,0,Calculations!P100) -> 0 | AD23: =MAX(Calculations!L100:P100) -> 0 | AG23: =Calculations!K100 -> 0 | AI23: 0
C24: =Calculations!B19 -> M3-4-24 | D24: =Calculations!I19 -> 24"x12" | E24: =Calculations!J19 -> WEST (Mounted on route marker post) | F24: =IF(Input!F$14=0,0,Calculations!L19) -> 0 | G24: =IF(Input!G$14=0,0,Calculations!M19) -> 0 | H24: =IF(Input!H$14=0,0,Calculations!N19) -> 0 | I24: =IF(Input!I$14=0,0,Calculations!O19) -> 0 | J24: =IF(Input!J$14=0,0,Calculations!P19) -> 0 | K24: =MAX(Calculations!L19:P19) -> 0 | L24: =Calculations!K19 -> 7 | M24: 0 | O24: =Calculations!B101 -> 0 | Q24: =Calculations!I101 -> 0 | R24: =Calculations!J101 -> 0 | W24: =IF(Input!F$14=0,0,Calculations!L101) -> 0 | X24: =IF(Input!G$14=0,0,Calculations!M101) -> 0 | Y24: =IF(Input!H$14=0,0,Calculations!N101) -> 0 | AA24: =IF(Input!I$14=0,0,Calculations!O101) -> 0 | AB24: =IF(Input!J$14=0,0,Calculations!P101) -> 0 | AD24: =MAX(Calculations!L101:P101) -> 0 | AG24: =Calculations!K101 -> 0 | AI24: 0
C25: =Calculations!B20 -> M4-8-24 | D25: =Calculations!I20 -> 24"x12" | E25: =Calculations!J20 -> DETOUR (Mounted on route marker post) | F25: =IF(Input!F$14=0,0,Calculations!L20) -> 0 | G25: =IF(Input!G$14=0,0,Calculations!M20) -> 0 | H25: =IF(Input!H$14=0,0,Calculations!N20) -> 0 | I25: =IF(Input!I$14=0,0,Calculations!O20) -> 0 | J25: =IF(Input!J$14=0,0,Calculations!P20) -> 0 | K25: =MAX(Calculations!L20:P20) -> 0 | L25: =Calculations!K20 -> 7 | M25: 0 | O25: =Calculations!B102 -> 0 | Q25: =Calculations!I102 -> 0 | R25: =Calculations!J102 -> 0 | W25: =IF(Input!F$14=0,0,Calculations!L102) -> 0 | X25: =IF(Input!G$14=0,0,Calculations!M102) -> 0 | Y25: =IF(Input!H$14=0,0,Calculations!N102) -> 0 | AA25: =IF(Input!I$14=0,0,Calculations!O102) -> 0 | AB25: =IF(Input!J$14=0,0,Calculations!P102) -> 0 | AD25: =MAX(Calculations!L102:P102) -> 0 | AG25: =Calculations!K102 -> 0 | AI25: 0
C26: =Calculations!B21 -> M4-9-30 | D26: =Calculations!I21 -> 30"x24" | E26: =Calculations!J21 -> DETOUR ARROW RIGHT or LEFT/AHD AND RT or LT | F26: =IF(Input!F$14=0,0,Calculations!L21) -> 0 | G26: =IF(Input!G$14=0,0,Calculations!M21) -> 0 | H26: =IF(Input!H$14=0,0,Calculations!N21) -> 0 | I26: =IF(Input!I$14=0,0,Calculations!O21) -> 0 | J26: =IF(Input!J$14=0,0,Calculations!P21) -> 0 | K26: =MAX(Calculations!L21:P21) -> 0 | L26: =Calculations!K21 -> 15 | M26: 0 | O26: =Calculations!B103 -> 0 | Q26: =Calculations!I103 -> 0 | R26: =Calculations!J103 -> 0 | W26: =IF(Input!F$14=0,0,Calculations!L103) -> 0 | X26: =IF(Input!G$14=0,0,Calculations!M103) -> 0 | Y26: =IF(Input!H$14=0,0,Calculations!N103) -> 0 | AA26: =IF(Input!I$14=0,0,Calculations!O103) -> 0 | AB26: =IF(Input!J$14=0,0,Calculations!P103) -> 0 | AD26: =MAX(Calculations!L103:P103) -> 0 | AG26: =Calculations!K103 -> 0 | AI26: 0
C27: =Calculations!B22 -> M4-10-48 | D27: =Calculations!I22 -> 48"x18" | E27: =Calculations!J22 -> DETOUR (INSIDE ARROW) RIGHT or LEFT (Mounted on barricade) | F27: =IF(Input!F$14=0,0,Calculations!L22) -> 0 | G27: =IF(Input!G$14=0,0,Calculations!M22) -> 0 | H27: =IF(Input!H$14=0,0,Calculations!N22) -> 0 | I27: =IF(Input!I$14=0,0,Calculations!O22) -> 0 | J27: =IF(Input!J$14=0,0,Calculations!P22) -> 0 | K27: =MAX(Calculations!L22:P22) -> 0 | L27: =Calculations!K22 -> 7 | M27: 0 | O27: =Calculations!B104 -> 0 | Q27: =Calculations!I104 -> 0 | R27: =Calculations!J104 -> 0 | W27: =IF(Input!F$14=0,0,Calculations!L104) -> 0 | X27: =IF(Input!G$14=0,0,Calculations!M104) -> 0 | Y27: =IF(Input!H$14=0,0,Calculations!N104) -> 0 | AA27: =IF(Input!I$14=0,0,Calculations!O104) -> 0 | AB27: =IF(Input!J$14=0,0,Calculations!P104) -> 0 | AD27: =MAX(Calculations!L104:P104) -> 0 | AG27: =Calculations!K104 -> 0 | AI27: 0
C28: =Calculations!B23 -> M5-1-21 | D28: =Calculations!I23 -> 21"x15" | E28: =Calculations!J23 -> ADVANCE TURN ARROW RT or LT(Mounted on route marker post) | F28: =IF(Input!F$14=0,0,Calculations!L23) -> 0 | G28: =IF(Input!G$14=0,0,Calculations!M23) -> 0 | H28: =IF(Input!H$14=0,0,Calculations!N23) -> 0 | I28: =IF(Input!I$14=0,0,Calculations!O23) -> 0 | J28: =IF(Input!J$14=0,0,Calculations!P23) -> 0 | K28: =MAX(Calculations!L23:P23) -> 0 | L28: =Calculations!K23 -> 7 | M28: 0 | O28: =Calculations!B105 -> 0 | Q28: =Calculations!I105 -> 0 | R28: =Calculations!J105 -> 0 | W28: =IF(Input!F$14=0,0,Calculations!L105) -> 0 | X28: =IF(Input!G$14=0,0,Calculations!M105) -> 0 | Y28: =IF(Input!H$14=0,0,Calculations!N105) -> 0 | AA28: =IF(Input!I$14=0,0,Calculations!O105) -> 0 | AB28: =IF(Input!J$14=0,0,Calculations!P105) -> 0 | AD28: =MAX(Calculations!L105:P105) -> 0 | AG28: =Calculations!K105 -> 0 | AI28: 0
C29: =Calculations!B24 -> M5-1-30 | D29: =Calculations!I24 -> 30"x21" | E29: =Calculations!J24 -> ADVANCE TURN ARROW RT or LT(Mounted on route marker post) | F29: =IF(Input!F$14=0,0,Calculations!L24) -> 0 | G29: =IF(Input!G$14=0,0,Calculations!M24) -> 0 | H29: =IF(Input!H$14=0,0,Calculations!N24) -> 0 | I29: =IF(Input!I$14=0,0,Calculations!O24) -> 0 | J29: =IF(Input!J$14=0,0,Calculations!P24) -> 0 | K29: =MAX(Calculations!L24:P24) -> 0 | L29: =Calculations!K24 -> 9 | M29: 0 | O29: =Calculations!B106 -> 0 | Q29: =Calculations!I106 -> 0 | R29: =Calculations!J106 -> 0 | W29: =IF(Input!F$14=0,0,Calculations!L106) -> 0 | X29: =IF(Input!G$14=0,0,Calculations!M106) -> 0 | Y29: =IF(Input!H$14=0,0,Calculations!N106) -> 0 | AA29: =IF(Input!I$14=0,0,Calculations!O106) -> 0 | AB29: =IF(Input!J$14=0,0,Calculations!P106) -> 0 | AD29: =MAX(Calculations!L106:P106) -> 0 | AG29: =Calculations!K106 -> 0 | AI29: 0
C30: =Calculations!B25 -> M6-1-21 | D30: =Calculations!I25 -> 21"x15" | E30: =Calculations!J25 -> DIRECTIONAL ARROW RT or LT (Mounted on route marker post) | F30: =IF(Input!F$14=0,0,Calculations!L25) -> 0 | G30: =IF(Input!G$14=0,0,Calculations!M25) -> 0 | H30: =IF(Input!H$14=0,0,Calculations!N25) -> 0 | I30: =IF(Input!I$14=0,0,Calculations!O25) -> 0 | J30: =IF(Input!J$14=0,0,Calculations!P25) -> 0 | K30: =MAX(Calculations!L25:P25) -> 0 | L30: =Calculations!K25 -> 7 | M30: 0 | O30: =Calculations!B107 -> 0 | Q30: =Calculations!I107 -> 0 | R30: =Calculations!J107 -> 0 | W30: =IF(Input!F$14=0,0,Calculations!L107) -> 0 | X30: =IF(Input!G$14=0,0,Calculations!M107) -> 0 | Y30: =IF(Input!H$14=0,0,Calculations!N107) -> 0 | AA30: =IF(Input!I$14=0,0,Calculations!O107) -> 0 | AB30: =IF(Input!J$14=0,0,Calculations!P107) -> 0 | AD30: =MAX(Calculations!L107:P107) -> 0 | AG30: =Calculations!K107 -> 0 | AI30: 0
C31: =Calculations!B26 -> M6-1-30 | D31: =Calculations!I26 -> 30"x21" | E31: =Calculations!J26 -> DIRECTIONAL ARROW RT or LT (Mounted on route marker post) | F31: =IF(Input!F$14=0,0,Calculations!L26) -> 0 | G31: =IF(Input!G$14=0,0,Calculations!M26) -> 0 | H31: =IF(Input!H$14=0,0,Calculations!N26) -> 0 | I31: =IF(Input!I$14=0,0,Calculations!O26) -> 0 | J31: =IF(Input!J$14=0,0,Calculations!P26) -> 0 | K31: =MAX(Calculations!L26:P26) -> 0 | L31: =Calculations!K26 -> 9 | M31: 0 | O31: =Calculations!B108 -> 0 | Q31: =Calculations!I108 -> 0 | R31: =Calculations!J108 -> 0 | W31: =IF(Input!F$14=0,0,Calculations!L108) -> 0 | X31: =IF(Input!G$14=0,0,Calculations!M108) -> 0 | Y31: =IF(Input!H$14=0,0,Calculations!N108) -> 0 | AA31: =IF(Input!I$14=0,0,Calculations!O108) -> 0 | AB31: =IF(Input!J$14=0,0,Calculations!P108) -> 0 | AD31: =MAX(Calculations!L108:P108) -> 0 | AG31: =Calculations!K108 -> 0 | AI31: 0
C32: =Calculations!B27 -> M6-3-21 | D32: =Calculations!I27 -> 21"x15" | E32: =Calculations!J27 -> DIRECTIONAL ARROW UP (Mounted on route marker post) | F32: =IF(Input!F$14=0,0,Calculations!L27) -> 0 | G32: =IF(Input!G$14=0,0,Calculations!M27) -> 0 | H32: =IF(Input!H$14=0,0,Calculations!N27) -> 0 | I32: =IF(Input!I$14=0,0,Calculations!O27) -> 0 | J32: =IF(Input!J$14=0,0,Calculations!P27) -> 0 | K32: =MAX(Calculations!L27:P27) -> 0 | L32: =Calculations!K27 -> 7 | M32: 0 | O32: =Calculations!B109 -> 0 | Q32: =Calculations!I109 -> 0 | R32: =Calculations!J109 -> 0 | W32: =IF(Input!F$14=0,0,Calculations!L109) -> 0 | X32: =IF(Input!G$14=0,0,Calculations!M109) -> 0 | Y32: =IF(Input!H$14=0,0,Calculations!N109) -> 0 | AA32: =IF(Input!I$14=0,0,Calculations!O109) -> 0 | AB32: =IF(Input!J$14=0,0,Calculations!P109) -> 0 | AD32: =MAX(Calculations!L109:P109) -> 0 | AG32: =Calculations!K109 -> 0 | AI32: 0
C33: =Calculations!B28 -> R1-1-48 | D33: =Calculations!I28 -> 48"x48" | E33: =Calculations!J28 -> STOP | F33: =IF(Input!F$14=0,0,Calculations!L28) -> 0 | G33: =IF(Input!G$14=0,0,Calculations!M28) -> 0 | H33: =IF(Input!H$14=0,0,Calculations!N28) -> 0 | I33: =IF(Input!I$14=0,0,Calculations!O28) -> 0 | J33: =IF(Input!J$14=0,0,Calculations!P28) -> 0 | K33: =MAX(Calculations!L28:P28) -> 0 | L33: =Calculations!K28 -> 32 | M33: 0 | O33: =Calculations!B110 -> 0 | Q33: =Calculations!I110 -> 0 | R33: =Calculations!J110 -> 0 | W33: =IF(Input!F$14=0,0,Calculations!L110) -> 0 | X33: =IF(Input!G$14=0,0,Calculations!M110) -> 0 | Y33: =IF(Input!H$14=0,0,Calculations!N110) -> 0 | AA33: =IF(Input!I$14=0,0,Calculations!O110) -> 0 | AB33: =IF(Input!J$14=0,0,Calculations!P110) -> 0 | AD33: =MAX(Calculations!L110:P110) -> 0 | AG33: =Calculations!K110 -> 0 | AI33: 0
C34: =Calculations!B29 -> R1-2-60 | D34: =Calculations!I29 -> 60"x60" | E34: =Calculations!J29 -> YIELD | F34: =IF(Input!F$14=0,0,Calculations!L29) -> 0 | G34: =IF(Input!G$14=0,0,Calculations!M29) -> 0 | H34: =IF(Input!H$14=0,0,Calculations!N29) -> 0 | I34: =IF(Input!I$14=0,0,Calculations!O29) -> 0 | J34: =IF(Input!J$14=0,0,Calculations!P29) -> 0 | K34: =MAX(Calculations!L29:P29) -> 0 | L34: =Calculations!K29 -> 29 | M34: 0 | O34: =Calculations!B111 -> 0 | Q34: =Calculations!I111 -> 0 | R34: =Calculations!J111 -> 0 | W34: =IF(Input!F$14=0,0,Calculations!L111) -> 0 | X34: =IF(Input!G$14=0,0,Calculations!M111) -> 0 | Y34: =IF(Input!H$14=0,0,Calculations!N111) -> 0 | AA34: =IF(Input!I$14=0,0,Calculations!O111) -> 0 | AB34: =IF(Input!J$14=0,0,Calculations!P111) -> 0 | AD34: =MAX(Calculations!L111:P111) -> 0 | AG34: =Calculations!K111 -> 0 | AI34: 0
C35: =Calculations!B30 -> R2-1-36 | D35: =Calculations!I30 -> 36"x48" | E35: =Calculations!J30 -> SPEED LIMIT __ (Portable only) | F35: =IF(Input!F$14=0,0,Calculations!L30) -> 0 | G35: =IF(Input!G$14=0,0,Calculations!M30) -> 0 | H35: =IF(Input!H$14=0,0,Calculations!N30) -> 0 | I35: =IF(Input!I$14=0,0,Calculations!O30) -> 0 | J35: =IF(Input!J$14=0,0,Calculations!P30) -> 0 | K35: =MAX(Calculations!L30:P30) -> 0 | L35: =Calculations!K30 -> 30 | M35: 0 | O35: =Calculations!B112 -> 0 | Q35: =Calculations!I112 -> 0 | R35: =Calculations!J112 -> 0 | W35: =IF(Input!F$14=0,0,Calculations!L112) -> 0 | X35: =IF(Input!G$14=0,0,Calculations!M112) -> 0 | Y35: =IF(Input!H$14=0,0,Calculations!N112) -> 0 | AA35: =IF(Input!I$14=0,0,Calculations!O112) -> 0 | AB35: =IF(Input!J$14=0,0,Calculations!P112) -> 0 | AD35: =MAX(Calculations!L112:P112) -> 0 | AG35: =Calculations!K112 -> 0 | AI35: 0
C36: =Calculations!B31 -> R2-1-48 | D36: =Calculations!I31 -> 48"x60" | E36: =Calculations!J31 -> SPEED LIMIT __ | F36: =IF(Input!F$14=0,0,Calculations!L31) -> 0 | G36: =IF(Input!G$14=0,0,Calculations!M31) -> 0 | H36: =IF(Input!H$14=0,0,Calculations!N31) -> 0 | I36: =IF(Input!I$14=0,0,Calculations!O31) -> 0 | J36: =IF(Input!J$14=0,0,Calculations!P31) -> 0 | K36: =MAX(Calculations!L31:P31) -> 0 | L36: =Calculations!K31 -> 39 | M36: 0
C37: =Calculations!B32 -> R2-1aP-24 | D37: =Calculations!I32 -> 24"x18" | E37: =Calculations!J32 -> MINIMUM FEE $150 (Mounted on Speed Limit post) | F37: =IF(Input!F$14=0,0,Calculations!L32) -> 0 | G37: =IF(Input!G$14=0,0,Calculations!M32) -> 0 | H37: =IF(Input!H$14=0,0,Calculations!N32) -> 0 | I37: =IF(Input!I$14=0,0,Calculations!O32) -> 0 | J37: =IF(Input!J$14=0,0,Calculations!P32) -> 0 | K37: =MAX(Calculations!L32:P32) -> 0 | L37: =Calculations!K32 -> 10 | M37: 0 | O37: SPECIAL SIGNS
C38: =Calculations!B33 -> R3-2-48 | D38: =Calculations!I33 -> 48"x48" | E38: =Calculations!J33 -> NO LEFT TURN | F38: =IF(Input!F$14=0,0,Calculations!L33) -> 0 | G38: =IF(Input!G$14=0,0,Calculations!M33) -> 0 | H38: =IF(Input!H$14=0,0,Calculations!N33) -> 0 | I38: =IF(Input!I$14=0,0,Calculations!O33) -> 0 | J38: =IF(Input!J$14=0,0,Calculations!P33) -> 0 | K38: =MAX(Calculations!L33:P33) -> 0 | L38: =Calculations!K33 -> 35 | M38: 0 | O38: =Input!B129 -> 0 | Q38: =Input!C129 -> 0 | R38: =Input!D129 -> 0 | W38: =IF(Input!F$14=0,0,Input!F129) -> 0 | X38: =IF(Input!G$14=0,0,Input!G129) -> 0 | Y38: =IF(Input!H$14=0,0,Input!H129) -> 0 | Z38: =IF(COUNTBLANK(Input!$F$14:$J$14)=5,MAX(Input!F129:J129),IF(Input!$H$14=0,0,Input!H129)) -> 0 | AA38: =IF(Input!I$14=0,0,Input!I129) -> 0 | AB38: =IF(Input!J$14=0,0,Input!J129) -> 0 | AC38: =IF(Input!J$14=0,0,Input!J129) -> 0 | AD38: =MAX(IF(Input!$F$14>0,Input!F129,0),IF(Input!$G$14>0,Input!G129,0),IF(Input!$H$14>0,Input!H129,0),IF(Input!$I$14>0,Input!I129,0),IF(Input!$J$14>0,Input!J129,0),IF(COUNTBLANK(Input!$F$14:$J$14)=5,Input!F129:J129,0)) -> 0 | AG38: =Input!E129 -> 0 | AI38: =IF(AND(AD38>0,AD38*AG38=0),"NO UNITS",AD38*AG38) -> 0
C39: =Calculations!B34 -> R4-1-48 | D39: =Calculations!I34 -> 48"x60" | E39: =Calculations!J34 -> DO NOT PASS | F39: =IF(Input!F$14=0,0,Calculations!L34) -> 0 | G39: =IF(Input!G$14=0,0,Calculations!M34) -> 0 | H39: =IF(Input!H$14=0,0,Calculations!N34) -> 0 | I39: =IF(Input!I$14=0,0,Calculations!O34) -> 0 | J39: =IF(Input!J$14=0,0,Calculations!P34) -> 0 | K39: =MAX(Calculations!L34:P34) -> 0 | L39: =Calculations!K34 -> 39 | M39: 0 | O39: =Input!B130 -> 0 | Q39: =Input!C130 -> 0 | R39: =Input!D130 -> 0 | W39: =IF(Input!F$14=0,0,Input!F130) -> 0 | X39: =IF(Input!G$14=0,0,Input!G130) -> 0 | Y39: =IF(Input!H$14=0,0,Input!H130) -> 0 | Z39: =IF(COUNTBLANK(Input!$F$14:$J$14)=5,MAX(Input!F130:J130),IF(Input!$H$14=0,0,Input!H130)) -> 0 | AA39: =IF(Input!I$14=0,0,Input!I130) -> 0 | AB39: =IF(Input!J$14=0,0,Input!J130) -> 0 | AC39: =IF(Input!J$14=0,0,Input!J130) -> 0 | AD39: =MAX(IF(Input!$F$14>0,Input!F130,0),IF(Input!$G$14>0,Input!G130,0),IF(Input!$H$14>0,Input!H130,0),IF(Input!$I$14>0,Input!I130,0),IF(Input!$J$14>0,Input!J130,0),IF(COUNTBLANK(Input!$F$14:$J$14)=5,Input!F130:J130,0)) -> 0 | AG39: =Input!E130 -> 0 | AI39: =IF(AND(AD39>0,AD39*AG39=0),"NO UNITS",AD39*AG39) -> 0
C40: =Calculations!B35 -> R4-7-48 | D40: =Calculations!I35 -> 48"x60" | E40: =Calculations!J35 -> KEEP RIGHT | F40: =IF(Input!F$14=0,0,Calculations!L35) -> 0 | G40: =IF(Input!G$14=0,0,Calculations!M35) -> 0 | H40: =IF(Input!H$14=0,0,Calculations!N35) -> 0 | I40: =IF(Input!I$14=0,0,Calculations!O35) -> 0 | J40: =IF(Input!J$14=0,0,Calculations!P35) -> 0 | K40: =MAX(Calculations!L35:P35) -> 0 | L40: =Calculations!K35 -> 39 | M40: 0 | O40: =Input!B131 -> 0 | Q40: =Input!C131 -> 0 | R40: =Input!D131 -> 0 | W40: =IF(Input!F$14=0,0,Input!F131) -> 0 | X40: =IF(Input!G$14=0,0,Input!G131) -> 0 | Y40: =IF(Input!H$14=0,0,Input!H131) -> 0 | Z40: =IF(COUNTBLANK(Input!$F$14:$J$14)=5,MAX(Input!F131:J131),IF(Input!$H$14=0,0,Input!H131)) -> 0 | AA40: =IF(Input!I$14=0,0,Input!I131) -> 0 | AB40: =IF(Input!J$14=0,0,Input!J131) -> 0 | AC40: =IF(Input!J$14=0,0,Input!J131) -> 0 | AD40: =MAX(IF(Input!$F$14>0,Input!F131,0),IF(Input!$G$14>0,Input!G131,0),IF(Input!$H$14>0,Input!H131,0),IF(Input!$I$14>0,Input!I131,0),IF(Input!$J$14>0,Input!J131,0),IF(COUNTBLANK(Input!$F$14:$J$14)=5,Input!F131:J131,0)) -> 0 | AG40: =Input!E131 -> 0 | AI40: 0
C41: =Calculations!B36 -> R5-1-48 | D41: =Calculations!I36 -> 48"x48" | E41: =Calculations!J36 -> DO NOT ENTER | F41: =IF(Input!F$14=0,0,Calculations!L36) -> 0 | G41: =IF(Input!G$14=0,0,Calculations!M36) -> 0 | H41: =IF(Input!H$14=0,0,Calculations!N36) -> 0 | I41: =IF(Input!I$14=0,0,Calculations!O36) -> 0 | J41: =IF(Input!J$14=0,0,Calculations!P36) -> 0 | K41: =MAX(Calculations!L36:P36) -> 0 | L41: =Calculations!K36 -> 35 | M41: 0 | O41: =Input!B132 -> 0 | Q41: =Input!C132 -> 0 | R41: =Input!D132 -> 0 | W41: =IF(Input!F$14=0,0,Input!F132) -> 0 | X41: =IF(Input!G$14=0,0,Input!G132) -> 0 | Y41: =IF(Input!H$14=0,0,Input!H132) -> 0 | Z41: =IF(COUNTBLANK(Input!$F$14:$J$14)=5,MAX(Input!F132:J132),IF(Input!$H$14=0,0,Input!H132)) -> 0 | AA41: =IF(Input!I$14=0,0,Input!I132) -> 0 | AB41: =IF(Input!J$14=0,0,Input!J132) -> 0 | AC41: =IF(Input!J$14=0,0,Input!J132) -> 0 | AD41: =MAX(IF(Input!$F$14>0,Input!F132,0),IF(Input!$G$14>0,Input!G132,0),IF(Input!$H$14>0,Input!H132,0),IF(Input!$I$14>0,Input!I132,0),IF(Input!$J$14>0,Input!J132,0),IF(COUNTBLANK(Input!$F$14:$J$14)=5,Input!F132:J132,0)) -> 0 | AG41: =Input!E132 -> 0 | AI41: 0
C42: =Calculations!B37 -> R6-1-54 | D42: =Calculations!I37 -> 54"x18" | E42: =Calculations!J37 -> ONE WAY RIGHT or LEFT (Mounted on STOP or DO NOT ENTER post) | F42: =IF(Input!F$14=0,0,Calculations!L37) -> 0 | G42: =IF(Input!G$14=0,0,Calculations!M37) -> 0 | H42: =IF(Input!H$14=0,0,Calculations!N37) -> 0 | I42: =IF(Input!I$14=0,0,Calculations!O37) -> 0 | J42: =IF(Input!J$14=0,0,Calculations!P37) -> 0 | K42: =MAX(Calculations!L37:P37) -> 0 | L42: =Calculations!K37 -> 14 | M42: 0 | O42: =Input!B133 -> 0 | Q42: =Input!C133 -> 0 | R42: =Input!D133 -> 0 | W42: =IF(Input!F$14=0,0,Input!F133) -> 0 | X42: =IF(Input!G$14=0,0,Input!G133) -> 0 | Y42: =IF(Input!H$14=0,0,Input!H133) -> 0 | Z42: =IF(COUNTBLANK(Input!$F$14:$J$14)=5,MAX(Input!F133:J133),IF(Input!$H$14=0,0,Input!H133)) -> 0 | AA42: =IF(Input!I$14=0,0,Input!I133) -> 0 | AB42: =IF(Input!J$14=0,0,Input!J133) -> 0 | AC42: =IF(Input!J$14=0,0,Input!J133) -> 0 | AD42: =MAX(IF(Input!$F$14>0,Input!F133,0),IF(Input!$G$14>0,Input!G133,0),IF(Input!$H$14>0,Input!H133,0),IF(Input!$I$14>0,Input!I133,0),IF(Input!$J$14>0,Input!J133,0),IF(COUNTBLANK(Input!$F$14:$J$14)=5,Input!F133:J133,0)) -> 0 | AG42: =Input!E133 -> 0 | AI42: 0
C43: =Calculations!B38 -> R7-1-12 | D43: =Calculations!I38 -> 12"x18" | E43: =Calculations!J38 -> NO PARKING ANY TIME | F43: =IF(Input!F$14=0,0,Calculations!L38) -> 0 | G43: =IF(Input!G$14=0,0,Calculations!M38) -> 0 | H43: =IF(Input!H$14=0,0,Calculations!N38) -> 0 | I43: =IF(Input!I$14=0,0,Calculations!O38) -> 0 | J43: =IF(Input!J$14=0,0,Calculations!P38) -> 0 | K43: =MAX(Calculations!L38:P38) -> 0 | L43: =Calculations!K38 -> 11 | M43: 0 | O43: =Input!B134 -> 0 | Q43: =Input!C134 -> 0 | R43: =Input!D134 -> 0 | W43: =IF(Input!F$14=0,0,Input!F134) -> 0 | X43: =IF(Input!G$14=0,0,Input!G134) -> 0 | Y43: =IF(Input!H$14=0,0,Input!H134) -> 0 | Z43: =IF(COUNTBLANK(Input!$F$14:$J$14)=5,MAX(Input!F134:J134),IF(Input!$H$14=0,0,Input!H134)) -> 0 | AA43: =IF(Input!I$14=0,0,Input!I134) -> 0 | AB43: =IF(Input!J$14=0,0,Input!J134) -> 0 | AC43: =IF(Input!J$14=0,0,Input!J134) -> 0 | AD43: =MAX(IF(Input!$F$14>0,Input!F134,0),IF(Input!$G$14>0,Input!G134,0),IF(Input!$H$14>0,Input!H134,0),IF(Input!$I$14>0,Input!I134,0),IF(Input!$J$14>0,Input!J134,0),IF(COUNTBLANK(Input!$F$14:$J$14)=5,Input!F134:J134,0)) -> 0 | AG43: =Input!E134 -> 0 | AI43: 0
C44: =Calculations!B39 -> R10-6-24 | D44: =Calculations!I39 -> 24"x36" | E44: =Calculations!J39 -> STOP HERE ON RED | F44: =IF(Input!F$14=0,0,Calculations!L39) -> 0 | G44: =IF(Input!G$14=0,0,Calculations!M39) -> 0 | H44: =IF(Input!H$14=0,0,Calculations!N39) -> 0 | I44: =IF(Input!I$14=0,0,Calculations!O39) -> 0 | J44: =IF(Input!J$14=0,0,Calculations!P39) -> 0 | K44: =MAX(Calculations!L39:P39) -> 0 | L44: =Calculations!K39 -> 16 | M44: 0 | O44: =Input!B135 -> 0 | Q44: =Input!C135 -> 0 | R44: =Input!D135 -> 0 | W44: =IF(Input!F$14=0,0,Input!F135) -> 0 | X44: =IF(Input!G$14=0,0,Input!G135) -> 0 | Y44: =IF(Input!H$14=0,0,Input!H135) -> 0 | Z44: =IF(COUNTBLANK(Input!$F$14:$J$14)=5,MAX(Input!F135:J135),IF(Input!$H$14=0,0,Input!H135)) -> 0 | AA44: =IF(Input!I$14=0,0,Input!I135) -> 0 | AB44: =IF(Input!J$14=0,0,Input!J135) -> 0 | AC44: =IF(Input!J$14=0,0,Input!J135) -> 0 | AD44: =MAX(IF(Input!$F$14>0,Input!F135,0),IF(Input!$G$14>0,Input!G135,0),IF(Input!$H$14>0,Input!H135,0),IF(Input!$I$14>0,Input!I135,0),IF(Input!$J$14>0,Input!J135,0),IF(COUNTBLANK(Input!$F$14:$J$14)=5,Input!F135:J135,0)) -> 0 | AG44: =Input!E135 -> 0 | AI44: 0
C45: =Calculations!B40 -> R11-2-48 | D45: =Calculations!I40 -> 48"x30" | E45: =Calculations!J40 -> ROAD CLOSED (Mounted on barricade) | F45: =IF(Input!F$14=0,0,Calculations!L40) -> 0 | G45: =IF(Input!G$14=0,0,Calculations!M40) -> 0 | H45: =IF(Input!H$14=0,0,Calculations!N40) -> 0 | I45: =IF(Input!I$14=0,0,Calculations!O40) -> 0 | J45: =IF(Input!J$14=0,0,Calculations!P40) -> 0 | K45: =MAX(Calculations!L40:P40) -> 0 | L45: =Calculations!K40 -> 12 | M45: 0 | O45: =Input!B136 -> 0 | Q45: =Input!C136 -> 0 | R45: =Input!D136 -> 0 | W45: =IF(Input!F$14=0,0,Input!F136) -> 0 | X45: =IF(Input!G$14=0,0,Input!G136) -> 0 | Y45: =IF(Input!H$14=0,0,Input!H136) -> 0 | Z45: =IF(COUNTBLANK(Input!$F$14:$J$14)=5,MAX(Input!F136:J136),IF(Input!$H$14=0,0,Input!H136)) -> 0 | AA45: =IF(Input!I$14=0,0,Input!I136) -> 0 | AB45: =IF(Input!J$14=0,0,Input!J136) -> 0 | AC45: =IF(Input!J$14=0,0,Input!J136) -> 0 | AD45: =MAX(IF(Input!$F$14>0,Input!F136,0),IF(Input!$G$14>0,Input!G136,0),IF(Input!$H$14>0,Input!H136,0),IF(Input!$I$14>0,Input!I136,0),IF(Input!$J$14>0,Input!J136,0),IF(COUNTBLANK(Input!$F$14:$J$14)=5,Input!F136:J136,0)) -> 0 | AG45: =Input!E136 -> 0 | AI45: 0
C46: =Calculations!B41 -> R11-2a-48 | D46: =Calculations!I41 -> 48"x30" | E46: =Calculations!J41 -> STREET CLOSED (Mounted on barricade) | F46: =IF(Input!F$14=0,0,Calculations!L41) -> 0 | G46: =IF(Input!G$14=0,0,Calculations!M41) -> 0 | H46: =IF(Input!H$14=0,0,Calculations!N41) -> 0 | I46: =IF(Input!I$14=0,0,Calculations!O41) -> 0 | J46: =IF(Input!J$14=0,0,Calculations!P41) -> 0 | K46: =MAX(Calculations!L41:P41) -> 0 | L46: =Calculations!K41 -> 12 | M46: 0 | O46: =Input!B137 -> 0 | Q46: =Input!C137 -> 0 | R46: =Input!D137 -> 0 | W46: =IF(Input!F$14=0,0,Input!F137) -> 0 | X46: =IF(Input!G$14=0,0,Input!G137) -> 0 | Y46: =IF(Input!H$14=0,0,Input!H137) -> 0 | Z46: =IF(COUNTBLANK(Input!$F$14:$J$14)=5,MAX(Input!F137:J137),IF(Input!$H$14=0,0,Input!H137)) -> 0 | AA46: =IF(Input!I$14=0,0,Input!I137) -> 0 | AB46: =IF(Input!J$14=0,0,Input!J137) -> 0 | AC46: =IF(Input!J$14=0,0,Input!J137) -> 0 | AD46: =MAX(IF(Input!$F$14>0,Input!F137,0),IF(Input!$G$14>0,Input!G137,0),IF(Input!$H$14>0,Input!H137,0),IF(Input!$I$14>0,Input!I137,0),IF(Input!$J$14>0,Input!J137,0),IF(COUNTBLANK(Input!$F$14:$J$14)=5,Input!F137:J137,0)) -> 0 | AG46: =Input!E137 -> 0 | AI46: 0
C47: =Calculations!B42 -> R11-3a-60 | D47: =Calculations!I42 -> 60"x30" | E47: =Calculations!J42 -> ROAD CLOSED __ MILES AHEAD LOCAL TRAFFIC ONLY (Mtd on barricade) | F47: =IF(Input!F$14=0,0,Calculations!L42) -> 0 | G47: =IF(Input!G$14=0,0,Calculations!M42) -> 0 | H47: =IF(Input!H$14=0,0,Calculations!N42) -> 0 | I47: =IF(Input!I$14=0,0,Calculations!O42) -> 0 | J47: =IF(Input!J$14=0,0,Calculations!P42) -> 0 | K47: =MAX(Calculations!L42:P42) -> 0 | L47: =Calculations!K42 -> 15 | M47: 0 | O47: =Input!B138 -> 0 | Q47: =Input!C138 -> 0 | R47: =Input!D138 -> 0 | W47: =IF(Input!F$14=0,0,Input!F138) -> 0 | X47: =IF(Input!G$14=0,0,Input!G138) -> 0 | Y47: =IF(Input!H$14=0,0,Input!H138) -> 0 | Z47: =IF(COUNTBLANK(Input!$F$14:$J$14)=5,MAX(Input!F138:J138),IF(Input!$H$14=0,0,Input!H138)) -> 0 | AA47: =IF(Input!I$14=0,0,Input!I138) -> 0 | AB47: =IF(Input!J$14=0,0,Input!J138) -> 0 | AC47: =IF(Input!J$14=0,0,Input!J138) -> 0 | AD47: =MAX(IF(Input!$F$14>0,Input!F138,0),IF(Input!$G$14>0,Input!G138,0),IF(Input!$H$14>0,Input!H138,0),IF(Input!$I$14>0,Input!I138,0),IF(Input!$J$14>0,Input!J138,0),IF(COUNTBLANK(Input!$F$14:$J$14)=5,Input!F138:J138,0)) -> 0 | AG47: =Input!E138 -> 0 | AI47: 0
C48: =Calculations!B43 -> R11-3c-60 | D48: =Calculations!I43 -> 60"x30" | E48: =Calculations!J43 -> STREET CLOSED __ MILES AHEAD LOCAL TRAFFIC ONLY (Mtd on barricade) | F48: =IF(Input!F$14=0,0,Calculations!L43) -> 0 | G48: =IF(Input!G$14=0,0,Calculations!M43) -> 0 | H48: =IF(Input!H$14=0,0,Calculations!N43) -> 0 | I48: =IF(Input!I$14=0,0,Calculations!O43) -> 0 | J48: =IF(Input!J$14=0,0,Calculations!P43) -> 0 | K48: =MAX(Calculations!L43:P43) -> 0 | L48: =Calculations!K43 -> 15 | M48: 0 | O48: =Input!B139 -> 0 | Q48: =Input!C139 -> 0 | R48: =Input!D139 -> 0 | W48: =IF(Input!F$14=0,0,Input!F139) -> 0 | X48: =IF(Input!G$14=0,0,Input!G139) -> 0 | Y48: =IF(Input!H$14=0,0,Input!H139) -> 0 | Z48: =IF(COUNTBLANK(Input!$F$14:$J$14)=5,MAX(Input!F139:J139),IF(Input!$H$14=0,0,Input!H139)) -> 0 | AA48: =IF(Input!I$14=0,0,Input!I139) -> 0 | AB48: =IF(Input!J$14=0,0,Input!J139) -> 0 | AC48: =IF(Input!J$14=0,0,Input!J139) -> 0 | AD48: =MAX(IF(Input!$F$14>0,Input!F139,0),IF(Input!$G$14>0,Input!G139,0),IF(Input!$H$14>0,Input!H139,0),IF(Input!$I$14>0,Input!I139,0),IF(Input!$J$14>0,Input!J139,0),IF(COUNTBLANK(Input!$F$14:$J$14)=5,Input!F139:J139,0)) -> 0 | AG48: =Input!E139 -> 0 | AI48: 0
C49: =Calculations!B44 -> R11-4a-60 | D49: =Calculations!I44 -> 60"x30" | E49: =Calculations!J44 -> STREET CLOSED TO THRU TRAFFIC (Mounted on barricade) | F49: =IF(Input!F$14=0,0,Calculations!L44) -> 0 | G49: =IF(Input!G$14=0,0,Calculations!M44) -> 0 | H49: =IF(Input!H$14=0,0,Calculations!N44) -> 0 | I49: =IF(Input!I$14=0,0,Calculations!O44) -> 0 | J49: =IF(Input!J$14=0,0,Calculations!P44) -> 0 | K49: =MAX(Calculations!L44:P44) -> 0 | L49: =Calculations!K44 -> 15 | M49: 0 | O49: =Input!B140 -> 0 | Q49: =Input!C140 -> 0 | R49: =Input!D140 -> 0 | W49: =IF(Input!F$14=0,0,Input!F140) -> 0 | X49: =IF(Input!G$14=0,0,Input!G140) -> 0 | Y49: =IF(Input!H$14=0,0,Input!H140) -> 0 | Z49: =IF(COUNTBLANK(Input!$F$14:$J$14)=5,MAX(Input!F140:J140),IF(Input!$H$14=0,0,Input!H140)) -> 0 | AA49: =IF(Input!I$14=0,0,Input!I140) -> 0 | AB49: =IF(Input!J$14=0,0,Input!J140) -> 0 | AC49: =IF(Input!J$14=0,0,Input!J140) -> 0 | AD49: =MAX(IF(Input!$F$14>0,Input!F140,0),IF(Input!$G$14>0,Input!G140,0),IF(Input!$H$14>0,Input!H140,0),IF(Input!$I$14>0,Input!I140,0),IF(Input!$J$14>0,Input!J140,0),IF(COUNTBLANK(Input!$F$14:$J$14)=5,Input!F140:J140,0)) -> 0 | AG49: =Input!E140 -> 0 | AI49: 0
C50: =Calculations!B45 -> W1-3-48 | D50: =Calculations!I45 -> 48"x48" | E50: =Calculations!J45 -> REVERSE TURN RIGHT or LEFT | F50: =IF(Input!F$14=0,0,Calculations!L45) -> 0 | G50: =IF(Input!G$14=0,0,Calculations!M45) -> 0 | H50: =IF(Input!H$14=0,0,Calculations!N45) -> 0 | I50: =IF(Input!I$14=0,0,Calculations!O45) -> 0 | J50: =IF(Input!J$14=0,0,Calculations!P45) -> 0 | K50: =MAX(Calculations!L45:P45) -> 0 | L50: =Calculations!K45 -> 35 | M50: 0 | O50: =Input!B141 -> 0 | Q50: =Input!C141 -> 0 | R50: =Input!D141 -> 0 | W50: =IF(Input!F$14=0,0,Input!F141) -> 0 | X50: =IF(Input!G$14=0,0,Input!G141) -> 0 | Y50: =IF(Input!H$14=0,0,Input!H141) -> 0 | Z50: =IF(COUNTBLANK(Input!$F$14:$J$14)=5,MAX(Input!F141:J141),IF(Input!$H$14=0,0,Input!H141)) -> 0 | AA50: =IF(Input!I$14=0,0,Input!I141) -> 0 | AB50: =IF(Input!J$14=0,0,Input!J141) -> 0 | AC50: =IF(Input!J$14=0,0,Input!J141) -> 0 | AD50: =MAX(IF(Input!$F$14>0,Input!F141,0),IF(Input!$G$14>0,Input!G141,0),IF(Input!$H$14>0,Input!H141,0),IF(Input!$I$14>0,Input!I141,0),IF(Input!$J$14>0,Input!J141,0),IF(COUNTBLANK(Input!$F$14:$J$14)=5,Input!F141:J141,0)) -> 0 | AG50: =Input!E141 -> 0 | AI50: 0 | AK50: ='Sign Units Computation'!L7 -> NOTE: If additional signs are required, units will be calculated using the formula from Section III-18.06 of the Design Manual. http://www.dot.nd.gov/
C51: =Calculations!B46 -> W1-4-48 | D51: =Calculations!I46 -> 48"x48" | E51: =Calculations!J46 -> REVERSE CURVE RIGHT or LEFT | F51: =IF(Input!F$14=0,0,Calculations!L46) -> 0 | G51: =IF(Input!G$14=0,0,Calculations!M46) -> 0 | H51: =IF(Input!H$14=0,0,Calculations!N46) -> 0 | I51: =IF(Input!I$14=0,0,Calculations!O46) -> 0 | J51: =IF(Input!J$14=0,0,Calculations!P46) -> 0 | K51: =MAX(Calculations!L46:P46) -> 0 | L51: =Calculations!K46 -> 35 | M51: 0 | O51: =Input!B142 -> 0 | Q51: =Input!C142 -> 0 | R51: =Input!D142 -> 0 | W51: =IF(Input!F$14=0,0,Input!F142) -> 0 | X51: =IF(Input!G$14=0,0,Input!G142) -> 0 | Y51: =IF(Input!H$14=0,0,Input!H142) -> 0 | Z51: =IF(COUNTBLANK(Input!$F$14:$J$14)=5,MAX(Input!F142:J142),IF(Input!$H$14=0,0,Input!H142)) -> 0 | AA51: =IF(Input!I$14=0,0,Input!I142) -> 0 | AB51: =IF(Input!J$14=0,0,Input!J142) -> 0 | AC51: =IF(Input!J$14=0,0,Input!J142) -> 0 | AD51: =MAX(IF(Input!$F$14>0,Input!F142,0),IF(Input!$G$14>0,Input!G142,0),IF(Input!$H$14>0,Input!H142,0),IF(Input!$I$14>0,Input!I142,0),IF(Input!$J$14>0,Input!J142,0),IF(COUNTBLANK(Input!$F$14:$J$14)=5,Input!F142:J142,0)) -> 0 | AG51: =Input!E142 -> 0 | AI51: 0
C52: =Calculations!B47 -> W1-4b-48 | D52: =Calculations!I47 -> 48"x48" | E52: =Calculations!J47 -> TWO LANE REVERSE CURVE RIGHT or LEFT | F52: =IF(Input!F$14=0,0,Calculations!L47) -> 0 | G52: =IF(Input!G$14=0,0,Calculations!M47) -> 0 | H52: =IF(Input!H$14=0,0,Calculations!N47) -> 0 | I52: =IF(Input!I$14=0,0,Calculations!O47) -> 0 | J52: =IF(Input!J$14=0,0,Calculations!P47) -> 0 | K52: =MAX(Calculations!L47:P47) -> 0 | L52: =Calculations!K47 -> 35 | M52: 0 | O52: =Input!B143 -> 0 | Q52: =Input!C143 -> 0 | R52: =Input!D143 -> 0 | W52: =IF(Input!F$14=0,0,Input!F143) -> 0 | X52: =IF(Input!G$14=0,0,Input!G143) -> 0 | Y52: =IF(Input!H$14=0,0,Input!H143) -> 0 | Z52: =IF(COUNTBLANK(Input!$F$14:$J$14)=5,MAX(Input!F143:J143),IF(Input!$H$14=0,0,Input!H143)) -> 0 | AA52: =IF(Input!I$14=0,0,Input!I143) -> 0 | AB52: =IF(Input!J$14=0,0,Input!J143) -> 0 | AC52: =IF(Input!J$14=0,0,Input!J143) -> 0 | AD52: =MAX(IF(Input!$F$14>0,Input!F143,0),IF(Input!$G$14>0,Input!G143,0),IF(Input!$H$14>0,Input!H143,0),IF(Input!$I$14>0,Input!I143,0),IF(Input!$J$14>0,Input!J143,0),IF(COUNTBLANK(Input!$F$14:$J$14)=5,Input!F143:J143,0)) -> 0 | AG52: =Input!E143 -> 0 | AI52: 0
C53: =Calculations!B48 -> W1-6-48 | D53: =Calculations!I48 -> 48"x24" | E53: =Calculations!J48 -> ONE DIRECTION LARGE ARROW | F53: =IF(Input!F$14=0,0,Calculations!L48) -> 0 | G53: =IF(Input!G$14=0,0,Calculations!M48) -> 0 | H53: =IF(Input!H$14=0,0,Calculations!N48) -> 0 | I53: =IF(Input!I$14=0,0,Calculations!O48) -> 0 | J53: =IF(Input!J$14=0,0,Calculations!P48) -> 0 | K53: =MAX(Calculations!L48:P48) -> 0 | L53: =Calculations!K48 -> 26 | M53: 0
C54: =Calculations!B49 -> W3-1-48 | D54: =Calculations!I49 -> 48"x48" | E54: =Calculations!J49 -> STOP AHEAD | F54: =IF(Input!F$14=0,0,Calculations!L49) -> 0 | G54: =IF(Input!G$14=0,0,Calculations!M49) -> 0 | H54: =IF(Input!H$14=0,0,Calculations!N49) -> 0 | I54: =IF(Input!I$14=0,0,Calculations!O49) -> 0 | J54: =IF(Input!J$14=0,0,Calculations!P49) -> 0 | K54: =MAX(Calculations!L49:P49) -> 0 | L54: =Calculations!K49 -> 35 | M54: 0 | O54: SPEC & CODE
C55: =Calculations!B50 -> W3-3-48 | D55: =Calculations!I50 -> 48"x48" | E55: =Calculations!J50 -> SIGNAL AHEAD | F55: =IF(Input!F$14=0,0,Calculations!L50) -> 0 | G55: =IF(Input!G$14=0,0,Calculations!M50) -> 0 | H55: =IF(Input!H$14=0,0,Calculations!N50) -> 0 | I55: =IF(Input!I$14=0,0,Calculations!O50) -> 0 | J55: =IF(Input!J$14=0,0,Calculations!P50) -> 0 | K55: =MAX(Calculations!L50:P50) -> 0 | L55: =Calculations!K50 -> 35 | M55: 0 | O55: 704-1000 | R55: TRAFFIC CONTROL SIGNS TOTAL UNITS | AD55: =SUM(M9:M90)+SUM(AI9:AI35)+SUM(AI38:AI52) -> 0
C56: =Calculations!B51 -> W3-4-48 | D56: =Calculations!I51 -> 48"x48" | E56: =Calculations!J51 -> BE PREPARED TO STOP | F56: =IF(Input!F$14=0,0,Calculations!L51) -> 0 | G56: =IF(Input!G$14=0,0,Calculations!M51) -> 0 | H56: =IF(Input!H$14=0,0,Calculations!N51) -> 0 | I56: =IF(Input!I$14=0,0,Calculations!O51) -> 0 | J56: =IF(Input!J$14=0,0,Calculations!P51) -> 0 | K56: =MAX(Calculations!L51:P51) -> 0 | L56: =Calculations!K51 -> 35 | M56: 0
C57: =Calculations!B52 -> W3-5-48 | D57: =Calculations!I52 -> 48"x48" | E57: =Calculations!J52 -> SPEED REDUCTION AHEAD | F57: =IF(Input!F$14=0,0,Calculations!L52) -> 0 | G57: =IF(Input!G$14=0,0,Calculations!M52) -> 0 | H57: =IF(Input!H$14=0,0,Calculations!N52) -> 0 | I57: =IF(Input!I$14=0,0,Calculations!O52) -> 0 | J57: =IF(Input!J$14=0,0,Calculations!P52) -> 0 | K57: =MAX(Calculations!L52:P52) -> 0 | L57: =Calculations!K52 -> 35 | M57: 0
C58: =Calculations!B53 -> W4-2-48 | D58: =Calculations!I53 -> 48"x48" | E58: =Calculations!J53 -> LANE ENDS RIGHT or LEFT | F58: =IF(Input!F$14=0,0,Calculations!L53) -> 0 | G58: =IF(Input!G$14=0,0,Calculations!M53) -> 0 | H58: =IF(Input!H$14=0,0,Calculations!N53) -> 0 | I58: =IF(Input!I$14=0,0,Calculations!O53) -> 0 | J58: =IF(Input!J$14=0,0,Calculations!P53) -> 0 | K58: =MAX(Calculations!L53:P53) -> 0 | L58: =Calculations!K53 -> 35 | M58: 0 | O58: SPEC & CODE | Q58: DESCRIPTION | S58: =IF(COUNTBLANK(Input!F14:J14)=5,0," UNIT") -> 0 | T58: =IF(COUNTBLANK(Input!F14:J14)=5,0,"QUANTITY") -> 0 | AC58: =IF(COUNTBLANK(Input!F14:J14)=5,"QUANTITY","TOTAL QUANTITY") -> QUANTITY
C59: =Calculations!B54 -> W5-1-48 | D59: =Calculations!I54 -> 48"x48" | E59: =Calculations!J54 -> ROAD NARROWS | F59: =IF(Input!F$14=0,0,Calculations!L54) -> 0 | G59: =IF(Input!G$14=0,0,Calculations!M54) -> 0 | H59: =IF(Input!H$14=0,0,Calculations!N54) -> 0 | I59: =IF(Input!I$14=0,0,Calculations!O54) -> 0 | J59: =IF(Input!J$14=0,0,Calculations!P54) -> 0 | K59: =MAX(Calculations!L54:P54) -> 0 | L59: =Calculations!K54 -> 35 | M59: 0 | T59: =IF(COUNTBLANK(Input!F14:J14)=5,0," BY PHASE NO.") -> 0 | Z59: =IF(COUNTBLANK(Input!F14:J14)=5,"UNIT",0) -> UNIT
C60: =Calculations!B55 -> W5-8-48 | D60: =Calculations!I55 -> 48"x48" | E60: =Calculations!J55 -> THRU TRAFFIC RIGHT LANE | F60: =IF(Input!F$14=0,0,Calculations!L55) -> 0 | G60: =IF(Input!G$14=0,0,Calculations!M55) -> 0 | H60: =IF(Input!H$14=0,0,Calculations!N55) -> 0 | I60: =IF(Input!I$14=0,0,Calculations!O55) -> 0 | J60: =IF(Input!J$14=0,0,Calculations!P55) -> 0 | K60: =MAX(Calculations!L55:P55) -> 0 | L60: =Calculations!K55 -> 35 | M60: 0 | T60: =Input!W14 -> 0 | U60: =Input!X14 -> 0 | V60: =Input!Y14 -> 0 | X60: =Input!Z14 -> 0 | Z60: =Input!AA14 -> 0
C61: =Calculations!B56 -> W5-9-48 | D61: =Calculations!I56 -> 48"x48" | E61: =Calculations!J56 -> ROAD WORK TRAFFIC ONLY DOWN & LT or RT ARROW | F61: =IF(Input!F$14=0,0,Calculations!L56) -> 0 | G61: =IF(Input!G$14=0,0,Calculations!M56) -> 0 | H61: =IF(Input!H$14=0,0,Calculations!N56) -> 0 | I61: =IF(Input!I$14=0,0,Calculations!O56) -> 0 | J61: =IF(Input!J$14=0,0,Calculations!P56) -> 0 | K61: =MAX(Calculations!L56:P56) -> 0 | L61: =Calculations!K56 -> 35 | M61: 0 | O61: =IF(COUNT(Input!$L$15:$L$44)-0<1,0,LARGE(Input!$L$15:$L$44,COUNT(Input!$L$15:$L$44)-0)) -> 7040100 | Q61: =IF(O61=0,0,VLOOKUP(O61,Input!$L$15:$AA$44,2,FALSE)) -> FLAGGING | S61: =IF(COUNTBLANK(Input!$F$14:$J$14)=5,0,IF(O61=0,0,VLOOKUP(O61,Input!$L$15:$AA$44,11,FALSE))) -> 0 | T61: =IF(COUNTIF($T$60:$AB$60,"=0")=5,0,IF($T$60=0,0,IF(O61=0,0,VLOOKUP(O61,Input!$L$15:$AA$44,12,FALSE)))) -> 0 | U61: =IF(COUNTIF($T$60:$AB$60,"=0")=5,0,IF($U$60=0,0,IF(O61=0,0,VLOOKUP(O61,Input!$L$15:$AA$44,13,FALSE)))) -> 0 | V61: =IF(COUNTIF($T$60:$AB$60,"=0")=5,0,IF($V$60=0,0,IF(O61=0,0,VLOOKUP(O61,Input!$L$15:$AA$44,14,FALSE)))) -> 0 | X61: =IF(COUNTIF($T$60:$AB$60,"=0")=5,0,IF($X$60=0,0,IF(O61=0,0,VLOOKUP(O61,Input!$L$15:$AA$44,15,FALSE)))) -> 0 | Z61: =IF(COUNTBLANK(Input!$F$14:$J$14)=5,IF(O61=0,0,VLOOKUP(O61,Input!$L$15:$AA$44,11,FALSE)),IF($Z$60=0,0,IF(O61=0,0,VLOOKUP(O61,Input!$L$15:$AA$44,16,FALSE)))) -> MHR | AC61: =IF(COUNTIF($T$60:$AB$60,"=0")<5,IF(IF(O61=0,0,VLOOKUP(O61,Input!$L$15:$AC$44,18,FALSE))="X",T61+U61+V61+X61+Z61,MAX(T61:AB61)),IF(O61=0,0,MAX(VLOOKUP(O61,Input!$L$15:$AC$44,12,FALSE),VLOOKUP(O61,Input!$L$15:$AC$44,13,FALSE),VLOOKUP(O61,Input!$L$15:$AC$44,14,FALSE),VLOOKUP(O61,Input!$L$15:$AC$44,15,FALSE),VLOOKUP(O61,Input!$L$15:$AC$44,16,FALSE)))) -> 0
C62: =Calculations!B57 -> W6-3-48 | D62: =Calculations!I57 -> 48"x48" | E62: =Calculations!J57 -> TWO WAY TRAFFIC | F62: =IF(Input!F$14=0,0,Calculations!L57) -> 0 | G62: =IF(Input!G$14=0,0,Calculations!M57) -> 0 | H62: =IF(Input!H$14=0,0,Calculations!N57) -> 0 | I62: =IF(Input!I$14=0,0,Calculations!O57) -> 0 | J62: =IF(Input!J$14=0,0,Calculations!P57) -> 0 | K62: =MAX(Calculations!L57:P57) -> 0 | L62: =Calculations!K57 -> 35 | M62: 0 | O62: =IF(COUNT(Input!$L$15:$L$44)-1<1,0,LARGE(Input!$L$15:$L$44,COUNT(Input!$L$15:$L$44)-1)) -> 7041048 | Q62: =IF(O62=0,0,VLOOKUP(O62,Input!$L$15:$AA$44,2,FALSE)) -> PORTABLE RUMBLE STRIPS | S62: =IF(COUNTBLANK(Input!$F$14:$J$14)=5,0,IF(O62=0,0,VLOOKUP(O62,Input!$L$15:$AA$44,11,FALSE))) -> 0 | T62: =IF(COUNTIF($T$60:$AB$60,"=0")=5,0,IF($T$60=0,0,IF(O62=0,0,VLOOKUP(O62,Input!$L$15:$AA$44,12,FALSE)))) -> 0 | U62: =IF(COUNTIF($T$60:$AB$60,"=0")=5,0,IF($U$60=0,0,IF(O62=0,0,VLOOKUP(O62,Input!$L$15:$AA$44,13,FALSE)))) -> 0 | V62: =IF(COUNTIF($T$60:$AB$60,"=0")=5,0,IF($V$60=0,0,IF(O62=0,0,VLOOKUP(O62,Input!$L$15:$AA$44,14,FALSE)))) -> 0 | X62: =IF(COUNTIF($T$60:$AB$60,"=0")=5,0,IF($X$60=0,0,IF(O62=0,0,VLOOKUP(O62,Input!$L$15:$AA$44,15,FALSE)))) -> 0 | Z62: =IF(COUNTBLANK(Input!$F$14:$J$14)=5,IF(O62=0,0,VLOOKUP(O62,Input!$L$15:$AA$44,11,FALSE)),IF($Z$60=0,0,IF(O62=0,0,VLOOKUP(O62,Input!$L$15:$AA$44,16,FALSE)))) -> EACH | AC62: =IF(COUNTIF($T$60:$AB$60,"=0")<5,IF(IF(O62=0,0,VLOOKUP(O62,Input!$L$15:$AC$44,18,FALSE))="X",T62+U62+V62+X62+Z62,MAX(T62:AB62)),IF(O62=0,0,MAX(VLOOKUP(O62,Input!$L$15:$AC$44,12,FALSE),VLOOKUP(O62,Input!$L$15:$AC$44,13,FALSE),VLOOKUP(O62,Input!$L$15:$AC$44,14,FALSE),VLOOKUP(O62,Input!$L$15:$AC$44,15,FALSE),VLOOKUP(O62,Input!$L$15:$AC$44,16,FALSE)))) -> 0
C63: =Calculations!B58 -> W8-1-48 | D63: =Calculations!I58 -> 48"x48" | E63: =Calculations!J58 -> BUMP | F63: =IF(Input!F$14=0,0,Calculations!L58) -> 0 | G63: =IF(Input!G$14=0,0,Calculations!M58) -> 0 | H63: =IF(Input!H$14=0,0,Calculations!N58) -> 0 | I63: =IF(Input!I$14=0,0,Calculations!O58) -> 0 | J63: =IF(Input!J$14=0,0,Calculations!P58) -> 0 | K63: =MAX(Calculations!L58:P58) -> 0 | L63: =Calculations!K58 -> 35 | M63: 0 | O63: =IF(COUNT(Input!$L$15:$L$44)-2<1,0,LARGE(Input!$L$15:$L$44,COUNT(Input!$L$15:$L$44)-2)) -> 7041050 | Q63: =IF(O63=0,0,VLOOKUP(O63,Input!$L$15:$AA$44,2,FALSE)) -> TYPE I BARRICADES | S63: =IF(COUNTBLANK(Input!$F$14:$J$14)=5,0,IF(O63=0,0,VLOOKUP(O63,Input!$L$15:$AA$44,11,FALSE))) -> 0 | T63: =IF(COUNTIF($T$60:$AB$60,"=0")=5,0,IF($T$60=0,0,IF(O63=0,0,VLOOKUP(O63,Input!$L$15:$AA$44,12,FALSE)))) -> 0 | U63: =IF(COUNTIF($T$60:$AB$60,"=0")=5,0,IF($U$60=0,0,IF(O63=0,0,VLOOKUP(O63,Input!$L$15:$AA$44,13,FALSE)))) -> 0 | V63: =IF(COUNTIF($T$60:$AB$60,"=0")=5,0,IF($V$60=0,0,IF(O63=0,0,VLOOKUP(O63,Input!$L$15:$AA$44,14,FALSE)))) -> 0 | X63: =IF(COUNTIF($T$60:$AB$60,"=0")=5,0,IF($X$60=0,0,IF(O63=0,0,VLOOKUP(O63,Input!$L$15:$AA$44,15,FALSE)))) -> 0 | Z63: =IF(COUNTBLANK(Input!$F$14:$J$14)=5,IF(O63=0,0,VLOOKUP(O63,Input!$L$15:$AA$44,11,FALSE)),IF($Z$60=0,0,IF(O63=0,0,VLOOKUP(O63,Input!$L$15:$AA$44,16,FALSE)))) -> EACH | AC63: =IF(COUNTIF($T$60:$AB$60,"=0")<5,IF(IF(O63=0,0,VLOOKUP(O63,Input!$L$15:$AC$44,18,FALSE))="X",T63+U63+V63+X63+Z63,MAX(T63:AB63)),IF(O63=0,0,MAX(VLOOKUP(O63,Input!$L$15:$AC$44,12,FALSE),VLOOKUP(O63,Input!$L$15:$AC$44,13,FALSE),VLOOKUP(O63,Input!$L$15:$AC$44,14,FALSE),VLOOKUP(O63,Input!$L$15:$AC$44,15,FALSE),VLOOKUP(O63,Input!$L$15:$AC$44,16,FALSE)))) -> 0
C64: =Calculations!B59 -> W8-3-48 | D64: =Calculations!I59 -> 48"x48" | E64: =Calculations!J59 -> PAVEMENT ENDS | F64: =IF(Input!F$14=0,0,Calculations!L59) -> 0 | G64: =IF(Input!G$14=0,0,Calculations!M59) -> 0 | H64: =IF(Input!H$14=0,0,Calculations!N59) -> 0 | I64: =IF(Input!I$14=0,0,Calculations!O59) -> 0 | J64: =IF(Input!J$14=0,0,Calculations!P59) -> 0 | K64: =MAX(Calculations!L59:P59) -> 0 | L64: =Calculations!K59 -> 35 | M64: 0 | O64: =IF(COUNT(Input!$L$15:$L$44)-3<1,0,LARGE(Input!$L$15:$L$44,COUNT(Input!$L$15:$L$44)-3)) -> 7041052 | Q64: =IF(O64=0,0,VLOOKUP(O64,Input!$L$15:$AA$44,2,FALSE)) -> TYPE III BARRICADES | S64: =IF(COUNTBLANK(Input!$F$14:$J$14)=5,0,IF(O64=0,0,VLOOKUP(O64,Input!$L$15:$AA$44,11,FALSE))) -> 0 | T64: =IF(COUNTIF($T$60:$AB$60,"=0")=5,0,IF($T$60=0,0,IF(O64=0,0,VLOOKUP(O64,Input!$L$15:$AA$44,12,FALSE)))) -> 0 | U64: =IF(COUNTIF($T$60:$AB$60,"=0")=5,0,IF($U$60=0,0,IF(O64=0,0,VLOOKUP(O64,Input!$L$15:$AA$44,13,FALSE)))) -> 0 | V64: =IF(COUNTIF($T$60:$AB$60,"=0")=5,0,IF($V$60=0,0,IF(O64=0,0,VLOOKUP(O64,Input!$L$15:$AA$44,14,FALSE)))) -> 0 | X64: =IF(COUNTIF($T$60:$AB$60,"=0")=5,0,IF($X$60=0,0,IF(O64=0,0,VLOOKUP(O64,Input!$L$15:$AA$44,15,FALSE)))) -> 0 | Z64: =IF(COUNTBLANK(Input!$F$14:$J$14)=5,IF(O64=0,0,VLOOKUP(O64,Input!$L$15:$AA$44,11,FALSE)),IF($Z$60=0,0,IF(O64=0,0,VLOOKUP(O64,Input!$L$15:$AA$44,16,FALSE)))) -> EACH | AC64: =IF(COUNTIF($T$60:$AB$60,"=0")<5,IF(IF(O64=0,0,VLOOKUP(O64,Input!$L$15:$AC$44,18,FALSE))="X",T64+U64+V64+X64+Z64,MAX(T64:AB64)),IF(O64=0,0,MAX(VLOOKUP(O64,Input!$L$15:$AC$44,12,FALSE),VLOOKUP(O64,Input!$L$15:$AC$44,13,FALSE),VLOOKUP(O64,Input!$L$15:$AC$44,14,FALSE),VLOOKUP(O64,Input!$L$15:$AC$44,15,FALSE),VLOOKUP(O64,Input!$L$15:$AC$44,16,FALSE)))) -> 0
C65: =Calculations!B60 -> W8-7-48 | D65: =Calculations!I60 -> 48"x48" | E65: =Calculations!J60 -> LOOSE GRAVEL | F65: =IF(Input!F$14=0,0,Calculations!L60) -> 0 | G65: =IF(Input!G$14=0,0,Calculations!M60) -> 0 | H65: =IF(Input!H$14=0,0,Calculations!N60) -> 0 | I65: =IF(Input!I$14=0,0,Calculations!O60) -> 0 | J65: =IF(Input!J$14=0,0,Calculations!P60) -> 0 | K65: =MAX(Calculations!L60:P60) -> 0 | L65: =Calculations!K60 -> 35 | M65: 0 | O65: =IF(COUNT(Input!$L$15:$L$44)-4<1,0,LARGE(Input!$L$15:$L$44,COUNT(Input!$L$15:$L$44)-4)) -> 7041060 | Q65: =IF(O65=0,0,VLOOKUP(O65,Input!$L$15:$AA$44,2,FALSE)) -> DELINEATOR DRUMS | S65: =IF(COUNTBLANK(Input!$F$14:$J$14)=5,0,IF(O65=0,0,VLOOKUP(O65,Input!$L$15:$AA$44,11,FALSE))) -> 0 | T65: =IF(COUNTIF($T$60:$AB$60,"=0")=5,0,IF($T$60=0,0,IF(O65=0,0,VLOOKUP(O65,Input!$L$15:$AA$44,12,FALSE)))) -> 0 | U65: =IF(COUNTIF($T$60:$AB$60,"=0")=5,0,IF($U$60=0,0,IF(O65=0,0,VLOOKUP(O65,Input!$L$15:$AA$44,13,FALSE)))) -> 0 | V65: =IF(COUNTIF($T$60:$AB$60,"=0")=5,0,IF($V$60=0,0,IF(O65=0,0,VLOOKUP(O65,Input!$L$15:$AA$44,14,FALSE)))) -> 0 | X65: =IF(COUNTIF($T$60:$AB$60,"=0")=5,0,IF($X$60=0,0,IF(O65=0,0,VLOOKUP(O65,Input!$L$15:$AA$44,15,FALSE)))) -> 0 | Z65: =IF(COUNTBLANK(Input!$F$14:$J$14)=5,IF(O65=0,0,VLOOKUP(O65,Input!$L$15:$AA$44,11,FALSE)),IF($Z$60=0,0,IF(O65=0,0,VLOOKUP(O65,Input!$L$15:$AA$44,16,FALSE)))) -> EACH | AC65: =IF(COUNTIF($T$60:$AB$60,"=0")<5,IF(IF(O65=0,0,VLOOKUP(O65,Input!$L$15:$AC$44,18,FALSE))="X",T65+U65+V65+X65+Z65,MAX(T65:AB65)),IF(O65=0,0,MAX(VLOOKUP(O65,Input!$L$15:$AC$44,12,FALSE),VLOOKUP(O65,Input!$L$15:$AC$44,13,FALSE),VLOOKUP(O65,Input!$L$15:$AC$44,14,FALSE),VLOOKUP(O65,Input!$L$15:$AC$44,15,FALSE),VLOOKUP(O65,Input!$L$15:$AC$44,16,FALSE)))) -> 0
C66: =Calculations!B61 -> W8-11-48 | D66: =Calculations!I61 -> 48"x48" | E66: =Calculations!J61 -> UNEVEN LANES | F66: =IF(Input!F$14=0,0,Calculations!L61) -> 0 | G66: =IF(Input!G$14=0,0,Calculations!M61) -> 0 | H66: =IF(Input!H$14=0,0,Calculations!N61) -> 0 | I66: =IF(Input!I$14=0,0,Calculations!O61) -> 0 | J66: =IF(Input!J$14=0,0,Calculations!P61) -> 0 | K66: =MAX(Calculations!L61:P61) -> 0 | L66: =Calculations!K61 -> 35 | M66: 0 | O66: =IF(COUNT(Input!$L$15:$L$44)-5<1,0,LARGE(Input!$L$15:$L$44,COUNT(Input!$L$15:$L$44)-5)) -> 7041065 | Q66: =IF(O66=0,0,VLOOKUP(O66,Input!$L$15:$AA$44,2,FALSE)) -> TRAFFIC CONES | S66: =IF(COUNTBLANK(Input!$F$14:$J$14)=5,0,IF(O66=0,0,VLOOKUP(O66,Input!$L$15:$AA$44,11,FALSE))) -> 0 | T66: =IF(COUNTIF($T$60:$AB$60,"=0")=5,0,IF($T$60=0,0,IF(O66=0,0,VLOOKUP(O66,Input!$L$15:$AA$44,12,FALSE)))) -> 0 | U66: =IF(COUNTIF($T$60:$AB$60,"=0")=5,0,IF($U$60=0,0,IF(O66=0,0,VLOOKUP(O66,Input!$L$15:$AA$44,13,FALSE)))) -> 0 | V66: =IF(COUNTIF($T$60:$AB$60,"=0")=5,0,IF($V$60=0,0,IF(O66=0,0,VLOOKUP(O66,Input!$L$15:$AA$44,14,FALSE)))) -> 0 | X66: =IF(COUNTIF($T$60:$AB$60,"=0")=5,0,IF($X$60=0,0,IF(O66=0,0,VLOOKUP(O66,Input!$L$15:$AA$44,15,FALSE)))) -> 0 | Z66: =IF(COUNTBLANK(Input!$F$14:$J$14)=5,IF(O66=0,0,VLOOKUP(O66,Input!$L$15:$AA$44,11,FALSE)),IF($Z$60=0,0,IF(O66=0,0,VLOOKUP(O66,Input!$L$15:$AA$44,16,FALSE)))) -> EACH | AC66: =IF(COUNTIF($T$60:$AB$60,"=0")<5,IF(IF(O66=0,0,VLOOKUP(O66,Input!$L$15:$AC$44,18,FALSE))="X",T66+U66+V66+X66+Z66,MAX(T66:AB66)),IF(O66=0,0,MAX(VLOOKUP(O66,Input!$L$15:$AC$44,12,FALSE),VLOOKUP(O66,Input!$L$15:$AC$44,13,FALSE),VLOOKUP(O66,Input!$L$15:$AC$44,14,FALSE),VLOOKUP(O66,Input!$L$15:$AC$44,15,FALSE),VLOOKUP(O66,Input!$L$15:$AC$44,16,FALSE)))) -> 0
C67: =Calculations!B62 -> W8-12-48 | D67: =Calculations!I62 -> 48"x48" | E67: =Calculations!J62 -> NO CENTER LINE | F67: =IF(Input!F$14=0,0,Calculations!L62) -> 0 | G67: =IF(Input!G$14=0,0,Calculations!M62) -> 0 | H67: =IF(Input!H$14=0,0,Calculations!N62) -> 0 | I67: =IF(Input!I$14=0,0,Calculations!O62) -> 0 | J67: =IF(Input!J$14=0,0,Calculations!P62) -> 0 | K67: =MAX(Calculations!L62:P62) -> 0 | L67: =Calculations!K62 -> 35 | M67: 0 | O67: =IF(COUNT(Input!$L$15:$L$44)-6<1,0,LARGE(Input!$L$15:$L$44,COUNT(Input!$L$15:$L$44)-6)) -> 7041067 | Q67: =IF(O67=0,0,VLOOKUP(O67,Input!$L$15:$AA$44,2,FALSE)) -> TUBULAR MARKERS | S67: =IF(COUNTBLANK(Input!$F$14:$J$14)=5,0,IF(O67=0,0,VLOOKUP(O67,Input!$L$15:$AA$44,11,FALSE))) -> 0 | T67: =IF(COUNTIF($T$60:$AB$60,"=0")=5,0,IF($T$60=0,0,IF(O67=0,0,VLOOKUP(O67,Input!$L$15:$AA$44,12,FALSE)))) -> 0 | U67: =IF(COUNTIF($T$60:$AB$60,"=0")=5,0,IF($U$60=0,0,IF(O67=0,0,VLOOKUP(O67,Input!$L$15:$AA$44,13,FALSE)))) -> 0 | V67: =IF(COUNTIF($T$60:$AB$60,"=0")=5,0,IF($V$60=0,0,IF(O67=0,0,VLOOKUP(O67,Input!$L$15:$AA$44,14,FALSE)))) -> 0 | X67: =IF(COUNTIF($T$60:$AB$60,"=0")=5,0,IF($X$60=0,0,IF(O67=0,0,VLOOKUP(O67,Input!$L$15:$AA$44,15,FALSE)))) -> 0 | Z67: =IF(COUNTBLANK(Input!$F$14:$J$14)=5,IF(O67=0,0,VLOOKUP(O67,Input!$L$15:$AA$44,11,FALSE)),IF($Z$60=0,0,IF(O67=0,0,VLOOKUP(O67,Input!$L$15:$AA$44,16,FALSE)))) -> EACH | AC67: =IF(COUNTIF($T$60:$AB$60,"=0")<5,IF(IF(O67=0,0,VLOOKUP(O67,Input!$L$15:$AC$44,18,FALSE))="X",T67+U67+V67+X67+Z67,MAX(T67:AB67)),IF(O67=0,0,MAX(VLOOKUP(O67,Input!$L$15:$AC$44,12,FALSE),VLOOKUP(O67,Input!$L$15:$AC$44,13,FALSE),VLOOKUP(O67,Input!$L$15:$AC$44,14,FALSE),VLOOKUP(O67,Input!$L$15:$AC$44,15,FALSE),VLOOKUP(O67,Input!$L$15:$AC$44,16,FALSE)))) -> 0
C68: =Calculations!B63 -> W8-17-48 | D68: =Calculations!I63 -> 48"x48" | E68: =Calculations!J63 -> SHOULDER DROP-OFF SYMBOL | F68: =IF(Input!F$14=0,0,Calculations!L63) -> 0 | G68: =IF(Input!G$14=0,0,Calculations!M63) -> 0 | H68: =IF(Input!H$14=0,0,Calculations!N63) -> 0 | I68: =IF(Input!I$14=0,0,Calculations!O63) -> 0 | J68: =IF(Input!J$14=0,0,Calculations!P63) -> 0 | K68: =MAX(Calculations!L63:P63) -> 0 | L68: =Calculations!K63 -> 35 | M68: 0 | O68: =IF(COUNT(Input!$L$15:$L$44)-7<1,0,LARGE(Input!$L$15:$L$44,COUNT(Input!$L$15:$L$44)-7)) -> 7041070 | Q68: =IF(O68=0,0,VLOOKUP(O68,Input!$L$15:$AA$44,2,FALSE)) -> DELINEATOR | S68: =IF(COUNTBLANK(Input!$F$14:$J$14)=5,0,IF(O68=0,0,VLOOKUP(O68,Input!$L$15:$AA$44,11,FALSE))) -> 0 | T68: =IF(COUNTIF($T$60:$AB$60,"=0")=5,0,IF($T$60=0,0,IF(O68=0,0,VLOOKUP(O68,Input!$L$15:$AA$44,12,FALSE)))) -> 0 | U68: =IF(COUNTIF($T$60:$AB$60,"=0")=5,0,IF($U$60=0,0,IF(O68=0,0,VLOOKUP(O68,Input!$L$15:$AA$44,13,FALSE)))) -> 0 | V68: =IF(COUNTIF($T$60:$AB$60,"=0")=5,0,IF($V$60=0,0,IF(O68=0,0,VLOOKUP(O68,Input!$L$15:$AA$44,14,FALSE)))) -> 0 | X68: =IF(COUNTIF($T$60:$AB$60,"=0")=5,0,IF($X$60=0,0,IF(O68=0,0,VLOOKUP(O68,Input!$L$15:$AA$44,15,FALSE)))) -> 0 | Z68: =IF(COUNTBLANK(Input!$F$14:$J$14)=5,IF(O68=0,0,VLOOKUP(O68,Input!$L$15:$AA$44,11,FALSE)),IF($Z$60=0,0,IF(O68=0,0,VLOOKUP(O68,Input!$L$15:$AA$44,16,FALSE)))) -> EACH | AC68: =IF(COUNTIF($T$60:$AB$60,"=0")<5,IF(IF(O68=0,0,VLOOKUP(O68,Input!$L$15:$AC$44,18,FALSE))="X",T68+U68+V68+X68+Z68,MAX(T68:AB68)),IF(O68=0,0,MAX(VLOOKUP(O68,Input!$L$15:$AC$44,12,FALSE),VLOOKUP(O68,Input!$L$15:$AC$44,13,FALSE),VLOOKUP(O68,Input!$L$15:$AC$44,14,FALSE),VLOOKUP(O68,Input!$L$15:$AC$44,15,FALSE),VLOOKUP(O68,Input!$L$15:$AC$44,16,FALSE)))) -> 0
C69: =Calculations!B64 -> W8-53-48 | D69: =Calculations!I64 -> 48"x48" | E69: =Calculations!J64 -> TRUCKS ENTERING HIGHWAY | F69: =IF(Input!F$14=0,0,Calculations!L64) -> 0 | G69: =IF(Input!G$14=0,0,Calculations!M64) -> 0 | H69: =IF(Input!H$14=0,0,Calculations!N64) -> 0 | I69: =IF(Input!I$14=0,0,Calculations!O64) -> 0 | J69: =IF(Input!J$14=0,0,Calculations!P64) -> 0 | K69: =MAX(Calculations!L64:P64) -> 0 | L69: =Calculations!K64 -> 35 | M69: 0 | O69: =IF(COUNT(Input!$L$15:$L$44)-8<1,0,LARGE(Input!$L$15:$L$44,COUNT(Input!$L$15:$L$44)-8)) -> 7041072 | Q69: =IF(O69=0,0,VLOOKUP(O69,Input!$L$15:$AA$44,2,FALSE)) -> FLEXIBLE DELINEATORS | S69: =IF(COUNTBLANK(Input!$F$14:$J$14)=5,0,IF(O69=0,0,VLOOKUP(O69,Input!$L$15:$AA$44,11,FALSE))) -> 0 | T69: =IF(COUNTIF($T$60:$AB$60,"=0")=5,0,IF($T$60=0,0,IF(O69=0,0,VLOOKUP(O69,Input!$L$15:$AA$44,12,FALSE)))) -> 0 | U69: =IF(COUNTIF($T$60:$AB$60,"=0")=5,0,IF($U$60=0,0,IF(O69=0,0,VLOOKUP(O69,Input!$L$15:$AA$44,13,FALSE)))) -> 0 | V69: =IF(COUNTIF($T$60:$AB$60,"=0")=5,0,IF($V$60=0,0,IF(O69=0,0,VLOOKUP(O69,Input!$L$15:$AA$44,14,FALSE)))) -> 0 | X69: =IF(COUNTIF($T$60:$AB$60,"=0")=5,0,IF($X$60=0,0,IF(O69=0,0,VLOOKUP(O69,Input!$L$15:$AA$44,15,FALSE)))) -> 0 | Z69: =IF(COUNTBLANK(Input!$F$14:$J$14)=5,IF(O69=0,0,VLOOKUP(O69,Input!$L$15:$AA$44,11,FALSE)),IF($Z$60=0,0,IF(O69=0,0,VLOOKUP(O69,Input!$L$15:$AA$44,16,FALSE)))) -> EACH | AC69: =IF(COUNTIF($T$60:$AB$60,"=0")<5,IF(IF(O69=0,0,VLOOKUP(O69,Input!$L$15:$AC$44,18,FALSE))="X",T69+U69+V69+X69+Z69,MAX(T69:AB69)),IF(O69=0,0,MAX(VLOOKUP(O69,Input!$L$15:$AC$44,12,FALSE),VLOOKUP(O69,Input!$L$15:$AC$44,13,FALSE),VLOOKUP(O69,Input!$L$15:$AC$44,14,FALSE),VLOOKUP(O69,Input!$L$15:$AC$44,15,FALSE),VLOOKUP(O69,Input!$L$15:$AC$44,16,FALSE)))) -> 0
C70: =Calculations!B65 -> W8-54-48 | D70: =Calculations!I65 -> 48"x48" | E70: =Calculations!J65 -> TRUCKS ENTERING AHEAD or __ FT or _ MILE | F70: =IF(Input!F$14=0,0,Calculations!L65) -> 0 | G70: =IF(Input!G$14=0,0,Calculations!M65) -> 0 | H70: =IF(Input!H$14=0,0,Calculations!N65) -> 0 | I70: =IF(Input!I$14=0,0,Calculations!O65) -> 0 | J70: =IF(Input!J$14=0,0,Calculations!P65) -> 0 | K70: =MAX(Calculations!L65:P65) -> 0 | L70: =Calculations!K65 -> 35 | M70: 0 | O70: =IF(COUNT(Input!$L$15:$L$44)-9<1,0,LARGE(Input!$L$15:$L$44,COUNT(Input!$L$15:$L$44)-9)) -> 7041080 | Q70: =IF(O70=0,0,VLOOKUP(O70,Input!$L$15:$AA$44,2,FALSE)) -> STACKABLE VERTICAL PANELS | S70: =IF(COUNTBLANK(Input!$F$14:$J$14)=5,0,IF(O70=0,0,VLOOKUP(O70,Input!$L$15:$AA$44,11,FALSE))) -> 0 | T70: =IF(COUNTIF($T$60:$AB$60,"=0")=5,0,IF($T$60=0,0,IF(O70=0,0,VLOOKUP(O70,Input!$L$15:$AA$44,12,FALSE)))) -> 0 | U70: =IF(COUNTIF($T$60:$AB$60,"=0")=5,0,IF($U$60=0,0,IF(O70=0,0,VLOOKUP(O70,Input!$L$15:$AA$44,13,FALSE)))) -> 0 | V70: =IF(COUNTIF($T$60:$AB$60,"=0")=5,0,IF($V$60=0,0,IF(O70=0,0,VLOOKUP(O70,Input!$L$15:$AA$44,14,FALSE)))) -> 0 | X70: =IF(COUNTIF($T$60:$AB$60,"=0")=5,0,IF($X$60=0,0,IF(O70=0,0,VLOOKUP(O70,Input!$L$15:$AA$44,15,FALSE)))) -> 0 | Z70: =IF(COUNTBLANK(Input!$F$14:$J$14)=5,IF(O70=0,0,VLOOKUP(O70,Input!$L$15:$AA$44,11,FALSE)),IF($Z$60=0,0,IF(O70=0,0,VLOOKUP(O70,Input!$L$15:$AA$44,16,FALSE)))) -> EACH | AC70: =IF(COUNTIF($T$60:$AB$60,"=0")<5,IF(IF(O70=0,0,VLOOKUP(O70,Input!$L$15:$AC$44,18,FALSE))="X",T70+U70+V70+X70+Z70,MAX(T70:AB70)),IF(O70=0,0,MAX(VLOOKUP(O70,Input!$L$15:$AC$44,12,FALSE),VLOOKUP(O70,Input!$L$15:$AC$44,13,FALSE),VLOOKUP(O70,Input!$L$15:$AC$44,14,FALSE),VLOOKUP(O70,Input!$L$15:$AC$44,15,FALSE),VLOOKUP(O70,Input!$L$15:$AC$44,16,FALSE)))) -> 0
C71: =Calculations!B66 -> W8-55-48 | D71: =Calculations!I66 -> 48"x48" | E71: =Calculations!J66 -> TRUCKS CROSSING AHEAD or __ FT or _ MILE | F71: =IF(Input!F$14=0,0,Calculations!L66) -> 0 | G71: =IF(Input!G$14=0,0,Calculations!M66) -> 0 | H71: =IF(Input!H$14=0,0,Calculations!N66) -> 0 | I71: =IF(Input!I$14=0,0,Calculations!O66) -> 0 | J71: =IF(Input!J$14=0,0,Calculations!P66) -> 0 | K71: =MAX(Calculations!L66:P66) -> 0 | L71: =Calculations!K66 -> 35 | M71: 0 | O71: =IF(COUNT(Input!$L$15:$L$44)-10<1,0,LARGE(Input!$L$15:$L$44,COUNT(Input!$L$15:$L$44)-10)) -> 7041081 | Q71: =IF(O71=0,0,VLOOKUP(O71,Input!$L$15:$AA$44,2,FALSE)) -> VERTICAL PANELS - BACK TO BACK | S71: =IF(COUNTBLANK(Input!$F$14:$J$14)=5,0,IF(O71=0,0,VLOOKUP(O71,Input!$L$15:$AA$44,11,FALSE))) -> 0 | T71: =IF(COUNTIF($T$60:$AB$60,"=0")=5,0,IF($T$60=0,0,IF(O71=0,0,VLOOKUP(O71,Input!$L$15:$AA$44,12,FALSE)))) -> 0 | U71: =IF(COUNTIF($T$60:$AB$60,"=0")=5,0,IF($U$60=0,0,IF(O71=0,0,VLOOKUP(O71,Input!$L$15:$AA$44,13,FALSE)))) -> 0 | V71: =IF(COUNTIF($T$60:$AB$60,"=0")=5,0,IF($V$60=0,0,IF(O71=0,0,VLOOKUP(O71,Input!$L$15:$AA$44,14,FALSE)))) -> 0 | X71: =IF(COUNTIF($T$60:$AB$60,"=0")=5,0,IF($X$60=0,0,IF(O71=0,0,VLOOKUP(O71,Input!$L$15:$AA$44,15,FALSE)))) -> 0 | Z71: =IF(COUNTBLANK(Input!$F$14:$J$14)=5,IF(O71=0,0,VLOOKUP(O71,Input!$L$15:$AA$44,11,FALSE)),IF($Z$60=0,0,IF(O71=0,0,VLOOKUP(O71,Input!$L$15:$AA$44,16,FALSE)))) -> EACH | AC71: =IF(COUNTIF($T$60:$AB$60,"=0")<5,IF(IF(O71=0,0,VLOOKUP(O71,Input!$L$15:$AC$44,18,FALSE))="X",T71+U71+V71+X71+Z71,MAX(T71:AB71)),IF(O71=0,0,MAX(VLOOKUP(O71,Input!$L$15:$AC$44,12,FALSE),VLOOKUP(O71,Input!$L$15:$AC$44,13,FALSE),VLOOKUP(O71,Input!$L$15:$AC$44,14,FALSE),VLOOKUP(O71,Input!$L$15:$AC$44,15,FALSE),VLOOKUP(O71,Input!$L$15:$AC$44,16,FALSE)))) -> 0
C72: =Calculations!B67 -> W8-56-48 | D72: =Calculations!I67 -> 48"x48" | E72: =Calculations!J67 -> TRUCKS EXITING HIGHWAY | F72: =IF(Input!F$14=0,0,Calculations!L67) -> 0 | G72: =IF(Input!G$14=0,0,Calculations!M67) -> 0 | H72: =IF(Input!H$14=0,0,Calculations!N67) -> 0 | I72: =IF(Input!I$14=0,0,Calculations!O67) -> 0 | J72: =IF(Input!J$14=0,0,Calculations!P67) -> 0 | K72: =MAX(Calculations!L67:P67) -> 0 | L72: =Calculations!K67 -> 35 | M72: 0 | O72: =IF(COUNT(Input!$L$15:$L$44)-11<1,0,LARGE(Input!$L$15:$L$44,COUNT(Input!$L$15:$L$44)-11)) -> 7041085 | Q72: =IF(O72=0,0,VLOOKUP(O72,Input!$L$15:$AA$44,2,FALSE)) -> SEQUENCING ARROW PANEL - TYPE A | S72: =IF(COUNTBLANK(Input!$F$14:$J$14)=5,0,IF(O72=0,0,VLOOKUP(O72,Input!$L$15:$AA$44,11,FALSE))) -> 0 | T72: =IF(COUNTIF($T$60:$AB$60,"=0")=5,0,IF($T$60=0,0,IF(O72=0,0,VLOOKUP(O72,Input!$L$15:$AA$44,12,FALSE)))) -> 0 | U72: =IF(COUNTIF($T$60:$AB$60,"=0")=5,0,IF($U$60=0,0,IF(O72=0,0,VLOOKUP(O72,Input!$L$15:$AA$44,13,FALSE)))) -> 0 | V72: =IF(COUNTIF($T$60:$AB$60,"=0")=5,0,IF($V$60=0,0,IF(O72=0,0,VLOOKUP(O72,Input!$L$15:$AA$44,14,FALSE)))) -> 0 | X72: =IF(COUNTIF($T$60:$AB$60,"=0")=5,0,IF($X$60=0,0,IF(O72=0,0,VLOOKUP(O72,Input!$L$15:$AA$44,15,FALSE)))) -> 0 | Z72: =IF(COUNTBLANK(Input!$F$14:$J$14)=5,IF(O72=0,0,VLOOKUP(O72,Input!$L$15:$AA$44,11,FALSE)),IF($Z$60=0,0,IF(O72=0,0,VLOOKUP(O72,Input!$L$15:$AA$44,16,FALSE)))) -> EACH | AC72: =IF(COUNTIF($T$60:$AB$60,"=0")<5,IF(IF(O72=0,0,VLOOKUP(O72,Input!$L$15:$AC$44,18,FALSE))="X",T72+U72+V72+X72+Z72,MAX(T72:AB72)),IF(O72=0,0,MAX(VLOOKUP(O72,Input!$L$15:$AC$44,12,FALSE),VLOOKUP(O72,Input!$L$15:$AC$44,13,FALSE),VLOOKUP(O72,Input!$L$15:$AC$44,14,FALSE),VLOOKUP(O72,Input!$L$15:$AC$44,15,FALSE),VLOOKUP(O72,Input!$L$15:$AC$44,16,FALSE)))) -> 0
C73: =Calculations!B68 -> W9-3a-48 | D73: =Calculations!I68 -> 48"x48" | E73: =Calculations!J68 -> CENTER LANE CLOSED SYMBOL | F73: =IF(Input!F$14=0,0,Calculations!L68) -> 0 | G73: =IF(Input!G$14=0,0,Calculations!M68) -> 0 | H73: =IF(Input!H$14=0,0,Calculations!N68) -> 0 | I73: =IF(Input!I$14=0,0,Calculations!O68) -> 0 | J73: =IF(Input!J$14=0,0,Calculations!P68) -> 0 | K73: =MAX(Calculations!L68:P68) -> 0 | L73: =Calculations!K68 -> 35 | M73: 0 | O73: =IF(COUNT(Input!$L$15:$L$44)-12<1,0,LARGE(Input!$L$15:$L$44,COUNT(Input!$L$15:$L$44)-12)) -> 7041086 | Q73: =IF(O73=0,0,VLOOKUP(O73,Input!$L$15:$AA$44,2,FALSE)) -> SEQUENCING ARROW PANEL - TYPE B | S73: =IF(COUNTBLANK(Input!$F$14:$J$14)=5,0,IF(O73=0,0,VLOOKUP(O73,Input!$L$15:$AA$44,11,FALSE))) -> 0 | T73: =IF(COUNTIF($T$60:$AB$60,"=0")=5,0,IF($T$60=0,0,IF(O73=0,0,VLOOKUP(O73,Input!$L$15:$AA$44,12,FALSE)))) -> 0 | U73: =IF(COUNTIF($T$60:$AB$60,"=0")=5,0,IF($U$60=0,0,IF(O73=0,0,VLOOKUP(O73,Input!$L$15:$AA$44,13,FALSE)))) -> 0 | V73: =IF(COUNTIF($T$60:$AB$60,"=0")=5,0,IF($V$60=0,0,IF(O73=0,0,VLOOKUP(O73,Input!$L$15:$AA$44,14,FALSE)))) -> 0 | X73: =IF(COUNTIF($T$60:$AB$60,"=0")=5,0,IF($X$60=0,0,IF(O73=0,0,VLOOKUP(O73,Input!$L$15:$AA$44,15,FALSE)))) -> 0 | Z73: =IF(COUNTBLANK(Input!$F$14:$J$14)=5,IF(O73=0,0,VLOOKUP(O73,Input!$L$15:$AA$44,11,FALSE)),IF($Z$60=0,0,IF(O73=0,0,VLOOKUP(O73,Input!$L$15:$AA$44,16,FALSE)))) -> EACH | AC73: =IF(COUNTIF($T$60:$AB$60,"=0")<5,IF(IF(O73=0,0,VLOOKUP(O73,Input!$L$15:$AC$44,18,FALSE))="X",T73+U73+V73+X73+Z73,MAX(T73:AB73)),IF(O73=0,0,MAX(VLOOKUP(O73,Input!$L$15:$AC$44,12,FALSE),VLOOKUP(O73,Input!$L$15:$AC$44,13,FALSE),VLOOKUP(O73,Input!$L$15:$AC$44,14,FALSE),VLOOKUP(O73,Input!$L$15:$AC$44,15,FALSE),VLOOKUP(O73,Input!$L$15:$AC$44,16,FALSE)))) -> 0
C74: =Calculations!B69 -> W13-1P-30 | D74: =Calculations!I69 -> 30"x30" | E74: =Calculations!J69 -> __ MPH ADVISORY SPEED PLAQUE (Mounted on warning sign post) | F74: =IF(Input!F$14=0,0,Calculations!L69) -> 0 | G74: =IF(Input!G$14=0,0,Calculations!M69) -> 0 | H74: =IF(Input!H$14=0,0,Calculations!N69) -> 0 | I74: =IF(Input!I$14=0,0,Calculations!O69) -> 0 | J74: =IF(Input!J$14=0,0,Calculations!P69) -> 0 | K74: =MAX(Calculations!L69:P69) -> 0 | L74: =Calculations!K69 -> 14 | M74: =IF(AND(K74>0,K74*L74=0),"NO UNITS",K74*L74) -> 0 | O74: =IF(COUNT(Input!$L$15:$L$44)-13<1,0,LARGE(Input!$L$15:$L$44,COUNT(Input!$L$15:$L$44)-13)) -> 7041087 | Q74: =IF(O74=0,0,VLOOKUP(O74,Input!$L$15:$AA$44,2,FALSE)) -> SEQUENCING ARROW PANEL - TYPE C | S74: =IF(COUNTBLANK(Input!$F$14:$J$14)=5,0,IF(O74=0,0,VLOOKUP(O74,Input!$L$15:$AA$44,11,FALSE))) -> 0 | T74: =IF(COUNTIF($T$60:$AB$60,"=0")=5,0,IF($T$60=0,0,IF(O74=0,0,VLOOKUP(O74,Input!$L$15:$AA$44,12,FALSE)))) -> 0 | U74: =IF(COUNTIF($T$60:$AB$60,"=0")=5,0,IF($U$60=0,0,IF(O74=0,0,VLOOKUP(O74,Input!$L$15:$AA$44,13,FALSE)))) -> 0 | V74: =IF(COUNTIF($T$60:$AB$60,"=0")=5,0,IF($V$60=0,0,IF(O74=0,0,VLOOKUP(O74,Input!$L$15:$AA$44,14,FALSE)))) -> 0 | X74: =IF(COUNTIF($T$60:$AB$60,"=0")=5,0,IF($X$60=0,0,IF(O74=0,0,VLOOKUP(O74,Input!$L$15:$AA$44,15,FALSE)))) -> 0 | Z74: =IF(COUNTBLANK(Input!$F$14:$J$14)=5,IF(O74=0,0,VLOOKUP(O74,Input!$L$15:$AA$44,11,FALSE)),IF($Z$60=0,0,IF(O74=0,0,VLOOKUP(O74,Input!$L$15:$AA$44,16,FALSE)))) -> EACH | AC74: =IF(COUNTIF($T$60:$AB$60,"=0")<5,IF(IF(O74=0,0,VLOOKUP(O74,Input!$L$15:$AC$44,18,FALSE))="X",T74+U74+V74+X74+Z74,MAX(T74:AB74)),IF(O74=0,0,MAX(VLOOKUP(O74,Input!$L$15:$AC$44,12,FALSE),VLOOKUP(O74,Input!$L$15:$AC$44,13,FALSE),VLOOKUP(O74,Input!$L$15:$AC$44,14,FALSE),VLOOKUP(O74,Input!$L$15:$AC$44,15,FALSE),VLOOKUP(O74,Input!$L$15:$AC$44,16,FALSE)))) -> 0
C75: =Calculations!B70 -> W14-3-64 | D75: =Calculations!I70 -> 64"x48" | E75: =Calculations!J70 -> NO PASSING ZONE | F75: =IF(Input!F$14=0,0,Calculations!L70) -> 0 | G75: =IF(Input!G$14=0,0,Calculations!M70) -> 0 | H75: =IF(Input!H$14=0,0,Calculations!N70) -> 0 | I75: =IF(Input!I$14=0,0,Calculations!O70) -> 0 | J75: =IF(Input!J$14=0,0,Calculations!P70) -> 0 | K75: =MAX(Calculations!L70:P70) -> 0 | L75: =Calculations!K70 -> 28 | M75: 0 | O75: =IF(COUNT(Input!$L$15:$L$44)-14<1,0,LARGE(Input!$L$15:$L$44,COUNT(Input!$L$15:$L$44)-14)) -> 7041500 | Q75: =IF(O75=0,0,VLOOKUP(O75,Input!$L$15:$AA$44,2,FALSE)) -> OBLITERATION OF PVMT MK | S75: =IF(COUNTBLANK(Input!$F$14:$J$14)=5,0,IF(O75=0,0,VLOOKUP(O75,Input!$L$15:$AA$44,11,FALSE))) -> 0 | T75: =IF(COUNTIF($T$60:$AB$60,"=0")=5,0,IF($T$60=0,0,IF(O75=0,0,VLOOKUP(O75,Input!$L$15:$AA$44,12,FALSE)))) -> 0 | U75: =IF(COUNTIF($T$60:$AB$60,"=0")=5,0,IF($U$60=0,0,IF(O75=0,0,VLOOKUP(O75,Input!$L$15:$AA$44,13,FALSE)))) -> 0 | V75: =IF(COUNTIF($T$60:$AB$60,"=0")=5,0,IF($V$60=0,0,IF(O75=0,0,VLOOKUP(O75,Input!$L$15:$AA$44,14,FALSE)))) -> 0 | X75: =IF(COUNTIF($T$60:$AB$60,"=0")=5,0,IF($X$60=0,0,IF(O75=0,0,VLOOKUP(O75,Input!$L$15:$AA$44,15,FALSE)))) -> 0 | Z75: =IF(COUNTBLANK(Input!$F$14:$J$14)=5,IF(O75=0,0,VLOOKUP(O75,Input!$L$15:$AA$44,11,FALSE)),IF($Z$60=0,0,IF(O75=0,0,VLOOKUP(O75,Input!$L$15:$AA$44,16,FALSE)))) -> SF | AC75: =IF(COUNTIF($T$60:$AB$60,"=0")<5,IF(IF(O75=0,0,VLOOKUP(O75,Input!$L$15:$AC$44,18,FALSE))="X",T75+U75+V75+X75+Z75,MAX(T75:AB75)),IF(O75=0,0,MAX(VLOOKUP(O75,Input!$L$15:$AC$44,12,FALSE),VLOOKUP(O75,Input!$L$15:$AC$44,13,FALSE),VLOOKUP(O75,Input!$L$15:$AC$44,14,FALSE),VLOOKUP(O75,Input!$L$15:$AC$44,15,FALSE),VLOOKUP(O75,Input!$L$15:$AC$44,16,FALSE)))) -> 0
C76: =Calculations!B71 -> W16-2P-30 | D76: =Calculations!I71 -> 30"x24" | E76: =Calculations!J71 -> __ FEET PLAQUE (Mounted on warning sign post) | F76: =IF(Input!F$14=0,0,Calculations!L71) -> 0 | G76: =IF(Input!G$14=0,0,Calculations!M71) -> 0 | H76: =IF(Input!H$14=0,0,Calculations!N71) -> 0 | I76: =IF(Input!I$14=0,0,Calculations!O71) -> 0 | J76: =IF(Input!J$14=0,0,Calculations!P71) -> 0 | K76: =MAX(Calculations!L71:P71) -> 0 | L76: =Calculations!K71 -> 10 | M76: 0 | O76: =IF(COUNT(Input!$L$15:$L$44)-15<1,0,LARGE(Input!$L$15:$L$44,COUNT(Input!$L$15:$L$44)-15)) -> 7043501 | Q76: =IF(O76=0,0,VLOOKUP(O76,Input!$L$15:$AA$44,2,FALSE)) -> PORTABLE PRECAST CONCRETE MED BARRIER | S76: =IF(COUNTBLANK(Input!$F$14:$J$14)=5,0,IF(O76=0,0,VLOOKUP(O76,Input!$L$15:$AA$44,11,FALSE))) -> 0 | T76: =IF(COUNTIF($T$60:$AB$60,"=0")=5,0,IF($T$60=0,0,IF(O76=0,0,VLOOKUP(O76,Input!$L$15:$AA$44,12,FALSE)))) -> 0 | U76: =IF(COUNTIF($T$60:$AB$60,"=0")=5,0,IF($U$60=0,0,IF(O76=0,0,VLOOKUP(O76,Input!$L$15:$AA$44,13,FALSE)))) -> 0 | V76: =IF(COUNTIF($T$60:$AB$60,"=0")=5,0,IF($V$60=0,0,IF(O76=0,0,VLOOKUP(O76,Input!$L$15:$AA$44,14,FALSE)))) -> 0 | X76: =IF(COUNTIF($T$60:$AB$60,"=0")=5,0,IF($X$60=0,0,IF(O76=0,0,VLOOKUP(O76,Input!$L$15:$AA$44,15,FALSE)))) -> 0 | Z76: =IF(COUNTBLANK(Input!$F$14:$J$14)=5,IF(O76=0,0,VLOOKUP(O76,Input!$L$15:$AA$44,11,FALSE)),IF($Z$60=0,0,IF(O76=0,0,VLOOKUP(O76,Input!$L$15:$AA$44,16,FALSE)))) -> LF | AC76: =IF(COUNTIF($T$60:$AB$60,"=0")<5,IF(IF(O76=0,0,VLOOKUP(O76,Input!$L$15:$AC$44,18,FALSE))="X",T76+U76+V76+X76+Z76,MAX(T76:AB76)),IF(O76=0,0,MAX(VLOOKUP(O76,Input!$L$15:$AC$44,12,FALSE),VLOOKUP(O76,Input!$L$15:$AC$44,13,FALSE),VLOOKUP(O76,Input!$L$15:$AC$44,14,FALSE),VLOOKUP(O76,Input!$L$15:$AC$44,15,FALSE),VLOOKUP(O76,Input!$L$15:$AC$44,16,FALSE)))) -> 0
C77: =Calculations!B72 -> W20-1-48 | D77: =Calculations!I72 -> 48"x48" | E77: =Calculations!J72 -> ROAD WORK AHEAD or _FT or _ MILE | F77: =IF(Input!F$14=0,0,Calculations!L72) -> 0 | G77: =IF(Input!G$14=0,0,Calculations!M72) -> 0 | H77: =IF(Input!H$14=0,0,Calculations!N72) -> 0 | I77: =IF(Input!I$14=0,0,Calculations!O72) -> 0 | J77: =IF(Input!J$14=0,0,Calculations!P72) -> 0 | K77: =MAX(Calculations!L72:P72) -> 0 | L77: =Calculations!K72 -> 35 | M77: 0 | O77: =IF(COUNT(Input!$L$15:$L$44)-16<1,0,LARGE(Input!$L$15:$L$44,COUNT(Input!$L$15:$L$44)-16)) -> 7043510 | Q77: =IF(O77=0,0,VLOOKUP(O77,Input!$L$15:$AA$44,2,FALSE)) -> PRECAST CONCRETE MED BARRIER - STATE FURNISHED | S77: =IF(COUNTBLANK(Input!$F$14:$J$14)=5,0,IF(O77=0,0,VLOOKUP(O77,Input!$L$15:$AA$44,11,FALSE))) -> 0 | T77: =IF(COUNTIF($T$60:$AB$60,"=0")=5,0,IF($T$60=0,0,IF(O77=0,0,VLOOKUP(O77,Input!$L$15:$AA$44,12,FALSE)))) -> 0 | U77: =IF(COUNTIF($T$60:$AB$60,"=0")=5,0,IF($U$60=0,0,IF(O77=0,0,VLOOKUP(O77,Input!$L$15:$AA$44,13,FALSE)))) -> 0 | V77: =IF(COUNTIF($T$60:$AB$60,"=0")=5,0,IF($V$60=0,0,IF(O77=0,0,VLOOKUP(O77,Input!$L$15:$AA$44,14,FALSE)))) -> 0 | X77: =IF(COUNTIF($T$60:$AB$60,"=0")=5,0,IF($X$60=0,0,IF(O77=0,0,VLOOKUP(O77,Input!$L$15:$AA$44,15,FALSE)))) -> 0 | Z77: =IF(COUNTBLANK(Input!$F$14:$J$14)=5,IF(O77=0,0,VLOOKUP(O77,Input!$L$15:$AA$44,11,FALSE)),IF($Z$60=0,0,IF(O77=0,0,VLOOKUP(O77,Input!$L$15:$AA$44,16,FALSE)))) -> EACH | AC77: =IF(COUNTIF($T$60:$AB$60,"=0")<5,IF(IF(O77=0,0,VLOOKUP(O77,Input!$L$15:$AC$44,18,FALSE))="X",T77+U77+V77+X77+Z77,MAX(T77:AB77)),IF(O77=0,0,MAX(VLOOKUP(O77,Input!$L$15:$AC$44,12,FALSE),VLOOKUP(O77,Input!$L$15:$AC$44,13,FALSE),VLOOKUP(O77,Input!$L$15:$AC$44,14,FALSE),VLOOKUP(O77,Input!$L$15:$AC$44,15,FALSE),VLOOKUP(O77,Input!$L$15:$AC$44,16,FALSE)))) -> 0
C78: =Calculations!B73 -> W20-2-48 | D78: =Calculations!I73 -> 48"x48" | E78: =Calculations!J73 -> DETOUR AHEAD or __ FT or _ MILE | F78: =IF(Input!F$14=0,0,Calculations!L73) -> 0 | G78: =IF(Input!G$14=0,0,Calculations!M73) -> 0 | H78: =IF(Input!H$14=0,0,Calculations!N73) -> 0 | I78: =IF(Input!I$14=0,0,Calculations!O73) -> 0 | J78: =IF(Input!J$14=0,0,Calculations!P73) -> 0 | K78: =MAX(Calculations!L73:P73) -> 0 | L78: =Calculations!K73 -> 35 | M78: 0 | O78: =IF(COUNT(Input!$L$15:$L$44)-17<1,0,LARGE(Input!$L$15:$L$44,COUNT(Input!$L$15:$L$44)-17)) -> 7620200 | Q78: =IF(O78=0,0,VLOOKUP(O78,Input!$L$15:$AA$44,2,FALSE)) -> RAISED PAVEMENT MARKERS | S78: =IF(COUNTBLANK(Input!$F$14:$J$14)=5,0,IF(O78=0,0,VLOOKUP(O78,Input!$L$15:$AA$44,11,FALSE))) -> 0 | T78: =IF(COUNTIF($T$60:$AB$60,"=0")=5,0,IF($T$60=0,0,IF(O78=0,0,VLOOKUP(O78,Input!$L$15:$AA$44,12,FALSE)))) -> 0 | U78: =IF(COUNTIF($T$60:$AB$60,"=0")=5,0,IF($U$60=0,0,IF(O78=0,0,VLOOKUP(O78,Input!$L$15:$AA$44,13,FALSE)))) -> 0 | V78: =IF(COUNTIF($T$60:$AB$60,"=0")=5,0,IF($V$60=0,0,IF(O78=0,0,VLOOKUP(O78,Input!$L$15:$AA$44,14,FALSE)))) -> 0 | X78: =IF(COUNTIF($T$60:$AB$60,"=0")=5,0,IF($X$60=0,0,IF(O78=0,0,VLOOKUP(O78,Input!$L$15:$AA$44,15,FALSE)))) -> 0 | Z78: =IF(COUNTBLANK(Input!$F$14:$J$14)=5,IF(O78=0,0,VLOOKUP(O78,Input!$L$15:$AA$44,11,FALSE)),IF($Z$60=0,0,IF(O78=0,0,VLOOKUP(O78,Input!$L$15:$AA$44,16,FALSE)))) -> EACH | AC78: =IF(COUNTIF($T$60:$AB$60,"=0")<5,IF(IF(O78=0,0,VLOOKUP(O78,Input!$L$15:$AC$44,18,FALSE))="X",T78+U78+V78+X78+Z78,MAX(T78:AB78)),IF(O78=0,0,MAX(VLOOKUP(O78,Input!$L$15:$AC$44,12,FALSE),VLOOKUP(O78,Input!$L$15:$AC$44,13,FALSE),VLOOKUP(O78,Input!$L$15:$AC$44,14,FALSE),VLOOKUP(O78,Input!$L$15:$AC$44,15,FALSE),VLOOKUP(O78,Input!$L$15:$AC$44,16,FALSE)))) -> 0
C79: =Calculations!B74 -> W20-3-48 | D79: =Calculations!I74 -> 48"x48" | E79: =Calculations!J74 -> ROAD or STREET CLOSED AHEAD or __ FT or _ MILE | F79: =IF(Input!F$14=0,0,Calculations!L74) -> 0 | G79: =IF(Input!G$14=0,0,Calculations!M74) -> 0 | H79: =IF(Input!H$14=0,0,Calculations!N74) -> 0 | I79: =IF(Input!I$14=0,0,Calculations!O74) -> 0 | J79: =IF(Input!J$14=0,0,Calculations!P74) -> 0 | K79: =MAX(Calculations!L74:P74) -> 0 | L79: =Calculations!K74 -> 35 | M79: 0 | O79: =IF(COUNT(Input!$L$15:$L$44)-18<1,0,LARGE(Input!$L$15:$L$44,COUNT(Input!$L$15:$L$44)-18)) -> 7620420 | Q79: =IF(O79=0,0,VLOOKUP(O79,Input!$L$15:$AA$44,2,FALSE)) -> SHORT TERM 4IN LINE - TYPE R | S79: =IF(COUNTBLANK(Input!$F$14:$J$14)=5,0,IF(O79=0,0,VLOOKUP(O79,Input!$L$15:$AA$44,11,FALSE))) -> 0 | T79: =IF(COUNTIF($T$60:$AB$60,"=0")=5,0,IF($T$60=0,0,IF(O79=0,0,VLOOKUP(O79,Input!$L$15:$AA$44,12,FALSE)))) -> 0 | U79: =IF(COUNTIF($T$60:$AB$60,"=0")=5,0,IF($U$60=0,0,IF(O79=0,0,VLOOKUP(O79,Input!$L$15:$AA$44,13,FALSE)))) -> 0 | V79: =IF(COUNTIF($T$60:$AB$60,"=0")=5,0,IF($V$60=0,0,IF(O79=0,0,VLOOKUP(O79,Input!$L$15:$AA$44,14,FALSE)))) -> 0 | X79: =IF(COUNTIF($T$60:$AB$60,"=0")=5,0,IF($X$60=0,0,IF(O79=0,0,VLOOKUP(O79,Input!$L$15:$AA$44,15,FALSE)))) -> 0 | Z79: =IF(COUNTBLANK(Input!$F$14:$J$14)=5,IF(O79=0,0,VLOOKUP(O79,Input!$L$15:$AA$44,11,FALSE)),IF($Z$60=0,0,IF(O79=0,0,VLOOKUP(O79,Input!$L$15:$AA$44,16,FALSE)))) -> LF | AC79: =IF(COUNTIF($T$60:$AB$60,"=0")<5,IF(IF(O79=0,0,VLOOKUP(O79,Input!$L$15:$AC$44,18,FALSE))="X",T79+U79+V79+X79+Z79,MAX(T79:AB79)),IF(O79=0,0,MAX(VLOOKUP(O79,Input!$L$15:$AC$44,12,FALSE),VLOOKUP(O79,Input!$L$15:$AC$44,13,FALSE),VLOOKUP(O79,Input!$L$15:$AC$44,14,FALSE),VLOOKUP(O79,Input!$L$15:$AC$44,15,FALSE),VLOOKUP(O79,Input!$L$15:$AC$44,16,FALSE)))) -> 0
C80: =Calculations!B75 -> W20-4-48 | D80: =Calculations!I75 -> 48"x48" | E80: =Calculations!J75 -> ONE LANE ROAD AHEAD or __ FT or _ MILE | F80: =IF(Input!F$14=0,0,Calculations!L75) -> 0 | G80: =IF(Input!G$14=0,0,Calculations!M75) -> 0 | H80: =IF(Input!H$14=0,0,Calculations!N75) -> 0 | I80: =IF(Input!I$14=0,0,Calculations!O75) -> 0 | J80: =IF(Input!J$14=0,0,Calculations!P75) -> 0 | K80: =MAX(Calculations!L75:P75) -> 0 | L80: =Calculations!K75 -> 35 | M80: 0 | O80: =IF(COUNT(Input!$L$15:$L$44)-19<1,0,LARGE(Input!$L$15:$L$44,COUNT(Input!$L$15:$L$44)-19)) -> 7620430 | Q80: =IF(O80=0,0,VLOOKUP(O80,Input!$L$15:$AA$44,2,FALSE)) -> SHORT TERM 4IN LINE - TYPE NR | S80: =IF(COUNTBLANK(Input!$F$14:$J$14)=5,0,IF(O80=0,0,VLOOKUP(O80,Input!$L$15:$AA$44,11,FALSE))) -> 0 | T80: =IF(COUNTIF($T$60:$AB$60,"=0")=5,0,IF($T$60=0,0,IF(O80=0,0,VLOOKUP(O80,Input!$L$15:$AA$44,12,FALSE)))) -> 0 | U80: =IF(COUNTIF($T$60:$AB$60,"=0")=5,0,IF($U$60=0,0,IF(O80=0,0,VLOOKUP(O80,Input!$L$15:$AA$44,13,FALSE)))) -> 0 | V80: =IF(COUNTIF($T$60:$AB$60,"=0")=5,0,IF($V$60=0,0,IF(O80=0,0,VLOOKUP(O80,Input!$L$15:$AA$44,14,FALSE)))) -> 0 | X80: =IF(COUNTIF($T$60:$AB$60,"=0")=5,0,IF($X$60=0,0,IF(O80=0,0,VLOOKUP(O80,Input!$L$15:$AA$44,15,FALSE)))) -> 0 | Z80: =IF(COUNTBLANK(Input!$F$14:$J$14)=5,IF(O80=0,0,VLOOKUP(O80,Input!$L$15:$AA$44,11,FALSE)),IF($Z$60=0,0,IF(O80=0,0,VLOOKUP(O80,Input!$L$15:$AA$44,16,FALSE)))) -> LF | AC80: =IF(COUNTIF($T$60:$AB$60,"=0")<5,IF(IF(O80=0,0,VLOOKUP(O80,Input!$L$15:$AC$44,18,FALSE))="X",T80+U80+V80+X80+Z80,MAX(T80:AB80)),IF(O80=0,0,MAX(VLOOKUP(O80,Input!$L$15:$AC$44,12,FALSE),VLOOKUP(O80,Input!$L$15:$AC$44,13,FALSE),VLOOKUP(O80,Input!$L$15:$AC$44,14,FALSE),VLOOKUP(O80,Input!$L$15:$AC$44,15,FALSE),VLOOKUP(O80,Input!$L$15:$AC$44,16,FALSE)))) -> 0
C81: =Calculations!B76 -> W20-5-48 | D81: =Calculations!I76 -> 48"x48" | E81: =Calculations!J76 -> RIGHT or CENTER or LEFT LANE CLOSED AHEAD or __ FT or _ MILE | F81: =IF(Input!F$14=0,0,Calculations!L76) -> 0 | G81: =IF(Input!G$14=0,0,Calculations!M76) -> 0 | H81: =IF(Input!H$14=0,0,Calculations!N76) -> 0 | I81: =IF(Input!I$14=0,0,Calculations!O76) -> 0 | J81: =IF(Input!J$14=0,0,Calculations!P76) -> 0 | K81: =MAX(Calculations!L76:P76) -> 0 | L81: =Calculations!K76 -> 35 | M81: 0 | O81: =IF(COUNT(Input!$L$15:$L$44)-20<1,0,LARGE(Input!$L$15:$L$44,COUNT(Input!$L$15:$L$44)-20)) -> 0 | Q81: =IF(O81=0,0,VLOOKUP(O81,Input!$L$15:$AA$44,2,FALSE)) -> 0 | S81: =IF(COUNTBLANK(Input!$F$14:$J$14)=5,0,IF(O81=0,0,VLOOKUP(O81,Input!$L$15:$AA$44,11,FALSE))) -> 0 | T81: =IF(COUNTIF($T$60:$AB$60,"=0")=5,0,IF($T$60=0,0,IF(O81=0,0,VLOOKUP(O81,Input!$L$15:$AA$44,12,FALSE)))) -> 0 | U81: =IF(COUNTIF($T$60:$AB$60,"=0")=5,0,IF($U$60=0,0,IF(O81=0,0,VLOOKUP(O81,Input!$L$15:$AA$44,13,FALSE)))) -> 0 | V81: =IF(COUNTIF($T$60:$AB$60,"=0")=5,0,IF($V$60=0,0,IF(O81=0,0,VLOOKUP(O81,Input!$L$15:$AA$44,14,FALSE)))) -> 0 | X81: =IF(COUNTIF($T$60:$AB$60,"=0")=5,0,IF($X$60=0,0,IF(O81=0,0,VLOOKUP(O81,Input!$L$15:$AA$44,15,FALSE)))) -> 0 | Z81: =IF(COUNTBLANK(Input!$F$14:$J$14)=5,IF(O81=0,0,VLOOKUP(O81,Input!$L$15:$AA$44,11,FALSE)),IF($Z$60=0,0,IF(O81=0,0,VLOOKUP(O81,Input!$L$15:$AA$44,16,FALSE)))) -> 0 | AC81: =IF(COUNTIF($T$60:$AB$60,"=0")<5,IF(IF(O81=0,0,VLOOKUP(O81,Input!$L$15:$AC$44,18,FALSE))="X",T81+U81+V81+X81+Z81,MAX(T81:AB81)),IF(O81=0,0,MAX(VLOOKUP(O81,Input!$L$15:$AC$44,12,FALSE),VLOOKUP(O81,Input!$L$15:$AC$44,13,FALSE),VLOOKUP(O81,Input!$L$15:$AC$44,14,FALSE),VLOOKUP(O81,Input!$L$15:$AC$44,15,FALSE),VLOOKUP(O81,Input!$L$15:$AC$44,16,FALSE)))) -> 0
C82: =Calculations!B77 -> W20-7-48 | D82: =Calculations!I77 -> 48"x48" | E82: =Calculations!J77 -> FLAGGER | F82: =IF(Input!F$14=0,0,Calculations!L77) -> 0 | G82: =IF(Input!G$14=0,0,Calculations!M77) -> 0 | H82: =IF(Input!H$14=0,0,Calculations!N77) -> 0 | I82: =IF(Input!I$14=0,0,Calculations!O77) -> 0 | J82: =IF(Input!J$14=0,0,Calculations!P77) -> 0 | K82: =MAX(Calculations!L77:P77) -> 0 | L82: =Calculations!K77 -> 35 | M82: 0 | O82: =IF(COUNT(Input!$L$15:$L$44)-21<1,0,LARGE(Input!$L$15:$L$44,COUNT(Input!$L$15:$L$44)-21)) -> 0 | Q82: =IF(O82=0,0,VLOOKUP(O82,Input!$L$15:$AA$44,2,FALSE)) -> 0 | S82: =IF(COUNTBLANK(Input!$F$14:$J$14)=5,0,IF(O82=0,0,VLOOKUP(O82,Input!$L$15:$AA$44,11,FALSE))) -> 0 | T82: =IF(COUNTIF($T$60:$AB$60,"=0")=5,0,IF($T$60=0,0,IF(O82=0,0,VLOOKUP(O82,Input!$L$15:$AA$44,12,FALSE)))) -> 0 | U82: =IF(COUNTIF($T$60:$AB$60,"=0")=5,0,IF($U$60=0,0,IF(O82=0,0,VLOOKUP(O82,Input!$L$15:$AA$44,13,FALSE)))) -> 0 | V82: =IF(COUNTIF($T$60:$AB$60,"=0")=5,0,IF($V$60=0,0,IF(O82=0,0,VLOOKUP(O82,Input!$L$15:$AA$44,14,FALSE)))) -> 0 | X82: =IF(COUNTIF($T$60:$AB$60,"=0")=5,0,IF($X$60=0,0,IF(O82=0,0,VLOOKUP(O82,Input!$L$15:$AA$44,15,FALSE)))) -> 0 | Z82: =IF(COUNTBLANK(Input!$F$14:$J$14)=5,IF(O82=0,0,VLOOKUP(O82,Input!$L$15:$AA$44,11,FALSE)),IF($Z$60=0,0,IF(O82=0,0,VLOOKUP(O82,Input!$L$15:$AA$44,16,FALSE)))) -> 0 | AC82: =IF(COUNTIF($T$60:$AB$60,"=0")<5,IF(IF(O82=0,0,VLOOKUP(O82,Input!$L$15:$AC$44,18,FALSE))="X",T82+U82+V82+X82+Z82,MAX(T82:AB82)),IF(O82=0,0,MAX(VLOOKUP(O82,Input!$L$15:$AC$44,12,FALSE),VLOOKUP(O82,Input!$L$15:$AC$44,13,FALSE),VLOOKUP(O82,Input!$L$15:$AC$44,14,FALSE),VLOOKUP(O82,Input!$L$15:$AC$44,15,FALSE),VLOOKUP(O82,Input!$L$15:$AC$44,16,FALSE)))) -> 0 | AH82: Traffic Control Devices List
C83: =Calculations!B78 -> W20-8-18 | D83: =Calculations!I78 -> 18"x18" | E83: =Calculations!J78 -> STOP - SLOW PADDLE Back to Back | F83: =IF(Input!F$14=0,0,Calculations!L78) -> 0 | G83: =IF(Input!G$14=0,0,Calculations!M78) -> 0 | H83: =IF(Input!H$14=0,0,Calculations!N78) -> 0 | I83: =IF(Input!I$14=0,0,Calculations!O78) -> 0 | J83: =IF(Input!J$14=0,0,Calculations!P78) -> 0 | K83: =MAX(Calculations!L78:P78) -> 0 | L83: =Calculations!K78 -> 5 | M83: 0 | O83: =IF(COUNT(Input!$L$15:$L$44)-22<1,0,LARGE(Input!$L$15:$L$44,COUNT(Input!$L$15:$L$44)-22)) -> 0 | Q83: =IF(O83=0,0,VLOOKUP(O83,Input!$L$15:$AA$44,2,FALSE)) -> 0 | S83: =IF(COUNTBLANK(Input!$F$14:$J$14)=5,0,IF(O83=0,0,VLOOKUP(O83,Input!$L$15:$AA$44,11,FALSE))) -> 0 | T83: =IF(COUNTIF($T$60:$AB$60,"=0")=5,0,IF($T$60=0,0,IF(O83=0,0,VLOOKUP(O83,Input!$L$15:$AA$44,12,FALSE)))) -> 0 | U83: =IF(COUNTIF($T$60:$AB$60,"=0")=5,0,IF($U$60=0,0,IF(O83=0,0,VLOOKUP(O83,Input!$L$15:$AA$44,13,FALSE)))) -> 0 | V83: =IF(COUNTIF($T$60:$AB$60,"=0")=5,0,IF($V$60=0,0,IF(O83=0,0,VLOOKUP(O83,Input!$L$15:$AA$44,14,FALSE)))) -> 0 | X83: =IF(COUNTIF($T$60:$AB$60,"=0")=5,0,IF($X$60=0,0,IF(O83=0,0,VLOOKUP(O83,Input!$L$15:$AA$44,15,FALSE)))) -> 0 | Z83: =IF(COUNTBLANK(Input!$F$14:$J$14)=5,IF(O83=0,0,VLOOKUP(O83,Input!$L$15:$AA$44,11,FALSE)),IF($Z$60=0,0,IF(O83=0,0,VLOOKUP(O83,Input!$L$15:$AA$44,16,FALSE)))) -> 0 | AC83: =IF(COUNTIF($T$60:$AB$60,"=0")<5,IF(IF(O83=0,0,VLOOKUP(O83,Input!$L$15:$AC$44,18,FALSE))="X",T83+U83+V83+X83+Z83,MAX(T83:AB83)),IF(O83=0,0,MAX(VLOOKUP(O83,Input!$L$15:$AC$44,12,FALSE),VLOOKUP(O83,Input!$L$15:$AC$44,13,FALSE),VLOOKUP(O83,Input!$L$15:$AC$44,14,FALSE),VLOOKUP(O83,Input!$L$15:$AC$44,15,FALSE),VLOOKUP(O83,Input!$L$15:$AC$44,16,FALSE)))) -> 0
C84: =Calculations!B79 -> W20-52P-54 | D84: =Calculations!I79 -> 54"x12" | E84: =Calculations!J79 -> NEXT __ MILES (Mounted on warning sign post) | F84: =IF(Input!F$14=0,0,Calculations!L79) -> 0 | G84: =IF(Input!G$14=0,0,Calculations!M79) -> 0 | H84: =IF(Input!H$14=0,0,Calculations!N79) -> 0 | I84: =IF(Input!I$14=0,0,Calculations!O79) -> 0 | J84: =IF(Input!J$14=0,0,Calculations!P79) -> 0 | K84: =MAX(Calculations!L79:P79) -> 0 | L84: =Calculations!K79 -> 12 | M84: 0 | O84: =IF(COUNT(Input!$L$15:$L$44)-23<1,0,LARGE(Input!$L$15:$L$44,COUNT(Input!$L$15:$L$44)-23)) -> 0 | Q84: =IF(O84=0,0,VLOOKUP(O84,Input!$L$15:$AA$44,2,FALSE)) -> 0 | S84: =IF(COUNTBLANK(Input!$F$14:$J$14)=5,0,IF(O84=0,0,VLOOKUP(O84,Input!$L$15:$AA$44,11,FALSE))) -> 0 | T84: =IF(COUNTIF($T$60:$AB$60,"=0")=5,0,IF($T$60=0,0,IF(O84=0,0,VLOOKUP(O84,Input!$L$15:$AA$44,12,FALSE)))) -> 0 | U84: =IF(COUNTIF($T$60:$AB$60,"=0")=5,0,IF($U$60=0,0,IF(O84=0,0,VLOOKUP(O84,Input!$L$15:$AA$44,13,FALSE)))) -> 0 | V84: =IF(COUNTIF($T$60:$AB$60,"=0")=5,0,IF($V$60=0,0,IF(O84=0,0,VLOOKUP(O84,Input!$L$15:$AA$44,14,FALSE)))) -> 0 | X84: =IF(COUNTIF($T$60:$AB$60,"=0")=5,0,IF($X$60=0,0,IF(O84=0,0,VLOOKUP(O84,Input!$L$15:$AA$44,15,FALSE)))) -> 0 | Z84: =IF(COUNTBLANK(Input!$F$14:$J$14)=5,IF(O84=0,0,VLOOKUP(O84,Input!$L$15:$AA$44,11,FALSE)),IF($Z$60=0,0,IF(O84=0,0,VLOOKUP(O84,Input!$L$15:$AA$44,16,FALSE)))) -> 0 | AC84: =IF(COUNTIF($T$60:$AB$60,"=0")<5,IF(IF(O84=0,0,VLOOKUP(O84,Input!$L$15:$AC$44,18,FALSE))="X",T84+U84+V84+X84+Z84,MAX(T84:AB84)),IF(O84=0,0,MAX(VLOOKUP(O84,Input!$L$15:$AC$44,12,FALSE),VLOOKUP(O84,Input!$L$15:$AC$44,13,FALSE),VLOOKUP(O84,Input!$L$15:$AC$44,14,FALSE),VLOOKUP(O84,Input!$L$15:$AC$44,15,FALSE),VLOOKUP(O84,Input!$L$15:$AC$44,16,FALSE)))) -> 0
C85: =Calculations!B80 -> W21-1-48 | D85: =Calculations!I80 -> 48"x48" | E85: =Calculations!J80 -> WORKERS | F85: =IF(Input!F$14=0,0,Calculations!L80) -> 0 | G85: =IF(Input!G$14=0,0,Calculations!M80) -> 0 | H85: =IF(Input!H$14=0,0,Calculations!N80) -> 0 | I85: =IF(Input!I$14=0,0,Calculations!O80) -> 0 | J85: =IF(Input!J$14=0,0,Calculations!P80) -> 0 | K85: =MAX(Calculations!L80:P80) -> 0 | L85: =Calculations!K80 -> 35 | M85: 0 | O85: =IF(COUNT(Input!$L$15:$L$44)-24<1,0,LARGE(Input!$L$15:$L$44,COUNT(Input!$L$15:$L$44)-24)) -> 0 | Q85: =IF(O85=0,0,VLOOKUP(O85,Input!$L$15:$AA$44,2,FALSE)) -> 0 | S85: =IF(COUNTBLANK(Input!$F$14:$J$14)=5,0,IF(O85=0,0,VLOOKUP(O85,Input!$L$15:$AA$44,11,FALSE))) -> 0 | T85: =IF(COUNTIF($T$60:$AB$60,"=0")=5,0,IF($T$60=0,0,IF(O85=0,0,VLOOKUP(O85,Input!$L$15:$AA$44,12,FALSE)))) -> 0 | U85: =IF(COUNTIF($T$60:$AB$60,"=0")=5,0,IF($U$60=0,0,IF(O85=0,0,VLOOKUP(O85,Input!$L$15:$AA$44,13,FALSE)))) -> 0 | V85: =IF(COUNTIF($T$60:$AB$60,"=0")=5,0,IF($V$60=0,0,IF(O85=0,0,VLOOKUP(O85,Input!$L$15:$AA$44,14,FALSE)))) -> 0 | X85: =IF(COUNTIF($T$60:$AB$60,"=0")=5,0,IF($X$60=0,0,IF(O85=0,0,VLOOKUP(O85,Input!$L$15:$AA$44,15,FALSE)))) -> 0 | Z85: =IF(COUNTBLANK(Input!$F$14:$J$14)=5,IF(O85=0,0,VLOOKUP(O85,Input!$L$15:$AA$44,11,FALSE)),IF($Z$60=0,0,IF(O85=0,0,VLOOKUP(O85,Input!$L$15:$AA$44,16,FALSE)))) -> 0 | AC85: =IF(COUNTIF($T$60:$AB$60,"=0")<5,IF(IF(O85=0,0,VLOOKUP(O85,Input!$L$15:$AC$44,18,FALSE))="X",T85+U85+V85+X85+Z85,MAX(T85:AB85)),IF(O85=0,0,MAX(VLOOKUP(O85,Input!$L$15:$AC$44,12,FALSE),VLOOKUP(O85,Input!$L$15:$AC$44,13,FALSE),VLOOKUP(O85,Input!$L$15:$AC$44,14,FALSE),VLOOKUP(O85,Input!$L$15:$AC$44,15,FALSE),VLOOKUP(O85,Input!$L$15:$AC$44,16,FALSE)))) -> 0
C86: =Calculations!B81 -> W21-2-48 | D86: =Calculations!I81 -> 48"x48" | E86: =Calculations!J81 -> FRESH OIL | F86: =IF(Input!F$14=0,0,Calculations!L81) -> 0 | G86: =IF(Input!G$14=0,0,Calculations!M81) -> 0 | H86: =IF(Input!H$14=0,0,Calculations!N81) -> 0 | I86: =IF(Input!I$14=0,0,Calculations!O81) -> 0 | J86: =IF(Input!J$14=0,0,Calculations!P81) -> 0 | K86: =MAX(Calculations!L81:P81) -> 0 | L86: =Calculations!K81 -> 35 | M86: 0 | O86: =IF(COUNT(Input!$L$15:$L$44)-25<1,0,LARGE(Input!$L$15:$L$44,COUNT(Input!$L$15:$L$44)-25)) -> 0 | Q86: =IF(O86=0,0,VLOOKUP(O86,Input!$L$15:$AA$44,2,FALSE)) -> 0 | S86: =IF(COUNTBLANK(Input!$F$14:$J$14)=5,0,IF(O86=0,0,VLOOKUP(O86,Input!$L$15:$AA$44,11,FALSE))) -> 0 | T86: =IF(COUNTIF($T$60:$AB$60,"=0")=5,0,IF($T$60=0,0,IF(O86=0,0,VLOOKUP(O86,Input!$L$15:$AA$44,12,FALSE)))) -> 0 | U86: =IF(COUNTIF($T$60:$AB$60,"=0")=5,0,IF($U$60=0,0,IF(O86=0,0,VLOOKUP(O86,Input!$L$15:$AA$44,13,FALSE)))) -> 0 | V86: =IF(COUNTIF($T$60:$AB$60,"=0")=5,0,IF($V$60=0,0,IF(O86=0,0,VLOOKUP(O86,Input!$L$15:$AA$44,14,FALSE)))) -> 0 | X86: =IF(COUNTIF($T$60:$AB$60,"=0")=5,0,IF($X$60=0,0,IF(O86=0,0,VLOOKUP(O86,Input!$L$15:$AA$44,15,FALSE)))) -> 0 | Z86: =IF(COUNTBLANK(Input!$F$14:$J$14)=5,IF(O86=0,0,VLOOKUP(O86,Input!$L$15:$AA$44,11,FALSE)),IF($Z$60=0,0,IF(O86=0,0,VLOOKUP(O86,Input!$L$15:$AA$44,16,FALSE)))) -> 0 | AC86: =IF(COUNTIF($T$60:$AB$60,"=0")<5,IF(IF(O86=0,0,VLOOKUP(O86,Input!$L$15:$AC$44,18,FALSE))="X",T86+U86+V86+X86+Z86,MAX(T86:AB86)),IF(O86=0,0,MAX(VLOOKUP(O86,Input!$L$15:$AC$44,12,FALSE),VLOOKUP(O86,Input!$L$15:$AC$44,13,FALSE),VLOOKUP(O86,Input!$L$15:$AC$44,14,FALSE),VLOOKUP(O86,Input!$L$15:$AC$44,15,FALSE),VLOOKUP(O86,Input!$L$15:$AC$44,16,FALSE)))) -> 0
C87: =Calculations!B82 -> W21-3-48 | D87: =Calculations!I82 -> 48"x48" | E87: =Calculations!J82 -> ROAD MACHINERY AHEAD or __ FT or _ MILE | F87: =IF(Input!F$14=0,0,Calculations!L82) -> 0 | G87: =IF(Input!G$14=0,0,Calculations!M82) -> 0 | H87: =IF(Input!H$14=0,0,Calculations!N82) -> 0 | I87: =IF(Input!I$14=0,0,Calculations!O82) -> 0 | J87: =IF(Input!J$14=0,0,Calculations!P82) -> 0 | K87: =MAX(Calculations!L82:P82) -> 0 | L87: =Calculations!K82 -> 35 | M87: 0 | O87: =IF(COUNT(Input!$L$15:$L$44)-26<1,0,LARGE(Input!$L$15:$L$44,COUNT(Input!$L$15:$L$44)-26)) -> 0 | Q87: =IF(O87=0,0,VLOOKUP(O87,Input!$L$15:$AA$44,2,FALSE)) -> 0 | S87: =IF(COUNTBLANK(Input!$F$14:$J$14)=5,0,IF(O87=0,0,VLOOKUP(O87,Input!$L$15:$AA$44,11,FALSE))) -> 0 | T87: =IF(COUNTIF($T$60:$AB$60,"=0")=5,0,IF($T$60=0,0,IF(O87=0,0,VLOOKUP(O87,Input!$L$15:$AA$44,12,FALSE)))) -> 0 | U87: =IF(COUNTIF($T$60:$AB$60,"=0")=5,0,IF($U$60=0,0,IF(O87=0,0,VLOOKUP(O87,Input!$L$15:$AA$44,13,FALSE)))) -> 0 | V87: =IF(COUNTIF($T$60:$AB$60,"=0")=5,0,IF($V$60=0,0,IF(O87=0,0,VLOOKUP(O87,Input!$L$15:$AA$44,14,FALSE)))) -> 0 | X87: =IF(COUNTIF($T$60:$AB$60,"=0")=5,0,IF($X$60=0,0,IF(O87=0,0,VLOOKUP(O87,Input!$L$15:$AA$44,15,FALSE)))) -> 0 | Z87: =IF(COUNTBLANK(Input!$F$14:$J$14)=5,IF(O87=0,0,VLOOKUP(O87,Input!$L$15:$AA$44,11,FALSE)),IF($Z$60=0,0,IF(O87=0,0,VLOOKUP(O87,Input!$L$15:$AA$44,16,FALSE)))) -> 0 | AC87: =IF(COUNTIF($T$60:$AB$60,"=0")<5,IF(IF(O87=0,0,VLOOKUP(O87,Input!$L$15:$AC$44,18,FALSE))="X",T87+U87+V87+X87+Z87,MAX(T87:AB87)),IF(O87=0,0,MAX(VLOOKUP(O87,Input!$L$15:$AC$44,12,FALSE),VLOOKUP(O87,Input!$L$15:$AC$44,13,FALSE),VLOOKUP(O87,Input!$L$15:$AC$44,14,FALSE),VLOOKUP(O87,Input!$L$15:$AC$44,15,FALSE),VLOOKUP(O87,Input!$L$15:$AC$44,16,FALSE)))) -> 0
C88: =Calculations!B83 -> W21-5-48 | D88: =Calculations!I83 -> 48"x48" | E88: =Calculations!J83 -> SHOULDER WORK | F88: =IF(Input!F$14=0,0,Calculations!L83) -> 0 | G88: =IF(Input!G$14=0,0,Calculations!M83) -> 0 | H88: =IF(Input!H$14=0,0,Calculations!N83) -> 0 | I88: =IF(Input!I$14=0,0,Calculations!O83) -> 0 | J88: =IF(Input!J$14=0,0,Calculations!P83) -> 0 | K88: =MAX(Calculations!L83:P83) -> 0 | L88: =Calculations!K83 -> 35 | M88: 0 | O88: =IF(COUNT(Input!$L$15:$L$44)-27<1,0,LARGE(Input!$L$15:$L$44,COUNT(Input!$L$15:$L$44)-27)) -> 0 | Q88: =IF(O88=0,0,VLOOKUP(O88,Input!$L$15:$AA$44,2,FALSE)) -> 0 | S88: =IF(COUNTBLANK(Input!$F$14:$J$14)=5,0,IF(O88=0,0,VLOOKUP(O88,Input!$L$15:$AA$44,11,FALSE))) -> 0 | T88: =IF(COUNTIF($T$60:$AB$60,"=0")=5,0,IF($T$60=0,0,IF(O88=0,0,VLOOKUP(O88,Input!$L$15:$AA$44,12,FALSE)))) -> 0 | U88: =IF(COUNTIF($T$60:$AB$60,"=0")=5,0,IF($U$60=0,0,IF(O88=0,0,VLOOKUP(O88,Input!$L$15:$AA$44,13,FALSE)))) -> 0 | V88: =IF(COUNTIF($T$60:$AB$60,"=0")=5,0,IF($V$60=0,0,IF(O88=0,0,VLOOKUP(O88,Input!$L$15:$AA$44,14,FALSE)))) -> 0 | X88: =IF(COUNTIF($T$60:$AB$60,"=0")=5,0,IF($X$60=0,0,IF(O88=0,0,VLOOKUP(O88,Input!$L$15:$AA$44,15,FALSE)))) -> 0 | Z88: =IF(COUNTBLANK(Input!$F$14:$J$14)=5,IF(O88=0,0,VLOOKUP(O88,Input!$L$15:$AA$44,11,FALSE)),IF($Z$60=0,0,IF(O88=0,0,VLOOKUP(O88,Input!$L$15:$AA$44,16,FALSE)))) -> 0 | AC88: =IF(COUNTIF($T$60:$AB$60,"=0")<5,IF(IF(O88=0,0,VLOOKUP(O88,Input!$L$15:$AC$44,18,FALSE))="X",T88+U88+V88+X88+Z88,MAX(T88:AB88)),IF(O88=0,0,MAX(VLOOKUP(O88,Input!$L$15:$AC$44,12,FALSE),VLOOKUP(O88,Input!$L$15:$AC$44,13,FALSE),VLOOKUP(O88,Input!$L$15:$AC$44,14,FALSE),VLOOKUP(O88,Input!$L$15:$AC$44,15,FALSE),VLOOKUP(O88,Input!$L$15:$AC$44,16,FALSE)))) -> 0
C89: =Calculations!B84 -> W21-5a-48 | D89: =Calculations!I84 -> 48"x48" | E89: =Calculations!J84 -> RIGHT or LEFT SHOULDER CLOSED | F89: =IF(Input!F$14=0,0,Calculations!L84) -> 0 | G89: =IF(Input!G$14=0,0,Calculations!M84) -> 0 | H89: =IF(Input!H$14=0,0,Calculations!N84) -> 0 | I89: =IF(Input!I$14=0,0,Calculations!O84) -> 0 | J89: =IF(Input!J$14=0,0,Calculations!P84) -> 0 | K89: =MAX(Calculations!L84:P84) -> 0 | L89: =Calculations!K84 -> 35 | M89: 0 | O89: =IF(COUNT(Input!$L$15:$L$44)-28<1,0,LARGE(Input!$L$15:$L$44,COUNT(Input!$L$15:$L$44)-28)) -> 0 | Q89: =IF(O89=0,0,VLOOKUP(O89,Input!$L$15:$AA$44,2,FALSE)) -> 0 | S89: =IF(COUNTBLANK(Input!$F$14:$J$14)=5,0,IF(O89=0,0,VLOOKUP(O89,Input!$L$15:$AA$44,11,FALSE))) -> 0 | T89: =IF(COUNTIF($T$60:$AB$60,"=0")=5,0,IF($T$60=0,0,IF(O89=0,0,VLOOKUP(O89,Input!$L$15:$AA$44,12,FALSE)))) -> 0 | U89: =IF(COUNTIF($T$60:$AB$60,"=0")=5,0,IF($U$60=0,0,IF(O89=0,0,VLOOKUP(O89,Input!$L$15:$AA$44,13,FALSE)))) -> 0 | V89: =IF(COUNTIF($T$60:$AB$60,"=0")=5,0,IF($V$60=0,0,IF(O89=0,0,VLOOKUP(O89,Input!$L$15:$AA$44,14,FALSE)))) -> 0 | X89: =IF(COUNTIF($T$60:$AB$60,"=0")=5,0,IF($X$60=0,0,IF(O89=0,0,VLOOKUP(O89,Input!$L$15:$AA$44,15,FALSE)))) -> 0 | Z89: =IF(COUNTBLANK(Input!$F$14:$J$14)=5,IF(O89=0,0,VLOOKUP(O89,Input!$L$15:$AA$44,11,FALSE)),IF($Z$60=0,0,IF(O89=0,0,VLOOKUP(O89,Input!$L$15:$AA$44,16,FALSE)))) -> 0 | AC89: =IF(COUNTIF($T$60:$AB$60,"=0")<5,IF(IF(O89=0,0,VLOOKUP(O89,Input!$L$15:$AC$44,18,FALSE))="X",T89+U89+V89+X89+Z89,MAX(T89:AB89)),IF(O89=0,0,MAX(VLOOKUP(O89,Input!$L$15:$AC$44,12,FALSE),VLOOKUP(O89,Input!$L$15:$AC$44,13,FALSE),VLOOKUP(O89,Input!$L$15:$AC$44,14,FALSE),VLOOKUP(O89,Input!$L$15:$AC$44,15,FALSE),VLOOKUP(O89,Input!$L$15:$AC$44,16,FALSE)))) -> 0
C90: =Calculations!B85 -> W21-5b-48 | D90: =Calculations!I85 -> 48"x48" | E90: =Calculations!J85 -> RIGHT or LEFT SHOULDER CLOSED AHEAD or __ FT or _ MILE | F90: =IF(Input!F$14=0,0,Calculations!L85) -> 0 | G90: =IF(Input!G$14=0,0,Calculations!M85) -> 0 | H90: =IF(Input!H$14=0,0,Calculations!N85) -> 0 | I90: =IF(Input!I$14=0,0,Calculations!O85) -> 0 | J90: =IF(Input!J$14=0,0,Calculations!P85) -> 0 | K90: =MAX(Calculations!L85:P85) -> 0 | L90: =Calculations!K85 -> 35 | M90: 0 | O90: =IF(COUNT(Input!$L$15:$L$44)-29<1,0,LARGE(Input!$L$15:$L$44,COUNT(Input!$L$15:$L$44)-29)) -> 0 | Q90: =IF(O90=0,0,VLOOKUP(O90,Input!$L$15:$AA$44,2,FALSE)) -> 0 | S90: =IF(COUNTBLANK(Input!$F$14:$J$14)=5,0,IF(O90=0,0,VLOOKUP(O90,Input!$L$15:$AA$44,11,FALSE))) -> 0 | T90: =IF(COUNTIF($T$60:$AB$60,"=0")=5,0,IF($T$60=0,0,IF(O90=0,0,VLOOKUP(O90,Input!$L$15:$AA$44,12,FALSE)))) -> 0 | U90: =IF(COUNTIF($T$60:$AB$60,"=0")=5,0,IF($U$60=0,0,IF(O90=0,0,VLOOKUP(O90,Input!$L$15:$AA$44,13,FALSE)))) -> 0 | V90: =IF(COUNTIF($T$60:$AB$60,"=0")=5,0,IF($V$60=0,0,IF(O90=0,0,VLOOKUP(O90,Input!$L$15:$AA$44,14,FALSE)))) -> 0 | X90: =IF(COUNTIF($T$60:$AB$60,"=0")=5,0,IF($X$60=0,0,IF(O90=0,0,VLOOKUP(O90,Input!$L$15:$AA$44,15,FALSE)))) -> 0 | Z90: =IF(COUNTBLANK(Input!$F$14:$J$14)=5,IF(O90=0,0,VLOOKUP(O90,Input!$L$15:$AA$44,11,FALSE)),IF($Z$60=0,0,IF(O90=0,0,VLOOKUP(O90,Input!$L$15:$AA$44,16,FALSE)))) -> 0 | AC90: =IF(COUNTIF($T$60:$AB$60,"=0")<5,IF(IF(O90=0,0,VLOOKUP(O90,Input!$L$15:$AC$44,18,FALSE))="X",T90+U90+V90+X90+Z90,MAX(T90:AB90)),IF(O90=0,0,MAX(VLOOKUP(O90,Input!$L$15:$AC$44,12,FALSE),VLOOKUP(O90,Input!$L$15:$AC$44,13,FALSE),VLOOKUP(O90,Input!$L$15:$AC$44,14,FALSE),VLOOKUP(O90,Input!$L$15:$AC$44,15,FALSE),VLOOKUP(O90,Input!$L$15:$AC$44,16,FALSE)))) -> 0

Sheet 8.5x11 Plan Sheet (hidden)

Sheet Sign Units Computation (hidden)
A1: COMPUTATION OF SIGNING
A2: UNITS FOR TRAFFIC CONTROL
C5: Material Costs Per Project
D7: Signs | F7: 4 | G7: / SF | L7: NOTE: If additional signs are required, units will be calculated using the formula from Section III-18.06 of the Design Manual. http://www.dot.nd.gov/
D8: Posts | F8: 10 | G8: ea
C12: Installation cost of sign and post(s)
D14: Sign and 1 post | F14: 22
D15: Sign and 2 post | F15: 36
D16: Sign and 3 post | F16: 48
D17: Sign and 4 post | F17: 60
C19: Installation cost of sign on existing post(s)
D21: Sign and 1 post | F21: 14
D22: Sign and 2 post | F22: 22
D23: Sign and 3 post | F23: 28
D24: Sign and 4 post | F24: 32
D26: Installation costs include hardware, removal, maintenance, profit, and overhead.
A29: UNITS = | D29: (Cost of material | E29: + | F29: Cost of installation) | H29: / | I29: 3.5
C32: EXAMPLES
C34: #1) Sign mounted on post(s)
D36: 48" x 48" sign on 2 posts
D38: 4' x 4' = 16 SF x $4.00 / SF = | G38: 64
D39: 2 posts x $10.00 ea = | G39: 20
D40: Install sign and 2 posts = | G40: 36
F41: Total | G41: =SUM(G38:G40) -> 120
D43: Units = $120 / $3.50 = 34.3
D44: Use 35 Units
C46: #2) Sign mounted on existing installed post(s)
D48: 21" x 15" Arrow sign on 1 post
D50: 1.75' x 1.25' = 2.1875 SF x $4.00 / SF = | I50: 8.75
D51: Install sign on 1 existing post = | I51: 14
G52: Total | I52: =SUM(I50:I51) -> 22.75
D54: Units = $22.75 / $3.50 = 6.5
D55: Use 7 Units

Sheet D-704 Standards (hidden)
B1: If signs or devices are added to the input sheet, you may need to make the Traffic Control Signs & Devices independent of the Input sheet by using the Find_Blank_Row & Find_Blank_Row_Signs macros to enter the data into the Sheet Summary sheet. Items in yellow are hard coded into ChooseStandard code (some of these signs use rows from Sheet Summary in code also.)
B4: TRAFFIC CONTROL SIGNS | G4: D-704-15 Type A | H4: D-704-15 Type B | I4: D-704-15 Type C | J4: D-704-16 | K4: D-704-17 | L4: D-704-18 | M4: D-704-19 Type E | N4: D-704-19 Type F | O4: D-704-20 Type G | P4: D-704-20 Type H | Q4: D-704-21 Type I | R4: D-704-21 Type J | S4: D-704-22 Type K | T4: D-704-22 Type L | U4: D-704-22 Type M | V4: D-704-22 Type N | W4: D-704-22 Type O | X4: D-704-23 Type P | Y4: D-704-23 Type Q | Z4: D-704-24 Type R | AA4: D-704-24 Type S | AB4: D-704-24 Type T | AC4: D-704-24 Type U | AD4: D-704-24 Type HH | AE4: D-704-24 Type II | AF4: D-704-25 Type V | AG4: D-704-25 Type W | AH4: D-704-25 Type X | AI4: D-704-26 Type Y | AJ4: D-704-26 Type Z | AK4: D-704-26 Type AA | AL4: D-704-26 Type BB | AM4: D-704-26 Type CC | AN4: D-704-26 Type DD | AO4: D-704-26 Type EE | AP4: D-704-26 Type FF | AQ4: D-704-26 Type GG | AR4: D-704-26 Type JJ | AS4: D-704-26 Type KK | AT4: D-704-30 | AU4: D-704-31 | AV4: D-704-32 | AW4: D-704-34 | AX4: D-704-34A | AY4: D-704-35 | AZ4: D-704-35A | BA4: D-704-37 Two Lane | BB4: D-704-37 Four Lane | BC4: D-704-38 | BD4: D-704-39 | BE4: D-704-45 | BF4: D-704-49 | BG4: D-704-52 | BH4: D-704-52A | BI4: D-704-53, 54, & 55 | BJ4: D-704-57 | BK4: D-704-58 | BL4: D-704-59 | BM4: D-704-60 | BN4: D-704-61 | BO4: D-704-62 | BP4: D-704-63 Full/T-Intscn (far) | BQ4: D-704-63 T-Intscn (near) | BR4: Portable Rumble Strips Two-Lane | BS4: Portable Rumble Strips Four-Lane | BT4: Portable Rumble Strips Interstate | CL4: Used in ChooseStandard UserForm code in the initialize section
B5: SIGN NUMBER | C5: SIGN SIZE | D5: DESCRIPTION | F5: UNITS
B7: E5-1-48 | C7: 48"x48" | D7: EXIT GORE | F7: 35 | CK7: =COUNT(G7:CJ7) -> 0 | CL7: =G4 -> D-704-15 Type A
B8: G20-1-60 | C8: 60"x24" | D8: ROAD WORK NEXT __ MILES | F8: 28 | O8: 2 | W8: 1 | Z8: 1 | AB8: 1 | CK8: =COUNT(G8:CJ8) -> 4 | CL8: =H4 -> D-704-15 Type B
B9: G20-1b-60 | C9: 60"x24" | D9: NO WORK IN PROGRESS (Sign and installation only) | F9: 18 | O9: 2 | W9: 1 | CK9: 2 | CL9: =I4 -> D-704-15 Type C
B10: G20-2-48 | C10: 48"x24" | D10: END ROAD WORK | F10: 26 | H10: 2 | I10: 2 | J10: 2 | K10: 2 | L10: 2 | N10: 2 | O10: 2 | W10: 1 | X10: 1 | Y10: 2 | Z10: 2 | AC10: 2 | AD10: 2 | AW10: 2 | AY10: 2 | BC10: 1 | BD10: 1 | BK10: 2 | BM10: 1 | BN10: 1 | BO10: 1 | BS10: 2 | BT10: 2 | CK10: 23 | CL10: =J4 -> D-704-16
B11: G20-4-36 | C11: 36"x18" | D11: PILOT CAR FOLLOW ME (Mounted to back of pilot car) | F11: 18 | G11: 1 | N11: 1 | CK11: 2 | CL11: =K4 -> D-704-17
B12: G20-4b-36 | C12: 36"x30" | D12: WAIT FOR PILOT CAR | F12: 18 | AS12: 1 | CK12: 1 | CL12: =L4 -> D-704-18
B13: G20-50a-72 | C13: 72"x36" | D13: ROAD WORK NEXT __ MILES RT & LT ARROWS | F13: 43 | CK13: 0 | CL13: =M4 -> D-704-19 Type E
B14: G20-52a-72 | C14: 72"x24" | D14: ROAD WORK NEXT __ MILES RT or LT ARROW | F14: 36 | W14: 2 | CK14: 1 | CL14: =N4 -> D-704-19 Type F
B15: G20-55-96 | C15: 96"x48" | D15: SPEED LIMIT ENFORCED - MINIMUM FEE $150 WHEN WORKERS PRESENT | F15: 59 | H15: 2 | I15: 2 | J15: 2 | K15: 2 | L15: 2 | N15: 2 | O15: 2 | W15: 1 | AJ15: 2 | AU15: 2 | AW15: 2 | AY15: 2 | BC15: 2 | BD15: 2 | BH15: 2 | BI15: 4 | BK15: 4 | BM15: 2 | BN15: 2 | BO15: 2 | BS15: 2 | BT15: 2 | CK15: 22 | CL15: =O4 -> D-704-20 Type G
B16: M1-1-36 | C16: 36"x36" | D16: INTERSTATE ROUTE MARKER (Post and installation only) | F16: 11 | BH16: 2 | BI16: 14 | CK16: 2 | CL16: =P4 -> D-704-20 Type H
B17: M1-4-24 | C17: 24"x24" | D17: U.S. ROUTE MARKER (Post and installation only) | F17: 10 | M17: 3 | Q17: 28 | BI17: 2 | CK17: 3 | CL17: =Q4 -> D-704-21 Type I
B18: M1-5-24 | C18: 24"x24" | D18: STATE ROUTE MARKER (Post and installation only) | F18: 10 | M18: 3 | Q18: 28 | BI18: 2 | CK18: 3 | CL18: =R4 -> D-704-21 Type J
B19: M3-1-24 | C19: 24"x12" | D19: NORTH (Mounted on route marker post) | F19: 7 | M19: 3 | Q19: 14 | BI19: 1 | CK19: 3 | CL19: =S4 -> D-704-22 Type K
B20: M3-2-24 | C20: 24"x12" | D20: EAST (Mounted on route marker post) | F20: 7 | M20: 3 | Q20: 14 | BI20: 1 | CK20: 3 | CL20: =T4 -> D-704-22 Type L
B21: M3-3-24 | C21: 24"x12" | D21: SOUTH (Mounted on route marker post) | F21: 7 | M21: 3 | Q21: 14 | BI21: 1 | CK21: 3 | CL21: =U4 -> D-704-22 Type M
B22: M3-4-24 | C22: 24"x12" | D22: WEST (Mounted on route marker post) | F22: 7 | M22: 3 | Q22: 14 | BI22: 1 | CK22: 3 | CL22: =V4 -> D-704-22 Type N
B23: M4-8-24 | C23: 24"x12" | D23: DETOUR (Mounted on route marker post) | F23: 7 | M23: 3 | Q23: 26 | BG23: 2 | BI23: 4 | CK23: 4 | CL23: =W4 -> D-704-22 Type O
B24: M4-9-30 | C24: 30"x24" | D24: DETOUR ARROW RIGHT or LEFT/AHD AND RT or LT | F24: 15 | Y24: 10 | CK24: 1 | CL24: =X4 -> D-704-23 Type P
B25: M4-10-48 | C25: 48"x18" | D25: DETOUR (INSIDE ARROW) RIGHT or LEFT (Mounted on barricade) | F25: 7 | M25: 1 | Q25: 2 | BG25: 1 | BH25: 1 | BI25: 4 | CK25: 5 | CL25: =Y4 -> D-704-23 Type Q
B26: M5-1-21 | C26: 21"x15" | D26: ADVANCE TURN ARROW RT or LT(Mounted on route marker post) | F26: 7 | M26: 1 | Q26: 10 | CK26: 2 | CL26: =Z4 -> D-704-24 Type R
B27: M5-1-30 | C27: 30"x21" | D27: ADVANCE TURN ARROW RT or LT(Mounted on route marker post) | F27: 9 | BI27: 2 | CK27: 1 | CL27: =AA4 -> D-704-24 Type S
B28: M6-1-21 | C28: 21"x15" | D28: DIRECTIONAL ARROW RT or LT (Mounted on route marker post) | F28: 7 | M28: 1 | Q28: 10 | BI28: 2 | CK28: 3 | CL28: =AB4 -> D-704-24 Type T
B29: M6-1-30 | C29: 30"x21" | D29: DIRECTIONAL ARROW RT or LT (Mounted on route marker post) | F29: 9 | BI29: 6 | CK29: 1 | CL29: =AC4 -> D-704-24 Type U
B30: M6-3-21 | C30: 21"x15" | D30: DIRECTIONAL ARROW UP (Mounted on route marker post) | F30: 7 | CK30: 0 | CL30: =AD4 -> D-704-24 Type HH
B31: R1-1-48 | C31: 48"x48" | D31: STOP | F31: 32 | Q31: 330 | S31: 248 | T31: 248 | W31: 148 | AU31: 448 | BE31: 148 | BH31: 248 | BI31: 648 | BP31: 148 | CK31: 9 | CL31: =AE4 -> D-704-24 Type II
B32: R1-2-60 | C32: 60"x60" | D32: YIELD | F32: 29 | BP32: 2 | BQ32: 1 | CK32: 2 | CL32: =AF4 -> D-704-25 Type V
B33: R2-1-36 | C33: 36"x48" | D33: SPEED LIMIT __ (Portable only) | F33: 30 | G33: 4 | R33: 4 | U33: 2 | V33: 2 | X33: 5 | Z33: 2 | AC33: 2 | AD33: 4 | AE33: 2 | AF33: 4 | AG33: 2 | AH33: 4 | AK33: 4 | AV33: 6 | AW33: 2 | AY33: 2 | AZ33: 3 | BG33: 5 | BR33: 4 | BS33: 2 | BT33: 2 | CK33: 21 | CL33: =AG4 -> D-704-25 Type W
B34: R2-1-48 | C34: 48"x60" | D34: SPEED LIMIT __ | F34: 39 | H34: 4 | I34: 6 | J34: 4 | K34: 4 | L34: 4 | N34: 4 | P34: 4 | R34: 2 | U34: 2 | V34: 2 | AI34: 4 | AJ34: 2 | AU34: 6 | AW34: 4 | AY34: 4 | BA34: 4 | BB34: 4 | BC34: 4 | BD34: 4 | BH34: 5 | BI34: 10 | BK34: 6 | BM34: 3 | BN34: 3 | BO34: 3 | BS34: 4 | BT34: 4 | CK34: 27 | CL34: =AH4 -> D-704-25 Type X
B35: R2-1aP-24 | C35: 24"x18" | D35: MINIMUM FEE $150 (Mounted on Speed Limit post) | F35: 10 | G35: 2 | H35: 2 | I35: 4 | J35: 2 | K35: 2 | L35: 2 | N35: 2 | P35: 2 | X35: 4 | Z35: 1 | AC35: 1 | AD35: 2 | AE35: 1 | AF35: 2 | AG35: 1 | AH35: 2 | AI35: 2 | AJ35: 2 | AK35: 2 | AU35: 4 | AV35: 4 | AW35: 4 | AY35: 4 | AZ35: 2 | BA35: 2 | BB35: 2 | BC35: 3 | BD35: 3 | BG35: 5 | BH35: 5 | BI35: 10 | BK35: 4 | BM35: 2 | BN35: 2 | BO35: 2 | BR35: 2 | BS35: 4 | BT35: 4 | CK35: 38 | CL35: =AI4 -> D-704-26 Type Y
B36: R3-2-48 | C36: 48"x48" | D36: NO LEFT TURN | F36: 35 | BI36: 2 | CK36: 1 | CL36: =AJ4 -> D-704-26 Type Z
B37: R4-1-48 | C37: 48"x60" | D37: DO NOT PASS | F37: 39 | P37: 2 | AU37: 2 | BA37: 2 | BC37: 1 | BD37: 1 | CK37: 5 | CL37: =AK4 -> D-704-26 Type AA
B38: R4-7-48 | C38: 48"x60" | D38: KEEP RIGHT | F38: 39 | BC38: 1 | BD38: 1 | CK38: 2 | CL38: =AL4 -> D-704-26 Type BB
B39: R5-1-48 | C39: 48"x48" | D39: DO NOT ENTER | F39: 35 | BI39: 4 | CK39: 1 | CL39: =AM4 -> D-704-26 Type CC
B40: R6-1-54 | C40: 54"x18" | D40: ONE WAY RIGHT or LEFT (Mounted on STOP or DO NOT ENTER post) | F40: 14 | BI40: 4 | CK40: 1 | CL40: =AN4 -> D-704-26 Type DD
B41: R7-1-12 | C41: 12"x18" | D41: NO PARKING ANY TIME | F41: 11 | CK41: 0 | CL41: =AO4 -> D-704-26 Type EE
B42: R10-6-24 | C42: 24"x36" | D42: STOP HERE ON RED | F42: 16 | J42: 2 | CK42: 1 | CL42: =AP4 -> D-704-26 Type FF
B43: R11-2-48 | C43: 48"x30" | D43: ROAD CLOSED (Mounted on barricade) | F43: 12 | H43: 2 | M43: 1 | Q43: 2 | BC43: 1 | BD43: 1 | BG43: 1 | BH43: 1 | BI43: 14 | BP43: 2 | BQ43: 1 | CK43: 10 | CL43: =AQ4 -> D-704-26 Type GG
B44: R11-2a-48 | C44: 48"x30" | D44: STREET CLOSED (Mounted on barricade) | F44: 12 | Y44: 4 | CK44: 1 | CL44: =AR4 -> D-704-26 Type JJ
B45: R11-3a-60 | C45: 60"x30" | D45: ROAD CLOSED __ MILES AHEAD LOCAL TRAFFIC ONLY (Mtd on barricade) | F45: 15 | M45: 1 | CK45: 1 | CL45: =AS4 -> D-704-26 Type KK
B46: R11-3c-60 | C46: 60"x30" | D46: STREET CLOSED __ MILES AHEAD LOCAL TRAFFIC ONLY (Mtd on barricade) | F46: 15 | CK46: 0 | CL46: =AT4 -> D-704-30
B47: R11-4a-60 | C47: 60"x30" | D47: STREET CLOSED TO THRU TRAFFIC (Mounted on barricade) | F47: 15 | Y47: 2 | CK47: 1 | CL47: =AU4 -> D-704-31
B48: W1-3-48 | C48: 48"x48" | D48: REVERSE TURN RIGHT or LEFT | F48: 35 | CK48: 0 | CL48: =AV4 -> D-704-32
B49: W1-4-48 | C49: 48"x48" | D49: REVERSE CURVE RIGHT or LEFT | F49: 35 | H49: 4 | I49: 2 | J49: 1 | R49: 4 | U49: 2 | AX49: 1 | BC49: 1 | BD49: 1 | BM49: 4 | CK49: 9 | CL49: =AW4 -> D-704-34
B50: W1-4b-48 | C50: 48"x48" | D50: TWO LANE REVERSE CURVE RIGHT or LEFT | F50: 35 | BN50: 4 | BO50: 4 | CK50: 2 | CL50: =AX4 -> D-704-34A
B51: W1-6-48 | C51: 48"x24" | D51: ONE DIRECTION LARGE ARROW | F51: 26 | H51: 2 | U51: 2 | CK51: 2 | CL51: =AY4 -> D-704-35
B52: W3-1-48 | C52: 48"x48" | D52: STOP AHEAD | F52: 35 | AU52: 2 | BH52: 2 | BI52: 4 | CK52: 3 | CL52: =AZ4 -> D-704-35A
B53: W3-3-48 | C53: 48"x48" | D53: SIGNAL AHEAD | F53: 35 | J53: 2 | CK53: 1 | CL53: =BA4 -> D-704-37 Two Lane
B54: W3-4-48 | C54: 48"x48" | D54: BE PREPARED TO STOP | F54: 35 | G54: 2 | U54: 2 | V54: 2 | AE54: 1 | AI54: 2 | AK54: 2 | BR54: 2 | CK54: 7 | CL54: =BB4 -> D-704-37 Four Lane
B55: W3-5-48 | C55: 48"x48" | D55: SPEED REDUCTION AHEAD | F55: 35 | G55: 2 | H55: 2 | I55: 2 | J55: 2 | K55: 2 | L55: 2 | N55: 2 | P55: 2 | R55: 2 | U55: 2 | V55: 2 | X55: 2 | Z55: 1 | AC55: 1 | AD55: 2 | AE55: 1 | AI55: 2 | AJ55: 2 | AK55: 2 | AU55: 2 | AV55: 2 | AW55: 2 | AY55: 2 | AZ55: 1 | BA55: 2 | BB55: 2 | BC55: 2 | BD55: 2 | BG55: 2 | BH55: 2 | BI55: 4 | BK55: 4 | BM55: 2 | BN55: 2 | BO55: 2 | BR55: 2 | BS55: 2 | BT55: 2 | CK55: 38 | CL55: =BC4 -> D-704-38
B56: W4-2-48 | C56: 48"x48" | D56: LANE ENDS RIGHT or LEFT | F56: 35 | I56: 2 | L56: 2 | X56: 2 | AV56: 2 | AW56: 2 | AY56: 2 | BC56: 2 | BD56: 2 | BF56: 4 | BG56: 2 | BH56: 2 | BI56: 4 | BM56: 2 | BN56: 2 | BO56: 2 | BS56: 2 | BT56: 2 | CK56: 17 | CL56: =BD4 -> D-704-39
B57: W5-1-48 | C57: 48"x48" | D57: ROAD NARROWS | F57: 35 | AC57: 1 | AN57: 1 | CK57: 2 | CL57: =BE4 -> D-704-45
B58: W5-8-48 | C58: 48"x48" | D58: THRU TRAFFIC RIGHT LANE | F58: 35 | BF58: 1 | CK58: 1 | CL58: =BF4 -> D-704-49
B59: W5-9-48 | C59: 48"x48" | D59: ROAD WORK TRAFFIC ONLY DOWN & LT or RT ARROW | F59: 35 | BF59: 1 | CK59: 1 | CL59: =BG4 -> D-704-52
B60: W6-3-48 | C60: 48"x48" | D60: TWO WAY TRAFFIC | F60: 35 | BC60: 1 | BD60: 1 | CK60: 2 | CL60: =BH4 -> D-704-52A
B61: W8-1-48 | C61: 48"x48" | D61: BUMP | F61: 35 | AO61: 1 | AP61: 1 | CK61: 2 | CL61: =BI4 -> D-704-53, 54, & 55
B62: W8-3-48 | C62: 48"x48" | D62: PAVEMENT ENDS | F62: 35 | AP62: 1 | BA62: 2 | BB62: 2 | CK62: 3 | CL62: =BJ4 -> D-704-57
B63: W8-7-48 | C63: 48"x48" | D63: LOOSE GRAVEL | F63: 35 | BA63: 2 | BB63: 2 | CK63: 2 | CL63: =BK4 -> D-704-58
B64: W8-17-48 | C64: 48"x48" | D64: SHOULDER DROP-OFF SYMBOL | F64: 35 | CK64: 0 | CL64: =BL4 -> D-704-59
B65: W8-11-48 | C65: 48"x48" | D65: UNEVEN LANES | F65: 35 | AQ65: 2 | CK65: 1 | CL65: =BM4 -> D-704-60
B66: W8-12-48 | C66: 48"x48" | D66: NO CENTER LINE | F66: 35 | P66: 2 | BA66: 2 | BB66: 2 | CK66: 3 | CL66: =BN4 -> D-704-61
B67: W8-53-48 | C67: 48"x48" | D67: TRUCKS ENTERING HIGHWAY | F67: 35 | BE67: 1 | CK67: 1 | CL67: =BO4 -> D-704-62
B68: W8-54-48 | C68: 48"x48" | D68: TRUCKS ENTERING AHEAD or __ FT or _ MILE | F68: 35 | S68: 2 | CK68: 1 | CL68: =BP4 -> D-704-63 Full/T-Intscn (far)
B69: W8-55-48 | C69: 48"x48" | D69: TRUCKS CROSSING AHEAD or __ FT or _ MILE | F69: 35 | T69: 2 | CK69: 1 | CL69: =BQ4 -> D-704-63 T-Intscn (near)
B70: W8-56-48 | C70: 48"x48" | D70: TRUCKS EXITING HIGHWAY | F70: 35 | BE70: 1 | CK70: 1 | CL70: =BR4 -> Portable Rumble Strips Two-Lane
B71: W9-3a-48 | C71: 48"x48" | D71: CENTER LANE CLOSED SYMBOL | F71: 35 | BM71: 2 | CK71: 1 | CL71: =BS4 -> Portable Rumble Strips Four-Lane
B72: W13-1P-30 | C72: 30"x30" | D72: __ MPH ADVISORY SPEED PLAQUE (Mounted on warning sign post) | F72: 14 | BC72: 1 | BD72: 1 | CK72: =COUNT(G72:CJ72) -> 2 | CL72: =BT4 -> Portable Rumble Strips Interstate
B73: W14-3-64 | C73: 64"x48" | D73: NO PASSING ZONE | F73: 28 | AU73: 2 | CK73: 1 | CL73: =BU4 -> 0
B74: W16-2P-30 | C74: 30"x24" | D74: __ FEET PLAQUE (Mounted on warning sign post) | F74: 10 | K74: 2 | N74: 2 | AI74: 2 | CK74: 3 | CL74: =BV4 -> 0
B75: W20-1-48 | C75: 48"x48" | D75: ROAD WORK AHEAD or _FT or _ MILE | F75: 35 | G75: 2 | H75: 2 | I75: 2 | J75: 2 | K75: 2 | L75: 2 | N75: 2 | R75: 6 | X75: 2 | Z75: 1 | AC75: 2 | AD75: 2 | AU75: 2 | AV75: 2 | AW75: 2 | AY75: 2 | BC75: 2 | BD75: 2 | BK75: 4 | BM75: 2 | BN75: 2 | BO75: 2 | BR75: 2 | BS75: 2 | BT75: 2 | CK75: 25 | CL75: =BW4 -> 0
B76: W20-2-48 | C76: 48"x48" | D76: DETOUR AHEAD or __ FT or _ MILE | F76: 35 | M76: 1 | Q76: 4 | Y76: 2 | BG76: 2 | BH76: 2 | BI76: 6 | CK76: 6 | CL76: =BX4 -> 0
B77: W20-3-48 | C77: 48"x48" | D77: ROAD or STREET CLOSED AHEAD or __ FT or _ MILE | F77: 35 | M77: 2 | Q77: 2 | Y77: 4 | CK77: 3 | CL77: =BY4 -> 0
B78: W20-4-48 | C78: 48"x48" | D78: ONE LANE ROAD AHEAD or __ FT or _ MILE | F78: 35 | J78: 2 | K78: 2 | N78: 2 | AU78: 4 | CK78: 4 | CL78: =BZ4 -> 0
B79: W20-5-48 | C79: 48"x48" | D79: RIGHT or CENTER or LEFT LANE CLOSED AHEAD or __ FT or _ MILE | F79: 35 | I79: 4 | L79: 2 | X79: 2 | AV79: 2 | AW79: 2 | AY79: 2 | BC79: 4 | BD79: 4 | BF79: 8 | BG79: 2 | BH79: 2 | BI79: 4 | BM79: 2 | BN79: 2 | BO79: 2 | BS79: 2 | BT79: 2 | CK79: 17 | CL79: =CA4 -> 0
B80: W20-7-48 | C80: 48"x48" | D80: FLAGGER | F80: 35 | G80: 2 | K80: 2 | N80: 2 | U80: 2 | V80: 2 | AE80: 1 | AF80: 2 | AH80: 4 | AI80: 2 | AK80: 2 | AW80: 1 | AY80: 1 | BE80: 1 | BR80: 2 | BS80: 1 | BT80: 1 | CK80: 16 | CL80: =CB4 -> 0
B81: W20-8-18 | C81: 18"x18" | D81: STOP - SLOW PADDLE Back to Back | F81: 5 | G81: 2 | H81: 0 | I81: 0 | J81: 0 | K81: 2 | M81: 0 | N81: 2 | O81: 0 | P81: 0 | Q81: 0 | R81: 0 | S81: 0 | T81: 0 | U81: 2 | V81: 2 | W81: 0 | Y81: 0 | Z81: 0 | AA81: 0 | AB81: 0 | AC81: 0 | AD81: 0 | AE81: 1 | AF81: 2 | AG81: 0 | AH81: 4 | AI81: 2 | AJ81: 0 | AK81: 2 | AL81: 0 | AM81: 0 | AN81: 0 | AO81: 0 | AP81: 0 | AQ81: 0 | AU81: 0 | AV81: 0 | AW81: 1 | AY81: 1 | AZ81: 0 | BB81: 0 | BC81: 0 | BD81: 0 | BE81: 2 | BF81: 0 | BG81: 0 | BH81: 0 | BJ81: 0 | BK81: 0 | BL81: 0 | BM81: 0 | BO81: 0 | BP81: 2 | BQ81: 1 | BR81: 2 | BS81: 1 | BT81: 1 | CE81: 0 | CF81: 0 | CG81: 0 | CH81: 0 | CI81: 0 | CJ81: 0 | CK81: 63 | CL81: =CC4 -> 0
B82: W20-52P-54 | C82: 54"x12" | D82: NEXT __ MILES (Mounted on warning sign post) | F82: 12 | P82: 2 | AR82: 2 | BA82: 2 | BB82: 2 | BC82: 1 | BD82: 1 | CK82: 6 | CL82: =CD4 -> 0
B83: W21-1-48 | C83: 48"x48" | D83: WORKERS | F83: 35 | AF83: 2 | AG83: 1 | AH83: 2 | CK83: 3 | CL83: =CE4 -> 0
B84: W21-2-48 | C84: 48"x48" | D84: FRESH OIL | F84: 35 | AM84: 2 | CK84: 1 | CL84: =CF4 -> 0
B85: W21-3-48 | C85: 48"x48" | D85: ROAD MACHINERY AHEAD or __ FT or _ MILE | F85: 35 | AI85: 4 | CK85: 1 | CL85: =CG4 -> 0
B86: W21-5-48 | C86: 48"x48" | D86: SHOULDER WORK | F86: 35 | Z86: 1 | AA86: 1 | AB86: 1 | AL86: 1 | CK86: 4 | CL86: =CH4 -> 0
B87: W21-5a-48 | C87: 48"x48" | D87: RIGHT or LEFT SHOULDER CLOSED | F87: 35 | AD87: 2 | BJ87: 1 | BL87: 2 | CK87: 3 | CL87: =CI4 -> 0
B88: W21-5b-48 | C88: 48"x48" | D88: RIGHT or LEFT SHOULDER CLOSED AHEAD or __ FT or _ MILE | F88: 35 | AD88: 2 | BK88: 4 | BL88: 2 | CK88: 3 | CL88: =CJ4 -> 0
B89: W21-6-48 | C89: 48"x48" | D89: SURVEY CREW | F89: 35 | AK89: 2 | CK89: 1
B90: W21-50-48 | C90: 48"x48" | D90: BRIDGE PAINTING AHEAD or __ FT | F90: 35 | AE90: 2 | CK90: 1
B91: W21-51-48 | C91: 48"x48" | D91: MATERIAL ON ROADWAY | F91: 35 | AT91: 1 | CK91: 1
B92: W21-52-48 | C92: 48"x48" | D92: PAVEMENT BREAKS | F92: 35 | AR92: 2 | CK92: 1
B93: W21-53-48 | C93: 48"x48" | D93: RUMBLE STRIPS AHEAD | F93: 35 | BR93: 2 | BS93: 1 | BT93: 1 | CK93: 3
B94: W22-8-48 | C94: 48"x48" | D94: FRESH OIL LOOSE ROCK | F94: 35 | P94: 2 | CK94: 1
B95: W24-1-48 | C95: 48"x48" | D95: DOUBLE REVERSE CURVE | F95: 35 | AZ95: 1 | CK95: 1
CK96: 0
CK97: 0
CK98: 0
B99: =Input!B107 -> 0 | C99: =Input!C107 -> 0 | D99: =Input!D107 -> 0 | CK99: 0
B100: =Input!B108 -> 0 | C100: =Input!C108 -> 0 | D100: =Input!D108 -> 0 | CK100: 0
B101: =Input!B109 -> 0 | C101: =Input!C109 -> 0 | D101: =Input!D109 -> 0 | CK101: 0
B102: =Input!B110 -> 0 | C102: =Input!C110 -> 0 | D102: =Input!D110 -> 0 | CK102: 0
B103: =Input!B111 -> 0 | C103: =Input!C111 -> 0 | D103: =Input!D111 -> 0 | CK103: 0
B104: =Input!B112 -> 0 | C104: =Input!C112 -> 0 | D104: =Input!D112 -> 0 | CK104: 0
B105: =Input!B113 -> 0 | C105: =Input!C113 -> 0 | D105: =Input!D113 -> 0 | CK105: 0
B106: =Input!B114 -> 0 | C106: =Input!C114 -> 0 | D106: =Input!D114 -> 0 | CK106: 0
B107: =Input!B115 -> 0 | C107: =Input!C115 -> 0 | D107: =Input!D115 -> 0 | CK107: 0
B108: =Input!B116 -> 0 | C108: =Input!C116 -> 0 | D108: =Input!D116 -> 0 | CK108: 0
B109: =Input!B117 -> 0 | C109: =Input!C117 -> 0 | D109: =Input!D117 -> 0 | CK109: 0
B110: =Input!B118 -> 0 | C110: =Input!C118 -> 0 | D110: =Input!D118 -> 0 | CK110: 0
B111: =Input!B119 -> 0 | C111: =Input!C119 -> 0 | D111: =Input!D119 -> 0 | CK111: 0
B112: =Input!B120 -> 0 | C112: =Input!C120 -> 0 | D112: =Input!D120 -> 0 | CK112: 0
B113: =Input!B121 -> 0 | C113: =Input!C121 -> 0 | D113: =Input!D121 -> 0 | CK113: 0
B114: =Input!B122 -> 0 | C114: =Input!C122 -> 0 | D114: =Input!D122 -> 0 | CK114: 0
B115: =Input!B123 -> 0 | C115: =Input!C123 -> 0 | D115: =Input!D123 -> 0 | CK115: 0
B117: ROUTE MARKER AND CARDINAL DIRECTION SIGNS NOT IN THE STANDARD TCDL This data cannot be sorted - it will effect the Visual Basic Code
B118: SIGN NUMBER | C118: SIGN SIZE | D118: DESCRIPTION | F118: UNITS
B119: M1-1-24 | C119: 24"x24" | D119: INTERSTATE ROUTE MARKER (Post and installation only) | F119: 10 | BG119: 2 | BI119: 2
B120: M3-1(I)-24 | C120: 24"x12" | D120: NORTH (Mounted on route marker post) | F120: 7 | BG120: 2 | BI120: 1
B121: M3-1(I)-36 | C121: 36"x18" | D121: NORTH (Mounted on route marker post) | F121: 10 | BH121: 2 | BI121: 7
B122: M3-3(I)-24 | C122: 24"x12" | D122: SOUTH (Mounted on route marker post) | F122: 7 | BG122: 2 | BI122: 1
B123: M3-3(I)-36 | C123: 36"x18" | D123: SOUTH (Mounted on route marker post) | F123: 10 | BH123: 2 | BI123: 7
B124: M3-2(I)-24 | C124: 24"x12" | D124: EAST (Mounted on route marker post) | F124: 7 | BG124: 2 | BI124: 1
B125: M3-2(I)-36 | C125: 36"x18" | D125: EAST (Mounted on route marker post) | F125: 10 | BH125: 2 | BI125: 7
B126: M3-4(I)-24 | C126: 24"x12" | D126: WEST (Mounted on route marker post) | F126: 7 | BG126: 2 | BI126: 1
B127: M3-4(I)-36 | C127: 36"x18" | D127: WEST (Mounted on route marker post) | F127: 10 | BH127: 2 | BI127: 7
B128: M1-4-36 | C128: 36"x36" | D128: U.S. ROUTE MARKER (Post and installation only) | F128: 10 | BI128: 8
B129: M1-5-36 | C129: 36"x36" | D129: STATE ROUTE MARKER (Post and installation only) | F129: 10 | BI129: 8
B130: M3-1-36 | C130: 36"x18" | D130: NORTH (Mounted on route marker post) | F130: 10 | BI130: 4
B131: M3-2-36 | C131: 36"x18" | D131: EAST (Mounted on route marker post) | F131: 10 | BI131: 4
B132: M3-3-36 | C132: 36"x18" | D132: SOUTH (Mounted on route marker post) | F132: 10 | BI132: 4
B133: M3-4-36 | C133: 36"x18" | D133: WEST (Mounted on route marker post) | F133: 10 | BI133: 4
B135: TRAFFIC CONTROL DEVICES
B136: SPEC | C136: CODE | D136: DESCRIPTION | E136: UNIT | F136: SUM QTY
B137: 704 | C137: 100 | D137: FLAGGING | E137: MHR | F137: X | G137: X | K137: X | N137: X | U137: X | V137: X | AE137: X | AF137: X | AH137: X | AI137: X | AK137: X | AW137: X | AY137: X | BE137: X | BP137: X | BQ137: X | BR137: X | BS137: X | BT137: X | CK137: =COUNTIF(G137:CJ137,"<>0")-COUNTBLANK(G137:CJ137) -> 18
B138: 704 | C138: 1048 | D138: PORTABLE RUMBLE STRIPS | E138: EACH | F138: 0 | BR138: 2 | BS138: 1 | BT138: 1 | CK138: 3
B139: 704 | C139: 1050 | D139: TYPE I BARRICADES | E139: EACH | F139: 0 | CK139: 0
B140: 704 | C140: 1052 | D140: TYPE III BARRICADES | E140: EACH | F140: 0 | H140: 6 | J140: 2 | K140: 2 | M140: 5 | Q140: 6 | R140: 2 | U140: 6 | Y140: 16 | AU140: 2 | AW140: 1 | AX140: 2 | AY140: 1 | BC140: 3 | BD140: 3 | BE140: 2 | BF140: 3 | BG140: 3 | BH140: 3 | BI140: 42 | BP140: 6 | BQ140: 3 | BS140: 1 | BT140: 1 | CK140: 23
B141: 704 | C141: 1060 | D141: DELINEATOR DRUMS | E141: EACH | F141: 0 | H141: X | I141: X | J141: X | K141: X | L141: X | N141: X | R141: X | X141: X | Z141: X | AC141: X | AD141: X | AU141: X | AV141: X | AW141: X | AX141: X | AY141: X | AZ141: X | BC141: X | BD141: X | BF141: X | BG141: X | BH141: X | BI141: X | BM141: X | BN141: X | BO141: X | BS141: X | BT141: X | CK141: 28
B142: 704 | C142: 1065 | D142: TRAFFIC CONES | E142: EACH | F142: 0 | AF142: X | AH142: X | AK142: X | CK142: 3
B143: 704 | C143: 1067 | D143: TUBULAR MARKERS | E143: EACH | F143: 0 | I143: X | X143: X | Z143: X | AC143: X | AW143: X | AX143: X | AY143: X | AZ143: X | BS143: X | BT143: X | CK143: 10
B144: 704 | C144: 1070 | D144: DELINEATOR | E144: EACH | F144: 0 | CK144: 0
B145: 704 | C145: 1072 | D145: FLEXIBLE DELINEATORS | E145: EACH | F145: 0 | BD145: 5 | BH145: 49 | BI145: 144 | BP145: =3+3 -> 6 | BQ145: =3+3 -> 6 | CK145: 5
B146: 704 | C146: 1080 | D146: STACKABLE VERTICAL PANELS | E146: EACH | F146: 0 | CK146: 0
B147: 704 | C147: 1081 | D147: VERTICAL PANELS - BACK TO BACK | E147: EACH | F147: 0 | H147: X | L147: 0 | R147: X | AT147: X | CK147: 3
B148: 704 | C148: 1085 | D148: SEQUENCING ARROW PANEL - TYPE A | E148: EACH | F148: 0 | I148: 2 | X148: 1 | BF148: 2 | CK148: 3
B149: 704 | C149: 1086 | D149: SEQUENCING ARROW PANEL - TYPE B | E149: EACH | F149: 0 | I149: 2 | X149: 1 | BF149: 2 | CK149: 3
B150: 704 | C150: 1087 | D150: SEQUENCING ARROW PANEL - TYPE C | E150: EACH | F150: 0 | I150: 2 | X150: 1 | BF150: 2 | CK150: 3
B151: 704 | C151: 3501 | D151: PORTABLE PRECAST CONCRETE MED BARRIER | E151: LF | F151: 0 | J151: X | K151: X | L151: X | AD151: X | BC151: A | BD151: B | BJ151: 710 | BK151: 2160 | BL151: 1420 | CK151: 9
B152: 704 | C152: 3510 | D152: PRECAST CONCRETE MED BARRIER - STATE FURNISHED | E152: EACH | F152: 0 | CK152: 0
B153: 762 | C153: 200 | D153: RAISED PAVEMENT MARKERS | E153: EACH | F153: X | BC153: T1 | BD153: T2 | BI153: 76 | CK153: 3
B154: 762 | C154: 420 | D154: SHORT TERM 4IN LINE - TYPE R | E154: LF | F154: X | H154: X | I154: X | J154: X | L154: X | BH154: 1306 | BI154: 1990 | BM154: X | BN154: X | BO154: X | CK154: 9
B155: 762 | C155: 430 | D155: SHORT TERM 4IN LINE - TYPE NR | E155: LF | F155: X | H155: X | I155: X | L155: X | BI155: 80 | CK155: 4
B156: 704 | C156: 1500 | D156: OBLITERATION OF PVMT MK | E156: SF | F156: X | H156: X | I156: X | J156: X | K156: X | L156: X | AX156: X | BC156: T1 | BD156: T2 | BH156: 900 | BI156: 721 | BM156: X | BN156: X | BO156: X | CK156: 13
CK157: 0
CK158: 0
CK159: 0
CK160: 0
CK161: 0
CK162: =COUNTIF(G162:CJ162,"<>0")-COUNTBLANK(G162:CJ162) -> 0
CK163: 0
CK164: 0
CK165: 0
CK166: 0
C168: DELINEATOR DRUMS | D168: Rows of drums located along work zone | I168: 1 | N168: 1 | R168: 1 | AU168: 1 | BM168: 4 | BN168: 2 | BO168: 2
D169: Length of Taper (in terms of L's -- i.e. L + 1/2L = 1.5) | I169: =1+0.5+1 -> 2.5 | L169: 1 | R169: 2 | X169: 1 | Z169: 1 | AC169: 1 | AD169: 1 | AV169: 1 | AW169: 1 | AX169: 1 | AY169: 1 | AZ169: 0.5 | BF169: 3 | BH169: 2 | BM169: 9 | BN169: 5.5 | BO169: 5.5 | BS169: 1 | BT169: 1
D170: Length of Tangent (in terms of L's -- i.e. 1/2L = 0.5) | I170: 0.5 | BF170: 3 | BH170: 0.5 | BM170: 2 | BN170: 0.5 | BO170: 0.5
D171: Longitudinal Buffer Space (Enter an X if there is one) | I171: X | L171: X | N171: X | AD171: X | AZ171: X
D172: Additional drums required (Enter # of additional drums) | I172: =6+4+7 -> 17 | J172: =5+5 -> 10 | K172: =5+5 -> 10 | L172: =2+4+7 -> 13 | N172: =4+4 -> 8 | X172: =4+7 -> 11 | AD172: 2 | AU172: =4+4 -> 8 | AV172: =7 -> 7 | AW172: =4+7 -> 11 | AX172: 1 | AY172: =4+7 -> 11 | AZ172: =5+7 -> 12 | BC172: 31 | BD172: 22 | BF172: =4+4 -> 8 | BG172: 38 | BH172: =4+7 -> 11 | BI172: 94 | BM172: =11+2 -> 13 | BN172: =11+2 -> 13 | BO172: =11+2 -> 13 | BS172: =4+7 -> 11 | BT172: =7+4 -> 11
C174: TRAFFIC CONES | D174: Rows of cones located along work zone | AF174: 1 | AH174: 1
D175: Length of Taper (in terms of L's -- i.e. L + 1/2L = 1.5)
D176: Length of Tangent (in terms of L's -- i.e. 1/2L = 0.5)
D177: Longitudinal Buffer Space (Enter an X if there is one) | AK177: X
D178: Additional cones required (Enter # of additional cones) | AF178: 3 | AH178: 6 | AK178: 14
C180: TUBULAR MARKERS | D180: Rows of tubular markers located along work zone | I180: 1 | X180: 1 | Z180: 1 | AC180: 1 | AW180: 1 | AY180: 1 | BS180: 1 | BT180: 1
D181: Length of Taper (in terms of L's -- i.e. L + 1/2L = 1.5) | I181: =0.5+0.5 -> 1 | AX181: 1
D182: Length of Tangent (in terms of L's -- i.e. 1/2L = 0.5) | I182: =0.5+0.5+1 -> 2
D183: Longitudinal Buffer Space (Enter an X if there is one) | I183: X | X183: X | Z183: X | AC183: X | AW183: X | AY183: X | BS183: X | BT183: X
D184: Additional tubular markers required (Enter # of additional markers) | X184: =3+3 -> 6 | Z184: 2 | AC184: 2 | AW184: 4 | AX184: 1 | AY184: 4 | AZ184: 7 | BS184: 4 | BT184: 4
D186: ATTENUATION DEVICE - TYPE B - VARIABLE SPEED | J186: 2 | K186: 2 | L186: 1 | BC186: 1 | BD186: 1 | BJ186: 2 | BK186: 4 | BL186: 4
B188: EXTRA TRAFFIC CONTROL DEVICES PAY ITEMS This data can be sorted without effecting how the Visual Basic Code works - just be sure and sort the entire row | E188: UNIT | F188: SUM QTY
B189: 704 | C189: 1018 | D189: LANE CLOSURE-SIGNAL CONTROL/FLAGGING CONTROL | E189: EACH | J189: 1 | CK189: =COUNTIF(G189:CJ189,"<>0")-COUNTBLANK(G189:CJ189) -> 1
B190: 704 | C190: 1087 | D190: SEQUENCING ARROW PANEL - TYPE C | E190: EACH | L190: 1 | AV190: 1 | AW190: 1 | AY190: 1 | BG190: 1 | BH190: 1 | BI190: 2 | BM190: 2 | BN190: 1 | BO190: 1 | BS190: 1 | BT190: 1 | CK190: 12
B191: 704 | C191: 1088 | D191: SEQUENCING ARROW PANEL - TYPE C - CROSSOVER | E191: EACH | BC191: 1 | BD191: 1 | CK191: 2
B192: 704 | C192: 1095 | D192: TYPE B FLASHERS | E192: EACH | BH192: 4 | BI192: 10 | CK192: 2
B193: 762 | C193: 424 | D193: SHORT TERM 8IN LINE-TYPE R | E193: LF | F193: X | BH193: 150 | BI193: 300 | CK193: 2
B194: 762 | C194: 426 | D194: SHORT TERM 24IN LINE-TYPE R | E194: LF | F194: X | J194: 24 | BI194: 114 | CK194: 2
B195: 762 | C195: 440 | D195: SHORT TERM MESSAGE-TYPE R | E195: SF | F195: X | BH195: 56 | BI195: 112 | CK195: 2
B196: 772 | C196: 2110 | D196: FLASHING BEACON - POST MOUNTED | E196: EACH | BC196: 1 | BD196: 1 | CK196: 2
B197: 762 | C197: 436 | D197: SHORT TERM 24IN LINE-TYPE NR | E197: LF | F197: X | BI197: 90 | CK197: 1
CK198: 0
CK199: 0
CK200: 0
CK201: 0
CK202: 0
CK203: 0
CK204: 0
CK205: 0
CK206: 0
CK207: 0
CK208: 0
CK209: 0
CK210: 0
... 114 more rows

Sheet Tables (hidden)
B1: All D-704 Standard Drawings
B2: Longitudinal Buffer Space
B3: Speed (mph) | C3: Length Min (feet) | E3: All D-704 Standard Drawings | N3: Standard Drawings D-704-38 & 39
B4: 20 | C4: 115 | E4: ADVANCE WARNING SIGN SPACING | N4: PRECAST CONCRETE MEDIAN BARRIER TABLE
B5: 25 | C5: 155 | E5: Road Type | J5: Distance Between Signs Min. (ft) | N5: Roadway CL to Roadway CL | O5: Crossover at start of two-way traffic | Q5: Crossover at end of two-way traffic
B6: 30 | C6: 200 | J6: A | K6: B | L6: C | O6: No. of Mdn Barriers | P6: Length of Mdn Barriers | Q6: No. of Mdn Barriers | R6: Length of Mdn Barriers
B7: 35 | C7: 250 | E7: Urban - Low Speed (30 mph or less) | J7: 150 | K7: 150 | L7: 150 | N7: 75 | O7: 48 | P7: =O7*10 -> 480 | Q7: 37 | R7: =Q7*10 -> 370
B8: 40 | C8: 305 | E8: Urban - Low Speed (over 30 mph to 40 mph) | J8: 280 | K8: 280 | L8: 280 | N8: 84 | O8: 44 | P8: =O8*10 -> 440 | Q8: 36 | R8: =Q8*10 -> 360
B9: 45 | C9: 360 | E9: Urban - High Speed (over 40 mph to 50 mph) | J9: 360 | K9: 360 | L9: 360 | N9: 104 | O9: 43 | P9: =O9*10 -> 430 | Q9: 36 | R9: =Q9*10 -> 360
B10: 50 | C10: 425 | E10: Rural - High Speed (over 50 mph to 65 mph) | J10: 720 | K10: 720 | L10: 720 | N10: Used in ChooseStandard Userform code
B11: 55 | C11: 495 | E11: Urban Expressway and Freeway (55 to 65 mph) | J11: 850 | K11: 1350 | L11: 2200
B12: 60 | C12: 570 | E12: Rural Expressway and Freeway (70 to 75 mph) | J12: 1000 | K12: 1500 | L12: 2640 | N12: TABLE CODE T1
B13: 65 | C13: 645 | E13: Interstate/4-Lane Divided (Maintenance/Surveying) | J13: 750 | K13: 1000 | L13: 1500 | N13: Standard Drawings D-704-38
B14: 70 | C14: 730 | E14: Used in RoadwayInfo & RoadwayInfo2 Userform code | N14: CROSSOVER QUANTITY SUMMARY
B15: 75 | C15: 820 | N15: Existing Speed Limit | O15: Raised Pavement Markers | P15: Obliteration of Pavement Marking
B16: Used in DelDrum, TrafficCone, & TubularMarker Userform code
N17: 55 | O17: =151+351 -> 502 | P17: 310
N18: 60 | O18: =151+369 -> 520 | P18: 318
N19: 65 | O19: =151+387 -> 538 | P19: 325
N20: 70 | O20: =151+405 -> 556 | P20: 338
N21: 75 | O21: =151+423 -> 574 | P21: 346
N22: Used in ChooseStandard Userform code
N24: TABLE CODE T2
N25: Standard Drawings D-704-39
N26: CROSSOVER QUANTITY SUMMARY
N27: Existing Speed Limit | O27: Raised Pavement Markers | P27: Obliteration of Pavement Marking
N29: 55 | O29: =370+173 -> 543 | P29: 298
N30: 60 | O30: =388+173 -> 561 | P30: 305
N31: 65 | O31: =406+173 -> 579 | P31: 313
N32: 70 | O32: =424+173 -> 597 | P32: 332
N33: 75 | O33: =442+173 -> 615 | P33: 339
N34: Used in ChooseStandard Userform code

Sheet Lists (hidden)
B2: TRAFFIC CONTROL SIGNS | G2: TRAFFIC CONTROL DEVICES
B3: SIGN NUMBER | C3: SIGN SIZE | D3: DESCRIPTION | E3: UNITS | G3: SPEC | H3: CODE | I3: DESCRIPTION | J3: UNIT | K3: SUM QTY
B4: G20-4b-36 | C4: 36"x30" | D4: WAIT FOR PILOT CAR | E4: 18 | G4: 704 | H4: 1020 | I4: ATTENUATION DEVICE SPECIAL | J4: EA
G5: 704 | H5: 1035 | I5: ATTENUATION DEVICE-TYPE B-25 | J5: EA
B6: M5-2-21 | C6: 21"x15" | D6: ADVANCE TURN DIAGONAL ARROW RT or LT(Mounted on route marker post) | E6: 7 | G6: 704 | H6: 1036 | I6: ATTENUATION DEVICE-TYPE B-30 | J6: EA
B7: M6-2-21 | C7: 21"x15" | D7: DIRECTIONAL ARROW DIAGONAL RT or LT (Mounted on route marker post) | E7: 7 | G7: 704 | H7: 1037 | I7: ATTENUATION DEVICE-TYPE B-35 | J7: EA
G8: 704 | H8: 1038 | I8: ATTENUATION DEVICE-TYPE B-40 | J8: EA
B9: M1-1-24 | C9: 24"x24" | D9: INTERSTATE ROUTE MARKER (Post and installation only) | E9: 10 | G9: 704 | H9: 1039 | I9: ATTENUATION DEVICE-TYPE B-45 | J9: EA
B10: M3-1(I)-24 | C10: 24"x12" | D10: NORTH (Mounted on route marker post) | E10: 7 | G10: 704 | H10: 1040 | I10: ATTENUATION DEVICE-TYPE B-50 | J10: EA
B11: M3-3(I)-24 | C11: 24"x12" | D11: SOUTH (Mounted on route marker post) | E11: 7 | G11: 704 | H11: 1041 | I11: ATTENUATION DEVICE-TYPE B-55 | J11: EA
B12: M3-2(I)-24 | C12: 24"x12" | D12: EAST (Mounted on route marker post) | E12: 7 | G12: 704 | H12: 1042 | I12: ATTENUATION DEVICE-TYPE B-60 | J12: EA
B13: M3-4(I)-24 | C13: 24"x12" | D13: WEST (Mounted on route marker post) | E13: 7 | G13: 704 | H13: 1043 | I13: ATTENUATION DEVICE-TYPE B-65 | J13: EA
B14: M5-1(I)-21 | C14: 21"x15" | D14: ADVANCE TURN ARROW RT or LT(Mounted on route marker post) | E14: 7 | G14: 704 | H14: 1044 | I14: ATTENUATION DEVICE-TYPE B-70 | J14: EA
B15: M5-2(I)-21 | C15: 21"x15" | D15: ADVANCE TURN ARROW DIAGONAL RT or LT (Mounted on route marker post) | E15: 7 | G15: 704 | H15: 1045 | I15: ATTENUATION DEVICE-TYPE B-75 | J15: EA
B16: M6-1(I)-21 | C16: 21"x15" | D16: DIRECTIONAL ARROW RT or LT (Mounted on route marker post) | E16: 7 | G16: 704 | H16: 1046 | I16: ATTENUATION DEVICE-TYPE B-80 | J16: EA
B17: M6-2(I)-21 | C17: 21"x15" | D17: DIRECTIONAL ARROW DIAGONAL RT or LT (Mounted on route marker post) | E17: 7 | G17: 704 | H17: 1051 | I17: TYPE II BARRICADE | J17: EA
B18: M6-3(I)-21 | C18: 21"x15" | D18: DIRECTIONAL ARROW UP (Mounted on route marker post) | E18: 7 | G18: 704 | H18: 1054 | I18: SIDEWALK BARRICADE | J18: EA
G19: 704 | H19: 1056 | I19: PEDESTRIAN CHANNELIZATION | J19: LF
B20: M4-8-36 | C20: 36"x18" | D20: DETOUR (Mounted on route marker post) | E20: 10 | G20: 704 | H20: 1057 | I20: PEDESTRIAN DETECTABLE EDGE | J20: LF
G21: 704 | H21: 1090 | I21: FLASHING BEACON | J21: EA
B22: M1-4-36 | C22: 36"x36" | D22: U.S. ROUTE MARKER (Post and installation only) | E22: 10 | G22: 704 | H22: 1095 | I22: TYPE B FLASHERS | J22: EA
B23: M1-5-36 | C23: 36"x36" | D23: STATE ROUTE MARKER (Post and installation only) | E23: 10 | G23: 704 | H23: 1185 | I23: PILOT CAR | J23: HR | K23: X
B24: M3-1-36 | C24: 36"x18" | D24: NORTH (Mounted on route marker post) | E24: 10 | G24: 704 | H24: 2108 | I24: TEMPORARY CURB RAMP | J24: EA
B25: M3-2-36 | C25: 36"x18" | D25: EAST (Mounted on route marker post) | E25: 10 | G25: 704 | H25: 4010 | I25: PORTABLE CHANGEABLE MESSAGE SIGN | J25: HR | K25: X
B26: M3-3-36 | C26: 36"x18" | D26: SOUTH (Mounted on route marker post) | E26: 10 | G26: 704 | H26: 4011 | I26: PORTABLE CHANGEABLE MESSAGE SIGN | J26: EA
B27: M3-4-36 | C27: 36"x18" | D27: WEST (Mounted on route marker post) | E27: 10 | G27: 762 | H27: 422 | I27: SHORT TERM 6IN LINE-TYPE R | J27: LF | K27: X
B28: M5-2-30 | C28: 30"x21" | D28: ADVANCE TURN ARROW DIAGONAL RT or LT (Mounted on route marker post) | E28: 9 | G28: 762 | H28: 424 | I28: SHORT TERM 8IN LINE-TYPE R | J28: LF | K28: X
B29: M6-2-30 | C29: 30"x21" | D29: DIRECTIONAL ARROW DIAGONAL RT or LT (Mounted on route marker post) | E29: 9 | G29: 762 | H29: 425 | I29: SHORT TERM 16IN LINE-TYPE R | J29: LF | K29: X
B30: M6-3-30 | C30: 30"x21" | D30: DIRECTIONAL ARROW UP (Mounted on route marker post) | E30: 9 | G30: 762 | H30: 426 | I30: SHORT TERM 24IN LINE-TYPE R | J30: LF | K30: X
G31: 762 | H31: 432 | I31: SHORT TERM 6IN LINE-TYPE NR | J31: LF | K31: X
B32: M3-1(I)-36 | C32: 36"x18" | D32: NORTH (Mounted on route marker post) | E32: 10 | G32: 762 | H32: 434 | I32: SHORT TERM 8IN LINE-TYPE NR | J32: LF | K32: X
B33: M3-3(I)-36 | C33: 36"x18" | D33: SOUTH (Mounted on route marker post) | E33: 10 | G33: 762 | H33: 435 | I33: SHORT TERM 16IN LINE-TYPE NR | J33: LF | K33: X
B34: M3-2(I)-36 | C34: 36"x18" | D34: EAST (Mounted on route marker post) | E34: 10 | G34: 762 | H34: 436 | I34: SHORT TERM 24IN LINE-TYPE NR | J34: LF | K34: X
B35: M3-4(I)-36 | C35: 36"x18" | D35: WEST (Mounted on route marker post) | E35: 10 | G35: 762 | H35: 440 | I35: SHORT TERM MESSAGE-TYPE R | J35: SF | K35: X
B36: M5-1(I)-30 | C36: 30"x21" | D36: ADVANCE TURN ARROW RT or LT(Mounted on route marker post) | E36: 9 | G36: 762 | H36: 442 | I36: SHORT TERM MESSAGE-TYPE NR | J36: SF | K36: X
B37: M5-2(I)-30 | C37: 30"x21" | D37: ADVANCE TURN ARROW DIAGONAL RT or LT (Mounted on route marker post) | E37: 9
B38: M6-1(I)-30 | C38: 30"x21" | D38: DIRECTIONAL ARROW RT or LT (Mounted on route marker post) | E38: 9
B39: M6-2(I)-30 | C39: 30"x21" | D39: DIRECTIONAL ARROW DIAGONAL RT or LT (Mounted on route marker post) | E39: 9
B40: M6-3(I)-30 | C40: 30"x21" | D40: DIRECTIONAL ARROW UP (Mounted on route marker post) | E40: 9
B42: R3-1-48 | C42: 48"x48" | D42: NO RIGHT TURN | E42: 35
B43: R3-5-30 | C43: 30"X36" | D43: LEFT or RIGHT TURN ONLY | E43: 18
B44: R3-7-30 | C44: 30"x30" | D44: LEFT or RIGHT LANE MUST TURN LEFT or RIGHT | E44: 17
B45: R5-1a-42 | C45: 42"x30" | D45: WRONG WAY | E45: 26
B46: R8-3-12 | C46: 36"x36"` | D46: NO PARKING SYMBOL | E46: 27
B47: R9-9-24 | C47: 24"x12" | D47: SIDEWALK CLOSED (Mounted on barricade) | E47: 3
B48: R9-10-24 | C48: 24"x12" | D48: SIDEWALK CLOSED USE OTHER SIDE (Mounted on barricade) | E48: 3
B49: R9-11-24 | C49: 24"x12" | D49: SIDEWALK CLOSED AHEAD CROSS HERE (Mounted on barricade) | E49: 3
B50: R9-11a-24 | C50: 24"x12" | D50: SIDEWALK CLOSED CROSS HERE (Mounted on barricade) | E50: 3
B52: W1-1-48 | C52: 48"x48" | D52: TURN | E52: 35
B53: W1-2-48 | C53: 48"x48" | D53: CURVE | E53: 35
B54: W4-1-48 | C54: 48"x48" | D54: MERGING TRAFFIC | E54: 35
B55: W5-4-48 | C55: 48"x48" | D55: RAMP NARROWS | E55: 35
B56: W6-4-12 | C56: 12"x18" | D56: TWO-WAY TRAFFIC (Mounted on tubular marker) | E56: 2
B57: W8-4-48 | C57: 48"x48" | D57: SOFT SHOULDER | E57: 35
B58: W8-9-48 | C58: 48"x48" | D58: LOW SHOULDER | E58: 35
B59: W8-17p-30 | C59: 30"x24" | D59: SHOULDER DROP-OFF (Mounted on W8-17-48 sign post) | E59: 12
B60: W11-2-36 | C60: 36"x36" | D60: PEDESTRIAN CROSSING (Fluorescent yellow-green) | E60: 27
B61: W13-4p-36 | C61: 36"x36" | D61: ON RAMP (Mounted on other sign post) | E61: 17
B62: W16-7p-18 | C62: 18"x12" | D62: LEFT or RIGHT DIAGONAL ARROW (Mounted on delineator drum) | E62: 2
B63: W16-7p-24 | C63: 24"x12" | D63: LEFT or RIGHT DIAGONAL ARROW (Mounted on pedestrian sign post) | E63: 7
B64: W16-9p-30 | C64: 30"x18" | D64: AHEAD (Mounted on pedestrian sign post) | E64: 11
B65: W20-51-48 | C65: 48"x48" | D65: EQUIPMENT WORKING | E65: 35
B66: W24-1-48 | C66: 48"x48" | D66: DOUBLE REVERSE CURVE | E66: 35
C68: 18"x18" | D68: ORANGE BLANK SIGN | E68: 12

Sheet Calculations (hidden)
L2: AMOUNT REQUIRED
B3: SIGN NUMBER | C3: Breakdown | I3: SIGN SIZE | J3: DESCRIPTION | K3: UNITS | L3: =Input!F14 -> 0 | M3: =Input!G14 -> 0 | N3: =Input!H14 -> 0 | O3: =Input!I14 -> 0 | P3: =Input!J14 -> 0
A4: 1 | B4: =Input!B15 -> E5-1-48 | C4: =IF(B4=0,"Z",IF(T(B4)="",CONCATENATE("Y",B4),LEFT(B4,1))) -> E | D4: =VALUE(MID(B4,LEN(C4)+1,SEARCH("-",B4)-(LEN(C4)+1))) -> 5 | E4: =VALUE(IF(LEN(F4)=1,F4,IF(AND(LEN(F4)>1,OR(CODE(MID(F4,2,1))<48,CODE(MID(F4,2,1))>57)),LEFT(F4,1),IF(LEN(F4)=2,F4,IF(OR(CODE(MID(F4,3,1))<48,CODE(MID(F4,3,1))>57),LEFT(F4,2),LEFT(F4,3)))))) -> 1 | F4: =LEFT(RIGHT(B4,LEN(B4)-SEARCH("-",B4)),SEARCH("-",RIGHT(B4,LEN(B4)-SEARCH("-",B4)))-1) -> 1 | G4: =MID(F4,LEN(E4)+1,LEN(F4)-LEN(E4)) ->  | H4: =VALUE(RIGHT(B4,LEN(B4)-SEARCH("-",B4,LEN(C4)+LEN(D4)+2))) -> 48 | I4: =Input!C15 -> 48"x48" | J4: =Input!D15 -> EXIT GORE | K4: =Input!E15 -> 35 | L4: =IF(COUNTBLANK(Input!$F$14:$J$14)=5,Input!F15,IF(Input!$F$14=0,0,Input!F15)) -> 0 | M4: =IF(Input!G$14=0,0,Input!G15) -> 0 | N4: =IF(Input!H$14=0,0,Input!H15) -> 0 | O4: =IF(Input!I$14=0,0,Input!I15) -> 0 | P4: =IF(Input!J$14=0,0,Input!J15) -> 0
A5: 2 | B5: =Input!B16 -> G20-1-60 | C5: =IF(B5=0,"Z",IF(T(B5)="",CONCATENATE("Y",B5),LEFT(B5,1))) -> G | D5: =VALUE(MID(B5,LEN(C5)+1,SEARCH("-",B5)-(LEN(C5)+1))) -> 20 | E5: =VALUE(IF(LEN(F5)=1,F5,IF(AND(LEN(F5)>1,OR(CODE(MID(F5,2,1))<48,CODE(MID(F5,2,1))>57)),LEFT(F5,1),IF(LEN(F5)=2,F5,IF(OR(CODE(MID(F5,3,1))<48,CODE(MID(F5,3,1))>57),LEFT(F5,2),LEFT(F5,3)))))) -> 1 | F5: =LEFT(RIGHT(B5,LEN(B5)-SEARCH("-",B5)),SEARCH("-",RIGHT(B5,LEN(B5)-SEARCH("-",B5)))-1) -> 1 | G5: =MID(F5,LEN(E5)+1,LEN(F5)-LEN(E5)) ->  | H5: =VALUE(RIGHT(B5,LEN(B5)-SEARCH("-",B5,LEN(C5)+LEN(D5)+2))) -> 60 | I5: =Input!C16 -> 60"x24" | J5: =Input!D16 -> ROAD WORK NEXT __ MILES | K5: =Input!E16 -> 28 | L5: =IF(COUNTBLANK(Input!$F$14:$J$14)=5,Input!F16,IF(Input!$F$14=0,0,Input!F16)) -> 0 | M5: =IF(Input!G$14=0,0,Input!G16) -> 0 | N5: =IF(Input!H$14=0,0,Input!H16) -> 0 | O5: =IF(Input!I$14=0,0,Input!I16) -> 0 | P5: =IF(Input!J$14=0,0,Input!J16) -> 0
A6: 3 | B6: =Input!B17 -> G20-1b-60 | C6: =IF(B6=0,"Z",IF(T(B6)="",CONCATENATE("Y",B6),LEFT(B6,1))) -> G | D6: =VALUE(MID(B6,LEN(C6)+1,SEARCH("-",B6)-(LEN(C6)+1))) -> 20 | E6: =VALUE(IF(LEN(F6)=1,F6,IF(AND(LEN(F6)>1,OR(CODE(MID(F6,2,1))<48,CODE(MID(F6,2,1))>57)),LEFT(F6,1),IF(LEN(F6)=2,F6,IF(OR(CODE(MID(F6,3,1))<48,CODE(MID(F6,3,1))>57),LEFT(F6,2),LEFT(F6,3)))))) -> 1 | F6: =LEFT(RIGHT(B6,LEN(B6)-SEARCH("-",B6)),SEARCH("-",RIGHT(B6,LEN(B6)-SEARCH("-",B6)))-1) -> 1b | G6: =MID(F6,LEN(E6)+1,LEN(F6)-LEN(E6)) -> b | H6: =VALUE(RIGHT(B6,LEN(B6)-SEARCH("-",B6,LEN(C6)+LEN(D6)+2))) -> 60 | I6: =Input!C17 -> 60"x24" | J6: =Input!D17 -> NO WORK IN PROGRESS (Sign and installation only) | K6: =Input!E17 -> 18 | L6: =IF(COUNTBLANK(Input!$F$14:$J$14)=5,Input!F17,IF(Input!$F$14=0,0,Input!F17)) -> 0 | M6: =IF(Input!G$14=0,0,Input!G17) -> 0 | N6: =IF(Input!H$14=0,0,Input!H17) -> 0 | O6: =IF(Input!I$14=0,0,Input!I17) -> 0 | P6: =IF(Input!J$14=0,0,Input!J17) -> 0
A7: 4 | B7: =Input!B18 -> G20-2-48 | C7: =IF(B7=0,"Z",IF(T(B7)="",CONCATENATE("Y",B7),LEFT(B7,1))) -> G | D7: =VALUE(MID(B7,LEN(C7)+1,SEARCH("-",B7)-(LEN(C7)+1))) -> 20 | E7: =VALUE(IF(LEN(F7)=1,F7,IF(AND(LEN(F7)>1,OR(CODE(MID(F7,2,1))<48,CODE(MID(F7,2,1))>57)),LEFT(F7,1),IF(LEN(F7)=2,F7,IF(OR(CODE(MID(F7,3,1))<48,CODE(MID(F7,3,1))>57),LEFT(F7,2),LEFT(F7,3)))))) -> 2 | F7: =LEFT(RIGHT(B7,LEN(B7)-SEARCH("-",B7)),SEARCH("-",RIGHT(B7,LEN(B7)-SEARCH("-",B7)))-1) -> 2 | G7: =MID(F7,LEN(E7)+1,LEN(F7)-LEN(E7)) ->  | H7: =VALUE(RIGHT(B7,LEN(B7)-SEARCH("-",B7,LEN(C7)+LEN(D7)+2))) -> 48 | I7: =Input!C18 -> 48"x24" | J7: =Input!D18 -> END ROAD WORK | K7: =Input!E18 -> 26 | L7: =IF(COUNTBLANK(Input!$F$14:$J$14)=5,Input!F18,IF(Input!$F$14=0,0,Input!F18)) -> 0 | M7: =IF(Input!G$14=0,0,Input!G18) -> 0 | N7: =IF(Input!H$14=0,0,Input!H18) -> 0 | O7: =IF(Input!I$14=0,0,Input!I18) -> 0 | P7: =IF(Input!J$14=0,0,Input!J18) -> 0
A8: 5 | B8: =Input!B19 -> G20-4-36 | C8: =IF(B8=0,"Z",IF(T(B8)="",CONCATENATE("Y",B8),LEFT(B8,1))) -> G | D8: =VALUE(MID(B8,LEN(C8)+1,SEARCH("-",B8)-(LEN(C8)+1))) -> 20 | E8: =VALUE(IF(LEN(F8)=1,F8,IF(AND(LEN(F8)>1,OR(CODE(MID(F8,2,1))<48,CODE(MID(F8,2,1))>57)),LEFT(F8,1),IF(LEN(F8)=2,F8,IF(OR(CODE(MID(F8,3,1))<48,CODE(MID(F8,3,1))>57),LEFT(F8,2),LEFT(F8,3)))))) -> 4 | F8: =LEFT(RIGHT(B8,LEN(B8)-SEARCH("-",B8)),SEARCH("-",RIGHT(B8,LEN(B8)-SEARCH("-",B8)))-1) -> 4 | G8: =MID(F8,LEN(E8)+1,LEN(F8)-LEN(E8)) ->  | H8: =VALUE(RIGHT(B8,LEN(B8)-SEARCH("-",B8,LEN(C8)+LEN(D8)+2))) -> 36 | I8: =Input!C19 -> 36"x18" | J8: =Input!D19 -> PILOT CAR FOLLOW ME (Mounted to back of pilot car) | K8: =Input!E19 -> 18 | L8: =IF(COUNTBLANK(Input!$F$14:$J$14)=5,Input!F19,IF(Input!$F$14=0,0,Input!F19)) -> 0 | M8: =IF(Input!G$14=0,0,Input!G19) -> 0 | N8: =IF(Input!H$14=0,0,Input!H19) -> 0 | O8: =IF(Input!I$14=0,0,Input!I19) -> 0 | P8: =IF(Input!J$14=0,0,Input!J19) -> 0
A9: 6 | B9: =Input!B20 -> G20-4b-36 | C9: =IF(B9=0,"Z",IF(T(B9)="",CONCATENATE("Y",B9),LEFT(B9,1))) -> G | D9: =VALUE(MID(B9,LEN(C9)+1,SEARCH("-",B9)-(LEN(C9)+1))) -> 20 | E9: =VALUE(IF(LEN(F9)=1,F9,IF(AND(LEN(F9)>1,OR(CODE(MID(F9,2,1))<48,CODE(MID(F9,2,1))>57)),LEFT(F9,1),IF(LEN(F9)=2,F9,IF(OR(CODE(MID(F9,3,1))<48,CODE(MID(F9,3,1))>57),LEFT(F9,2),LEFT(F9,3)))))) -> 4 | F9: =LEFT(RIGHT(B9,LEN(B9)-SEARCH("-",B9)),SEARCH("-",RIGHT(B9,LEN(B9)-SEARCH("-",B9)))-1) -> 4b | G9: =MID(F9,LEN(E9)+1,LEN(F9)-LEN(E9)) -> b | H9: =VALUE(RIGHT(B9,LEN(B9)-SEARCH("-",B9,LEN(C9)+LEN(D9)+2))) -> 36 | I9: =Input!C20 -> 36"x30" | J9: =Input!D20 -> WAIT FOR PILOT CAR | K9: =Input!E20 -> 18 | L9: =IF(COUNTBLANK(Input!$F$14:$J$14)=5,Input!F20,IF(Input!$F$14=0,0,Input!F20)) -> 0 | M9: =IF(Input!G$14=0,0,Input!G20) -> 0 | N9: =IF(Input!H$14=0,0,Input!H20) -> 0 | O9: =IF(Input!I$14=0,0,Input!I20) -> 0 | P9: =IF(Input!J$14=0,0,Input!J20) -> 0
A10: 7 | B10: =Input!B21 -> G20-50a-72 | C10: =IF(B10=0,"Z",IF(T(B10)="",CONCATENATE("Y",B10),LEFT(B10,1))) -> G | D10: =VALUE(MID(B10,LEN(C10)+1,SEARCH("-",B10)-(LEN(C10)+1))) -> 20 | E10: =VALUE(IF(LEN(F10)=1,F10,IF(AND(LEN(F10)>1,OR(CODE(MID(F10,2,1))<48,CODE(MID(F10,2,1))>57)),LEFT(F10,1),IF(LEN(F10)=2,F10,IF(OR(CODE(MID(F10,3,1))<48,CODE(MID(F10,3,1))>57),LEFT(F10,2),LEFT(F10,3)))))) -> 50 | F10: =LEFT(RIGHT(B10,LEN(B10)-SEARCH("-",B10)),SEARCH("-",RIGHT(B10,LEN(B10)-SEARCH("-",B10)))-1) -> 50a | G10: =MID(F10,LEN(E10)+1,LEN(F10)-LEN(E10)) -> a | H10: =VALUE(RIGHT(B10,LEN(B10)-SEARCH("-",B10,LEN(C10)+LEN(D10)+2))) -> 72 | I10: =Input!C21 -> 72"x36" | J10: =Input!D21 -> ROAD WORK NEXT __ MILES RT & LT ARROWS | K10: =Input!E21 -> 43 | L10: =IF(COUNTBLANK(Input!$F$14:$J$14)=5,Input!F21,IF(Input!$F$14=0,0,Input!F21)) -> 0 | M10: =IF(Input!G$14=0,0,Input!G21) -> 0 | N10: =IF(Input!H$14=0,0,Input!H21) -> 0 | O10: =IF(Input!I$14=0,0,Input!I21) -> 0 | P10: =IF(Input!J$14=0,0,Input!J21) -> 0
A11: 8 | B11: =Input!B22 -> G20-52a-72 | C11: =IF(B11=0,"Z",IF(T(B11)="",CONCATENATE("Y",B11),LEFT(B11,1))) -> G | D11: =VALUE(MID(B11,LEN(C11)+1,SEARCH("-",B11)-(LEN(C11)+1))) -> 20 | E11: =VALUE(IF(LEN(F11)=1,F11,IF(AND(LEN(F11)>1,OR(CODE(MID(F11,2,1))<48,CODE(MID(F11,2,1))>57)),LEFT(F11,1),IF(LEN(F11)=2,F11,IF(OR(CODE(MID(F11,3,1))<48,CODE(MID(F11,3,1))>57),LEFT(F11,2),LEFT(F11,3)))))) -> 52 | F11: =LEFT(RIGHT(B11,LEN(B11)-SEARCH("-",B11)),SEARCH("-",RIGHT(B11,LEN(B11)-SEARCH("-",B11)))-1) -> 52a | G11: =MID(F11,LEN(E11)+1,LEN(F11)-LEN(E11)) -> a | H11: =VALUE(RIGHT(B11,LEN(B11)-SEARCH("-",B11,LEN(C11)+LEN(D11)+2))) -> 72 | I11: =Input!C22 -> 72"x24" | J11: =Input!D22 -> ROAD WORK NEXT __ MILES RT or LT ARROW | K11: =Input!E22 -> 36 | L11: =IF(COUNTBLANK(Input!$F$14:$J$14)=5,Input!F22,IF(Input!$F$14=0,0,Input!F22)) -> 0 | M11: =IF(Input!G$14=0,0,Input!G22) -> 0 | N11: =IF(Input!H$14=0,0,Input!H22) -> 0 | O11: =IF(Input!I$14=0,0,Input!I22) -> 0 | P11: =IF(Input!J$14=0,0,Input!J22) -> 0
A12: 9 | B12: =Input!B23 -> G20-55-96 | C12: =IF(B12=0,"Z",IF(T(B12)="",CONCATENATE("Y",B12),LEFT(B12,1))) -> G | D12: =VALUE(MID(B12,LEN(C12)+1,SEARCH("-",B12)-(LEN(C12)+1))) -> 20 | E12: =VALUE(IF(LEN(F12)=1,F12,IF(AND(LEN(F12)>1,OR(CODE(MID(F12,2,1))<48,CODE(MID(F12,2,1))>57)),LEFT(F12,1),IF(LEN(F12)=2,F12,IF(OR(CODE(MID(F12,3,1))<48,CODE(MID(F12,3,1))>57),LEFT(F12,2),LEFT(F12,3)))))) -> 55 | F12: =LEFT(RIGHT(B12,LEN(B12)-SEARCH("-",B12)),SEARCH("-",RIGHT(B12,LEN(B12)-SEARCH("-",B12)))-1) -> 55 | G12: =MID(F12,LEN(E12)+1,LEN(F12)-LEN(E12)) ->  | H12: =VALUE(RIGHT(B12,LEN(B12)-SEARCH("-",B12,LEN(C12)+LEN(D12)+2))) -> 96 | I12: =Input!C23 -> 96"x48" | J12: =Input!D23 -> SPEED LIMIT ENFORCED - MINIMUM FEE $150 WHEN WORKERS PRESENT | K12: =Input!E23 -> 59 | L12: =IF(COUNTBLANK(Input!$F$14:$J$14)=5,Input!F23,IF(Input!$F$14=0,0,Input!F23)) -> 0 | M12: =IF(Input!G$14=0,0,Input!G23) -> 0 | N12: =IF(Input!H$14=0,0,Input!H23) -> 0 | O12: =IF(Input!I$14=0,0,Input!I23) -> 0 | P12: =IF(Input!J$14=0,0,Input!J23) -> 0
A13: 10 | B13: =Input!B24 -> M1-1-36 | C13: =IF(B13=0,"Z",IF(T(B13)="",CONCATENATE("Y",B13),LEFT(B13,1))) -> M | D13: =VALUE(MID(B13,LEN(C13)+1,SEARCH("-",B13)-(LEN(C13)+1))) -> 1 | E13: =VALUE(IF(LEN(F13)=1,F13,IF(AND(LEN(F13)>1,OR(CODE(MID(F13,2,1))<48,CODE(MID(F13,2,1))>57)),LEFT(F13,1),IF(LEN(F13)=2,F13,IF(OR(CODE(MID(F13,3,1))<48,CODE(MID(F13,3,1))>57),LEFT(F13,2),LEFT(F13,3)))))) -> 1 | F13: =LEFT(RIGHT(B13,LEN(B13)-SEARCH("-",B13)),SEARCH("-",RIGHT(B13,LEN(B13)-SEARCH("-",B13)))-1) -> 1 | G13: =MID(F13,LEN(E13)+1,LEN(F13)-LEN(E13)) ->  | H13: =VALUE(RIGHT(B13,LEN(B13)-SEARCH("-",B13,LEN(C13)+LEN(D13)+2))) -> 36 | I13: =Input!C24 -> 36"x36" | J13: =Input!D24 -> INTERSTATE ROUTE MARKER (Post and installation only) | K13: =Input!E24 -> 11 | L13: =IF(COUNTBLANK(Input!$F$14:$J$14)=5,Input!F24,IF(Input!$F$14=0,0,Input!F24)) -> 0 | M13: =IF(Input!G$14=0,0,Input!G24) -> 0 | N13: =IF(Input!H$14=0,0,Input!H24) -> 0 | O13: =IF(Input!I$14=0,0,Input!I24) -> 0 | P13: =IF(Input!J$14=0,0,Input!J24) -> 0
A14: 11 | B14: =Input!B25 -> M1-4-24 | C14: =IF(B14=0,"Z",IF(T(B14)="",CONCATENATE("Y",B14),LEFT(B14,1))) -> M | D14: =VALUE(MID(B14,LEN(C14)+1,SEARCH("-",B14)-(LEN(C14)+1))) -> 1 | E14: =VALUE(IF(LEN(F14)=1,F14,IF(AND(LEN(F14)>1,OR(CODE(MID(F14,2,1))<48,CODE(MID(F14,2,1))>57)),LEFT(F14,1),IF(LEN(F14)=2,F14,IF(OR(CODE(MID(F14,3,1))<48,CODE(MID(F14,3,1))>57),LEFT(F14,2),LEFT(F14,3)))))) -> 4 | F14: =LEFT(RIGHT(B14,LEN(B14)-SEARCH("-",B14)),SEARCH("-",RIGHT(B14,LEN(B14)-SEARCH("-",B14)))-1) -> 4 | G14: =MID(F14,LEN(E14)+1,LEN(F14)-LEN(E14)) ->  | H14: =VALUE(RIGHT(B14,LEN(B14)-SEARCH("-",B14,LEN(C14)+LEN(D14)+2))) -> 24 | I14: =Input!C25 -> 24"x24" | J14: =Input!D25 -> U.S. ROUTE MARKER (Post and installation only) | K14: =Input!E25 -> 10 | L14: =IF(COUNTBLANK(Input!$F$14:$J$14)=5,Input!F25,IF(Input!$F$14=0,0,Input!F25)) -> 0 | M14: =IF(Input!G$14=0,0,Input!G25) -> 0 | N14: =IF(Input!H$14=0,0,Input!H25) -> 0 | O14: =IF(Input!I$14=0,0,Input!I25) -> 0 | P14: =IF(Input!J$14=0,0,Input!J25) -> 0
A15: 12 | B15: =Input!B26 -> M1-5-24 | C15: =IF(B15=0,"Z",IF(T(B15)="",CONCATENATE("Y",B15),LEFT(B15,1))) -> M | D15: =VALUE(MID(B15,LEN(C15)+1,SEARCH("-",B15)-(LEN(C15)+1))) -> 1 | E15: =VALUE(IF(LEN(F15)=1,F15,IF(AND(LEN(F15)>1,OR(CODE(MID(F15,2,1))<48,CODE(MID(F15,2,1))>57)),LEFT(F15,1),IF(LEN(F15)=2,F15,IF(OR(CODE(MID(F15,3,1))<48,CODE(MID(F15,3,1))>57),LEFT(F15,2),LEFT(F15,3)))))) -> 5 | F15: =LEFT(RIGHT(B15,LEN(B15)-SEARCH("-",B15)),SEARCH("-",RIGHT(B15,LEN(B15)-SEARCH("-",B15)))-1) -> 5 | G15: =MID(F15,LEN(E15)+1,LEN(F15)-LEN(E15)) ->  | H15: =VALUE(RIGHT(B15,LEN(B15)-SEARCH("-",B15,LEN(C15)+LEN(D15)+2))) -> 24 | I15: =Input!C26 -> 24"x24" | J15: =Input!D26 -> STATE ROUTE MARKER (Post and installation only) | K15: =Input!E26 -> 10 | L15: =IF(COUNTBLANK(Input!$F$14:$J$14)=5,Input!F26,IF(Input!$F$14=0,0,Input!F26)) -> 0 | M15: =IF(Input!G$14=0,0,Input!G26) -> 0 | N15: =IF(Input!H$14=0,0,Input!H26) -> 0 | O15: =IF(Input!I$14=0,0,Input!I26) -> 0 | P15: =IF(Input!J$14=0,0,Input!J26) -> 0
A16: 13 | B16: =Input!B27 -> M3-1-24 | C16: =IF(B16=0,"Z",IF(T(B16)="",CONCATENATE("Y",B16),LEFT(B16,1))) -> M | D16: =VALUE(MID(B16,LEN(C16)+1,SEARCH("-",B16)-(LEN(C16)+1))) -> 3 | E16: =VALUE(IF(LEN(F16)=1,F16,IF(AND(LEN(F16)>1,OR(CODE(MID(F16,2,1))<48,CODE(MID(F16,2,1))>57)),LEFT(F16,1),IF(LEN(F16)=2,F16,IF(OR(CODE(MID(F16,3,1))<48,CODE(MID(F16,3,1))>57),LEFT(F16,2),LEFT(F16,3)))))) -> 1 | F16: =LEFT(RIGHT(B16,LEN(B16)-SEARCH("-",B16)),SEARCH("-",RIGHT(B16,LEN(B16)-SEARCH("-",B16)))-1) -> 1 | G16: =MID(F16,LEN(E16)+1,LEN(F16)-LEN(E16)) ->  | H16: =VALUE(RIGHT(B16,LEN(B16)-SEARCH("-",B16,LEN(C16)+LEN(D16)+2))) -> 24 | I16: =Input!C27 -> 24"x12" | J16: =Input!D27 -> NORTH (Mounted on route marker post) | K16: =Input!E27 -> 7 | L16: =IF(COUNTBLANK(Input!$F$14:$J$14)=5,Input!F27,IF(Input!$F$14=0,0,Input!F27)) -> 0 | M16: =IF(Input!G$14=0,0,Input!G27) -> 0 | N16: =IF(Input!H$14=0,0,Input!H27) -> 0 | O16: =IF(Input!I$14=0,0,Input!I27) -> 0 | P16: =IF(Input!J$14=0,0,Input!J27) -> 0
A17: 14 | B17: =Input!B28 -> M3-2-24 | C17: =IF(B17=0,"Z",IF(T(B17)="",CONCATENATE("Y",B17),LEFT(B17,1))) -> M | D17: =VALUE(MID(B17,LEN(C17)+1,SEARCH("-",B17)-(LEN(C17)+1))) -> 3 | E17: =VALUE(IF(LEN(F17)=1,F17,IF(AND(LEN(F17)>1,OR(CODE(MID(F17,2,1))<48,CODE(MID(F17,2,1))>57)),LEFT(F17,1),IF(LEN(F17)=2,F17,IF(OR(CODE(MID(F17,3,1))<48,CODE(MID(F17,3,1))>57),LEFT(F17,2),LEFT(F17,3)))))) -> 2 | F17: =LEFT(RIGHT(B17,LEN(B17)-SEARCH("-",B17)),SEARCH("-",RIGHT(B17,LEN(B17)-SEARCH("-",B17)))-1) -> 2 | G17: =MID(F17,LEN(E17)+1,LEN(F17)-LEN(E17)) ->  | H17: =VALUE(RIGHT(B17,LEN(B17)-SEARCH("-",B17,LEN(C17)+LEN(D17)+2))) -> 24 | I17: =Input!C28 -> 24"x12" | J17: =Input!D28 -> EAST (Mounted on route marker post) | K17: =Input!E28 -> 7 | L17: =IF(COUNTBLANK(Input!$F$14:$J$14)=5,Input!F28,IF(Input!$F$14=0,0,Input!F28)) -> 0 | M17: =IF(Input!G$14=0,0,Input!G28) -> 0 | N17: =IF(Input!H$14=0,0,Input!H28) -> 0 | O17: =IF(Input!I$14=0,0,Input!I28) -> 0 | P17: =IF(Input!J$14=0,0,Input!J28) -> 0
A18: 15 | B18: =Input!B29 -> M3-3-24 | C18: =IF(B18=0,"Z",IF(T(B18)="",CONCATENATE("Y",B18),LEFT(B18,1))) -> M | D18: =VALUE(MID(B18,LEN(C18)+1,SEARCH("-",B18)-(LEN(C18)+1))) -> 3 | E18: =VALUE(IF(LEN(F18)=1,F18,IF(AND(LEN(F18)>1,OR(CODE(MID(F18,2,1))<48,CODE(MID(F18,2,1))>57)),LEFT(F18,1),IF(LEN(F18)=2,F18,IF(OR(CODE(MID(F18,3,1))<48,CODE(MID(F18,3,1))>57),LEFT(F18,2),LEFT(F18,3)))))) -> 3 | F18: =LEFT(RIGHT(B18,LEN(B18)-SEARCH("-",B18)),SEARCH("-",RIGHT(B18,LEN(B18)-SEARCH("-",B18)))-1) -> 3 | G18: =MID(F18,LEN(E18)+1,LEN(F18)-LEN(E18)) ->  | H18: =VALUE(RIGHT(B18,LEN(B18)-SEARCH("-",B18,LEN(C18)+LEN(D18)+2))) -> 24 | I18: =Input!C29 -> 24"x12" | J18: =Input!D29 -> SOUTH (Mounted on route marker post) | K18: =Input!E29 -> 7 | L18: =IF(COUNTBLANK(Input!$F$14:$J$14)=5,Input!F29,IF(Input!$F$14=0,0,Input!F29)) -> 0 | M18: =IF(Input!G$14=0,0,Input!G29) -> 0 | N18: =IF(Input!H$14=0,0,Input!H29) -> 0 | O18: =IF(Input!I$14=0,0,Input!I29) -> 0 | P18: =IF(Input!J$14=0,0,Input!J29) -> 0
A19: 16 | B19: =Input!B30 -> M3-4-24 | C19: =IF(B19=0,"Z",IF(T(B19)="",CONCATENATE("Y",B19),LEFT(B19,1))) -> M | D19: =VALUE(MID(B19,LEN(C19)+1,SEARCH("-",B19)-(LEN(C19)+1))) -> 3 | E19: =VALUE(IF(LEN(F19)=1,F19,IF(AND(LEN(F19)>1,OR(CODE(MID(F19,2,1))<48,CODE(MID(F19,2,1))>57)),LEFT(F19,1),IF(LEN(F19)=2,F19,IF(OR(CODE(MID(F19,3,1))<48,CODE(MID(F19,3,1))>57),LEFT(F19,2),LEFT(F19,3)))))) -> 4 | F19: =LEFT(RIGHT(B19,LEN(B19)-SEARCH("-",B19)),SEARCH("-",RIGHT(B19,LEN(B19)-SEARCH("-",B19)))-1) -> 4 | G19: =MID(F19,LEN(E19)+1,LEN(F19)-LEN(E19)) ->  | H19: =VALUE(RIGHT(B19,LEN(B19)-SEARCH("-",B19,LEN(C19)+LEN(D19)+2))) -> 24 | I19: =Input!C30 -> 24"x12" | J19: =Input!D30 -> WEST (Mounted on route marker post) | K19: =Input!E30 -> 7 | L19: =IF(COUNTBLANK(Input!$F$14:$J$14)=5,Input!F30,IF(Input!$F$14=0,0,Input!F30)) -> 0 | M19: =IF(Input!G$14=0,0,Input!G30) -> 0 | N19: =IF(Input!H$14=0,0,Input!H30) -> 0 | O19: =IF(Input!I$14=0,0,Input!I30) -> 0 | P19: =IF(Input!J$14=0,0,Input!J30) -> 0
A20: 17 | B20: =Input!B31 -> M4-8-24 | C20: =IF(B20=0,"Z",IF(T(B20)="",CONCATENATE("Y",B20),LEFT(B20,1))) -> M | D20: =VALUE(MID(B20,LEN(C20)+1,SEARCH("-",B20)-(LEN(C20)+1))) -> 4 | E20: =VALUE(IF(LEN(F20)=1,F20,IF(AND(LEN(F20)>1,OR(CODE(MID(F20,2,1))<48,CODE(MID(F20,2,1))>57)),LEFT(F20,1),IF(LEN(F20)=2,F20,IF(OR(CODE(MID(F20,3,1))<48,CODE(MID(F20,3,1))>57),LEFT(F20,2),LEFT(F20,3)))))) -> 8 | F20: =LEFT(RIGHT(B20,LEN(B20)-SEARCH("-",B20)),SEARCH("-",RIGHT(B20,LEN(B20)-SEARCH("-",B20)))-1) -> 8 | G20: =MID(F20,LEN(E20)+1,LEN(F20)-LEN(E20)) ->  | H20: =VALUE(RIGHT(B20,LEN(B20)-SEARCH("-",B20,LEN(C20)+LEN(D20)+2))) -> 24 | I20: =Input!C31 -> 24"x12" | J20: =Input!D31 -> DETOUR (Mounted on route marker post) | K20: =Input!E31 -> 7 | L20: =IF(COUNTBLANK(Input!$F$14:$J$14)=5,Input!F31,IF(Input!$F$14=0,0,Input!F31)) -> 0 | M20: =IF(Input!G$14=0,0,Input!G31) -> 0 | N20: =IF(Input!H$14=0,0,Input!H31) -> 0 | O20: =IF(Input!I$14=0,0,Input!I31) -> 0 | P20: =IF(Input!J$14=0,0,Input!J31) -> 0
A21: 18 | B21: =Input!B32 -> M4-9-30 | C21: =IF(B21=0,"Z",IF(T(B21)="",CONCATENATE("Y",B21),LEFT(B21,1))) -> M | D21: =VALUE(MID(B21,LEN(C21)+1,SEARCH("-",B21)-(LEN(C21)+1))) -> 4 | E21: =VALUE(IF(LEN(F21)=1,F21,IF(AND(LEN(F21)>1,OR(CODE(MID(F21,2,1))<48,CODE(MID(F21,2,1))>57)),LEFT(F21,1),IF(LEN(F21)=2,F21,IF(OR(CODE(MID(F21,3,1))<48,CODE(MID(F21,3,1))>57),LEFT(F21,2),LEFT(F21,3)))))) -> 9 | F21: =LEFT(RIGHT(B21,LEN(B21)-SEARCH("-",B21)),SEARCH("-",RIGHT(B21,LEN(B21)-SEARCH("-",B21)))-1) -> 9 | G21: =MID(F21,LEN(E21)+1,LEN(F21)-LEN(E21)) ->  | H21: =VALUE(RIGHT(B21,LEN(B21)-SEARCH("-",B21,LEN(C21)+LEN(D21)+2))) -> 30 | I21: =Input!C32 -> 30"x24" | J21: =Input!D32 -> DETOUR ARROW RIGHT or LEFT/AHD AND RT or LT | K21: =Input!E32 -> 15 | L21: =IF(COUNTBLANK(Input!$F$14:$J$14)=5,Input!F32,IF(Input!$F$14=0,0,Input!F32)) -> 0 | M21: =IF(Input!G$14=0,0,Input!G32) -> 0 | N21: =IF(Input!H$14=0,0,Input!H32) -> 0 | O21: =IF(Input!I$14=0,0,Input!I32) -> 0 | P21: =IF(Input!J$14=0,0,Input!J32) -> 0
A22: 19 | B22: =Input!B33 -> M4-10-48 | C22: =IF(B22=0,"Z",IF(T(B22)="",CONCATENATE("Y",B22),LEFT(B22,1))) -> M | D22: =VALUE(MID(B22,LEN(C22)+1,SEARCH("-",B22)-(LEN(C22)+1))) -> 4 | E22: =VALUE(IF(LEN(F22)=1,F22,IF(AND(LEN(F22)>1,OR(CODE(MID(F22,2,1))<48,CODE(MID(F22,2,1))>57)),LEFT(F22,1),IF(LEN(F22)=2,F22,IF(OR(CODE(MID(F22,3,1))<48,CODE(MID(F22,3,1))>57),LEFT(F22,2),LEFT(F22,3)))))) -> 10 | F22: =LEFT(RIGHT(B22,LEN(B22)-SEARCH("-",B22)),SEARCH("-",RIGHT(B22,LEN(B22)-SEARCH("-",B22)))-1) -> 10 | G22: =MID(F22,LEN(E22)+1,LEN(F22)-LEN(E22)) ->  | H22: =VALUE(RIGHT(B22,LEN(B22)-SEARCH("-",B22,LEN(C22)+LEN(D22)+2))) -> 48 | I22: =Input!C33 -> 48"x18" | J22: =Input!D33 -> DETOUR (INSIDE ARROW) RIGHT or LEFT (Mounted on barricade) | K22: =Input!E33 -> 7 | L22: =IF(COUNTBLANK(Input!$F$14:$J$14)=5,Input!F33,IF(Input!$F$14=0,0,Input!F33)) -> 0 | M22: =IF(Input!G$14=0,0,Input!G33) -> 0 | N22: =IF(Input!H$14=0,0,Input!H33) -> 0 | O22: =IF(Input!I$14=0,0,Input!I33) -> 0 | P22: =IF(Input!J$14=0,0,Input!J33) -> 0
A23: 20 | B23: =Input!B34 -> M5-1-21 | C23: =IF(B23=0,"Z",IF(T(B23)="",CONCATENATE("Y",B23),LEFT(B23,1))) -> M | D23: =VALUE(MID(B23,LEN(C23)+1,SEARCH("-",B23)-(LEN(C23)+1))) -> 5 | E23: =VALUE(IF(LEN(F23)=1,F23,IF(AND(LEN(F23)>1,OR(CODE(MID(F23,2,1))<48,CODE(MID(F23,2,1))>57)),LEFT(F23,1),IF(LEN(F23)=2,F23,IF(OR(CODE(MID(F23,3,1))<48,CODE(MID(F23,3,1))>57),LEFT(F23,2),LEFT(F23,3)))))) -> 1 | F23: =LEFT(RIGHT(B23,LEN(B23)-SEARCH("-",B23)),SEARCH("-",RIGHT(B23,LEN(B23)-SEARCH("-",B23)))-1) -> 1 | G23: =MID(F23,LEN(E23)+1,LEN(F23)-LEN(E23)) ->  | H23: =VALUE(RIGHT(B23,LEN(B23)-SEARCH("-",B23,LEN(C23)+LEN(D23)+2))) -> 21 | I23: =Input!C34 -> 21"x15" | J23: =Input!D34 -> ADVANCE TURN ARROW RT or LT(Mounted on route marker post) | K23: =Input!E34 -> 7 | L23: =IF(COUNTBLANK(Input!$F$14:$J$14)=5,Input!F34,IF(Input!$F$14=0,0,Input!F34)) -> 0 | M23: =IF(Input!G$14=0,0,Input!G34) -> 0 | N23: =IF(Input!H$14=0,0,Input!H34) -> 0 | O23: =IF(Input!I$14=0,0,Input!I34) -> 0 | P23: =IF(Input!J$14=0,0,Input!J34) -> 0
A24: 21 | B24: =Input!B35 -> M5-1-30 | C24: =IF(B24=0,"Z",IF(T(B24)="",CONCATENATE("Y",B24),LEFT(B24,1))) -> M | D24: =VALUE(MID(B24,LEN(C24)+1,SEARCH("-",B24)-(LEN(C24)+1))) -> 5 | E24: =VALUE(IF(LEN(F24)=1,F24,IF(AND(LEN(F24)>1,OR(CODE(MID(F24,2,1))<48,CODE(MID(F24,2,1))>57)),LEFT(F24,1),IF(LEN(F24)=2,F24,IF(OR(CODE(MID(F24,3,1))<48,CODE(MID(F24,3,1))>57),LEFT(F24,2),LEFT(F24,3)))))) -> 1 | F24: =LEFT(RIGHT(B24,LEN(B24)-SEARCH("-",B24)),SEARCH("-",RIGHT(B24,LEN(B24)-SEARCH("-",B24)))-1) -> 1 | G24: =MID(F24,LEN(E24)+1,LEN(F24)-LEN(E24)) ->  | H24: =VALUE(RIGHT(B24,LEN(B24)-SEARCH("-",B24,LEN(C24)+LEN(D24)+2))) -> 30 | I24: =Input!C35 -> 30"x21" | J24: =Input!D35 -> ADVANCE TURN ARROW RT or LT(Mounted on route marker post) | K24: =Input!E35 -> 9 | L24: =IF(COUNTBLANK(Input!$F$14:$J$14)=5,Input!F35,IF(Input!$F$14=0,0,Input!F35)) -> 0 | M24: =IF(Input!G$14=0,0,Input!G35) -> 0 | N24: =IF(Input!H$14=0,0,Input!H35) -> 0 | O24: =IF(Input!I$14=0,0,Input!I35) -> 0 | P24: =IF(Input!J$14=0,0,Input!J35) -> 0
A25: 22 | B25: =Input!B36 -> M6-1-21 | C25: =IF(B25=0,"Z",IF(T(B25)="",CONCATENATE("Y",B25),LEFT(B25,1))) -> M | D25: =VALUE(MID(B25,LEN(C25)+1,SEARCH("-",B25)-(LEN(C25)+1))) -> 6 | E25: =VALUE(IF(LEN(F25)=1,F25,IF(AND(LEN(F25)>1,OR(CODE(MID(F25,2,1))<48,CODE(MID(F25,2,1))>57)),LEFT(F25,1),IF(LEN(F25)=2,F25,IF(OR(CODE(MID(F25,3,1))<48,CODE(MID(F25,3,1))>57),LEFT(F25,2),LEFT(F25,3)))))) -> 1 | F25: =LEFT(RIGHT(B25,LEN(B25)-SEARCH("-",B25)),SEARCH("-",RIGHT(B25,LEN(B25)-SEARCH("-",B25)))-1) -> 1 | G25: =MID(F25,LEN(E25)+1,LEN(F25)-LEN(E25)) ->  | H25: =VALUE(RIGHT(B25,LEN(B25)-SEARCH("-",B25,LEN(C25)+LEN(D25)+2))) -> 21 | I25: =Input!C36 -> 21"x15" | J25: =Input!D36 -> DIRECTIONAL ARROW RT or LT (Mounted on route marker post) | K25: =Input!E36 -> 7 | L25: =IF(COUNTBLANK(Input!$F$14:$J$14)=5,Input!F36,IF(Input!$F$14=0,0,Input!F36)) -> 0 | M25: =IF(Input!G$14=0,0,Input!G36) -> 0 | N25: =IF(Input!H$14=0,0,Input!H36) -> 0 | O25: =IF(Input!I$14=0,0,Input!I36) -> 0 | P25: =IF(Input!J$14=0,0,Input!J36) -> 0
A26: 23 | B26: =Input!B37 -> M6-1-30 | C26: =IF(B26=0,"Z",IF(T(B26)="",CONCATENATE("Y",B26),LEFT(B26,1))) -> M | D26: =VALUE(MID(B26,LEN(C26)+1,SEARCH("-",B26)-(LEN(C26)+1))) -> 6 | E26: =VALUE(IF(LEN(F26)=1,F26,IF(AND(LEN(F26)>1,OR(CODE(MID(F26,2,1))<48,CODE(MID(F26,2,1))>57)),LEFT(F26,1),IF(LEN(F26)=2,F26,IF(OR(CODE(MID(F26,3,1))<48,CODE(MID(F26,3,1))>57),LEFT(F26,2),LEFT(F26,3)))))) -> 1 | F26: =LEFT(RIGHT(B26,LEN(B26)-SEARCH("-",B26)),SEARCH("-",RIGHT(B26,LEN(B26)-SEARCH("-",B26)))-1) -> 1 | G26: =MID(F26,LEN(E26)+1,LEN(F26)-LEN(E26)) ->  | H26: =VALUE(RIGHT(B26,LEN(B26)-SEARCH("-",B26,LEN(C26)+LEN(D26)+2))) -> 30 | I26: =Input!C37 -> 30"x21" | J26: =Input!D37 -> DIRECTIONAL ARROW RT or LT (Mounted on route marker post) | K26: =Input!E37 -> 9 | L26: =IF(COUNTBLANK(Input!$F$14:$J$14)=5,Input!F37,IF(Input!$F$14=0,0,Input!F37)) -> 0 | M26: =IF(Input!G$14=0,0,Input!G37) -> 0 | N26: =IF(Input!H$14=0,0,Input!H37) -> 0 | O26: =IF(Input!I$14=0,0,Input!I37) -> 0 | P26: =IF(Input!J$14=0,0,Input!J37) -> 0
A27: 24 | B27: =Input!B38 -> M6-3-21 | C27: =IF(B27=0,"Z",IF(T(B27)="",CONCATENATE("Y",B27),LEFT(B27,1))) -> M | D27: =VALUE(MID(B27,LEN(C27)+1,SEARCH("-",B27)-(LEN(C27)+1))) -> 6 | E27: =VALUE(IF(LEN(F27)=1,F27,IF(AND(LEN(F27)>1,OR(CODE(MID(F27,2,1))<48,CODE(MID(F27,2,1))>57)),LEFT(F27,1),IF(LEN(F27)=2,F27,IF(OR(CODE(MID(F27,3,1))<48,CODE(MID(F27,3,1))>57),LEFT(F27,2),LEFT(F27,3)))))) -> 3 | F27: =LEFT(RIGHT(B27,LEN(B27)-SEARCH("-",B27)),SEARCH("-",RIGHT(B27,LEN(B27)-SEARCH("-",B27)))-1) -> 3 | G27: =MID(F27,LEN(E27)+1,LEN(F27)-LEN(E27)) ->  | H27: =VALUE(RIGHT(B27,LEN(B27)-SEARCH("-",B27,LEN(C27)+LEN(D27)+2))) -> 21 | I27: =Input!C38 -> 21"x15" | J27: =Input!D38 -> DIRECTIONAL ARROW UP (Mounted on route marker post) | K27: =Input!E38 -> 7 | L27: =IF(COUNTBLANK(Input!$F$14:$J$14)=5,Input!F38,IF(Input!$F$14=0,0,Input!F38)) -> 0 | M27: =IF(Input!G$14=0,0,Input!G38) -> 0 | N27: =IF(Input!H$14=0,0,Input!H38) -> 0 | O27: =IF(Input!I$14=0,0,Input!I38) -> 0 | P27: =IF(Input!J$14=0,0,Input!J38) -> 0
A28: 25 | B28: =Input!B39 -> R1-1-48 | C28: =IF(B28=0,"Z",IF(T(B28)="",CONCATENATE("Y",B28),LEFT(B28,1))) -> R | D28: =VALUE(MID(B28,LEN(C28)+1,SEARCH("-",B28)-(LEN(C28)+1))) -> 1 | E28: =VALUE(IF(LEN(F28)=1,F28,IF(AND(LEN(F28)>1,OR(CODE(MID(F28,2,1))<48,CODE(MID(F28,2,1))>57)),LEFT(F28,1),IF(LEN(F28)=2,F28,IF(OR(CODE(MID(F28,3,1))<48,CODE(MID(F28,3,1))>57),LEFT(F28,2),LEFT(F28,3)))))) -> 1 | F28: =LEFT(RIGHT(B28,LEN(B28)-SEARCH("-",B28)),SEARCH("-",RIGHT(B28,LEN(B28)-SEARCH("-",B28)))-1) -> 1 | G28: =MID(F28,LEN(E28)+1,LEN(F28)-LEN(E28)) ->  | H28: =VALUE(RIGHT(B28,LEN(B28)-SEARCH("-",B28,LEN(C28)+LEN(D28)+2))) -> 48 | I28: =Input!C39 -> 48"x48" | J28: =Input!D39 -> STOP | K28: =Input!E39 -> 32 | L28: =IF(COUNTBLANK(Input!$F$14:$J$14)=5,Input!F39,IF(Input!$F$14=0,0,Input!F39)) -> 0 | M28: =IF(Input!G$14=0,0,Input!G39) -> 0 | N28: =IF(Input!H$14=0,0,Input!H39) -> 0 | O28: =IF(Input!I$14=0,0,Input!I39) -> 0 | P28: =IF(Input!J$14=0,0,Input!J39) -> 0
A29: 26 | B29: =Input!B40 -> R1-2-60 | C29: =IF(B29=0,"Z",IF(T(B29)="",CONCATENATE("Y",B29),LEFT(B29,1))) -> R | D29: =VALUE(MID(B29,LEN(C29)+1,SEARCH("-",B29)-(LEN(C29)+1))) -> 1 | E29: =VALUE(IF(LEN(F29)=1,F29,IF(AND(LEN(F29)>1,OR(CODE(MID(F29,2,1))<48,CODE(MID(F29,2,1))>57)),LEFT(F29,1),IF(LEN(F29)=2,F29,IF(OR(CODE(MID(F29,3,1))<48,CODE(MID(F29,3,1))>57),LEFT(F29,2),LEFT(F29,3)))))) -> 2 | F29: =LEFT(RIGHT(B29,LEN(B29)-SEARCH("-",B29)),SEARCH("-",RIGHT(B29,LEN(B29)-SEARCH("-",B29)))-1) -> 2 | G29: =MID(F29,LEN(E29)+1,LEN(F29)-LEN(E29)) ->  | H29: =VALUE(RIGHT(B29,LEN(B29)-SEARCH("-",B29,LEN(C29)+LEN(D29)+2))) -> 60 | I29: =Input!C40 -> 60"x60" | J29: =Input!D40 -> YIELD | K29: =Input!E40 -> 29 | L29: =IF(COUNTBLANK(Input!$F$14:$J$14)=5,Input!F40,IF(Input!$F$14=0,0,Input!F40)) -> 0 | M29: =IF(Input!G$14=0,0,Input!G40) -> 0 | N29: =IF(Input!H$14=0,0,Input!H40) -> 0 | O29: =IF(Input!I$14=0,0,Input!I40) -> 0 | P29: =IF(Input!J$14=0,0,Input!J40) -> 0
A30: 27 | B30: =Input!B41 -> R2-1-36 | C30: =IF(B30=0,"Z",IF(T(B30)="",CONCATENATE("Y",B30),LEFT(B30,1))) -> R | D30: =VALUE(MID(B30,LEN(C30)+1,SEARCH("-",B30)-(LEN(C30)+1))) -> 2 | E30: =VALUE(IF(LEN(F30)=1,F30,IF(AND(LEN(F30)>1,OR(CODE(MID(F30,2,1))<48,CODE(MID(F30,2,1))>57)),LEFT(F30,1),IF(LEN(F30)=2,F30,IF(OR(CODE(MID(F30,3,1))<48,CODE(MID(F30,3,1))>57),LEFT(F30,2),LEFT(F30,3)))))) -> 1 | F30: =LEFT(RIGHT(B30,LEN(B30)-SEARCH("-",B30)),SEARCH("-",RIGHT(B30,LEN(B30)-SEARCH("-",B30)))-1) -> 1 | G30: =MID(F30,LEN(E30)+1,LEN(F30)-LEN(E30)) ->  | H30: =VALUE(RIGHT(B30,LEN(B30)-SEARCH("-",B30,LEN(C30)+LEN(D30)+2))) -> 36 | I30: =Input!C41 -> 36"x48" | J30: =Input!D41 -> SPEED LIMIT __ (Portable only) | K30: =Input!E41 -> 30 | L30: =IF(COUNTBLANK(Input!$F$14:$J$14)=5,Input!F41,IF(Input!$F$14=0,0,Input!F41)) -> 0 | M30: =IF(Input!G$14=0,0,Input!G41) -> 0 | N30: =IF(Input!H$14=0,0,Input!H41) -> 0 | O30: =IF(Input!I$14=0,0,Input!I41) -> 0 | P30: =IF(Input!J$14=0,0,Input!J41) -> 0
A31: 28 | B31: =Input!B42 -> R2-1-48 | C31: =IF(B31=0,"Z",IF(T(B31)="",CONCATENATE("Y",B31),LEFT(B31,1))) -> R | D31: =VALUE(MID(B31,LEN(C31)+1,SEARCH("-",B31)-(LEN(C31)+1))) -> 2 | E31: =VALUE(IF(LEN(F31)=1,F31,IF(AND(LEN(F31)>1,OR(CODE(MID(F31,2,1))<48,CODE(MID(F31,2,1))>57)),LEFT(F31,1),IF(LEN(F31)=2,F31,IF(OR(CODE(MID(F31,3,1))<48,CODE(MID(F31,3,1))>57),LEFT(F31,2),LEFT(F31,3)))))) -> 1 | F31: =LEFT(RIGHT(B31,LEN(B31)-SEARCH("-",B31)),SEARCH("-",RIGHT(B31,LEN(B31)-SEARCH("-",B31)))-1) -> 1 | G31: =MID(F31,LEN(E31)+1,LEN(F31)-LEN(E31)) ->  | H31: =VALUE(RIGHT(B31,LEN(B31)-SEARCH("-",B31,LEN(C31)+LEN(D31)+2))) -> 48 | I31: =Input!C42 -> 48"x60" | J31: =Input!D42 -> SPEED LIMIT __ | K31: =Input!E42 -> 39 | L31: =IF(COUNTBLANK(Input!$F$14:$J$14)=5,Input!F42,IF(Input!$F$14=0,0,Input!F42)) -> 0 | M31: =IF(Input!G$14=0,0,Input!G42) -> 0 | N31: =IF(Input!H$14=0,0,Input!H42) -> 0 | O31: =IF(Input!I$14=0,0,Input!I42) -> 0 | P31: =IF(Input!J$14=0,0,Input!J42) -> 0
A32: 29 | B32: =Input!B43 -> R2-1aP-24 | C32: =IF(B32=0,"Z",IF(T(B32)="",CONCATENATE("Y",B32),LEFT(B32,1))) -> R | D32: =VALUE(MID(B32,LEN(C32)+1,SEARCH("-",B32)-(LEN(C32)+1))) -> 2 | E32: =VALUE(IF(LEN(F32)=1,F32,IF(AND(LEN(F32)>1,OR(CODE(MID(F32,2,1))<48,CODE(MID(F32,2,1))>57)),LEFT(F32,1),IF(LEN(F32)=2,F32,IF(OR(CODE(MID(F32,3,1))<48,CODE(MID(F32,3,1))>57),LEFT(F32,2),LEFT(F32,3)))))) -> 1 | F32: =LEFT(RIGHT(B32,LEN(B32)-SEARCH("-",B32)),SEARCH("-",RIGHT(B32,LEN(B32)-SEARCH("-",B32)))-1) -> 1aP | G32: =MID(F32,LEN(E32)+1,LEN(F32)-LEN(E32)) -> aP | H32: =VALUE(RIGHT(B32,LEN(B32)-SEARCH("-",B32,LEN(C32)+LEN(D32)+2))) -> 24 | I32: =Input!C43 -> 24"x18" | J32: =Input!D43 -> MINIMUM FEE $150 (Mounted on Speed Limit post) | K32: =Input!E43 -> 10 | L32: =IF(COUNTBLANK(Input!$F$14:$J$14)=5,Input!F43,IF(Input!$F$14=0,0,Input!F43)) -> 0 | M32: =IF(Input!G$14=0,0,Input!G43) -> 0 | N32: =IF(Input!H$14=0,0,Input!H43) -> 0 | O32: =IF(Input!I$14=0,0,Input!I43) -> 0 | P32: =IF(Input!J$14=0,0,Input!J43) -> 0
A33: 30 | B33: =Input!B44 -> R3-2-48 | C33: =IF(B33=0,"Z",IF(T(B33)="",CONCATENATE("Y",B33),LEFT(B33,1))) -> R | D33: =VALUE(MID(B33,LEN(C33)+1,SEARCH("-",B33)-(LEN(C33)+1))) -> 3 | E33: =VALUE(IF(LEN(F33)=1,F33,IF(AND(LEN(F33)>1,OR(CODE(MID(F33,2,1))<48,CODE(MID(F33,2,1))>57)),LEFT(F33,1),IF(LEN(F33)=2,F33,IF(OR(CODE(MID(F33,3,1))<48,CODE(MID(F33,3,1))>57),LEFT(F33,2),LEFT(F33,3)))))) -> 2 | F33: =LEFT(RIGHT(B33,LEN(B33)-SEARCH("-",B33)),SEARCH("-",RIGHT(B33,LEN(B33)-SEARCH("-",B33)))-1) -> 2 | G33: =MID(F33,LEN(E33)+1,LEN(F33)-LEN(E33)) ->  | H33: =VALUE(RIGHT(B33,LEN(B33)-SEARCH("-",B33,LEN(C33)+LEN(D33)+2))) -> 48 | I33: =Input!C44 -> 48"x48" | J33: =Input!D44 -> NO LEFT TURN | K33: =Input!E44 -> 35 | L33: =IF(COUNTBLANK(Input!$F$14:$J$14)=5,Input!F44,IF(Input!$F$14=0,0,Input!F44)) -> 0 | M33: =IF(Input!G$14=0,0,Input!G44) -> 0 | N33: =IF(Input!H$14=0,0,Input!H44) -> 0 | O33: =IF(Input!I$14=0,0,Input!I44) -> 0 | P33: =IF(Input!J$14=0,0,Input!J44) -> 0
A34: 31 | B34: =Input!B45 -> R4-1-48 | C34: =IF(B34=0,"Z",IF(T(B34)="",CONCATENATE("Y",B34),LEFT(B34,1))) -> R | D34: =VALUE(MID(B34,LEN(C34)+1,SEARCH("-",B34)-(LEN(C34)+1))) -> 4 | E34: =VALUE(IF(LEN(F34)=1,F34,IF(AND(LEN(F34)>1,OR(CODE(MID(F34,2,1))<48,CODE(MID(F34,2,1))>57)),LEFT(F34,1),IF(LEN(F34)=2,F34,IF(OR(CODE(MID(F34,3,1))<48,CODE(MID(F34,3,1))>57),LEFT(F34,2),LEFT(F34,3)))))) -> 1 | F34: =LEFT(RIGHT(B34,LEN(B34)-SEARCH("-",B34)),SEARCH("-",RIGHT(B34,LEN(B34)-SEARCH("-",B34)))-1) -> 1 | G34: =MID(F34,LEN(E34)+1,LEN(F34)-LEN(E34)) ->  | H34: =VALUE(RIGHT(B34,LEN(B34)-SEARCH("-",B34,LEN(C34)+LEN(D34)+2))) -> 48 | I34: =Input!C45 -> 48"x60" | J34: =Input!D45 -> DO NOT PASS | K34: =Input!E45 -> 39 | L34: =IF(COUNTBLANK(Input!$F$14:$J$14)=5,Input!F45,IF(Input!$F$14=0,0,Input!F45)) -> 0 | M34: =IF(Input!G$14=0,0,Input!G45) -> 0 | N34: =IF(Input!H$14=0,0,Input!H45) -> 0 | O34: =IF(Input!I$14=0,0,Input!I45) -> 0 | P34: =IF(Input!J$14=0,0,Input!J45) -> 0
A35: 32 | B35: =Input!B46 -> R4-7-48 | C35: =IF(B35=0,"Z",IF(T(B35)="",CONCATENATE("Y",B35),LEFT(B35,1))) -> R | D35: =VALUE(MID(B35,LEN(C35)+1,SEARCH("-",B35)-(LEN(C35)+1))) -> 4 | E35: =VALUE(IF(LEN(F35)=1,F35,IF(AND(LEN(F35)>1,OR(CODE(MID(F35,2,1))<48,CODE(MID(F35,2,1))>57)),LEFT(F35,1),IF(LEN(F35)=2,F35,IF(OR(CODE(MID(F35,3,1))<48,CODE(MID(F35,3,1))>57),LEFT(F35,2),LEFT(F35,3)))))) -> 7 | F35: =LEFT(RIGHT(B35,LEN(B35)-SEARCH("-",B35)),SEARCH("-",RIGHT(B35,LEN(B35)-SEARCH("-",B35)))-1) -> 7 | G35: =MID(F35,LEN(E35)+1,LEN(F35)-LEN(E35)) ->  | H35: =VALUE(RIGHT(B35,LEN(B35)-SEARCH("-",B35,LEN(C35)+LEN(D35)+2))) -> 48 | I35: =Input!C46 -> 48"x60" | J35: =Input!D46 -> KEEP RIGHT | K35: =Input!E46 -> 39 | L35: =IF(COUNTBLANK(Input!$F$14:$J$14)=5,Input!F46,IF(Input!$F$14=0,0,Input!F46)) -> 0 | M35: =IF(Input!G$14=0,0,Input!G46) -> 0 | N35: =IF(Input!H$14=0,0,Input!H46) -> 0 | O35: =IF(Input!I$14=0,0,Input!I46) -> 0 | P35: =IF(Input!J$14=0,0,Input!J46) -> 0
A36: 33 | B36: =Input!B47 -> R5-1-48 | C36: =IF(B36=0,"Z",IF(T(B36)="",CONCATENATE("Y",B36),LEFT(B36,1))) -> R | D36: =VALUE(MID(B36,LEN(C36)+1,SEARCH("-",B36)-(LEN(C36)+1))) -> 5 | E36: =VALUE(IF(LEN(F36)=1,F36,IF(AND(LEN(F36)>1,OR(CODE(MID(F36,2,1))<48,CODE(MID(F36,2,1))>57)),LEFT(F36,1),IF(LEN(F36)=2,F36,IF(OR(CODE(MID(F36,3,1))<48,CODE(MID(F36,3,1))>57),LEFT(F36,2),LEFT(F36,3)))))) -> 1 | F36: =LEFT(RIGHT(B36,LEN(B36)-SEARCH("-",B36)),SEARCH("-",RIGHT(B36,LEN(B36)-SEARCH("-",B36)))-1) -> 1 | G36: =MID(F36,LEN(E36)+1,LEN(F36)-LEN(E36)) ->  | H36: =VALUE(RIGHT(B36,LEN(B36)-SEARCH("-",B36,LEN(C36)+LEN(D36)+2))) -> 48 | I36: =Input!C47 -> 48"x48" | J36: =Input!D47 -> DO NOT ENTER | K36: =Input!E47 -> 35 | L36: =IF(COUNTBLANK(Input!$F$14:$J$14)=5,Input!F47,IF(Input!$F$14=0,0,Input!F47)) -> 0 | M36: =IF(Input!G$14=0,0,Input!G47) -> 0 | N36: =IF(Input!H$14=0,0,Input!H47) -> 0 | O36: =IF(Input!I$14=0,0,Input!I47) -> 0 | P36: =IF(Input!J$14=0,0,Input!J47) -> 0
A37: 34 | B37: =Input!B48 -> R6-1-54 | C37: =IF(B37=0,"Z",IF(T(B37)="",CONCATENATE("Y",B37),LEFT(B37,1))) -> R | D37: =VALUE(MID(B37,LEN(C37)+1,SEARCH("-",B37)-(LEN(C37)+1))) -> 6 | E37: =VALUE(IF(LEN(F37)=1,F37,IF(AND(LEN(F37)>1,OR(CODE(MID(F37,2,1))<48,CODE(MID(F37,2,1))>57)),LEFT(F37,1),IF(LEN(F37)=2,F37,IF(OR(CODE(MID(F37,3,1))<48,CODE(MID(F37,3,1))>57),LEFT(F37,2),LEFT(F37,3)))))) -> 1 | F37: =LEFT(RIGHT(B37,LEN(B37)-SEARCH("-",B37)),SEARCH("-",RIGHT(B37,LEN(B37)-SEARCH("-",B37)))-1) -> 1 | G37: =MID(F37,LEN(E37)+1,LEN(F37)-LEN(E37)) ->  | H37: =VALUE(RIGHT(B37,LEN(B37)-SEARCH("-",B37,LEN(C37)+LEN(D37)+2))) -> 54 | I37: =Input!C48 -> 54"x18" | J37: =Input!D48 -> ONE WAY RIGHT or LEFT (Mounted on STOP or DO NOT ENTER post) | K37: =Input!E48 -> 14 | L37: =IF(COUNTBLANK(Input!$F$14:$J$14)=5,Input!F48,IF(Input!$F$14=0,0,Input!F48)) -> 0 | M37: =IF(Input!G$14=0,0,Input!G48) -> 0 | N37: =IF(Input!H$14=0,0,Input!H48) -> 0 | O37: =IF(Input!I$14=0,0,Input!I48) -> 0 | P37: =IF(Input!J$14=0,0,Input!J48) -> 0
A38: 35 | B38: =Input!B49 -> R7-1-12 | C38: =IF(B38=0,"Z",IF(T(B38)="",CONCATENATE("Y",B38),LEFT(B38,1))) -> R | D38: =VALUE(MID(B38,LEN(C38)+1,SEARCH("-",B38)-(LEN(C38)+1))) -> 7 | E38: =VALUE(IF(LEN(F38)=1,F38,IF(AND(LEN(F38)>1,OR(CODE(MID(F38,2,1))<48,CODE(MID(F38,2,1))>57)),LEFT(F38,1),IF(LEN(F38)=2,F38,IF(OR(CODE(MID(F38,3,1))<48,CODE(MID(F38,3,1))>57),LEFT(F38,2),LEFT(F38,3)))))) -> 1 | F38: =LEFT(RIGHT(B38,LEN(B38)-SEARCH("-",B38)),SEARCH("-",RIGHT(B38,LEN(B38)-SEARCH("-",B38)))-1) -> 1 | G38: =MID(F38,LEN(E38)+1,LEN(F38)-LEN(E38)) ->  | H38: =VALUE(RIGHT(B38,LEN(B38)-SEARCH("-",B38,LEN(C38)+LEN(D38)+2))) -> 12 | I38: =Input!C49 -> 12"x18" | J38: =Input!D49 -> NO PARKING ANY TIME | K38: =Input!E49 -> 11 | L38: =IF(COUNTBLANK(Input!$F$14:$J$14)=5,Input!F49,IF(Input!$F$14=0,0,Input!F49)) -> 0 | M38: =IF(Input!G$14=0,0,Input!G49) -> 0 | N38: =IF(Input!H$14=0,0,Input!H49) -> 0 | O38: =IF(Input!I$14=0,0,Input!I49) -> 0 | P38: =IF(Input!J$14=0,0,Input!J49) -> 0
A39: 36 | B39: =Input!B50 -> R10-6-24 | C39: =IF(B39=0,"Z",IF(T(B39)="",CONCATENATE("Y",B39),LEFT(B39,1))) -> R | D39: =VALUE(MID(B39,LEN(C39)+1,SEARCH("-",B39)-(LEN(C39)+1))) -> 10 | E39: =VALUE(IF(LEN(F39)=1,F39,IF(AND(LEN(F39)>1,OR(CODE(MID(F39,2,1))<48,CODE(MID(F39,2,1))>57)),LEFT(F39,1),IF(LEN(F39)=2,F39,IF(OR(CODE(MID(F39,3,1))<48,CODE(MID(F39,3,1))>57),LEFT(F39,2),LEFT(F39,3)))))) -> 6 | F39: =LEFT(RIGHT(B39,LEN(B39)-SEARCH("-",B39)),SEARCH("-",RIGHT(B39,LEN(B39)-SEARCH("-",B39)))-1) -> 6 | G39: =MID(F39,LEN(E39)+1,LEN(F39)-LEN(E39)) ->  | H39: =VALUE(RIGHT(B39,LEN(B39)-SEARCH("-",B39,LEN(C39)+LEN(D39)+2))) -> 24 | I39: =Input!C50 -> 24"x36" | J39: =Input!D50 -> STOP HERE ON RED | K39: =Input!E50 -> 16 | L39: =IF(COUNTBLANK(Input!$F$14:$J$14)=5,Input!F50,IF(Input!$F$14=0,0,Input!F50)) -> 0 | M39: =IF(Input!G$14=0,0,Input!G50) -> 0 | N39: =IF(Input!H$14=0,0,Input!H50) -> 0 | O39: =IF(Input!I$14=0,0,Input!I50) -> 0 | P39: =IF(Input!J$14=0,0,Input!J50) -> 0
A40: 37 | B40: =Input!B51 -> R11-2-48 | C40: =IF(B40=0,"Z",IF(T(B40)="",CONCATENATE("Y",B40),LEFT(B40,1))) -> R | D40: =VALUE(MID(B40,LEN(C40)+1,SEARCH("-",B40)-(LEN(C40)+1))) -> 11 | E40: =VALUE(IF(LEN(F40)=1,F40,IF(AND(LEN(F40)>1,OR(CODE(MID(F40,2,1))<48,CODE(MID(F40,2,1))>57)),LEFT(F40,1),IF(LEN(F40)=2,F40,IF(OR(CODE(MID(F40,3,1))<48,CODE(MID(F40,3,1))>57),LEFT(F40,2),LEFT(F40,3)))))) -> 2 | F40: =LEFT(RIGHT(B40,LEN(B40)-SEARCH("-",B40)),SEARCH("-",RIGHT(B40,LEN(B40)-SEARCH("-",B40)))-1) -> 2 | G40: =MID(F40,LEN(E40)+1,LEN(F40)-LEN(E40)) ->  | H40: =VALUE(RIGHT(B40,LEN(B40)-SEARCH("-",B40,LEN(C40)+LEN(D40)+2))) -> 48 | I40: =Input!C51 -> 48"x30" | J40: =Input!D51 -> ROAD CLOSED (Mounted on barricade) | K40: =Input!E51 -> 12 | L40: =IF(COUNTBLANK(Input!$F$14:$J$14)=5,Input!F51,IF(Input!$F$14=0,0,Input!F51)) -> 0 | M40: =IF(Input!G$14=0,0,Input!G51) -> 0 | N40: =IF(Input!H$14=0,0,Input!H51) -> 0 | O40: =IF(Input!I$14=0,0,Input!I51) -> 0 | P40: =IF(Input!J$14=0,0,Input!J51) -> 0
A41: 38 | B41: =Input!B52 -> R11-2a-48 | C41: =IF(B41=0,"Z",IF(T(B41)="",CONCATENATE("Y",B41),LEFT(B41,1))) -> R | D41: =VALUE(MID(B41,LEN(C41)+1,SEARCH("-",B41)-(LEN(C41)+1))) -> 11 | E41: =VALUE(IF(LEN(F41)=1,F41,IF(AND(LEN(F41)>1,OR(CODE(MID(F41,2,1))<48,CODE(MID(F41,2,1))>57)),LEFT(F41,1),IF(LEN(F41)=2,F41,IF(OR(CODE(MID(F41,3,1))<48,CODE(MID(F41,3,1))>57),LEFT(F41,2),LEFT(F41,3)))))) -> 2 | F41: =LEFT(RIGHT(B41,LEN(B41)-SEARCH("-",B41)),SEARCH("-",RIGHT(B41,LEN(B41)-SEARCH("-",B41)))-1) -> 2a | G41: =MID(F41,LEN(E41)+1,LEN(F41)-LEN(E41)) -> a | H41: =VALUE(RIGHT(B41,LEN(B41)-SEARCH("-",B41,LEN(C41)+LEN(D41)+2))) -> 48 | I41: =Input!C52 -> 48"x30" | J41: =Input!D52 -> STREET CLOSED (Mounted on barricade) | K41: =Input!E52 -> 12 | L41: =IF(COUNTBLANK(Input!$F$14:$J$14)=5,Input!F52,IF(Input!$F$14=0,0,Input!F52)) -> 0 | M41: =IF(Input!G$14=0,0,Input!G52) -> 0 | N41: =IF(Input!H$14=0,0,Input!H52) -> 0 | O41: =IF(Input!I$14=0,0,Input!I52) -> 0 | P41: =IF(Input!J$14=0,0,Input!J52) -> 0
A42: 39 | B42: =Input!B53 -> R11-3a-60 | C42: =IF(B42=0,"Z",IF(T(B42)="",CONCATENATE("Y",B42),LEFT(B42,1))) -> R | D42: =VALUE(MID(B42,LEN(C42)+1,SEARCH("-",B42)-(LEN(C42)+1))) -> 11 | E42: =VALUE(IF(LEN(F42)=1,F42,IF(AND(LEN(F42)>1,OR(CODE(MID(F42,2,1))<48,CODE(MID(F42,2,1))>57)),LEFT(F42,1),IF(LEN(F42)=2,F42,IF(OR(CODE(MID(F42,3,1))<48,CODE(MID(F42,3,1))>57),LEFT(F42,2),LEFT(F42,3)))))) -> 3 | F42: =LEFT(RIGHT(B42,LEN(B42)-SEARCH("-",B42)),SEARCH("-",RIGHT(B42,LEN(B42)-SEARCH("-",B42)))-1) -> 3a | G42: =MID(F42,LEN(E42)+1,LEN(F42)-LEN(E42)) -> a | H42: =VALUE(RIGHT(B42,LEN(B42)-SEARCH("-",B42,LEN(C42)+LEN(D42)+2))) -> 60 | I42: =Input!C53 -> 60"x30" | J42: =Input!D53 -> ROAD CLOSED __ MILES AHEAD LOCAL TRAFFIC ONLY (Mtd on barricade) | K42: =Input!E53 -> 15 | L42: =IF(COUNTBLANK(Input!$F$14:$J$14)=5,Input!F53,IF(Input!$F$14=0,0,Input!F53)) -> 0 | M42: =IF(Input!G$14=0,0,Input!G53) -> 0 | N42: =IF(Input!H$14=0,0,Input!H53) -> 0 | O42: =IF(Input!I$14=0,0,Input!I53) -> 0 | P42: =IF(Input!J$14=0,0,Input!J53) -> 0
A43: 40 | B43: =Input!B54 -> R11-3c-60 | C43: =IF(B43=0,"Z",IF(T(B43)="",CONCATENATE("Y",B43),LEFT(B43,1))) -> R | D43: =VALUE(MID(B43,LEN(C43)+1,SEARCH("-",B43)-(LEN(C43)+1))) -> 11 | E43: =VALUE(IF(LEN(F43)=1,F43,IF(AND(LEN(F43)>1,OR(CODE(MID(F43,2,1))<48,CODE(MID(F43,2,1))>57)),LEFT(F43,1),IF(LEN(F43)=2,F43,IF(OR(CODE(MID(F43,3,1))<48,CODE(MID(F43,3,1))>57),LEFT(F43,2),LEFT(F43,3)))))) -> 3 | F43: =LEFT(RIGHT(B43,LEN(B43)-SEARCH("-",B43)),SEARCH("-",RIGHT(B43,LEN(B43)-SEARCH("-",B43)))-1) -> 3c | G43: =MID(F43,LEN(E43)+1,LEN(F43)-LEN(E43)) -> c | H43: =VALUE(RIGHT(B43,LEN(B43)-SEARCH("-",B43,LEN(C43)+LEN(D43)+2))) -> 60 | I43: =Input!C54 -> 60"x30" | J43: =Input!D54 -> STREET CLOSED __ MILES AHEAD LOCAL TRAFFIC ONLY (Mtd on barricade) | K43: =Input!E54 -> 15 | L43: =IF(COUNTBLANK(Input!$F$14:$J$14)=5,Input!F54,IF(Input!$F$14=0,0,Input!F54)) -> 0 | M43: =IF(Input!G$14=0,0,Input!G54) -> 0 | N43: =IF(Input!H$14=0,0,Input!H54) -> 0 | O43: =IF(Input!I$14=0,0,Input!I54) -> 0 | P43: =IF(Input!J$14=0,0,Input!J54) -> 0
A44: 41 | B44: =Input!B55 -> R11-4a-60 | C44: =IF(B44=0,"Z",IF(T(B44)="",CONCATENATE("Y",B44),LEFT(B44,1))) -> R | D44: =VALUE(MID(B44,LEN(C44)+1,SEARCH("-",B44)-(LEN(C44)+1))) -> 11 | E44: =VALUE(IF(LEN(F44)=1,F44,IF(AND(LEN(F44)>1,OR(CODE(MID(F44,2,1))<48,CODE(MID(F44,2,1))>57)),LEFT(F44,1),IF(LEN(F44)=2,F44,IF(OR(CODE(MID(F44,3,1))<48,CODE(MID(F44,3,1))>57),LEFT(F44,2),LEFT(F44,3)))))) -> 4 | F44: =LEFT(RIGHT(B44,LEN(B44)-SEARCH("-",B44)),SEARCH("-",RIGHT(B44,LEN(B44)-SEARCH("-",B44)))-1) -> 4a | G44: =MID(F44,LEN(E44)+1,LEN(F44)-LEN(E44)) -> a | H44: =VALUE(RIGHT(B44,LEN(B44)-SEARCH("-",B44,LEN(C44)+LEN(D44)+2))) -> 60 | I44: =Input!C55 -> 60"x30" | J44: =Input!D55 -> STREET CLOSED TO THRU TRAFFIC (Mounted on barricade) | K44: =Input!E55 -> 15 | L44: =IF(COUNTBLANK(Input!$F$14:$J$14)=5,Input!F55,IF(Input!$F$14=0,0,Input!F55)) -> 0 | M44: =IF(Input!G$14=0,0,Input!G55) -> 0 | N44: =IF(Input!H$14=0,0,Input!H55) -> 0 | O44: =IF(Input!I$14=0,0,Input!I55) -> 0 | P44: =IF(Input!J$14=0,0,Input!J55) -> 0
A45: 42 | B45: =Input!B56 -> W1-3-48 | C45: =IF(B45=0,"Z",IF(T(B45)="",CONCATENATE("Y",B45),LEFT(B45,1))) -> W | D45: =VALUE(MID(B45,LEN(C45)+1,SEARCH("-",B45)-(LEN(C45)+1))) -> 1 | E45: =VALUE(IF(LEN(F45)=1,F45,IF(AND(LEN(F45)>1,OR(CODE(MID(F45,2,1))<48,CODE(MID(F45,2,1))>57)),LEFT(F45,1),IF(LEN(F45)=2,F45,IF(OR(CODE(MID(F45,3,1))<48,CODE(MID(F45,3,1))>57),LEFT(F45,2),LEFT(F45,3)))))) -> 3 | F45: =LEFT(RIGHT(B45,LEN(B45)-SEARCH("-",B45)),SEARCH("-",RIGHT(B45,LEN(B45)-SEARCH("-",B45)))-1) -> 3 | G45: =MID(F45,LEN(E45)+1,LEN(F45)-LEN(E45)) ->  | H45: =VALUE(RIGHT(B45,LEN(B45)-SEARCH("-",B45,LEN(C45)+LEN(D45)+2))) -> 48 | I45: =Input!C56 -> 48"x48" | J45: =Input!D56 -> REVERSE TURN RIGHT or LEFT | K45: =Input!E56 -> 35 | L45: =IF(COUNTBLANK(Input!$F$14:$J$14)=5,Input!F56,IF(Input!$F$14=0,0,Input!F56)) -> 0 | M45: =IF(Input!G$14=0,0,Input!G56) -> 0 | N45: =IF(Input!H$14=0,0,Input!H56) -> 0 | O45: =IF(Input!I$14=0,0,Input!I56) -> 0 | P45: =IF(Input!J$14=0,0,Input!J56) -> 0
A46: 43 | B46: =Input!B57 -> W1-4-48 | C46: =IF(B46=0,"Z",IF(T(B46)="",CONCATENATE("Y",B46),LEFT(B46,1))) -> W | D46: =VALUE(MID(B46,LEN(C46)+1,SEARCH("-",B46)-(LEN(C46)+1))) -> 1 | E46: =VALUE(IF(LEN(F46)=1,F46,IF(AND(LEN(F46)>1,OR(CODE(MID(F46,2,1))<48,CODE(MID(F46,2,1))>57)),LEFT(F46,1),IF(LEN(F46)=2,F46,IF(OR(CODE(MID(F46,3,1))<48,CODE(MID(F46,3,1))>57),LEFT(F46,2),LEFT(F46,3)))))) -> 4 | F46: =LEFT(RIGHT(B46,LEN(B46)-SEARCH("-",B46)),SEARCH("-",RIGHT(B46,LEN(B46)-SEARCH("-",B46)))-1) -> 4 | G46: =MID(F46,LEN(E46)+1,LEN(F46)-LEN(E46)) ->  | H46: =VALUE(RIGHT(B46,LEN(B46)-SEARCH("-",B46,LEN(C46)+LEN(D46)+2))) -> 48 | I46: =Input!C57 -> 48"x48" | J46: =Input!D57 -> REVERSE CURVE RIGHT or LEFT | K46: =Input!E57 -> 35 | L46: =IF(COUNTBLANK(Input!$F$14:$J$14)=5,Input!F57,IF(Input!$F$14=0,0,Input!F57)) -> 0 | M46: =IF(Input!G$14=0,0,Input!G57) -> 0 | N46: =IF(Input!H$14=0,0,Input!H57) -> 0 | O46: =IF(Input!I$14=0,0,Input!I57) -> 0 | P46: =IF(Input!J$14=0,0,Input!J57) -> 0
A47: 44 | B47: =Input!B58 -> W1-4b-48 | C47: =IF(B47=0,"Z",IF(T(B47)="",CONCATENATE("Y",B47),LEFT(B47,1))) -> W | D47: =VALUE(MID(B47,LEN(C47)+1,SEARCH("-",B47)-(LEN(C47)+1))) -> 1 | E47: =VALUE(IF(LEN(F47)=1,F47,IF(AND(LEN(F47)>1,OR(CODE(MID(F47,2,1))<48,CODE(MID(F47,2,1))>57)),LEFT(F47,1),IF(LEN(F47)=2,F47,IF(OR(CODE(MID(F47,3,1))<48,CODE(MID(F47,3,1))>57),LEFT(F47,2),LEFT(F47,3)))))) -> 4 | F47: =LEFT(RIGHT(B47,LEN(B47)-SEARCH("-",B47)),SEARCH("-",RIGHT(B47,LEN(B47)-SEARCH("-",B47)))-1) -> 4b | G47: =MID(F47,LEN(E47)+1,LEN(F47)-LEN(E47)) -> b | H47: =VALUE(RIGHT(B47,LEN(B47)-SEARCH("-",B47,LEN(C47)+LEN(D47)+2))) -> 48 | I47: =Input!C58 -> 48"x48" | J47: =Input!D58 -> TWO LANE REVERSE CURVE RIGHT or LEFT | K47: =Input!E58 -> 35 | L47: =IF(COUNTBLANK(Input!$F$14:$J$14)=5,Input!F58,IF(Input!$F$14=0,0,Input!F58)) -> 0 | M47: =IF(Input!G$14=0,0,Input!G58) -> 0 | N47: =IF(Input!H$14=0,0,Input!H58) -> 0 | O47: =IF(Input!I$14=0,0,Input!I58) -> 0 | P47: =IF(Input!J$14=0,0,Input!J58) -> 0
A48: 45 | B48: =Input!B59 -> W1-6-48 | C48: =IF(B48=0,"Z",IF(T(B48)="",CONCATENATE("Y",B48),LEFT(B48,1))) -> W | D48: =VALUE(MID(B48,LEN(C48)+1,SEARCH("-",B48)-(LEN(C48)+1))) -> 1 | E48: =VALUE(IF(LEN(F48)=1,F48,IF(AND(LEN(F48)>1,OR(CODE(MID(F48,2,1))<48,CODE(MID(F48,2,1))>57)),LEFT(F48,1),IF(LEN(F48)=2,F48,IF(OR(CODE(MID(F48,3,1))<48,CODE(MID(F48,3,1))>57),LEFT(F48,2),LEFT(F48,3)))))) -> 6 | F48: =LEFT(RIGHT(B48,LEN(B48)-SEARCH("-",B48)),SEARCH("-",RIGHT(B48,LEN(B48)-SEARCH("-",B48)))-1) -> 6 | G48: =MID(F48,LEN(E48)+1,LEN(F48)-LEN(E48)) ->  | H48: =VALUE(RIGHT(B48,LEN(B48)-SEARCH("-",B48,LEN(C48)+LEN(D48)+2))) -> 48 | I48: =Input!C59 -> 48"x24" | J48: =Input!D59 -> ONE DIRECTION LARGE ARROW | K48: =Input!E59 -> 26 | L48: =IF(COUNTBLANK(Input!$F$14:$J$14)=5,Input!F59,IF(Input!$F$14=0,0,Input!F59)) -> 0 | M48: =IF(Input!G$14=0,0,Input!G59) -> 0 | N48: =IF(Input!H$14=0,0,Input!H59) -> 0 | O48: =IF(Input!I$14=0,0,Input!I59) -> 0 | P48: =IF(Input!J$14=0,0,Input!J59) -> 0
